Workbook

Sheet Co Inf
B2: CÔNG TY CỔ PHẦN ĐẦU TƯ KIMI
B3: 266/42 Tô Hiến Thành, Phường 15, Quận 10, TP HCM, Việt Nam | H3: (Ban hành theo Quyết định số 167/2000/QĐ-BTC ngày
B4: MST: 0311394734 | H4: 25/10/2000, bổ sung theo thông tư số 89/2002/TT-BTC
H5: ngày 09/10/2000 của Bộ trưởng BTC)
A6: Giám đốc: | B6: LƯƠNG ĐĂNG SƠN
A7: Kế toán trưởng: | B7: Lê Thị Lệ Thương
A8: Thủ quỹ: | B8: Lương Trí Hùng
A9: Thủ kho: | B9: Nguyễn Thị Kim Anh
A10: Người lập biểu: | B10: =ktt -> Lê Thị Lệ Thương
A11: Niên độ kế toán: | B11: 2014 | D11: Tháng
A12: Ngày | B12: 1 | D12: 1
A13: Tháng | D13: 2
D14: 3
A15: Tài khoản: | D15: 4
A16: 1121 | B16: 19025683399999 | C16: techcombank | D16: 5
A17: 1122 | B17: 15468425 | C17: ACB | D17: 6
D18: 7
D19: 8
D20: 9
D21: 10
D22: 11
D23: 12

Sheet CDKTok
A1: =Ten -> CÔNG TY CỔ PHẦN ĐẦU TƯ KIMI | D1: Mẫu số B01-DN
A2: =DiaChi -> 266/42 Tô Hiến Thành, Phường 15, Quận 10, TP HCM, Việt Nam | D2: (Ban hành theo QĐ số 15/2006/QĐ-BTC
D3: Ngày 20/03/2006 của Bộ trưởng BTC)
A6: BẢNG CÂN ĐỐI KẾ TOÁN
A7: ="Tại ngày 31 tháng 12 năm "&Nam&" (1)" -> Tại ngày 31 tháng 12 năm 2014 (1)
E9: Đơn vị tính:VNĐ
A10: TÀI SẢN | B10: Mã số | C10: Thuyết minh | D10: Số cuối năm | E10: Số đầu năm
A11: 1 | B11: 2 | C11: 3 | D11: 4 | E11: 5
A12: A – TÀI SẢN NGẮN HẠN: (100=110+120+130+140+150) | B12: 100 | D12: =D13+D17+D20+D27+D30 -> 2,251,578,583 | E12: =E13+E17+E20+E27+E30 -> 1,087,721,632
A13: I. Tiền và các khoản tương đương tiền | B13: 110 | D13: =D15+D16+D14 -> 483,826,986 | E13: =E15+E16+E14 -> 636,721,632
A14: 1.Tiền mặt | B14: 111 | D14: =VLOOKUP(111,CDPS,79,0) -> 99,943,857 | E14: =VLOOKUP(111,CDPS,3,0) -> 98,351,193
A15: 1.Tiền gửi ngân hàng | B15: 112 | D15: =VLOOKUP(112,CDPS,79,0) -> 383,883,129 | E15: =VLOOKUP(112,CDPS,3,0) -> 538,370,439
A16: 2. Các khoản tương đương tiền | B16: 113 | D16: 0 | E16: 0
A17: II. Các khoản đầu tư tài chính ngắn hạn | B17: 120 | C17: V.02 | D17: =D18+D19 -> 0 | E17: =E18+E19 -> 0
A18: 1. Đầu tư ngắn hạn | B18: 121 | D18: 0 | E18: 0
A19: 2. Dự phòng giảm giá đầu tư ngắn hạn (*) (2) | B19: 129 | D19: 0 | E19: 0
A20: III. Các khoản phải thu ngắn hạn | B20: 130 | D20: =SUM(D21:D26) -> 1,288,185,000 | E20: =SUM(E21:E26) -> 40,000,000
A21: 1. Phải thu khách hàng | B21: 131 | D21: =VLOOKUP(131,CDPS,79,0) -> 1,273,185,000 | E21: =VLOOKUP(131,CDPS,3,0) -> 40,000,000
A22: 2. Trả trước cho người bán | B22: 132 | D22: =VLOOKUP(331,CDPS,79,0) -> 15,000,000 | E22: =VLOOKUP(331,CDPS,3,0) -> 0
A23: 3. Phải thu nội bộ ngắn hạn | B23: 133 | D23: 0 | E23: 0
A24: 4. Phải thu theo tiến độ kế hoạch hợp đồng xây dựng | B24: 134 | D24: 0 | E24: 0
A25: 5. Các khoản phải thu khác | B25: 135 | C25: V.03 | D25: =VLOOKUP(1388,CDPS,79,0)+VLOOKUP(338,CDPS,79,0) -> 0 | E25: =VLOOKUP(1388,CDPS,3,0)+VLOOKUP(3388,CDPS,3,0) -> 0
A26: 6. Dự phòng phải thu ngắn hạn khó đòi (*) | B26: 139 | D26: 0 | E26: 0
A27: IV. Hàng tồn kho | B27: 140 | D27: =SUM(D28:D29) -> 443,149,930 | E27: =SUM(E28:E29) -> 379,000,000
A28: 1. Hàng tồn kho | B28: 141 | C28: V.04 | D28: =VLOOKUP(152,CDPS,79,0)+VLOOKUP(153,CDPS,79,0)+VLOOKUP(154,CDPS,79,0)+VLOOKUP(156,CDPS,79,0) -> 443,149,930 | E28: =VLOOKUP(152,CDPS,3,0)+VLOOKUP(153,CDPS,3,0)+VLOOKUP(154,CDPS,3,0)+VLOOKUP(156,CDPS,3,0) -> 379,000,000
A29: 2. Dự phòng giảm giá hàng tồn kho (*) | B29: 149 | D29: 0 | E29: 0
A30: V. Tài sản ngắn hạn khác | B30: 150 | D30: =SUM(D31:D34) -> 36,416,667 | E30: =SUM(E31:E34) -> 32,000,000
A31: 1. Chi phí trả trước ngắn hạn | B31: 151 | D31: =VLOOKUP(142,CDPS,79,0) -> 36,416,667 | E31: =VLOOKUP(142,CDPS,3,0) -> 0
A32: 2. Thuế GTGT được khấu trừ | B32: 152 | D32: =VLOOKUP(133,CDPS,79,0) -> 0 | E32: =VLOOKUP(133,CDPS,3,0) -> 32,000,000
A33: 3. Thuế và các khoản khác phải thu Nhà nước | B33: 154 | C33: V.05 | D33: =VLOOKUP(333,CDPS,79,0) -> 0 | E33: =VLOOKUP(333,CDPS,3,0) -> 0
A34: 5. Tài sản ngắn hạn khác | B34: 158 | D34: =VLOOKUP(1381,CDPS,79,0) -> 0 | E34: =VLOOKUP(1381,CDPS,3,0) -> 0
A36: B - TÀI SẢN DÀI HẠN (200 = 210 + 220 + 240 + 250 + 260) | B36: 200 | D36: =D37+D43+D54+D57+D62 -> 200,574,602 | E36: =E37+E43+E54+E57+E62 -> 739,866,667
A37: I- Các khoản phải thu dài hạn | B37: 210 | D37: =SUM(D38:D42) -> 0 | E37: =SUM(E38:E42) -> 0
A38: 1. Phải thu dài hạn của khách hàng | B38: 211 | D38: 0 | E38: 0
A39: 2. Vốn kinh doanh ở đơn vị trực thuộc | B39: 212 | D39: 0 | E39: 0
A40: 3. Phải thu dài hạn nội bộ | B40: 213 | C40: V.06 | D40: 0 | E40: 0
A41: 4. Phải thu dài hạn khác | B41: 218 | C41: V.07 | D41: 0 | E41: 0
A42: 5. Dự phòng phải thu dài hạn khó đòi (*) | B42: 219 | D42: 0 | E42: 0
A43: II. Tài sản cố định | B43: 220 | D43: =D44+D47+D50+D53 -> 178,549,602 | E43: =E44+E47+E50+E53 -> 731,666,667
A44: 1. Tài sản cố định hữu hình | B44: 221 | C44: V.08 | D44: =SUM(D45:D46) -> 178,549,602 | E44: =SUM(E45:E46) -> 731,666,667
A45: - Nguyên giá | B45: 222 | D45: =VLOOKUP(211,CDPS,79,0) -> 200,000,000 | E45: =VLOOKUP(211,CDPS,3,0) -> 800,000,000
A46: - Giá trị hao mòn luỹ kế (*) | B46: 223 | D46: =-VLOOKUP(2141,CDPS,80,0) -> (21,450,398) | E46: =-VLOOKUP(2141,CDPS,4,0) -> (68,333,333)
A47: 2. Tài sản cố định thuê tài chính | B47: 224 | C47: V.09 | D47: =SUM(D48:D49) -> 0 | E47: =SUM(E48:E49) -> 0
A48: - Nguyên giá | B48: 225 | D48: 0 | E48: 0
A49: - Giá trị hao mòn luỹ kế (*) | B49: 226 | D49: 0 | E49: 0
A50: 3. Tài sản cố định vô hình | B50: 227 | C50: V.10 | D50: =SUM(D51:D52) -> 0 | E50: =SUM(E51:E52) -> 0
A51: - Nguyên giá | B51: 228 | D51: =VLOOKUP(213,CDPS,79,0) -> 0 | E51: =VLOOKUP(213,CDPS,3,0) -> 0
A52: - Giá trị hao mòn luỹ kế (*) | B52: 229 | D52: =-VLOOKUP(2143,CDPS,80,0) -> 0 | E52: =-VLOOKUP(2143,CDPS,4,0) -> 0
A53: 4. Chi phí xây dựng cơ bản dở dang | B53: 230 | C53: V.11 | D53: =VLOOKUP(241,CDPS,79,0) -> 0 | E53: =VLOOKUP(241,CDPS,3,0) -> 0
A54: III. Bất động sản đầu tư | B54: 240 | C54: V.12 | D54: =SUM(D55:D56) -> 0 | E54: =SUM(E55:E56) -> 0
A55: - Nguyên giá | B55: 241 | D55: 0 | E55: 0
A56: - Giá trị hao mòn luỹ kế (*) | B56: 242 | D56: 0 | E56: 0
A57: IV. Các khoản đầu tư tài chính dài hạn | B57: 250 | D57: =SUM(D58:D61) -> 0 | E57: =SUM(E58:E61) -> 0
A58: 1. Đầu tư vào công ty con | B58: 251 | D58: 0 | E58: 0
A59: 2. Đầu tư vào công ty liên kết, liên doanh | B59: 252 | D59: 0 | E59: 0
A60: 3. Đầu tư dài hạn khác | B60: 258 | C60: V.13 | D60: 0 | E60: 0
A61: 4. Dự phòng giảm giá đầu tư tài chính dài hạn (*) | B61: 259 | D61: 0 | E61: 0
A62: V. Tài sản dài hạn khác | B62: 260 | D62: =SUM(D63:D65) -> 22,025,000 | E62: =SUM(E63:E65) -> 8,200,000
A63: 1. Chi phí trả trước dài hạn | B63: 261 | C63: V.14 | D63: =VLOOKUP(242,CDPS,79,0) -> 22,025,000 | E63: =VLOOKUP(242,CDPS,3,0) -> 8,200,000
A64: 2. Tài sản thuế thu nhập hoãn lại | B64: 262 | C64: V.21 | D64: 0 | E64: 0
A65: 3. Tài sản dài hạn khác | B65: 268 | D65: 0 | E65: 0
A66: TỔNG CỘNG TÀI SẢN (270 = 100 + 200) | B66: 270 | D66: =D12+D36 -> 2,452,153,185 | E66: =E12+E36 -> 1,827,588,299 | F66: ck | G66: dk
F67: =D66-D106 -> -22,852,303.0000 | G67: =E66-E106 -> 0 | H67: =D66-D106 -> (22,852,303)
A68: NGUỒN VỐN
A69: A – NỢ PHẢI TRẢ (300 = 310 + 330) | B69: 300 | D69: =D70+D81 -> 334,595,711 | E69: =E70+E81 -> 0
A70: I. Nợ ngắn hạn | B70: 310 | D70: =SUM(D71:D80) -> 334,595,711 | E70: =SUM(E71:E80) -> 0
A71: 1. Vay và nợ ngắn hạn | B71: 311 | C71: V.15 | D71: =VLOOKUP(311,CDPS,80,0) -> 0 | E71: =VLOOKUP(311,CDPS,4,0)+VLOOKUP(341,CDPS,4,0) -> 0
A72: 2. Phải trả người bán | B72: 312 | D72: =VLOOKUP(331,CDPS,80,0) -> 232,975,000 | E72: =VLOOKUP(331,CDPS,4,0) -> 0
A73: 3. Người mua trả tiền trước | B73: 313 | D73: =VLOOKUP(131,CDPS,80,0) -> 10,000,000 | E73: =VLOOKUP(131,CDPS,4,0) -> 0
A74: 4. Thuế và các khoản phải nộp Nhà nước | B74: 314 | C74: V.16 | D74: =VLOOKUP(333,CDPS,80,0) -> 26,696,363 | E74: =VLOOKUP(333,CDPS,4,0) -> 0
A75: 5. Phải trả người lao động | B75: 315 | D75: =VLOOKUP(334,CDPS,80,0) -> 53,000,000 | E75: =VLOOKUP(334,CDPS,4,0) -> 0
A76: 6. Chi phí phải trả | B76: 316 | C76: V.17 | D76: =VLOOKUP(335,CDPS,80,0) -> 0 | E76: =VLOOKUP(335,CDPS,4,0) -> 0
A77: 7. Phải trả nội bộ | B77: 317 | D77: 0 | E77: 0
A78: 8. Phải trả theo tiến độ kế hoạch hợp đồng xây dựng | B78: 318 | D78: 0 | E78: 0
A79: 9. Các khoản phải trả, phải nộp ngắn hạn khác | B79: 319 | C79: V.18 | D79: =VLOOKUP(338,CDPS,80,0)+VLOOKUP(1388,CDPS,80,0) -> 11,924,348 | E79: =VLOOKUP(338,CDPS,4,0)+VLOOKUP(1388,CDPS,4,0) -> 0
A80: 10. Dự phòng phải trả ngắn hạn | B80: 320 | D80: 0 | E80: 0
A81: II. Nợ dài hạn | B81: 330 | D81: =SUM(D82:D88) -> 0 | E81: =SUM(E82:E88) -> 0
A82: 1. Phải trả dài hạn người bán | B82: 331 | D82: 0 | E82: 0
A83: 2. Phải trả dài hạn nội bộ | B83: 332 | C83: V.19 | D83: 0 | E83: 0
A84: 3. Phải trả dài hạn khác | B84: 333 | D84: 0 | E84: 0
A85: 4. Vay và nợ dài hạn | B85: 334 | C85: V.20 | D85: 0 | E85: 0
A86: 5. Thuế thu nhập hoãn lại phải trả | B86: 335 | C86: V.21 | D86: 0 | E86: 0
A87: 6. Dự phòng trợ cấp mất việc làm | B87: 336 | D87: 0 | E87: 0
A88: 7.Dự phòng phải trả dài hạn | B88: 337 | D88: 0 | E88: 0
A90: B - VỐN CHỦ SỞ HỮU (400 = 410 + 430) | B90: 400 | D90: =D91+D102 -> 2,140,409,777 | E90: =E91+E102 -> 1,827,588,299
A91: I. Vốn chủ sở hữu | B91: 410 | C91: V.22 | D91: =SUM(D92:D101) -> 2,140,409,777 | E91: =SUM(E92:E101) -> 1,827,588,299
A92: 1. Vốn đầu tư của chủ sở hữu | B92: 411 | D92: =VLOOKUP(411,CDPS,80,0) -> 2,100,000,000 | E92: =VLOOKUP(4111,CDPS,4,0) -> 1,800,000,000
A93: 2. Thặng dư vốn cổ phần | B93: 412 | D93: =VLOOKUP(4112,CDPS,80,0) -> 0 | E93: =VLOOKUP(4112,CDPS,4,0) -> 0
A94: 3. Các quỹ thuộc vốn chủ sở hữu | B94: 413 | D94: =-VLOOKUP(418,CDPS,79,0) -> 0 | E94: =VLOOKUP(418,CDPS,4,0) -> 0
A95: 5. Chênh lệch đánh giá lại tài sản | B95: 415 | D95: 0 | E95: 0
A96: 6. Chênh lệch tỷ giá hối đoái | B96: 416 | D96: =VLOOKUP(413,CDPS,80,0) -> 0 | E96: =VLOOKUP(413,CDPS,4,0) -> 0
A97: 7. Quỹ đầu tư phát triển | B97: 417 | D97: 0 | E97: 0
A98: 8. Quỹ dự phòng tài chính | B98: 418 | D98: 0 | E98: 0
A99: 9. Quỹ khác thuộc vốn chủ sở hữu | B99: 419 | D99: 0 | E99: 0
A100: 10. Lợi nhuận sau thuế chưa phân phối | B100: 420 | D100: =VLOOKUP(421,CDPS,80,0)-VLOOKUP(421,CDPS,79,0) -> 40,409,777 | E100: =VLOOKUP(421,CDPS,4,0)-VLOOKUP(421,CDPS,3,0) -> 27,588,299
A101: 11. Nguồn vốn đầu tư XDCB | B101: 421 | D101: 0 | E101: 0
A102: II. Nguồn kinh phí và quỹ khác | B102: 430 | D102: =SUM(D103:D105) -> 0 | E102: =SUM(E103:E105) -> 0 | G102: =D106-D66 -> 22,852,303.00
A103: 1. Quỹ khen thưởng, phúc lợi | B103: 431 | D103: 0 | E103: 0
A104: 2. Nguồn kinh phí | B104: 432 | C104: V.23 | D104: 0 | E104: 0
A105: 3. Nguồn kinh phí đã hình thành TSCĐ | B105: 433 | D105: 0 | E105: 0
A106: TỔNG CỘNG NGUỒN VỐN (440 = 300 + 400) | B106: 440 | D106: =D69+D90 -> 2,475,005,488 | E106: =E69+E90 -> 1,827,588,299
A110: CÁC CHỈ TIÊU NGOÀI BẢNG CÂN ĐỐI KẾ TOÁN
A112: CHỈ TIÊU | B112: Thuyết minh | D112: Số cuối năm (3) | E112: Số đầu năm (3)
A113: 1. Tài sản thuê ngoài | B113: 24
A114: 2. Vật tư, hàng hóa nhận giữ hộ, nhận gia công
A115: 3. Hàng hóa nhận bán hộ, nhận ký gửi, ký cược
A116: 4. Nợ khó đòi đã xử lý
A117: 5. Ngoại tệ các loại
A118: 6. Dự toán chi sự nghiệp, dự án
D120: ="Lập, ngày "&TEXT(Ngay,"00")&" tháng "&TEXT(Thang-Thang+1,"00")&" năm "&Nam+1 -> Lập, ngày 01 tháng 01 năm 2015
A121: Người lập biểu Kế toán trưởng | D121: Giám đốc
A122: (Ký, họ tên) (Ký, họ tên) | D122: (Ký, họ tên, đóng dấu)
A133: Ghi chú:
A134: (1) Những chỉ tiêu không có số liệu có thể không phải trình bày nhưng không được đánh lại số thứ tự chỉ tiêu và "Mã số"
A135: (2) Số liệu các chỉ tiêu có dấu (*) được ghi bằng số âm dưới hình thức ghi trong ngoặc đơn (…)
A136: (3) Đối với doanh nghiệp có kỳ kế toán năm là năm dương lịch (X) thì số cuối năm có thể ghi là "31.12.X" và số đầu năm có thể ghi là "01.01.X"

Sheet KQKD
A1: =Ten -> CÔNG TY CỔ PHẦN ĐẦU TƯ KIMI | D1: Mẫu số B02-DN
A2: =DiaChi -> 266/42 Tô Hiến Thành, Phường 15, Quận 10, TP HCM, Việt Nam | D2: (Ban hành theo QĐ số 15/2006/QĐ-BTC
D3: Ngày 20/03/2006 của Bộ trưởng BTC)
F4: =VLOOKUP(632,CDPS,77,0)-SUMIFS(NKC!AM12:AM2209,NKC!AD12:AD2209,"1561",NKC!AE12:AE2209,"6321") -> 820,132,415
A6: BÁO CÁO KẾT QUẢ HOẠT ĐỘNG KINH DOANH
A7: =" Năm "&Nam -> Năm 2014
E9: Đơn vị tính: VNĐ | G9: MS | H9: TKN | I9: TKC | J9: DAU | K9: ST
A10: CHỈ TIÊU | B10: Mã số | C10: Thuyết minh | D10: Năm nay | E10: Năm trước | G10: 11 | H10: 911 | I10: 632 | J10: 1 | K10: =SUM(IF(H10=LEFT(NKC!$AA$12:$AA$2445,LEN(KQKD!H10)),1,0)*IF(I10=LEFT(NKC!$AB$12:$AB$2445,LEN(KQKD!I10)),1,0)*NKC!$AJ$12:$AJ$2445)*J10 -> 323,065,745
A11: 1 | B11: 2 | C11: 3 | D11: 4 | E11: 5
A12: 1. Doanh thu bán hàng và cung cấp dịch vụ | B12: 01 | C12: VI.25 | D12: =VLOOKUP(511,CDPS,77,0) -> 434,050,000 | F12: 1
A13: 2. Các khoản giảm trừ doanh thu | B13: 02 | D13: =VLOOKUP(531,CDPS,77,0) -> 4,200,000 | E13: 0 | F13: 2
A14: 3. Doanh thu thuần về bán hàng và cung cấp dịch vụ (10 = 01 - 02) | B14: 10 | D14: =D12-D13 -> 429,850,000 | E14: =E12-E13 -> 0 | F14: 3
A15: 4. Giá vốn hàng bán | B15: 11 | C15: VI.27 | D15: =L15 -> 323,065,745 | F15: 4 | L15: =SUMIFS(ST,TKno,"911",TKco,"6321") -> 323065745
A16: 5. Lợi nhuận gộp về bán hàng và cung cấp dịch vụ (20 = 10 - 11) | B16: 20 | D16: =D14-D15 -> 106,784,255 | E16: =E14-E15 -> 0 | F16: 5
A17: 6. Doanh thu hoạt động tài chính | B17: 21 | C17: VI.26 | D17: =VLOOKUP(515,CDPS,78,0) -> 1,560,428 | F17: 6
A18: 7. Chi phí tài chính | B18: 22 | C18: VI.28 | D18: =D19 -> 0 | E18: =E19 -> 0 | F18: 7
A19: - Trong đó: Chi phí lãi vay | B19: 23 | D19: =VLOOKUP(635,CDPS,77,0) -> 0 | F19: 8
A20: 8. Chi phí bán hàng | B20: 24 | D20: =VLOOKUP(641,CDPS,77,0) -> 74,434,596 | F20: 9
A21: 9. Chi phí quản lý doanh nghiệp | B21: 25 | D21: =VLOOKUP(642,CDPS,77,0) -> 81,821,874 | F21: 10
A22: 10 Lợi nhuận thuần từ hoạt động kinh doanh {30 = 20 + (21 - 22) - (24 + 25)} | B22: 30 | D22: =D16+(D17-D18)-(D20+D21) -> (47,911,787) | E22: =E16+(E17-E18)-(E20+E21) -> 0 | F22: 11
A23: 11. Thu nhập khác | B23: 31 | D23: =VLOOKUP(711,CDPS,78,0) -> 558,500,000 | E23: 0 | F23: 12
A24: 12. Chi phí khác | B24: 32 | D24: =VLOOKUP(8111,CDPS,77,0) -> 541,666,668 | F24: 13
A25: 13. Lợi nhuận khác (40 = 31 - 32) | B25: 40 | D25: =D23-D24 -> 16,833,332 | E25: =E23-E24 -> 0 | F25: 14
A26: 14. Tổng lợi nhuận kế toán trước thuế | B26: 50 | D26: =D22+D25 -> (31,078,455) | E26: =E22+E25 -> 0 | F26: 15
A27: (50 = 30 + 40) | F27: 16
A28: 15. Chi phí thuế TNDN hiện hành | B28: 51 | C28: VI.30 | D28: =VLOOKUP(8211,CDPS,77,0) -> 3,205,370 | F28: 17
A29: 16. Chi phí thuế TNDN hoãn lại | B29: 52 | C29: VI.30 | D29: =VLOOKUP(8212,CDPS,77,0) -> 0 | F29: 18
A30: 17. Lợi nhuận sau thuế thu nhập doanh nghiệp (60 = 50 – 51 - 52) | B30: 60 | D30: =D26-D28-D29 -> (34,283,825) | E30: =E26-E28-E29 -> 0 | F30: 19
A31: 18. Lãi cơ bản trên cổ phiếu (*) | B31: 70 | F31: 20
D33: ="Lập, ngày "&TEXT(Ngay,"00")&" tháng "&TEXT(Thang-Thang+1,"00")&" năm "&Nam+1 -> Lập, ngày 01 tháng 01 năm 2015
A34: Người lập biểu | B34: Kế toán trưởng | D34: Giám đốc
A35: (Ký, họ tên) | B35: (Ký, họ tên) | D35: (Ký, họ tên, đóng dấu)
F37: =D30+'CDPS-ok'!BZ109 -> (34,283,825)
A46: Ghi chú: (*) Chỉ tiêu này chỉ áp dụng đối với công ty cổ phần.

Sheet LCTT
A1: =Ten -> CÔNG TY CỔ PHẦN ĐẦU TƯ KIMI | B1: Mẫu số B03-DN | H1: Chi | N1: Thu
A2: =DiaChi -> 266/42 Tô Hiến Thành, Phường 15, Quận 10, TP HCM, Việt Nam | B2: (Ban hành theo QĐ số 15/2006/QĐ-BTC | H2: Nợ | I2: Có
B3: Ngày 20/03/2006 của Bộ trưởng BTC) | J3: =H3&"-"&I3 -> - | K3: =SUMIF(NKC!$AU:$AU,LCTT!$J3,ST) -> 1,433,088,032 | M3: I.1 | N3: 1111 | O3: 131 | P3: =N3&"-"&O3 -> 1111-131 | Q3: =SUMIF(NKC!$AU:$AU,LCTT!$P3,ST) -> 18,150,000
G4: I.2 | H4: 331 | I4: 1121 | J4: =H4&"-"&I4 -> 331-1121 | K4: =SUMIF(NKC!$AU:$AU,LCTT!$J4,ST) -> 709,450,000 | M4: I.1 | N4: 1121 | O4: 131 | P4: 1121-131 | Q4: =SUMIF(NKC!$AU:$AU,LCTT!$P4,ST) -> 480,000,000
G5: I.2 | H5: 331 | I5: 1122 | J5: =H5&"-"&I5 -> 331-1122 | K5: =SUMIF(NKC!$AU:$AU,LCTT!$J5,ST) -> 124,638,300 | M5: I.6 | N5: 1121 | O5: 515 | P5: 1121-515 | Q5: =SUMIF(NKC!$AU:$AU,LCTT!$P5,ST) -> 927,478
A6: BÁO CÁO LƯU CHUYỂN TIỀN TỆ | G6: I.2 | H6: 6425 | I6: 1121 | J6: 6425-1121 | K6: =SUMIF(NKC!$AU:$AU,LCTT!$J6,ST) -> 1,205,898 | M6: III.1 | N6: 1121 | O6: 41111 | P6: 1121-41111 | Q6: =SUMIF(NKC!$AU:$AU,LCTT!$P6,ST) -> 300,000,000
A7: (Theo phương pháp trực tiếp) (*) | G7: I.2 | H7: 1331 | I7: 1121 | J7: 1331-1121 | K7: =SUMIF(NKC!$AU:$AU,LCTT!$J7,ST) -> 120,590 | P7: - | Q7: =SUMIF(NKC!$AU:$AU,LCTT!$P7,ST) -> 1,433,088,032
A8: =" Năm "&Nam -> Năm 2014 | G8: I.2 | H8: 331 | I8: 1111 | J8: 331-1111 | K8: =SUMIF(NKC!$AU:$AU,LCTT!$J8,ST) -> 47,410,074 | P8: - | Q8: =SUMIF(NKC!$AU:$AU,LCTT!$P8,ST) -> 1,433,088,032
J9: - | K9: =SUMIF(NKC!$AU:$AU,LCTT!$J9,ST) -> 1,433,088,032 | P9: - | Q9: =SUMIF(NKC!$AU:$AU,LCTT!$P9,ST) -> 1,433,088,032
E10: Đơn vị tính: VNĐ | J10: - | K10: =SUMIF(NKC!$AU:$AU,LCTT!$J10,ST) -> 1,433,088,032 | P10: - | Q10: =SUMIF(NKC!$AU:$AU,LCTT!$P10,ST) -> 1,433,088,032
A11: Chỉ tiêu | B11: Mã số | C11: Thuyết minh | D11: Năm nay | E11: Năm trước | F11: =IF(OR(S4<>0,U4<>0),"kiểm tra lịa 1331 và 33311","") ->  | G11: I.3 | H11: 334 | I11: 1111 | J11: 334-1111 | K11: =SUMIF(NKC!$AU:$AU,LCTT!$J11,ST) -> 51,931,269 | P11: =N11&"-"&O11 -> - | Q11: =SUMIF(NKC!$AU:$AU,LCTT!$P11,ST) -> 1,433,088,032
A12: 1 | B12: 2 | C12: 3 | D12: 4 | E12: 5 | G12: I.7 | H12: 3338 | I12: 1111 | J12: 3338-1111 | K12: =SUMIF(NKC!$AU:$AU,LCTT!$J12,ST) -> 2,000,000 | P12: =N12&"-"&O12 -> - | Q12: =SUMIF(NKC!$AU:$AU,LCTT!$P12,ST) -> 1,433,088,032
A13: I. Lưu chuyển tiền từ hoạt động kinh doanh | F13: 1 | G13: I.7 | H13: 33312 | I13: 1111 | J13: 33312-1111 | K13: =SUMIF(NKC!$AU:$AU,LCTT!$J13,ST) -> 12,721,568 | P13: =N13&"-"&O13 -> - | Q13: =SUMIF(NKC!$AU:$AU,LCTT!$P13,ST) -> 1,433,088,032
A14: 1. Tiền thu từ bán hàng, cung cấp dịch vụ và doanh thu khác | B14: 1 | C14: I.1 | D14: =SUMIF($M:$M,$C14,$Q:$Q) -> 498,150,000 | F14: 2 | G14: I.7 | H14: 3333 | I14: 1111 | J14: 3333-1111 | K14: =SUMIF(NKC!$AU:$AU,LCTT!$J14,ST) -> 2,494,425 | P14: =N14&"-"&O14 -> - | Q14: =SUMIF(NKC!$AU:$AU,LCTT!$P14,ST) -> 1,433,088,032
A15: 2. Tiền chi trả cho người cung cấp hàng hóa và dịch vụ | B15: 2 | C15: I.2 | D15: =-SUMIF($G:$G,$C15,$K:$K) -> (882,824,862) | F15: 3 | G15: I.7 | H15: 3383 | I15: 1121 | J15: =H15&"-"&I15 -> 3383-1121 | K15: =SUMIF(NKC!$AU:$AU,LCTT!$J15,ST) -> 0 | P15: =N15&"-"&O15 -> - | Q15: =SUMIF(NKC!$AU:$AU,LCTT!$P15,ST) -> 1,433,088,032
A16: 3. Tiền chi trả cho người lao động | B16: 3 | C16: I.3 | D16: =-SUMIF($G:$G,$C16,$K:$K) -> (51,931,269) | F16: 4 | G16: I.7 | H16: 3384 | I16: 1121 | J16: 3384-1121 | K16: =SUMIF(NKC!$AU:$AU,LCTT!$J16,ST) -> 0 | P16: =N16&"-"&O16 -> - | Q16: =SUMIF(NKC!$AU:$AU,LCTT!$P16,ST) -> 1,433,088,032
A17: 4. Tiền chi trả lãi vay | B17: 4 | C17: I.4 | D17: =-SUMIF($G:$G,$C17,$K:$K) -> 0 | F17: 5 | G17: I.7 | H17: 3389 | I17: 1121 | J17: 3389-1121 | K17: =SUMIF(NKC!$AU:$AU,LCTT!$J17,ST) -> 0 | P17: - | Q17: =SUMIF(NKC!$AU:$AU,LCTT!$P17,ST) -> 1,433,088,032
A18: 5. Tiền chi nộp thuế thu nhập doanh nghiệp | B18: 5 | C18: I.5 | D18: =-SUMIF($G:$G,$C18,$K:$K) -> 0 | F18: 6 | J18: - | K18: =SUMIF(NKC!$AU:$AU,LCTT!$J18,ST) -> 1,433,088,032 | P18: - | Q18: =SUMIF(NKC!$AU:$AU,LCTT!$P18,ST) -> 1,433,088,032
A19: 6. Tiền thu khác từ hoạt động kinh doanh | B19: 6 | C19: I.6 | D19: =SUMIF($M:$M,$C19,$Q:$Q) -> 927,478 | F19: 7 | J19: - | K19: =SUMIF(NKC!$AU:$AU,LCTT!$J19,ST) -> 1,433,088,032 | P19: - | Q19: =SUMIF(NKC!$AU:$AU,LCTT!$P19,ST) -> 1,433,088,032
A20: 7. Tiền chi khác cho hoạt động kinh doanh | B20: 7 | C20: I.7 | D20: =-SUMIF($G:$G,$C20,$K:$K) -> (17,215,993) | F20: 8 | J20: - | K20: =SUMIF(NKC!$AU:$AU,LCTT!$J20,ST) -> 1,433,088,032 | P20: - | Q20: =SUMIF(NKC!$AU:$AU,LCTT!$P20,ST) -> 1,433,088,032
A21: Lưu chuyển tiền thuần từ hoạt động kinh doanh | B21: 20 | D21: =SUM(D14:D20) -> (452,894,646) | F21: 9 | J21: =H21&"-"&I21 -> - | K21: =SUMIF(NKC!$AU:$AU,LCTT!$J21,ST) -> 1,433,088,032 | P21: - | Q21: =SUMIF(NKC!$AU:$AU,LCTT!$P21,ST) -> 1,433,088,032
F22: 10 | J22: - | K22: =SUMIF(NKC!$AU:$AU,LCTT!$J22,ST) -> 1,433,088,032 | P22: - | Q22: =SUMIF(NKC!$AU:$AU,LCTT!$P22,ST) -> 1,433,088,032
A23: II. Lưu chuyển tiền từ hoạt động đầu tư | F23: 11 | J23: - | K23: =SUMIF(NKC!$AU:$AU,LCTT!$J23,ST) -> 1,433,088,032 | P23: - | Q23: =SUMIF(NKC!$AU:$AU,LCTT!$P23,ST) -> 1,433,088,032
A24: 1.Tiền chi để mua sắm, xây dựng TSCĐ và các tài sản dài hạn khác | B24: 21 | C24: II.1 | D24: =-SUMIF($G:$G,$C24,$K:$K) -> 0 | F24: 12 | J24: - | K24: =SUMIF(NKC!$AU:$AU,LCTT!$J24,ST) -> 1,433,088,032 | P24: - | Q24: =SUMIF(NKC!$AU:$AU,LCTT!$P24,ST) -> 1,433,088,032
A25: 2.Tiền thu từ thanh lý, nhượng bán TSCĐ và các tài sản dài hạn khác | B25: 22 | C25: II.2 | D25: =SUMIF($M:$M,$C25,$Q:$Q) -> 0 | F25: 13 | J25: - | K25: =SUMIF(NKC!$AU:$AU,LCTT!$J25,ST) -> 1,433,088,032 | P25: - | Q25: =SUMIF(NKC!$AU:$AU,LCTT!$P25,ST) -> 1,433,088,032
A26: 3.Tiền chi cho vay, mua các công cụ nợ của đơn vị khác | B26: 23 | C26: II.3 | D26: =-SUMIF($G:$G,$C26,$K:$K) -> 0 | F26: 14 | J26: - | K26: =SUMIF(NKC!$AU:$AU,LCTT!$J26,ST) -> 1,433,088,032 | P26: - | Q26: =SUMIF(NKC!$AU:$AU,LCTT!$P26,ST) -> 1,433,088,032
A27: 4.Tiền thu hồi cho vay, bán lại các công cụ nợ của đơn vị khác | B27: 24 | C27: II.4 | D27: =SUMIF($M:$M,$C27,$Q:$Q) -> 0 | F27: 15 | J27: - | K27: =SUMIF(NKC!$AU:$AU,LCTT!$J27,ST) -> 1,433,088,032 | P27: -
A28: 5.Tiền chi đầu tư góp vốn vào đơn vị khác | B28: 25 | C28: II.5 | D28: =-SUMIF($G:$G,$C28,$K:$K) -> 0 | F28: 16 | J28: - | K28: =SUMIF(NKC!$AU:$AU,LCTT!$J28,ST) -> 1,433,088,032 | P28: -
A29: 6.Tiền thu hồi đầu tư góp vốn vào đơn vị khác | B29: 26 | C29: II.6 | D29: =SUMIF($M:$M,$C29,$Q:$Q) -> 0 | F29: 17 | J29: - | K29: =SUMIF(NKC!$AU:$AU,LCTT!$J29,ST) -> 1,433,088,032 | P29: -
A30: 7.Tiền thu lãi cho vay, cổ tức và lợi nhuận được chia | B30: 27 | C30: II.7 | D30: =SUMIF($M:$M,$C30,$Q:$Q) -> 0 | F30: 18 | J30: - | K30: =SUMIF(NKC!$AU:$AU,LCTT!$J30,ST) -> 1,433,088,032 | P30: -
A31: Lưu chuyển tiền thuần từ hoạt động đầu tư | B31: 30 | D31: =SUM(D24:D30) -> 0 | F31: 19 | J31: - | P31: -
F32: 20 | J32: - | P32: -
A33: III. Lưu chuyển tiền từ hoạt động tài chính | F33: 21 | J33: - | K33: =SUMIF(NKC!$AU:$AU,LCTT!$J33,ST) -> 1,433,088,032 | P33: -
A34: 1.Tiền thu từ phát hành cổ phiếu, nhận vốn góp của chủ sở hữu | B34: 31 | C34: III.1 | D34: =SUMIF($M:$M,$C34,$Q:$Q) -> 300,000,000 | F34: 22 | J34: - | K34: =SUMIF(NKC!$AU:$AU,LCTT!$J34,ST) -> 1,433,088,032 | P34: -
A35: 2.Tiền chi trả vốn góp cho các chủ sở hữu, mua lại cổ phiếu của doanh nghiệp đã phát hành | B35: 32 | C35: III.2 | D35: =-SUMIF($G:$G,$C35,$K:$K) -> 0 | F35: 23 | J35: - | K35: =SUMIF(NKC!$AU:$AU,LCTT!$J35,ST) -> 1,433,088,032 | P35: -
A36: 3.Tiền vay ngắn hạn, dài hạn nhận được | B36: 33 | C36: III.3 | D36: =SUMIF($M:$M,$C36,$Q:$Q) -> 0 | F36: 24 | J36: - | K36: =SUMIF(NKC!$AU:$AU,LCTT!$J36,ST) -> 1,433,088,032 | P36: -
A37: 4.Tiền chi trả nợ gốc vay | B37: 34 | C37: III.4 | D37: =-SUMIF($G:$G,$C37,$K:$K) -> 0 | F37: 25 | J37: - | K37: =SUMIF(NKC!$AU:$AU,LCTT!$J37,ST) -> 1,433,088,032 | P37: -
A38: 5.Tiền chi trả nợ thuê tài chính | B38: 35 | C38: III.5 | D38: =-SUMIF($G:$G,$C38,$K:$K) -> 0 | F38: 26 | J38: - | K38: =SUMIF(NKC!$AU:$AU,LCTT!$J38,ST) -> 1,433,088,032 | P38: -
A39: 6. Cổ tức, lợi nhuận đã trả cho chủ sở hữu | B39: 36 | C39: III.6 | D39: =SUMIF($G:$G,$C39,$K:$K) -> 0 | F39: 27 | J39: - | K39: =SUMIF(NKC!$AU:$AU,LCTT!$J39,ST) -> 1,433,088,032 | P39: -
A40: Lưu chuyển tiền thuần từ hoạt động tài chính | B40: 40 | D40: =SUM(D34:D39) -> 300,000,000 | F40: 28 | J40: - | K40: =SUMIF(NKC!$AU:$AU,LCTT!$J40,ST) -> 1,433,088,032 | P40: -
A41: Lưu chuyển tiền thuần trong kỳ (50 = 20+30+40) | B41: 50 | D41: =D40+D31+D21 -> (152,894,646) | F41: 29 | J41: - | K41: =SUMIF(NKC!$AU:$AU,LCTT!$J41,ST) -> 1,433,088,032 | P41: -
A42: Tiền và tương đương tiền đầu kỳ | B42: 60 | D42: ='CDPS-ok'!D12+'CDPS-ok'!D17+'CDPS-ok'!D21 -> 636,721,632 | F42: 30 | J42: - | K42: =SUMIF(NKC!$AU:$AU,LCTT!$J42,ST) -> 1,433,088,032 | P42: -
A43: Ảnh hưởng của thay đổi tỷ giá hối đoái quy đổi ngoại tệ | B43: 61 | D43: 0 | F43: 31 | J43: - | K43: =SUMIF(NKC!$AU:$AU,LCTT!$J43,ST) -> 1,433,088,032 | P43: -
A44: Tiền và tương đương tiền cuối kỳ (70 = 50+60+61) | B44: 70 | C44: VII.34 | D44: =D42+D41+D43 -> 483,826,986 | F44: 32 | J44: - | K44: =SUMIF(NKC!$AU:$AU,LCTT!$J44,ST) -> 1,433,088,032 | P44: -
J45: =H45&"-"&I45 -> - | K45: =SUMIF(NKC!$AU:$AU,LCTT!$J45,ST) -> 1,433,088,032 | P45: -
E46: ="Lập, ngày "&TEXT(Ngay,"00")&" tháng "&TEXT(Thang-Thang+1,"00")&" năm "&Nam+1 -> Lập, ngày 01 tháng 01 năm 2015 | J46: =H46&"-"&I46 -> - | K46: =SUMIF(NKC!$AU:$AU,LCTT!$J46,ST) -> 1,433,088,032 | P46: -
A47: Người lập biểu Kế toán trưởng | D47: Giám đốc | J47: - | K47: =SUMIF(NKC!$AU:$AU,LCTT!$J47,ST) -> 1,433,088,032 | P47: -
A48: (Ký, họ tên, đóng dấu) (Ký, họ tên, đóng dấu) | D48: (Ký, họ tên, đóng dấu) | F48: =VLOOKUP(111,CDPS,79,0)+VLOOKUP(112,CDPS,79,0) -> 483,826,986 | J48: - | K48: =SUMIF(NKC!$AU:$AU,LCTT!$J48,ST) -> 1,433,088,032 | P48: -
F49: =D44-F48 -> 0 | J49: - | K49: =SUMIF(NKC!$AU:$AU,LCTT!$J49,ST) -> 1,433,088,032 | P49: -
J50: - | K50: =SUMIF(NKC!$AU:$AU,LCTT!$J50,ST) -> 1,433,088,032 | P50: -
J51: - | K51: =SUMIF(NKC!$AU:$AU,LCTT!$J51,ST) -> 1,433,088,032 | P51: -
J52: - | K52: =SUMIF(NKC!$AU:$AU,LCTT!$J52,ST) -> 1,433,088,032 | P52: -
J53: - | K53: =SUMIF(NKC!$AU:$AU,LCTT!$J53,ST) -> 1,433,088,032 | P53: -
J54: - | K54: =SUMIF(NKC!$AU:$AU,LCTT!$J54,ST) -> 1,433,088,032 | P54: -
J55: - | K55: =SUMIF(NKC!$AU:$AU,LCTT!$J55,ST) -> 1,433,088,032 | P55: -
J56: - | K56: =SUMIF(NKC!$AU:$AU,LCTT!$J56,ST) -> 1,433,088,032 | P56: -
J57: - | P57: -
J58: -
J59: -
A60: Ghi chú: (*) Những chỉ tiêu không có số liệu có thể không phải trình bày nhưng không được đánh lại số thứ tự chỉ tiêu và "Mã số" | J60: -
J61: -
J62: -
J63: -
J64: -
A65: Ghi chú: (*) Những chỉ tiêu không có số liệu có thể không phải trình bày nhưng không được đánh lại số thứ tự chỉ tiêu và "Mã số" | J65: -
J66: -
J67: -
J68: -
J69: -
J70: -
J71: -
J72: -
J73: -

Sheet CDPS-ok
B1: =Ten -> CÔNG TY CỔ PHẦN ĐẦU TƯ KIMI | E1: 331 | F1: =E1 -> 331 | H1: Mẫu số S06-DN | I1: 1 | N1: Mẫu số S06-DN | O1: 2 | T1: Mẫu số S06-DN | U1: 3 | Z1: Mẫu số S06-DN | AA1: 4 | AF1: Mẫu số S06-DN | AG1: 5 | AL1: Mẫu số S06-DN | AM1: 6 | AR1: Mẫu số S06-DN | AS1: 7 | AX1: Mẫu số S06-DN | AY1: 8 | BD1: Mẫu số S06-DN | BE1: 9 | BJ1: Mẫu số S06-DN | BK1: 10 | BP1: Mẫu số S06-DN | BQ1: 11 | BV1: Mẫu số S06-DN | BW1: 12 | CA1: Mẫu số S06-DN
B2: =DiaChi -> 266/42 Tô Hiến Thành, Phường 15, Quận 10, TP HCM, Việt Nam | H2: (Ban hành theo QĐ số 15/2006/QĐ-BTC | N2: (Ban hành theo QĐ số 15/2006/QĐ-BTC | T2: (Ban hành theo QĐ số 15/2006/QĐ-BTC | Z2: (Ban hành theo QĐ số 15/2006/QĐ-BTC | AF2: (Ban hành theo QĐ số 15/2006/QĐ-BTC | AL2: (Ban hành theo QĐ số 15/2006/QĐ-BTC | AR2: (Ban hành theo QĐ số 15/2006/QĐ-BTC | AX2: (Ban hành theo QĐ số 15/2006/QĐ-BTC | BD2: (Ban hành theo QĐ số 15/2006/QĐ-BTC | BJ2: (Ban hành theo QĐ số 15/2006/QĐ-BTC | BP2: (Ban hành theo QĐ số 15/2006/QĐ-BTC | BV2: (Ban hành theo QĐ số 15/2006/QĐ-BTC | CA2: (Ban hành theo Quyết định số 167/2000/QĐ-BTC ngày
E3: =SUMIF(TKno,E1,ST)-VLOOKUP(E1,CDPS,5,0) -> 345,373,407 | F3: =SUMIF(TKco,F1,ST)-VLOOKUP(F1,CDPS,6,0) -> 130373407 | H3: ngày 14/09/2006 của Bộ trưởng BTC) | N3: ngày 20/03/2006 của Bộ trưởng BTC) | T3: ngày 20/03/2006 của Bộ trưởng BTC) | Z3: ngày 20/03/2006 của Bộ trưởng BTC) | AF3: ngày 20/03/2006 của Bộ trưởng BTC) | AL3: ngày 20/03/2006 của Bộ trưởng BTC) | AR3: ngày 20/03/2006 của Bộ trưởng BTC) | AX3: ngày 20/03/2006 của Bộ trưởng BTC) | BD3: ngày 20/03/2006 của Bộ trưởng BTC) | BJ3: ngày 20/03/2006 của Bộ trưởng BTC) | BP3: ngày 20/03/2006 của Bộ trưởng BTC) | BV3: ngày 20/03/2006 của Bộ trưởng BTC) | CA3: 25/10/2000, bổ sung theo thông tư số 89/2002/TT-BTC
J4: 1566047 | CA4: ngày 09/10/2000 của Bộ trưởng BTC)
D5: BẢNG CÂN ĐỐI SỐ PHÁT SINH | J5: BẢNG CÂN ĐỐI SỐ PHÁT SINH | P5: BẢNG CÂN ĐỐI SỐ PHÁT SINH | V5: BẢNG CÂN ĐỐI SỐ PHÁT SINH | AB5: BẢNG CÂN ĐỐI SỐ PHÁT SINH | AH5: BẢNG CÂN ĐỐI SỐ PHÁT SINH | AN5: BẢNG CÂN ĐỐI SỐ PHÁT SINH | AT5: BẢNG CÂN ĐỐI SỐ PHÁT SINH | AZ5: BẢNG CÂN ĐỐI SỐ PHÁT SINH | BF5: BẢNG CÂN ĐỐI SỐ PHÁT SINH | BL5: BẢNG CÂN ĐỐI SỐ PHÁT SINH | BR5: BẢNG CÂN ĐỐI SỐ PHÁT SINH | BX5: BẢNG CÂN ĐỐI SỐ PHÁT SINH
D6: ="Tháng "&TEXT(I$1,"00")&" năm "&Nam -> Tháng 01 năm 2014 | J6: ="Tháng "&TEXT(O$1,"00")&" năm "&Nam -> Tháng 02 năm 2014 | P6: ="Tháng "&TEXT(U$1,"00")&" năm "&Nam -> Tháng 03 năm 2014 | V6: ="Tháng "&TEXT(AA$1,"00")&" năm "&Nam -> Tháng 04 năm 2014 | AB6: ="Tháng "&TEXT(AG$1,"00")&" năm "&Nam -> Tháng 05 năm 2014 | AH6: ="Tháng "&TEXT(AM$1,"00")&" năm "&Nam -> Tháng 06 năm 2014 | AN6: ="Tháng "&TEXT(AS$1,"00")&" năm "&Nam -> Tháng 07 năm 2014 | AT6: ="Tháng "&TEXT(AY$1,"00")&" năm "&Nam -> Tháng 08 năm 2014 | AZ6: ="Tháng "&TEXT(BE$1,"00")&" năm "&Nam -> Tháng 09 năm 2014 | BF6: ="Tháng "&TEXT(BK$1,"00")&" năm "&Nam -> Tháng 10 năm 2014 | BL6: ="Tháng "&TEXT(BQ$1,"00")&" năm "&Nam -> Tháng 11 năm 2014 | BR6: ="Tháng "&TEXT(BW$1,"00")&" năm "&Nam -> Tháng 12 năm 2014 | BX6: =" Năm "&Nam -> Năm 2014
G7: 301
J8: 9 | K8: 10 | L8: 11 | M8: 12 | N8: 13 | O8: 14 | P8: 9 | Q8: 10 | R8: 11 | S8: 12 | T8: 13 | U8: 14 | V8: 9 | W8: 10 | X8: 11 | Y8: 12 | Z8: 13 | AA8: 14 | AB8: 9 | AC8: 10 | AD8: 11 | AE8: 12 | AF8: 13 | AG8: 14 | AH8: 9 | AI8: 10 | AJ8: 11 | AK8: 12 | AL8: 13 | AM8: 14 | AN8: 9 | AO8: 10 | AP8: 11 | AQ8: 12 | AR8: 13 | AS8: 14 | AT8: 9 | AU8: 10 | AV8: 11 | AW8: 12 | AX8: 13 | AY8: 14 | AZ8: 9 | BA8: 10 | BB8: 11 | BC8: 12 | BD8: 13 | BE8: 14 | BF8: 9 | BG8: 10 | BH8: 11 | BI8: 12 | BJ8: 13 | BK8: 14 | BL8: 9 | BM8: 10 | BN8: 11 | BO8: 12 | BP8: 13 | BQ8: 14 | BR8: 9 | BS8: 10 | BT8: 11 | BU8: 12 | BV8: 13 | BW8: 14 | BX8: 9 | BY8: 10 | BZ8: 11 | CA8: 12 | CB8: 13 | CC8: 14
B9: Số hiệu tài khoản | C9: Tên tài khoản kế toán | D9: Số dư đầu kỳ | F9: Số phát sinh trong kỳ | H9: Số dư cuối kỳ | J9: Số dư đầu kỳ | L9: Số phát sinh trong kỳ | N9: Số dư cuối kỳ | P9: Số dư đầu kỳ | R9: Số phát sinh trong kỳ | T9: Số dư cuối kỳ | V9: Số dư đầu kỳ | X9: Số phát sinh trong kỳ | Z9: Số dư cuối kỳ | AB9: Số dư đầu kỳ | AD9: Số phát sinh trong kỳ | AF9: Số dư cuối kỳ | AH9: Số dư đầu kỳ | AJ9: Số phát sinh trong kỳ | AL9: Số dư cuối kỳ | AN9: Số dư đầu kỳ | AP9: Số phát sinh trong kỳ | AR9: Số dư cuối kỳ | AT9: Số dư đầu kỳ | AV9: Số phát sinh trong kỳ | AX9: Số dư cuối kỳ | AZ9: Số dư đầu kỳ | BB9: Số phát sinh trong kỳ | BD9: Số dư cuối kỳ | BF9: Số dư đầu kỳ | BH9: Số phát sinh trong kỳ | BJ9: Số dư cuối kỳ | BL9: Số dư đầu kỳ | BN9: Số phát sinh trong kỳ | BP9: Số dư cuối kỳ | BR9: Số dư đầu kỳ | BT9: Số phát sinh trong kỳ | BV9: Số dư cuối kỳ | BX9: Số dư đầu kỳ | BZ9: Số phát sinh trong kỳ | CB9: Số dư cuối kỳ
D10: Nợ | E10: Có | F10: Nợ | G10: Có | H10: Nợ | I10: Có | J10: Nợ | K10: Có | L10: Nợ | M10: Có | N10: Nợ | O10: Có | P10: Nợ | Q10: Có | R10: Nợ | S10: Có | T10: Nợ | U10: Có | V10: Nợ | W10: Có | X10: Nợ | Y10: Có | Z10: Nợ | AA10: Có | AB10: Nợ | AC10: Có | AD10: Nợ | AE10: Có | AF10: Nợ | AG10: Có | AH10: Nợ | AI10: Có | AJ10: Nợ | AK10: Có | AL10: Nợ | AM10: Có | AN10: Nợ | AO10: Có | AP10: Nợ | AQ10: Có | AR10: Nợ | AS10: Có | AT10: Nợ | AU10: Có | AV10: Nợ | AW10: Có | AX10: Nợ | AY10: Có | AZ10: Nợ | BA10: Có | BB10: Nợ | BC10: Có | BD10: Nợ | BE10: Có | BF10: Nợ | BG10: Có | BH10: Nợ | BI10: Có | BJ10: Nợ | BK10: Có | BL10: Nợ | BM10: Có | BN10: Nợ | BO10: Có | BP10: Nợ | BQ10: Có | BR10: Nợ | BS10: Có | BT10: Nợ | BU10: Có | BV10: Nợ | BW10: Có | BX10: Nợ | BY10: Có | BZ10: Nợ | CA10: Có | CB10: Nợ | CC10: Có
B11: A | C11: B | D11: 1 | E11: 2 | F11: 3 | G11: 4 | H11: 5 | I11: 6 | J11: 1 | K11: 2 | L11: 3 | M11: 4 | N11: 5 | O11: 6 | P11: 1 | Q11: 2 | R11: 3 | S11: 4 | T11: 5 | U11: 6 | V11: 1 | W11: 2 | X11: 3 | Y11: 4 | Z11: 5 | AA11: 6 | AB11: 1 | AC11: 2 | AD11: 3 | AE11: 4 | AF11: 5 | AG11: 6 | AH11: 1 | AI11: 2 | AJ11: 3 | AK11: 4 | AL11: 5 | AM11: 6 | AN11: 1 | AO11: 2 | AP11: 3 | AQ11: 4 | AR11: 5 | AS11: 6 | AT11: 1 | AU11: 2 | AV11: 3 | AW11: 4 | AX11: 5 | AY11: 6 | AZ11: 1 | BA11: 2 | BB11: 3 | BC11: 4 | BD11: 5 | BE11: 6 | BF11: 1 | BG11: 2 | BH11: 3 | BI11: 4 | BJ11: 5 | BK11: 6 | BL11: 1 | BM11: 2 | BN11: 3 | BO11: 4 | BP11: 5 | BQ11: 6 | BR11: 1 | BS11: 2 | BT11: 3 | BU11: 4 | BV11: 5 | BW11: 6 | BX11: 1 | BY11: 2 | BZ11: 3 | CA11: 4 | CB11: 5 | CC11: 6 | CE11: Tài khoản | CF11: Sổ Cái | CG11: SCT
A12: =IF(SUM($D12:$I12)>0,"ok","") -> ok | B12: 111 | C12: Tiền mặt | D12: =D13+D14 -> 98,351,193 | E12: 0 | F12: 18,150,000 | G12: 28,674,967 | H12: 87,826,226 | I12: 0 | J12: 87,826,226 | K12: 0 | L12: 100,000,000 | M12: 87,882,369 | N12: 99,943,857 | O12: 0 | P12: 99,943,857 | Q12: 0 | R12: 0 | S12: 0 | T12: 99,943,857 | U12: 0 | V12: 99,943,857 | W12: 0 | X12: 0 | Y12: 0 | Z12: 99,943,857 | AA12: 0 | AB12: 99,943,857 | AC12: 0 | AD12: 0 | AE12: 0 | AF12: 99,943,857 | AG12: 0 | AH12: 99,943,857 | AI12: 0 | AJ12: 0 | AK12: 0 | AL12: 99,943,857 | AM12: 0 | AN12: 99,943,857 | AO12: 0 | AP12: 0 | AQ12: 0 | AR12: 99,943,857 | AS12: 0 | AT12: 99,943,857 | AU12: 0 | AV12: 0 | AW12: 0 | AX12: 99,943,857 | AY12: 0 | AZ12: 99,943,857 | BA12: 0 | BB12: 0 | BC12: 0 | BD12: 99,943,857 | BE12: 0 | BF12: 99,943,857 | BG12: 0 | BH12: 0 | BI12: 0 | BJ12: 99,943,857 | BK12: 0 | BL12: 99,943,857 | BM12: 0 | BN12: 0 | BO12: 0 | BP12: 99,943,857 | BQ12: =BQ13+BQ14 -> 0 | BR12: =BR13+BR14 -> 99,943,857 | BS12: 0 | BT12: 0 | BU12: 0 | BV12: 99,943,857 | BW12: 0 | BX12: =D12 -> 98,351,193 | BY12: =E12 -> 0 | BZ12: =BZ13+BZ14 -> 118,150,000 | CA12: =CA13+CA14 -> 116,557,336 | CB12: =CB13+CB14 -> 99,943,857 | CC12: =CC13+CC14 -> 0 | CD12: =LEN($B12) -> 3 | CF12: =IF($CD12=3,$B12,"") -> 111 | CG12: =IF($CD12=4,$B12,"") -> 
A13: =IF(SUM($D13:$I13)>0,"ok","") -> ok | B13: 1111 | C13: Tiền mặt VND | D13: 98,351,193 | F13: =SUMIF(TKno,TK,_st01) -> 18,150,000 | G13: =SUMIF(TKco,TK,_st01) -> 28,674,967 | H13: =IF(D13+F13-E13-G13>0,D13+F13-E13-G13,0) -> 87,826,226 | I13: =IF(E13+G13-D13-F13>0,E13+G13-D13-F13,0) -> 0 | J13: =H13 -> 87,826,226 | K13: =I13 -> 0 | L13: =SUMIF(TKno,TK,_st02) -> 100,000,000 | M13: =SUMIF(TKco,TK,_st02) -> 87,882,369 | N13: =IF(J13+L13-K13-M13>0,J13+L13-K13-M13,0) -> 99,943,857 | O13: =IF(K13+M13-J13-L13>0,K13+M13-J13-L13,0) -> 0 | P13: =N13 -> 99,943,857 | Q13: =O13 -> 0 | R13: =SUMIF(TKno,TK,_st03) -> 0 | S13: =SUMIF(TKco,TK,_st03) -> 0 | T13: =IF(P13+R13-Q13-S13>0,P13+R13-Q13-S13,0) -> 99,943,857 | U13: =IF(Q13+S13-P13-R13>0,Q13+S13-P13-R13,0) -> 0 | V13: =T13 -> 99,943,857 | W13: =U13 -> 0 | X13: =SUMIF(TKno,TK,_st04) -> 0 | Y13: =SUMIF(TKco,TK,_st04) -> 0 | Z13: =IF(V13+X13-W13-Y13>0,V13+X13-W13-Y13,0) -> 99,943,857 | AA13: =IF(W13+Y13-V13-X13>0,W13+Y13-V13-X13,0) -> 0 | AB13: =Z13 -> 99,943,857 | AC13: =AA13 -> 0 | AD13: =SUMIF(TKno,TK,_st05) -> 0 | AE13: =SUMIF(TKco,TK,_st05) -> 0 | AF13: =IF(AB13+AD13-AC13-AE13>0,AB13+AD13-AC13-AE13,0) -> 99,943,857 | AG13: =IF(AC13+AE13-AB13-AD13>0,AC13+AE13-AB13-AD13,0) -> 0 | AH13: =AF13 -> 99,943,857 | AI13: =AG13 -> 0 | AJ13: =SUMIF(TKno,TK,_st06) -> 0 | AK13: =SUMIF(TKco,TK,_st06) -> 0 | AL13: =IF(AH13+AJ13-AI13-AK13>0,AH13+AJ13-AI13-AK13,0) -> 99,943,857 | AM13: =IF(AI13+AK13-AH13-AJ13>0,AI13+AK13-AH13-AJ13,0) -> 0 | AN13: =AL13 -> 99,943,857 | AO13: =AM13 -> 0 | AP13: =SUMIF(TKno,TK,_st07) -> 0 | AQ13: =SUMIF(TKco,TK,_st07) -> 0 | AR13: =IF(AN13+AP13-AO13-AQ13>0,AN13+AP13-AO13-AQ13,0) -> 99,943,857 | AS13: =IF(AO13+AQ13-AN13-AP13>0,AO13+AQ13-AN13-AP13,0) -> 0 | AT13: =AR13 -> 99,943,857 | AU13: =AS13 -> 0 | AV13: =SUMIF(TKno,TK,_st08) -> 0 | AW13: =SUMIF(TKco,TK,_st08) -> 0 | AX13: =IF(AT13+AV13-AU13-AW13>0,AT13+AV13-AU13-AW13,0) -> 99,943,857 | AY13: =IF(AU13+AW13-AT13-AV13>0,AU13+AW13-AT13-AV13,0) -> 0 | AZ13: =AX13 -> 99,943,857 | BA13: =AY13 -> 0 | BB13: =SUMIF(TKno,TK,_st09) -> 0 | BC13: =SUMIF(TKco,TK,_st09) -> 0 | BD13: =IF(AZ13+BB13-BA13-BC13>0,AZ13+BB13-BA13-BC13,0) -> 99,943,857 | BE13: =IF(BA13+BC13-AZ13-BB13>0,BA13+BC13-AZ13-BB13,0) -> 0 | BF13: =BD13 -> 99,943,857 | BG13: =BE13 -> 0 | BH13: =SUMIF(TKno,TK,_st10) -> 0 | BI13: =SUMIF(TKco,TK,_st10) -> 0 | BJ13: =IF(BF13+BH13-BG13-BI13>0,BF13+BH13-BG13-BI13,0) -> 99,943,857 | BK13: =IF(BG13+BI13-BF13-BH13>0,BG13+BI13-BF13-BH13,0) -> 0 | BL13: =BJ13 -> 99,943,857 | BM13: =BK13 -> 0 | BN13: =SUMIF(TKno,TK,_st11) -> 0 | BO13: =SUMIF(TKco,TK,_st11) -> 0 | BP13: =IF(BL13+BN13-BM13-BO13>0,BL13+BN13-BM13-BO13,0) -> 99,943,857 | BQ13: =IF(BM13+BO13-BL13-BN13>0,BM13+BO13-BL13-BN13,0) -> 0 | BR13: =BP13 -> 99,943,857 | BS13: =BQ13 -> 0 | BT13: =SUMIF(TKno,TK,_st12) -> 0 | BU13: =SUMIF(TKco,TK,_st12) -> 0 | BV13: =IF(BR13+BT13-BS13-BU13>0,BR13+BT13-BS13-BU13,0) -> 99,943,857 | BW13: =IF(BS13+BU13-BR13-BT13>0,BS13+BU13-BR13-BT13,0) -> 0 | BX13: =D13 -> 98,351,193 | BY13: =E13 -> 0 | BZ13: =SUMIF(TKno,TK,ST) -> 118,150,000 | CA13: =SUMIF(TKco,TK,ST) -> 116,557,336 | CB13: =IF(BX13+BZ13-BY13-CA13>0,BX13+BZ13-BY13-CA13,0) -> 99,943,857 | CC13: =IF(BY13+CA13-BX13-BZ13>0,BY13+CA13-BX13-BZ13,0) -> 0 | CD13: =LEN($B13) -> 4 | CE13: =$B13 -> 1111 | CG13: 1111
A14: =IF(SUM($D14:$I14)>0,"ok","") ->  | B14: 1112 | C14: Tiền mặt Ngoại tệ | D14: 0 | F14: =SUM(F15:F16) -> 0 | G14: 0 | H14: 0 | I14: 0 | J14: 0 | K14: 0 | L14: 0 | M14: 0 | N14: 0 | O14: 0 | P14: =SUM(P15:P16) -> 0 | Q14: 0 | R14: 0 | S14: 0 | T14: 0 | U14: 0 | V14: =SUM(V15:V16) -> 0 | W14: 0 | X14: 0 | Y14: 0 | Z14: 0 | AA14: 0 | AB14: 0 | AC14: 0 | AD14: 0 | AE14: 0 | AF14: 0 | AG14: 0 | AH14: 0 | AI14: 0 | AJ14: 0 | AK14: 0 | AL14: 0 | AM14: 0 | AN14: 0 | AO14: 0 | AP14: 0 | AQ14: 0 | AR14: 0 | AS14: 0 | AT14: 0 | AU14: 0 | AV14: 0 | AW14: 0 | AX14: 0 | AY14: 0 | AZ14: 0 | BA14: 0 | BB14: 0 | BC14: 0 | BD14: 0 | BE14: 0 | BF14: 0 | BG14: 0 | BH14: 0 | BI14: 0 | BJ14: 0 | BK14: 0 | BL14: 0 | BM14: 0 | BN14: 0 | BO14: 0 | BP14: 0 | BQ14: 0 | BR14: =SUM(BR15:BR16) -> 0 | BS14: 0 | BT14: 0 | BU14: 0 | BV14: 0 | BW14: 0 | BX14: 0 | BY14: 0 | BZ14: 0 | CA14: =SUMIF(TKco,TK,ST) -> 0 | CB14: 0 | CC14: 0 | CD14: 4 | CG14: 1112
B15: 11121 | C15: Tiền mặt Ngoại tệ USD | D15: 0 | F15: =SUMIF(TKno,TK,_st01) -> 0 | G15: =SUMIF(TKco,TK,_st01) -> 0 | H15: =IF(D15+F15-E15-G15>0,D15+F15-E15-G15,0) -> 0 | I15: =IF(E15+G15-D15-F15>0,E15+G15-D15-F15,0) -> 0 | J15: =H15 -> 0 | K15: =I15 -> 0 | L15: =SUMIF(TKno,TK,_st02) -> 0 | M15: =SUMIF(TKco,TK,_st02) -> 0 | N15: =IF(J15+L15-K15-M15>0,J15+L15-K15-M15,0) -> 0 | O15: =IF(K15+M15-J15-L15>0,K15+M15-J15-L15,0) -> 0 | P15: =N15 -> 0 | Q15: =O15 -> 0 | R15: =SUMIF(TKno,TK,_st03) -> 0 | S15: =SUMIF(TKco,TK,_st03) -> 0 | T15: =IF(P15+R15-Q15-S15>0,P15+R15-Q15-S15,0) -> 0 | U15: =IF(Q15+S15-P15-R15>0,Q15+S15-P15-R15,0) -> 0 | V15: =T15 -> 0 | W15: =U15 -> 0 | X15: =SUMIF(TKno,TK,_st04) -> 0 | Y15: =SUMIF(TKco,TK,_st04) -> 0 | Z15: =IF(V15+X15-W15-Y15>0,V15+X15-W15-Y15,0) -> 0 | AA15: =IF(W15+Y15-V15-X15>0,W15+Y15-V15-X15,0) -> 0 | AB15: =Z15 -> 0 | AC15: =AA15 -> 0 | AD15: =SUMIF(TKno,TK,_st05) -> 0 | AE15: =SUMIF(TKco,TK,_st05) -> 0 | AF15: =IF(AB15+AD15-AC15-AE15>0,AB15+AD15-AC15-AE15,0) -> 0 | AG15: =IF(AC15+AE15-AB15-AD15>0,AC15+AE15-AB15-AD15,0) -> 0 | AH15: =AF15 -> 0 | AI15: =AG15 -> 0 | AJ15: =SUMIF(TKno,TK,_st06) -> 0 | AK15: =SUMIF(TKco,TK,_st06) -> 0 | AL15: =IF(AH15+AJ15-AI15-AK15>0,AH15+AJ15-AI15-AK15,0) -> 0 | AM15: =IF(AI15+AK15-AH15-AJ15>0,AI15+AK15-AH15-AJ15,0) -> 0 | AN15: =AL15 -> 0 | AO15: =AM15 -> 0 | AP15: =SUMIF(TKno,TK,_st07) -> 0 | AQ15: =SUMIF(TKco,TK,_st07) -> 0 | AR15: =IF(AN15+AP15-AO15-AQ15>0,AN15+AP15-AO15-AQ15,0) -> 0 | AS15: =IF(AO15+AQ15-AN15-AP15>0,AO15+AQ15-AN15-AP15,0) -> 0 | AT15: =AR15 -> 0 | AU15: =AS15 -> 0 | AV15: =SUMIF(TKno,TK,_st08) -> 0 | AW15: =SUMIF(TKco,TK,_st08) -> 0 | AX15: =IF(AT15+AV15-AU15-AW15>0,AT15+AV15-AU15-AW15,0) -> 0 | AY15: =IF(AU15+AW15-AT15-AV15>0,AU15+AW15-AT15-AV15,0) -> 0 | AZ15: =AX15 -> 0 | BA15: =AY15 -> 0 | BB15: =SUMIF(TKno,TK,_st09) -> 0 | BC15: =SUMIF(TKco,TK,_st09) -> 0 | BD15: =IF(AZ15+BB15-BA15-BC15>0,AZ15+BB15-BA15-BC15,0) -> 0 | BE15: =IF(BA15+BC15-AZ15-BB15>0,BA15+BC15-AZ15-BB15,0) -> 0 | BF15: =BD15 -> 0 | BG15: =BE15 -> 0 | BH15: =SUMIF(TKno,TK,_st10) -> 0 | BI15: =SUMIF(TKco,TK,_st10) -> 0 | BJ15: =IF(BF15+BH15-BG15-BI15>0,BF15+BH15-BG15-BI15,0) -> 0 | BK15: =IF(BG15+BI15-BF15-BH15>0,BG15+BI15-BF15-BH15,0) -> 0 | BL15: =BJ15 -> 0 | BM15: =BK15 -> 0 | BN15: =SUMIF(TKno,TK,_st11) -> 0 | BO15: =SUMIF(TKco,TK,_st11) -> 0 | BP15: =IF(BL15+BN15-BM15-BO15>0,BL15+BN15-BM15-BO15,0) -> 0 | BQ15: =IF(BM15+BO15-BL15-BN15>0,BM15+BO15-BL15-BN15,0) -> 0 | BR15: =BP15 -> 0 | BS15: =BQ15 -> 0 | BT15: =SUMIF(TKno,TK,_st12) -> 0 | BU15: =SUMIF(TKco,TK,_st12) -> 0 | BV15: =IF(BR15+BT15-BS15-BU15>0,BR15+BT15-BS15-BU15,0) -> 0 | BW15: =IF(BS15+BU15-BR15-BT15>0,BS15+BU15-BR15-BT15,0) -> 0 | BX15: 0 | BY15: 0 | BZ15: =SUMIF(TKno,TK,ST) -> 0 | CA15: =SUMIF(TKco,TK,ST) -> 0 | CB15: =IF(BX15+BZ15-BY15-CA15>0,BX15+BZ15-BY15-CA15,0) -> 0 | CC15: =IF(BY15+CA15-BX15-BZ15>0,BY15+CA15-BX15-BZ15,0) -> 0 | CD15: 5 | CE15: =$B15 -> 11121
B16: 11122 | C16: Tiền mặt Ngoại tệ EUR | D16: 0 | F16: =SUMIF(TKno,TK,_st01) -> 0 | G16: =SUMIF(TKco,TK,_st01) -> 0 | H16: =IF(D16+F16-E16-G16>0,D16+F16-E16-G16,0) -> 0 | I16: =IF(E16+G16-D16-F16>0,E16+G16-D16-F16,0) -> 0 | J16: =H16 -> 0 | K16: =I16 -> 0 | L16: =SUMIF(TKno,TK,_st02) -> 0 | M16: =SUMIF(TKco,TK,_st02) -> 0 | N16: =IF(J16+L16-K16-M16>0,J16+L16-K16-M16,0) -> 0 | O16: =IF(K16+M16-J16-L16>0,K16+M16-J16-L16,0) -> 0 | P16: =N16 -> 0 | Q16: =O16 -> 0 | R16: =SUMIF(TKno,TK,_st03) -> 0 | S16: =SUMIF(TKco,TK,_st03) -> 0 | T16: =IF(P16+R16-Q16-S16>0,P16+R16-Q16-S16,0) -> 0 | U16: =IF(Q16+S16-P16-R16>0,Q16+S16-P16-R16,0) -> 0 | V16: =T16 -> 0 | W16: =U16 -> 0 | X16: =SUMIF(TKno,TK,_st04) -> 0 | Y16: =SUMIF(TKco,TK,_st04) -> 0 | Z16: =IF(V16+X16-W16-Y16>0,V16+X16-W16-Y16,0) -> 0 | AA16: =IF(W16+Y16-V16-X16>0,W16+Y16-V16-X16,0) -> 0 | AB16: =Z16 -> 0 | AC16: =AA16 -> 0 | AD16: =SUMIF(TKno,TK,_st05) -> 0 | AE16: =SUMIF(TKco,TK,_st05) -> 0 | AF16: =IF(AB16+AD16-AC16-AE16>0,AB16+AD16-AC16-AE16,0) -> 0 | AG16: =IF(AC16+AE16-AB16-AD16>0,AC16+AE16-AB16-AD16,0) -> 0 | AH16: =AF16 -> 0 | AI16: =AG16 -> 0 | AJ16: =SUMIF(TKno,TK,_st06) -> 0 | AK16: =SUMIF(TKco,TK,_st06) -> 0 | AL16: =IF(AH16+AJ16-AI16-AK16>0,AH16+AJ16-AI16-AK16,0) -> 0 | AM16: =IF(AI16+AK16-AH16-AJ16>0,AI16+AK16-AH16-AJ16,0) -> 0 | AN16: =AL16 -> 0 | AO16: =AM16 -> 0 | AP16: =SUMIF(TKno,TK,_st07) -> 0 | AQ16: =SUMIF(TKco,TK,_st07) -> 0 | AR16: =IF(AN16+AP16-AO16-AQ16>0,AN16+AP16-AO16-AQ16,0) -> 0 | AS16: =IF(AO16+AQ16-AN16-AP16>0,AO16+AQ16-AN16-AP16,0) -> 0 | AT16: =AR16 -> 0 | AU16: =AS16 -> 0 | AV16: =SUMIF(TKno,TK,_st08) -> 0 | AW16: =SUMIF(TKco,TK,_st08) -> 0 | AX16: =IF(AT16+AV16-AU16-AW16>0,AT16+AV16-AU16-AW16,0) -> 0 | AY16: =IF(AU16+AW16-AT16-AV16>0,AU16+AW16-AT16-AV16,0) -> 0 | AZ16: =AX16 -> 0 | BA16: =AY16 -> 0 | BB16: =SUMIF(TKno,TK,_st09) -> 0 | BC16: =SUMIF(TKco,TK,_st09) -> 0 | BD16: =IF(AZ16+BB16-BA16-BC16>0,AZ16+BB16-BA16-BC16,0) -> 0 | BE16: =IF(BA16+BC16-AZ16-BB16>0,BA16+BC16-AZ16-BB16,0) -> 0 | BF16: =BD16 -> 0 | BG16: =BE16 -> 0 | BH16: =SUMIF(TKno,TK,_st10) -> 0 | BI16: =SUMIF(TKco,TK,_st10) -> 0 | BJ16: =IF(BF16+BH16-BG16-BI16>0,BF16+BH16-BG16-BI16,0) -> 0 | BK16: =IF(BG16+BI16-BF16-BH16>0,BG16+BI16-BF16-BH16,0) -> 0 | BL16: =BJ16 -> 0 | BM16: =BK16 -> 0 | BN16: =SUMIF(TKno,TK,_st11) -> 0 | BO16: =SUMIF(TKco,TK,_st11) -> 0 | BP16: =IF(BL16+BN16-BM16-BO16>0,BL16+BN16-BM16-BO16,0) -> 0 | BQ16: =IF(BM16+BO16-BL16-BN16>0,BM16+BO16-BL16-BN16,0) -> 0 | BR16: =BP16 -> 0 | BS16: =BQ16 -> 0 | BT16: =SUMIF(TKno,TK,_st12) -> 0 | BU16: =SUMIF(TKco,TK,_st12) -> 0 | BV16: =IF(BR16+BT16-BS16-BU16>0,BR16+BT16-BS16-BU16,0) -> 0 | BW16: =IF(BS16+BU16-BR16-BT16>0,BS16+BU16-BR16-BT16,0) -> 0 | BX16: 0 | BY16: 0 | BZ16: =SUMIF(TKno,TK,ST) -> 0 | CA16: =SUMIF(TKco,TK,ST) -> 0 | CB16: =IF(BX16+BZ16-BY16-CA16>0,BX16+BZ16-BY16-CA16,0) -> 0 | CC16: =IF(BY16+CA16-BX16-BZ16>0,BY16+CA16-BX16-BZ16,0) -> 0 | CD16: 5 | CE16: =$B16 -> 11122
A17: ok | B17: 112 | C17: Tiền gửi ngân hàng | D17: =SUM(D18:D20) -> 538,370,439 | E17: 0 | F17: 780,203,743 | G17: 509,624,835 | H17: =SUM(H18:H20) -> 808,949,347 | I17: 0 | J17: 808,949,347 | K17: 0 | L17: 127,465,635 | M17: 552,531,853 | N17: 383,883,129 | O17: 0 | P17: 383,883,129 | Q17: 0 | R17: 0 | S17: 0 | T17: 383,883,129.00 | U17: 0 | V17: 383,883,129.00 | W17: 0 | X17: 0 | Y17: 0 | Z17: 383,883,129.00 | AA17: 0 | AB17: 383,883,129.00 | AC17: 0 | AD17: 0 | AE17: 0 | AF17: 383,883,129.00 | AG17: 0 | AH17: 383,883,129.00 | AI17: 0 | AJ17: 0 | AK17: 0 | AL17: 383,883,129.00 | AM17: 0 | AN17: 383,883,129.00 | AO17: 0 | AP17: 0 | AQ17: 0 | AR17: 383,883,129.00 | AS17: 0 | AT17: 383,883,129.00 | AU17: 0 | AV17: 0 | AW17: 0 | AX17: 383,883,129.00 | AY17: 0 | AZ17: 383,883,129.00 | BA17: 0 | BB17: 0 | BC17: 0 | BD17: 383,883,129.00 | BE17: 0 | BF17: 383,883,129.00 | BG17: 0 | BH17: 0 | BI17: 0 | BJ17: 383,883,129.00 | BK17: 0 | BL17: 383,883,129.00 | BM17: 0 | BN17: 0 | BO17: 0 | BP17: 383,883,129.00 | BQ17: 0 | BR17: 383,883,129.00 | BS17: =SUM(BS18:BS20) -> 0 | BT17: 0 | BU17: 0 | BV17: 383,883,129.00 | BW17: 0 | BX17: 538,370,439 | BY17: 0 | BZ17: 907,669,378 | CA17: 1,062,156,688 | CB17: 383,883,129 | CC17: 0 | CD17: 3 | CF17: 112
A18: ok | B18: 1121 | C18: Tiền gửi ngân hàng Techcombank | D18: 538,370,439 | F18: =SUMIF(TKno,TK,_st01) -> 780,203,743 | G18: =SUMIF(TKco,TK,_st01) -> 509,624,835 | H18: =IF(D18+F18-E18-G18>0,D18+F18-E18-G18,0) -> 808,949,347 | I18: =IF(E18+G18-D18-F18>0,E18+G18-D18-F18,0) -> 0 | J18: =H18 -> 808,949,347 | K18: 0 | L18: =SUMIF(TKno,TK,_st02) -> 723,735 | M18: =SUMIF(TKco,TK,_st02) -> 427,893,553 | N18: =IF(J18+L18-K18-M18>0,J18+L18-K18-M18,0) -> 381,779,529 | O18: =IF(K18+M18-J18-L18>0,K18+M18-J18-L18,0) -> 0 | P18: =N18 -> 381,779,529 | Q18: 0 | R18: =SUMIF(TKno,TK,_st03) -> 0 | S18: =SUMIF(TKco,TK,_st03) -> 0 | T18: =IF(P18+R18-Q18-S18>0,P18+R18-Q18-S18,0) -> 381,779,529.00 | U18: =IF(Q18+S18-P18-R18>0,Q18+S18-P18-R18,0) -> 0 | V18: =T18 -> 381,779,529.00 | W18: 0 | X18: =SUMIF(TKno,TK,_st04) -> 0 | Y18: =SUMIF(TKco,TK,_st04) -> 0 | Z18: =IF(V18+X18-W18-Y18>0,V18+X18-W18-Y18,0) -> 381,779,529.00 | AA18: =IF(W18+Y18-V18-X18>0,W18+Y18-V18-X18,0) -> 0 | AB18: =Z18 -> 381,779,529.00 | AC18: 0 | AD18: =SUMIF(TKno,TK,_st05) -> 0 | AE18: =SUMIF(TKco,TK,_st05) -> 0 | AF18: =IF(AB18+AD18-AC18-AE18>0,AB18+AD18-AC18-AE18,0) -> 381,779,529.00 | AG18: =IF(AC18+AE18-AB18-AD18>0,AC18+AE18-AB18-AD18,0) -> 0 | AH18: =AF18 -> 381,779,529.00 | AI18: 0 | AJ18: =SUMIF(TKno,TK,_st06) -> 0 | AK18: =SUMIF(TKco,TK,_st06) -> 0 | AL18: =IF(AH18+AJ18-AI18-AK18>0,AH18+AJ18-AI18-AK18,0) -> 381,779,529.00 | AM18: =IF(AI18+AK18-AH18-AJ18>0,AI18+AK18-AH18-AJ18,0) -> 0 | AN18: =AL18 -> 381,779,529.00 | AO18: 0 | AP18: =SUMIF(TKno,TK,_st07) -> 0 | AQ18: =SUMIF(TKco,TK,_st07) -> 0 | AR18: =IF(AN18+AP18-AO18-AQ18>0,AN18+AP18-AO18-AQ18,0) -> 381,779,529.00 | AS18: =IF(AO18+AQ18-AN18-AP18>0,AO18+AQ18-AN18-AP18,0) -> 0 | AT18: =AR18 -> 381,779,529.00 | AU18: 0 | AV18: =SUMIF(TKno,TK,_st08) -> 0 | AW18: =SUMIF(TKco,TK,_st08) -> 0 | AX18: =IF(AT18+AV18-AU18-AW18>0,AT18+AV18-AU18-AW18,0) -> 381,779,529.00 | AY18: =IF(AU18+AW18-AT18-AV18>0,AU18+AW18-AT18-AV18,0) -> 0 | AZ18: =AX18 -> 381,779,529.00 | BA18: 0 | BB18: =SUMIF(TKno,TK,_st09) -> 0 | BC18: =SUMIF(TKco,TK,_st09) -> 0 | BD18: =IF(AZ18+BB18-BA18-BC18>0,AZ18+BB18-BA18-BC18,0) -> 381,779,529.00 | BE18: =IF(BA18+BC18-AZ18-BB18>0,BA18+BC18-AZ18-BB18,0) -> 0 | BF18: =BD18 -> 381,779,529.00 | BG18: 0 | BH18: =SUMIF(TKno,TK,_st10) -> 0 | BI18: =SUMIF(TKco,TK,_st10) -> 0 | BJ18: =IF(BF18+BH18-BG18-BI18>0,BF18+BH18-BG18-BI18,0) -> 381,779,529.00 | BK18: =IF(BG18+BI18-BF18-BH18>0,BG18+BI18-BF18-BH18,0) -> 0 | BL18: =BJ18 -> 381,779,529.00 | BM18: 0 | BN18: =SUMIF(TKno,TK,_st11) -> 0 | BO18: =SUMIF(TKco,TK,_st11) -> 0 | BP18: =IF(BL18+BN18-BM18-BO18>0,BL18+BN18-BM18-BO18,0) -> 381,779,529.00 | BQ18: =IF(BM18+BO18-BL18-BN18>0,BM18+BO18-BL18-BN18,0) -> 0 | BR18: =BP18 -> 381,779,529.00 | BS18: 0 | BT18: =SUMIF(TKno,TK,_st12) -> 0 | BU18: =SUMIF(TKco,TK,_st12) -> 0 | BV18: =IF(BR18+BT18-BS18-BU18>0,BR18+BT18-BS18-BU18,0) -> 381,779,529.00 | BW18: =IF(BS18+BU18-BR18-BT18>0,BS18+BU18-BR18-BT18,0) -> 0 | BX18: =D18 -> 538,370,439 | BY18: 0 | BZ18: =SUMIF(TKno,TK,ST) -> 780,927,478 | CA18: =SUMIF(TKco,TK,ST) -> 937,518,388 | CB18: =IF(BX18+BZ18-BY18-CA18>0,BX18+BZ18-BY18-CA18,0) -> 381,779,529 | CC18: =IF(BY18+CA18-BX18-BZ18>0,BY18+CA18-BX18-BZ18,0) -> 0 | CD18: 4 | CE18: =$B18 -> 1121 | CG18: 1121
B19: 1122 | C19: Tiền gửi ngân hàng ACB | D19: 0 | F19: =SUMIF(TKno,TK,_st01) -> 0 | G19: =SUMIF(TKco,TK,_st01) -> 0 | H19: 0 | I19: 0 | J19: 0 | K19: 0 | L19: =SUMIF(TKno,TK,_st02) -> 126,741,900.00 | M19: =SUMIF(TKco,TK,_st02) -> 124,638,300.00 | N19: =IF(J19+L19-K19-M19>0,J19+L19-K19-M19,0) -> 2,103,600.00 | O19: =IF(K19+M19-J19-L19>0,K19+M19-J19-L19,0) -> 0 | P19: 2,103,600 | Q19: 0 | R19: =SUMIF(TKno,TK,_st03) -> 0 | S19: =SUMIF(TKco,TK,_st03) -> 0 | T19: =IF(P19+R19-Q19-S19>0,P19+R19-Q19-S19,0) -> 2,103,600.00 | U19: =IF(Q19+S19-P19-R19>0,Q19+S19-P19-R19,0) -> 0 | V19: 2,103,600.00 | W19: 0 | X19: =SUMIF(TKno,TK,_st04) -> 0 | Y19: =SUMIF(TKco,TK,_st04) -> 0 | Z19: =IF(V19+X19-W19-Y19>0,V19+X19-W19-Y19,0) -> 2,103,600.00 | AA19: =IF(W19+Y19-V19-X19>0,W19+Y19-V19-X19,0) -> 0 | AB19: 2,103,600.00 | AC19: 0 | AD19: =SUMIF(TKno,TK,_st05) -> 0 | AE19: =SUMIF(TKco,TK,_st05) -> 0 | AF19: =IF(AB19+AD19-AC19-AE19>0,AB19+AD19-AC19-AE19,0) -> 2,103,600.00 | AG19: =IF(AC19+AE19-AB19-AD19>0,AC19+AE19-AB19-AD19,0) -> 0 | AH19: 2,103,600.00 | AI19: 0 | AJ19: =SUMIF(TKno,TK,_st06) -> 0 | AK19: =SUMIF(TKco,TK,_st06) -> 0 | AL19: =IF(AH19+AJ19-AI19-AK19>0,AH19+AJ19-AI19-AK19,0) -> 2,103,600.00 | AM19: =IF(AI19+AK19-AH19-AJ19>0,AI19+AK19-AH19-AJ19,0) -> 0 | AN19: 2,103,600.00 | AO19: 0 | AP19: =SUMIF(TKno,TK,_st07) -> 0 | AQ19: =SUMIF(TKco,TK,_st07) -> 0 | AR19: =IF(AN19+AP19-AO19-AQ19>0,AN19+AP19-AO19-AQ19,0) -> 2,103,600.00 | AS19: =IF(AO19+AQ19-AN19-AP19>0,AO19+AQ19-AN19-AP19,0) -> 0 | AT19: 2,103,600.00 | AU19: 0 | AV19: =SUMIF(TKno,TK,_st08) -> 0 | AW19: =SUMIF(TKco,TK,_st08) -> 0 | AX19: =IF(AT19+AV19-AU19-AW19>0,AT19+AV19-AU19-AW19,0) -> 2,103,600.00 | AY19: =IF(AU19+AW19-AT19-AV19>0,AU19+AW19-AT19-AV19,0) -> 0 | AZ19: 2,103,600.00 | BA19: 0 | BB19: =SUMIF(TKno,TK,_st09) -> 0 | BC19: =SUMIF(TKco,TK,_st09) -> 0 | BD19: =IF(AZ19+BB19-BA19-BC19>0,AZ19+BB19-BA19-BC19,0) -> 2,103,600.00 | BE19: =IF(BA19+BC19-AZ19-BB19>0,BA19+BC19-AZ19-BB19,0) -> 0 | BF19: 2,103,600.00 | BG19: 0 | BH19: =SUMIF(TKno,TK,_st10) -> 0 | BI19: =SUMIF(TKco,TK,_st10) -> 0 | BJ19: =IF(BF19+BH19-BG19-BI19>0,BF19+BH19-BG19-BI19,0) -> 2,103,600.00 | BK19: =IF(BG19+BI19-BF19-BH19>0,BG19+BI19-BF19-BH19,0) -> 0 | BL19: 2,103,600.00 | BM19: 0 | BN19: =SUMIF(TKno,TK,_st11) -> 0 | BO19: =SUMIF(TKco,TK,_st11) -> 0 | BP19: =IF(BL19+BN19-BM19-BO19>0,BL19+BN19-BM19-BO19,0) -> 2,103,600.00 | BQ19: =IF(BM19+BO19-BL19-BN19>0,BM19+BO19-BL19-BN19,0) -> 0 | BR19: 2,103,600.00 | BS19: 0 | BT19: =SUMIF(TKno,TK,_st12) -> 0 | BU19: =SUMIF(TKco,TK,_st12) -> 0 | BV19: =IF(BR19+BT19-BS19-BU19>0,BR19+BT19-BS19-BU19,0) -> 2,103,600.00 | BW19: =IF(BS19+BU19-BR19-BT19>0,BS19+BU19-BR19-BT19,0) -> 0 | BX19: 0 | BY19: 0 | BZ19: =SUMIF(TKno,TK,ST) -> 126,741,900 | CA19: =SUMIF(TKco,TK,ST) -> 124,638,300 | CB19: =IF(BX19+BZ19-BY19-CA19>0,BX19+BZ19-BY19-CA19,0) -> 2,103,600 | CC19: =IF(BY19+CA19-BX19-BZ19>0,BY19+CA19-BX19-BZ19,0) -> 0 | CD19: 4 | CE19: =$B19 -> 1122 | CG19: 1122
D20: 0 | F20: =SUMIF(TKno,TK,_st01) -> 0 | G20: =SUMIF(TKco,TK,_st01) -> 0 | H20: 0 | I20: 0 | J20: 0 | K20: 0 | L20: =SUMIF(TKno,TK,_st02) -> 0 | M20: =SUMIF(TKco,TK,_st02) -> 0 | N20: =IF(J20+L20-K20-M20>0,J20+L20-K20-M20,0) -> 0 | O20: =IF(K20+M20-J20-L20>0,K20+M20-J20-L20,0) -> 0 | P20: 0 | Q20: 0 | R20: =SUMIF(TKno,TK,_st03) -> 0 | S20: =SUMIF(TKco,TK,_st03) -> 0 | T20: =IF(P20+R20-Q20-S20>0,P20+R20-Q20-S20,0) -> 0 | U20: =IF(Q20+S20-P20-R20>0,Q20+S20-P20-R20,0) -> 0 | V20: 0 | W20: 0 | X20: =SUMIF(TKno,TK,_st04) -> 0 | Y20: =SUMIF(TKco,TK,_st04) -> 0 | Z20: =IF(V20+X20-W20-Y20>0,V20+X20-W20-Y20,0) -> 0 | AA20: =IF(W20+Y20-V20-X20>0,W20+Y20-V20-X20,0) -> 0 | AB20: 0 | AC20: 0 | AD20: =SUMIF(TKno,TK,_st05) -> 0 | AE20: =SUMIF(TKco,TK,_st05) -> 0 | AF20: =IF(AB20+AD20-AC20-AE20>0,AB20+AD20-AC20-AE20,0) -> 0 | AG20: =IF(AC20+AE20-AB20-AD20>0,AC20+AE20-AB20-AD20,0) -> 0 | AH20: 0 | AI20: 0 | AJ20: =SUMIF(TKno,TK,_st06) -> 0 | AK20: =SUMIF(TKco,TK,_st06) -> 0 | AL20: =IF(AH20+AJ20-AI20-AK20>0,AH20+AJ20-AI20-AK20,0) -> 0 | AM20: =IF(AI20+AK20-AH20-AJ20>0,AI20+AK20-AH20-AJ20,0) -> 0 | AN20: 0 | AO20: 0 | AP20: =SUMIF(TKno,TK,_st07) -> 0 | AQ20: =SUMIF(TKco,TK,_st07) -> 0 | AR20: =IF(AN20+AP20-AO20-AQ20>0,AN20+AP20-AO20-AQ20,0) -> 0 | AS20: =IF(AO20+AQ20-AN20-AP20>0,AO20+AQ20-AN20-AP20,0) -> 0 | AT20: 0 | AU20: 0 | AV20: =SUMIF(TKno,TK,_st08) -> 0 | AW20: =SUMIF(TKco,TK,_st08) -> 0 | AX20: =IF(AT20+AV20-AU20-AW20>0,AT20+AV20-AU20-AW20,0) -> 0 | AY20: =IF(AU20+AW20-AT20-AV20>0,AU20+AW20-AT20-AV20,0) -> 0 | AZ20: 0 | BA20: 0 | BB20: =SUMIF(TKno,TK,_st09) -> 0 | BC20: =SUMIF(TKco,TK,_st09) -> 0 | BD20: =IF(AZ20+BB20-BA20-BC20>0,AZ20+BB20-BA20-BC20,0) -> 0 | BE20: =IF(BA20+BC20-AZ20-BB20>0,BA20+BC20-AZ20-BB20,0) -> 0 | BF20: 0 | BG20: 0 | BH20: =SUMIF(TKno,TK,_st10) -> 0 | BI20: =SUMIF(TKco,TK,_st10) -> 0 | BJ20: =IF(BF20+BH20-BG20-BI20>0,BF20+BH20-BG20-BI20,0) -> 0 | BK20: =IF(BG20+BI20-BF20-BH20>0,BG20+BI20-BF20-BH20,0) -> 0 | BL20: 0 | BM20: 0 | BN20: =SUMIF(TKno,TK,_st11) -> 0 | BO20: =SUMIF(TKco,TK,_st11) -> 0 | BP20: =IF(BL20+BN20-BM20-BO20>0,BL20+BN20-BM20-BO20,0) -> 0 | BQ20: =IF(BM20+BO20-BL20-BN20>0,BM20+BO20-BL20-BN20,0) -> 0 | BR20: 0 | BS20: 0 | BT20: =SUMIF(TKno,TK,_st12) -> 0 | BU20: =SUMIF(TKco,TK,_st12) -> 0 | BV20: =IF(BR20+BT20-BS20-BU20>0,BR20+BT20-BS20-BU20,0) -> 0 | BW20: =IF(BS20+BU20-BR20-BT20>0,BS20+BU20-BR20-BT20,0) -> 0 | BX20: 0 | BY20: 0 | BZ20: =SUMIF(TKno,TK,ST) -> 0 | CA20: =SUMIF(TKco,TK,ST) -> 0 | CB20: =IF(BX20+BZ20-BY20-CA20>0,BX20+BZ20-BY20-CA20,0) -> 0 | CC20: =IF(BY20+CA20-BX20-BZ20>0,BY20+CA20-BX20-BZ20,0) -> 0 | CD20: 0 | CE20: =$B20 -> 0
B21: 113 | C21: Tiền đang chuyển | D21: 0 | F21: =SUM(F22:F23) -> 0 | G21: 0 | H21: 0 | I21: 0 | J21: 0 | K21: 0 | L21: 0 | M21: 0 | N21: 0 | O21: 0 | P21: =SUM(P22:P23) -> 0 | Q21: 0 | R21: 0 | S21: 0 | T21: 0 | U21: 0 | V21: =SUM(V22:V23) -> 0 | W21: 0 | X21: 0 | Y21: 0 | Z21: 0 | AA21: 0 | AB21: 0 | AC21: 0 | AD21: 0 | AE21: 0 | AF21: 0 | AG21: 0 | AH21: 0 | AI21: 0 | AJ21: 0 | AK21: 0 | AL21: 0 | AM21: 0 | AN21: 0 | AO21: 0 | AP21: 0 | AQ21: 0 | AR21: 0 | AS21: 0 | AT21: 0 | AU21: 0 | AV21: 0 | AW21: 0 | AX21: 0 | AY21: 0 | AZ21: 0 | BA21: 0 | BB21: 0 | BC21: 0 | BD21: 0 | BE21: 0 | BF21: 0 | BG21: 0 | BH21: 0 | BI21: 0 | BJ21: 0 | BK21: 0 | BL21: 0 | BM21: 0 | BN21: 0 | BO21: 0 | BP21: 0 | BQ21: 0 | BR21: =SUM(BR22:BR23) -> 0 | BS21: 0 | BT21: 0 | BU21: 0 | BV21: 0 | BW21: 0 | BX21: 0 | BY21: 0 | BZ21: 0 | CA21: 0 | CB21: 0 | CC21: 0 | CD21: 3 | CF21: 113
B22: 1131 | C22: Tiền đang chuyển Việt Nam | D22: 0 | F22: =SUMIF(TKno,TK,_st01) -> 0 | G22: =SUMIF(TKco,TK,_st01) -> 0 | H22: 0 | I22: 0 | J22: =H22 -> 0 | K22: 0 | L22: =SUMIF(TKno,TK,_st02) -> 0 | M22: =SUMIF(TKco,TK,_st02) -> 0 | N22: =IF(J22+L22-K22-M22>0,J22+L22-K22-M22,0) -> 0 | O22: =IF(K22+M22-J22-L22>0,K22+M22-J22-L22,0) -> 0 | P22: =N22 -> 0 | Q22: 0 | R22: =SUMIF(TKno,TK,_st03) -> 0 | S22: =SUMIF(TKco,TK,_st03) -> 0 | T22: =IF(P22+R22-Q22-S22>0,P22+R22-Q22-S22,0) -> 0 | U22: =IF(Q22+S22-P22-R22>0,Q22+S22-P22-R22,0) -> 0 | V22: =T22 -> 0 | W22: 0 | X22: =SUMIF(TKno,TK,_st04) -> 0 | Y22: =SUMIF(TKco,TK,_st04) -> 0 | Z22: =IF(V22+X22-W22-Y22>0,V22+X22-W22-Y22,0) -> 0 | AA22: =IF(W22+Y22-V22-X22>0,W22+Y22-V22-X22,0) -> 0 | AB22: =Z22 -> 0 | AC22: =AA22 -> 0 | AD22: =SUMIF(TKno,TK,_st05) -> 0 | AE22: =SUMIF(TKco,TK,_st05) -> 0 | AF22: =IF(AB22+AD22-AC22-AE22>0,AB22+AD22-AC22-AE22,0) -> 0 | AG22: =IF(AC22+AE22-AB22-AD22>0,AC22+AE22-AB22-AD22,0) -> 0 | AH22: =AF22 -> 0 | AI22: =AG22 -> 0 | AJ22: =SUMIF(TKno,TK,_st06) -> 0 | AK22: =SUMIF(TKco,TK,_st06) -> 0 | AL22: =IF(AH22+AJ22-AI22-AK22>0,AH22+AJ22-AI22-AK22,0) -> 0 | AM22: =IF(AI22+AK22-AH22-AJ22>0,AI22+AK22-AH22-AJ22,0) -> 0 | AN22: =AL22 -> 0 | AO22: 0 | AP22: =SUMIF(TKno,TK,_st07) -> 0 | AQ22: =SUMIF(TKco,TK,_st07) -> 0 | AR22: =IF(AN22+AP22-AO22-AQ22>0,AN22+AP22-AO22-AQ22,0) -> 0 | AS22: =IF(AO22+AQ22-AN22-AP22>0,AO22+AQ22-AN22-AP22,0) -> 0 | AT22: =AR22 -> 0 | AU22: 0 | AV22: =SUMIF(TKno,TK,_st08) -> 0 | AW22: =SUMIF(TKco,TK,_st08) -> 0 | AX22: =IF(AT22+AV22-AU22-AW22>0,AT22+AV22-AU22-AW22,0) -> 0 | AY22: =IF(AU22+AW22-AT22-AV22>0,AU22+AW22-AT22-AV22,0) -> 0 | AZ22: =AX22 -> 0 | BA22: 0 | BB22: =SUMIF(TKno,TK,_st09) -> 0 | BC22: =SUMIF(TKco,TK,_st09) -> 0 | BD22: =IF(AZ22+BB22-BA22-BC22>0,AZ22+BB22-BA22-BC22,0) -> 0 | BE22: =IF(BA22+BC22-AZ22-BB22>0,BA22+BC22-AZ22-BB22,0) -> 0 | BF22: =BD22 -> 0 | BG22: 0 | BH22: =SUMIF(TKno,TK,_st10) -> 0 | BI22: =SUMIF(TKco,TK,_st10) -> 0 | BJ22: =IF(BF22+BH22-BG22-BI22>0,BF22+BH22-BG22-BI22,0) -> 0 | BK22: =IF(BG22+BI22-BF22-BH22>0,BG22+BI22-BF22-BH22,0) -> 0 | BL22: =BJ22 -> 0 | BM22: 0 | BN22: =SUMIF(TKno,TK,_st11) -> 0 | BO22: =SUMIF(TKco,TK,_st11) -> 0 | BP22: =IF(BL22+BN22-BM22-BO22>0,BL22+BN22-BM22-BO22,0) -> 0 | BQ22: =IF(BM22+BO22-BL22-BN22>0,BM22+BO22-BL22-BN22,0) -> 0 | BR22: =BP22 -> 0 | BS22: 0 | BT22: =SUMIF(TKno,TK,_st12) -> 0 | BU22: =SUMIF(TKco,TK,_st12) -> 0 | BV22: =IF(BR22+BT22-BS22-BU22>0,BR22+BT22-BS22-BU22,0) -> 0 | BW22: =IF(BS22+BU22-BR22-BT22>0,BS22+BU22-BR22-BT22,0) -> 0 | BX22: 0 | BY22: 0 | BZ22: =SUMIF(TKno,TK,ST) -> 0 | CA22: =SUMIF(TKco,TK,ST) -> 0 | CB22: =IF(BX22+BZ22-BY22-CA22>0,BX22+BZ22-BY22-CA22,0) -> 0 | CC22: =IF(BY22+CA22-BX22-BZ22>0,BY22+CA22-BX22-BZ22,0) -> 0 | CD22: 4 | CE22: =$B22 -> 1131 | CG22: 1131
B23: 1132 | C23: Tiền đang chuyển Ngoại tệ | D23: 0 | F23: =SUMIF(TKno,TK,_st01) -> 0 | G23: =SUMIF(TKco,TK,_st01) -> 0 | H23: 0 | I23: 0 | J23: 0 | K23: 0 | L23: =SUMIF(TKno,TK,_st02) -> 0 | M23: =SUMIF(TKco,TK,_st02) -> 0 | N23: =IF(J23+L23-K23-M23>0,J23+L23-K23-M23,0) -> 0 | O23: =IF(K23+M23-J23-L23>0,K23+M23-J23-L23,0) -> 0 | P23: 0 | Q23: 0 | R23: =SUMIF(TKno,TK,_st03) -> 0 | S23: =SUMIF(TKco,TK,_st03) -> 0 | T23: =IF(P23+R23-Q23-S23>0,P23+R23-Q23-S23,0) -> 0 | U23: =IF(Q23+S23-P23-R23>0,Q23+S23-P23-R23,0) -> 0 | V23: 0 | W23: 0 | X23: =SUMIF(TKno,TK,_st04) -> 0 | Y23: =SUMIF(TKco,TK,_st04) -> 0 | Z23: =IF(V23+X23-W23-Y23>0,V23+X23-W23-Y23,0) -> 0 | AA23: =IF(W23+Y23-V23-X23>0,W23+Y23-V23-X23,0) -> 0 | AB23: =Z23 -> 0 | AC23: =AA23 -> 0 | AD23: =SUMIF(TKno,TK,_st05) -> 0 | AE23: =SUMIF(TKco,TK,_st05) -> 0 | AF23: =IF(AB23+AD23-AC23-AE23>0,AB23+AD23-AC23-AE23,0) -> 0 | AG23: =IF(AC23+AE23-AB23-AD23>0,AC23+AE23-AB23-AD23,0) -> 0 | AH23: =AF23 -> 0 | AI23: =AG23 -> 0 | AJ23: =SUMIF(TKno,TK,_st06) -> 0 | AK23: =SUMIF(TKco,TK,_st06) -> 0 | AL23: =IF(AH23+AJ23-AI23-AK23>0,AH23+AJ23-AI23-AK23,0) -> 0 | AM23: =IF(AI23+AK23-AH23-AJ23>0,AI23+AK23-AH23-AJ23,0) -> 0 | AN23: 0 | AO23: 0 | AP23: =SUMIF(TKno,TK,_st07) -> 0 | AQ23: =SUMIF(TKco,TK,_st07) -> 0 | AR23: =IF(AN23+AP23-AO23-AQ23>0,AN23+AP23-AO23-AQ23,0) -> 0 | AS23: =IF(AO23+AQ23-AN23-AP23>0,AO23+AQ23-AN23-AP23,0) -> 0 | AT23: 0 | AU23: 0 | AV23: =SUMIF(TKno,TK,_st08) -> 0 | AW23: =SUMIF(TKco,TK,_st08) -> 0 | AX23: =IF(AT23+AV23-AU23-AW23>0,AT23+AV23-AU23-AW23,0) -> 0 | AY23: =IF(AU23+AW23-AT23-AV23>0,AU23+AW23-AT23-AV23,0) -> 0 | AZ23: 0 | BA23: 0 | BB23: =SUMIF(TKno,TK,_st09) -> 0 | BC23: =SUMIF(TKco,TK,_st09) -> 0 | BD23: =IF(AZ23+BB23-BA23-BC23>0,AZ23+BB23-BA23-BC23,0) -> 0 | BE23: =IF(BA23+BC23-AZ23-BB23>0,BA23+BC23-AZ23-BB23,0) -> 0 | BF23: 0 | BG23: 0 | BH23: =SUMIF(TKno,TK,_st10) -> 0 | BI23: =SUMIF(TKco,TK,_st10) -> 0 | BJ23: =IF(BF23+BH23-BG23-BI23>0,BF23+BH23-BG23-BI23,0) -> 0 | BK23: =IF(BG23+BI23-BF23-BH23>0,BG23+BI23-BF23-BH23,0) -> 0 | BL23: 0 | BM23: 0 | BN23: =SUMIF(TKno,TK,_st11) -> 0 | BO23: =SUMIF(TKco,TK,_st11) -> 0 | BP23: =IF(BL23+BN23-BM23-BO23>0,BL23+BN23-BM23-BO23,0) -> 0 | BQ23: =IF(BM23+BO23-BL23-BN23>0,BM23+BO23-BL23-BN23,0) -> 0 | BR23: 0 | BS23: 0 | BT23: =SUMIF(TKno,TK,_st12) -> 0 | BU23: =SUMIF(TKco,TK,_st12) -> 0 | BV23: =IF(BR23+BT23-BS23-BU23>0,BR23+BT23-BS23-BU23,0) -> 0 | BW23: =IF(BS23+BU23-BR23-BT23>0,BS23+BU23-BR23-BT23,0) -> 0 | BX23: 0 | BY23: 0 | BZ23: =SUMIF(TKno,TK,ST) -> 0 | CA23: =SUMIF(TKco,TK,ST) -> 0 | CB23: =IF(BX23+BZ23-BY23-CA23>0,BX23+BZ23-BY23-CA23,0) -> 0 | CC23: =IF(BY23+CA23-BX23-BZ23>0,BY23+CA23-BX23-BZ23,0) -> 0 | CD23: 4 | CE23: 1132 | CG23: 1132
A24: ok | B24: 131 | C24: Phải thu khách hàng | D24: 40,000,000 | F24: =SUMIF(TKno,TK,_st01) -> 634,150,000 | G24: =SUMIF(TKco,TK,_st01) -> 498,150,000 | H24: 176,000,000 | I24: =SUMIF(CongNo_TK,$B24,CongNo!$S:$S) -> 0 | J24: 176,000,000 | K24: 0 | L24: =SUMIF(CongNo_TK,$B24,CongNo!$Y:$Y) -> 1,091,805,000 | M24: =SUMIF(CongNo_TK,$B24,CongNo!$AA:$AA) -> 4,620,000 | N24: =IF(J24+L24-K24-M24+O24>0,J24+L24-K24-M24+O24,0) -> 1,263,185,000 | O24: =SUMIF(CongNo_TK,$B24,CongNo!$AE:$AE) -> 0 | P24: 1,263,185,000 | Q24: 0 | R24: =SUMIF(CongNo_TK,$B24,CongNo!$AK:$AK) -> 0 | S24: =SUMIF(CongNo_TK,$B24,CongNo!$AM:$AM) -> 0 | T24: =IF(P24+R24-Q24-S24+U24>0,P24+R24-Q24-S24+U24,0) -> 1,263,185,000.00 | U24: =SUMIF(CongNo_TK,$B24,CongNo!$AQ:$AQ) -> 0 | V24: 1,263,185,000 | W24: 0 | X24: =SUMIF(CongNo_TK,$B24,CongNo!$AW:$AW) -> 0 | Y24: =SUMIF(CongNo_TK,$B24,CongNo!$AY:$AY) -> 0 | Z24: =IF(V24+X24-W24-Y24+AA24>0,V24+X24-W24-Y24+AA24,0) -> 1,263,185,000 | AA24: =SUMIF(CongNo_TK,$B24,CongNo!$BC:$BC) -> 0 | AB24: =Z24 -> 1,263,185,000 | AC24: =SUMIF(CongNo_TK,$B24,CongNo!$BG:$BG) -> 0 | AD24: =SUMIF(CongNo_TK,$B24,CongNo!$BI:$BI) -> 0 | AE24: =SUMIF(CongNo_TK,$B24,CongNo!$BK:$BK) -> 0 | AF24: =IF(AB24+AD24-AC24-AE24+AG24>0,AB24+AD24-AC24-AE24+AG24,0) -> 1,263,185,000.00 | AG24: =SUMIF(CongNo_TK,$B24,CongNo!$BO:$BO) -> 0 | AH24: =AF24 -> 1,263,185,000.00 | AI24: =SUMIF(CongNo_TK,$B24,CongNo!$BS:$BS) -> 0 | AJ24: =SUMIF(CongNo_TK,$B24,CongNo!$BU:$BU) -> 0 | AK24: =SUMIF(CongNo_TK,$B24,CongNo!$BW:$BW) -> 0 | AL24: =IF(AH24+AJ24-AI24-AK24+AM24>0,AH24+AJ24-AI24-AK24+AM24,0) -> 1,263,185,000.00 | AM24: =SUMIF(CongNo_TK,$B24,CongNo!$CE:$CE) -> 0 | AN24: =AL24 -> 1,263,185,000.00 | AO24: =AM24 -> 0 | AP24: =SUMIF(TKno,TK,_st07) -> 0 | AQ24: =SUMIF(TKco,TK,_st07) -> 0 | AR24: =IF(AN24+AP24-AO24-AQ24+AS24>0,AN24+AP24-AO24-AQ24+AS24,0) -> 1,263,185,000.00 | AS24: =SUMIF(CongNo_TK,$B24,CongNo!$CM:$CM) -> 0 | AT24: 1,263,185,000.00 | AU24: 0 | AV24: =SUMIF(TKno,TK,_st08) -> 0 | AW24: =SUMIF(TKco,TK,_st08) -> 0 | AX24: =IF(AT24+AV24-AU24-AW24+AY24>0,AT24+AV24-AU24-AW24+AY24,0) -> 1,263,185,000.00 | AY24: =SUMIF(CongNo_TK,$B24,CongNo!$CY:$CY) -> 0 | AZ24: 1,263,185,000.00 | BA24: 0 | BB24: =SUMIF(TKno,TK,_st09) -> 0 | BC24: =SUMIF(TKco,TK,_st09) -> 0 | BD24: =IF(AZ24+BB24-BA24-BC24+BE24>0,AZ24+BB24-BA24-BC24+BE24,0) -> 1,263,185,000.00 | BE24: =SUMIF(CongNo_TK,$B24,CongNo!$DK:$DK) -> 0 | BF24: 1,263,185,000.00 | BG24: 0 | BH24: =SUMIF(TKno,TK,_st10) -> 0 | BI24: =SUMIF(TKco,TK,_st10) -> 0 | BJ24: =IF(BF24+BH24-BG24-BI24+BK24>0,BF24+BH24-BG24-BI24+BK24,0) -> 1,263,185,000.00 | BK24: =SUMIF(CongNo_TK,$B24,CongNo!$DW:$DW) -> 0 | BL24: 1,263,185,000.00 | BM24: 0 | BN24: =SUMIF(TKno,TK,_st11) -> 0 | BO24: =SUMIF(TKco,TK,_st11) -> 0 | BP24: =IF(BL24+BN24-BM24-BO24+BQ24>0,BL24+BN24-BM24-BO24+BQ24,0) -> 1,263,185,000.00 | BQ24: =SUMIF(CongNo_TK,$B24,CongNo!$EI:$EI) -> 0 | BR24: 1,263,185,000.00 | BS24: 0 | BT24: =SUMIF(TKno,TK,_st12) -> 0 | BU24: =SUMIF(TKco,TK,_st12) -> 0 | BV24: =IF(BR24+BT24-BS24-BU24+BW24>0,BR24+BT24-BS24-BU24+BW24,0) -> 1,263,185,000.00 | BW24: =SUMIF(CongNo_TK,$B24,CongNo!$EU:$EU) -> 0 | BX24: =D24 -> 40,000,000 | BY24: =E24 -> 0 | BZ24: =SUMIF(TKno,TK,ST) -> 1,725,955,000 | CA24: =SUMIF(TKco,TK,ST) -> 502,770,000 | CB24: =IF(BX24+BZ24-BY24-CA24+CC24>0,BX24+BZ24-BY24-CA24+CC24,0) -> 1,273,185,000 | CC24: =SUMIF(CongNo_TK,$B24,CongNo!$FG:$FG) -> 10,000,000 | CD24: 3 | CE24: 131 | CF24: 131
A25: ok | B25: 133 | C25: Thuế GTGT được khấu trừ | D25: =SUM(D26:D27) -> 32,000,000 | E25: 0 | F25: 77,677,255 | G25: 0 | H25: 109,677,255 | I25: 0 | J25: 109,677,255 | K25: 0 | L25: 13,005,001 | M25: 133,010,256 | N25: 0 | O25: 10,328,000 | P25: =SUM(P26:P27) -> 0 | Q25: 10,328,000 | R25: 0 | S25: 0 | T25: 0 | U25: 10,328,000 | V25: =SUM(V26:V27) -> 0 | W25: 10,328,000 | X25: 0 | Y25: 0 | Z25: 0 | AA25: 10,328,000 | AB25: 0 | AC25: 10,328,000 | AD25: 0 | AE25: 0 | AF25: 0 | AG25: 10,328,000 | AH25: 0 | AI25: 10,328,000 | AJ25: 0 | AK25: 0 | AL25: 0 | AM25: 10,328,000 | AN25: 0 | AO25: 10,328,000 | AP25: 0 | AQ25: 0 | AR25: 0 | AS25: 10,328,000 | AT25: 0 | AU25: 10,328,000 | AV25: 0 | AW25: 0 | AX25: 0 | AY25: 10,328,000 | AZ25: 0 | BA25: 10,328,000 | BB25: 0 | BC25: 0 | BD25: 0 | BE25: 10,328,000 | BF25: 0 | BG25: 10,328,000 | BH25: 0 | BI25: 0 | BJ25: 0 | BK25: 10,328,000 | BL25: 0 | BM25: 10,328,000 | BN25: 0 | BO25: 0 | BP25: 0 | BQ25: 10,328,000 | BR25: =SUM(BR26:BR27) -> 0 | BS25: 10,328,000 | BT25: 0 | BU25: 0 | BV25: 0 | BW25: 10,328,000 | BX25: 32,000,000 | BY25: 0 | BZ25: 90,682,256 | CA25: 133,010,256 | CB25: 0 | CC25: 10,328,000 | CD25: 3 | CF25: 133
A26: ok | B26: 1331 | C26: Thuế GTGT được khấu trừ của hàng hóa, dịch vụ | D26: 32,000,000 | F26: =SUMIF(TKno,TK,_st01) -> 77,677,255 | G26: =SUMIF(TKco,TK,_st01) -> 0 | H26: =IF(D26+F26-E26-G26>0,D26+F26-E26-G26,0) -> 109,677,255 | I26: =IF(E26+G26-D26-F26>0,E26+G26-D26-F26,0) -> 0 | J26: =H26 -> 109,677,255 | K26: =I26 -> 0 | L26: =SUMIF(TKno,TK,_st02) -> 13,005,001 | M26: =SUMIF(TKco,TK,_st02) -> 130,010,256 | N26: =IF(J26+L26-K26-M26>0,J26+L26-K26-M26,0) -> 0 | O26: =IF(K26+M26-J26-L26>0,K26+M26-J26-L26,0) -> 7,328,000 | P26: =N26 -> 0 | Q26: =O26 -> 7,328,000 | R26: =SUMIF(TKno,TK,_st03) -> 0 | S26: =SUMIF(TKco,TK,_st03) -> 0 | T26: =IF(P26+R26-Q26-S26>0,P26+R26-Q26-S26,0) -> 0 | U26: =IF(Q26+S26-P26-R26>0,Q26+S26-P26-R26,0) -> 7,328,000 | V26: =T26 -> 0 | W26: =U26 -> 7,328,000 | X26: =SUMIF(TKno,TK,_st04) -> 0 | Y26: =SUMIF(TKco,TK,_st04) -> 0 | Z26: =IF(V26+X26-W26-Y26>0,V26+X26-W26-Y26,0) -> 0 | AA26: =IF(W26+Y26-V26-X26>0,W26+Y26-V26-X26,0) -> 7,328,000 | AB26: =Z26 -> 0 | AC26: =AA26 -> 7,328,000 | AD26: =SUMIF(TKno,TK,_st05) -> 0 | AE26: =SUMIF(TKco,TK,_st05) -> 0 | AF26: =IF(AB26+AD26-AC26-AE26>0,AB26+AD26-AC26-AE26,0) -> 0 | AG26: =IF(AC26+AE26-AB26-AD26>0,AC26+AE26-AB26-AD26,0) -> 7,328,000 | AH26: =AF26 -> 0 | AI26: =AG26 -> 7,328,000 | AJ26: =SUMIF(TKno,TK,_st06) -> 0 | AK26: =SUMIF(TKco,TK,_st06) -> 0 | AL26: =IF(AH26+AJ26-AI26-AK26>0,AH26+AJ26-AI26-AK26,0) -> 0 | AM26: =IF(AI26+AK26-AH26-AJ26>0,AI26+AK26-AH26-AJ26,0) -> 7,328,000 | AN26: =AL26 -> 0 | AO26: =AM26 -> 7,328,000 | AP26: =SUMIF(TKno,TK,_st07) -> 0 | AQ26: =SUMIF(TKco,TK,_st07) -> 0 | AR26: =IF(AN26+AP26-AO26-AQ26>0,AN26+AP26-AO26-AQ26,0) -> 0 | AS26: =IF(AO26+AQ26-AN26-AP26>0,AO26+AQ26-AN26-AP26,0) -> 7,328,000 | AT26: =AR26 -> 0 | AU26: =AS26 -> 7,328,000 | AV26: =SUMIF(TKno,TK,_st08) -> 0 | AW26: =SUMIF(TKco,TK,_st08) -> 0 | AX26: =IF(AT26+AV26-AU26-AW26>0,AT26+AV26-AU26-AW26,0) -> 0 | AY26: =IF(AU26+AW26-AT26-AV26>0,AU26+AW26-AT26-AV26,0) -> 7,328,000 | AZ26: =AX26 -> 0 | BA26: =AY26 -> 7,328,000 | BB26: =SUMIF(TKno,TK,_st09) -> 0 | BC26: =SUMIF(TKco,TK,_st09) -> 0 | BD26: =IF(AZ26+BB26-BA26-BC26>0,AZ26+BB26-BA26-BC26,0) -> 0 | BE26: =IF(BA26+BC26-AZ26-BB26>0,BA26+BC26-AZ26-BB26,0) -> 7,328,000 | BF26: =BD26 -> 0 | BG26: =BE26 -> 7,328,000 | BH26: =SUMIF(TKno,TK,_st10) -> 0 | BI26: =SUMIF(TKco,TK,_st10) -> 0 | BJ26: =IF(BF26+BH26-BG26-BI26>0,BF26+BH26-BG26-BI26,0) -> 0 | BK26: =IF(BG26+BI26-BF26-BH26>0,BG26+BI26-BF26-BH26,0) -> 7,328,000 | BL26: =BJ26 -> 0 | BM26: =BK26 -> 7,328,000 | BN26: =SUMIF(TKno,TK,_st11) -> 0 | BO26: =SUMIF(TKco,TK,_st11) -> 0 | BP26: =IF(BL26+BN26-BM26-BO26>0,BL26+BN26-BM26-BO26,0) -> 0 | BQ26: =IF(BM26+BO26-BL26-BN26>0,BM26+BO26-BL26-BN26,0) -> 7,328,000 | BR26: =BP26 -> 0 | BS26: =BQ26 -> 7,328,000 | BT26: =SUMIF(TKno,TK,_st12) -> 0 | BU26: =SUMIF(TKco,TK,_st12) -> 0 | BV26: =IF(BR26+BT26-BS26-BU26>0,BR26+BT26-BS26-BU26,0) -> 0 | BW26: =IF(BS26+BU26-BR26-BT26>0,BS26+BU26-BR26-BT26,0) -> 7,328,000 | BX26: 32,000,000 | BY26: 0 | BZ26: =SUMIF(TKno,TK,ST) -> 90,682,256 | CA26: =SUMIF(TKco,TK,ST) -> 130,010,256 | CB26: =IF(BX26+BZ26-BY26-CA26>0,BX26+BZ26-BY26-CA26,0) -> 0 | CC26: =IF(BY26+CA26-BX26-BZ26>0,BY26+CA26-BX26-BZ26,0) -> 7,328,000 | CD26: 4 | CE26: 1331 | CG26: 1331
B27: 1332 | C27: Thuế GTGT được khấu trừ của TSCĐ | D27: 0 | F27: =SUMIF(TKno,TK,_st01) -> 0 | G27: =SUMIF(TKco,TK,_st01) -> 0 | H27: =IF(D27+F27-E27-G27>0,D27+F27-E27-G27,0) -> 0 | I27: =IF(E27+G27-D27-F27>0,E27+G27-D27-F27,0) -> 0 | J27: =H27 -> 0 | K27: =I27 -> 0 | L27: =SUMIF(TKno,TK,_st02) -> 0 | M27: =SUMIF(TKco,TK,_st02) -> 3,000,000 | N27: =IF(J27+L27-K27-M27>0,J27+L27-K27-M27,0) -> 0 | O27: =IF(K27+M27-J27-L27>0,K27+M27-J27-L27,0) -> 3,000,000.00 | P27: =N27 -> 0 | Q27: =O27 -> 3,000,000.00 | R27: =SUMIF(TKno,TK,_st03) -> 0 | S27: =SUMIF(TKco,TK,_st03) -> 0 | T27: =IF(P27+R27-Q27-S27>0,P27+R27-Q27-S27,0) -> 0 | U27: =IF(Q27+S27-P27-R27>0,Q27+S27-P27-R27,0) -> 3,000,000.00 | V27: =T27 -> 0 | W27: =U27 -> 3,000,000.00 | X27: =SUMIF(TKno,TK,_st04) -> 0 | Y27: =SUMIF(TKco,TK,_st04) -> 0 | Z27: =IF(V27+X27-W27-Y27>0,V27+X27-W27-Y27,0) -> 0 | AA27: =IF(W27+Y27-V27-X27>0,W27+Y27-V27-X27,0) -> 3,000,000.00 | AB27: =Z27 -> 0 | AC27: =AA27 -> 3,000,000.00 | AD27: =SUMIF(TKno,TK,_st05) -> 0 | AE27: =SUMIF(TKco,TK,_st05) -> 0 | AF27: =IF(AB27+AD27-AC27-AE27>0,AB27+AD27-AC27-AE27,0) -> 0 | AG27: =IF(AC27+AE27-AB27-AD27>0,AC27+AE27-AB27-AD27,0) -> 3,000,000.00 | AH27: =AF27 -> 0 | AI27: =AG27 -> 3,000,000.00 | AJ27: =SUMIF(TKno,TK,_st06) -> 0 | AK27: =SUMIF(TKco,TK,_st06) -> 0 | AL27: =IF(AH27+AJ27-AI27-AK27>0,AH27+AJ27-AI27-AK27,0) -> 0 | AM27: =IF(AI27+AK27-AH27-AJ27>0,AI27+AK27-AH27-AJ27,0) -> 3,000,000.00 | AN27: =AL27 -> 0 | AO27: =AM27 -> 3,000,000.00 | AP27: =SUMIF(TKno,TK,_st07) -> 0 | AQ27: =SUMIF(TKco,TK,_st07) -> 0 | AR27: =IF(AN27+AP27-AO27-AQ27>0,AN27+AP27-AO27-AQ27,0) -> 0 | AS27: =IF(AO27+AQ27-AN27-AP27>0,AO27+AQ27-AN27-AP27,0) -> 3,000,000.00 | AT27: =AR27 -> 0 | AU27: =AS27 -> 3,000,000.00 | AV27: =SUMIF(TKno,TK,_st08) -> 0 | AW27: =SUMIF(TKco,TK,_st08) -> 0 | AX27: =IF(AT27+AV27-AU27-AW27>0,AT27+AV27-AU27-AW27,0) -> 0 | AY27: =IF(AU27+AW27-AT27-AV27>0,AU27+AW27-AT27-AV27,0) -> 3,000,000.00 | AZ27: =AX27 -> 0 | BA27: =AY27 -> 3,000,000.00 | BB27: =SUMIF(TKno,TK,_st09) -> 0 | BC27: =SUMIF(TKco,TK,_st09) -> 0 | BD27: =IF(AZ27+BB27-BA27-BC27>0,AZ27+BB27-BA27-BC27,0) -> 0 | BE27: =IF(BA27+BC27-AZ27-BB27>0,BA27+BC27-AZ27-BB27,0) -> 3,000,000.00 | BF27: =BD27 -> 0 | BG27: =BE27 -> 3,000,000.00 | BH27: =SUMIF(TKno,TK,_st10) -> 0 | BI27: =SUMIF(TKco,TK,_st10) -> 0 | BJ27: =IF(BF27+BH27-BG27-BI27>0,BF27+BH27-BG27-BI27,0) -> 0 | BK27: =IF(BG27+BI27-BF27-BH27>0,BG27+BI27-BF27-BH27,0) -> 3,000,000.00 | BL27: =BJ27 -> 0 | BM27: =BK27 -> 3,000,000.00 | BN27: =SUMIF(TKno,TK,_st11) -> 0 | BO27: =SUMIF(TKco,TK,_st11) -> 0 | BP27: =IF(BL27+BN27-BM27-BO27>0,BL27+BN27-BM27-BO27,0) -> 0 | BQ27: =IF(BM27+BO27-BL27-BN27>0,BM27+BO27-BL27-BN27,0) -> 3,000,000 | BR27: =BP27 -> 0 | BS27: =BQ27 -> 3,000,000.00 | BT27: =SUMIF(TKno,TK,_st12) -> 0 | BU27: =SUMIF(TKco,TK,_st12) -> 0 | BV27: =IF(BR27+BT27-BS27-BU27>0,BR27+BT27-BS27-BU27,0) -> 0 | BW27: =IF(BS27+BU27-BR27-BT27>0,BS27+BU27-BR27-BT27,0) -> 3,000,000.00 | BX27: 0 | BY27: 0 | BZ27: =SUMIF(TKno,TK,ST) -> 0 | CA27: =SUMIF(TKco,TK,ST) -> 3,000,000 | CB27: =IF(BX27+BZ27-BY27-CA27>0,BX27+BZ27-BY27-CA27,0) -> 0 | CC27: =IF(BY27+CA27-BX27-BZ27>0,BY27+CA27-BX27-BZ27,0) -> 3,000,000 | CD27: 4 | CE27: 1332 | CG27: 1332
B28: 138 | C28: Phải thu khác | D28: 0 | F28: =SUM(F29:F31) -> 0 | G28: 0 | H28: 0 | I28: 0 | J28: 0 | K28: 0 | L28: 0 | M28: 0 | N28: 0 | O28: 0 | P28: =SUM(P29:P31) -> 0 | Q28: 0 | R28: 0 | S28: 0 | T28: 0 | U28: 0 | V28: =SUM(V29:V31) -> 0 | W28: 0 | X28: 0 | Y28: 0 | Z28: 0 | AA28: 0 | AB28: 0 | AC28: 0 | AD28: 0 | AE28: 0 | AF28: 0 | AG28: 0 | AH28: 0 | AI28: 0 | AJ28: 0 | AK28: 0 | AL28: 0 | AM28: 0 | AN28: 0 | AO28: 0 | AP28: 0 | AQ28: 0 | AR28: 0 | AS28: 0 | AT28: 0 | AU28: 0 | AV28: 0 | AW28: 0 | AX28: 0 | AY28: 0 | AZ28: 0 | BA28: 0 | BB28: 0 | BC28: 0 | BD28: 0 | BE28: 0 | BF28: 0 | BG28: 0 | BH28: 0 | BI28: 0 | BJ28: 0 | BK28: 0 | BL28: 0 | BM28: 0 | BN28: 0 | BO28: 0 | BP28: 0 | BQ28: 0 | BR28: =SUM(BR29:BR31) -> 0 | BS28: 0 | BT28: 0 | BU28: 0 | BV28: 0 | BW28: 0 | BX28: 0 | BY28: 0 | BZ28: 0 | CA28: 0 | CB28: 0 | CC28: 0 | CD28: 3 | CF28: 138
B29: 1381 | C29: Tài sản thiếu chờ xử lý | D29: 0 | F29: =SUMIF(TKno,TK,_st01) -> 0 | G29: =SUMIF(TKco,TK,_st01) -> 0 | H29: =IF(D29+F29-E29-G29>0,D29+F29-E29-G29,0) -> 0 | I29: =IF(E29+G29-D29-F29>0,E29+G29-D29-F29,0) -> 0 | J29: =H29 -> 0 | K29: =I29 -> 0 | L29: =SUMIF(TKno,TK,_st02) -> 0 | M29: =SUMIF(TKco,TK,_st02) -> 0 | N29: =IF(J29+L29-K29-M29>0,J29+L29-K29-M29,0) -> 0 | O29: =IF(K29+M29-J29-L29>0,K29+M29-J29-L29,0) -> 0 | P29: =N29 -> 0 | Q29: =O29 -> 0 | R29: =SUMIF(TKno,TK,_st03) -> 0 | S29: =SUMIF(TKco,TK,_st03) -> 0 | T29: =IF(P29+R29-Q29-S29>0,P29+R29-Q29-S29,0) -> 0 | U29: =IF(Q29+S29-P29-R29>0,Q29+S29-P29-R29,0) -> 0 | V29: =T29 -> 0 | W29: =U29 -> 0 | X29: =SUMIF(TKno,TK,_st04) -> 0 | Y29: =SUMIF(TKco,TK,_st04) -> 0 | Z29: =IF(V29+X29-W29-Y29>0,V29+X29-W29-Y29,0) -> 0 | AA29: =IF(W29+Y29-V29-X29>0,W29+Y29-V29-X29,0) -> 0 | AB29: =Z29 -> 0 | AC29: =AA29 -> 0 | AD29: =SUMIF(TKno,TK,_st05) -> 0 | AE29: =SUMIF(TKco,TK,_st05) -> 0 | AF29: =IF(AB29+AD29-AC29-AE29>0,AB29+AD29-AC29-AE29,0) -> 0 | AG29: =IF(AC29+AE29-AB29-AD29>0,AC29+AE29-AB29-AD29,0) -> 0 | AH29: =AF29 -> 0 | AI29: =AG29 -> 0 | AJ29: =SUMIF(TKno,TK,_st06) -> 0 | AK29: =SUMIF(TKco,TK,_st06) -> 0 | AL29: =IF(AH29+AJ29-AI29-AK29>0,AH29+AJ29-AI29-AK29,0) -> 0 | AM29: =IF(AI29+AK29-AH29-AJ29>0,AI29+AK29-AH29-AJ29,0) -> 0 | AN29: =AL29 -> 0 | AO29: =AM29 -> 0 | AP29: =SUMIF(TKno,TK,_st07) -> 0 | AQ29: =SUMIF(TKco,TK,_st07) -> 0 | AR29: =IF(AN29+AP29-AO29-AQ29>0,AN29+AP29-AO29-AQ29,0) -> 0 | AS29: =IF(AO29+AQ29-AN29-AP29>0,AO29+AQ29-AN29-AP29,0) -> 0 | AT29: =AR29 -> 0 | AU29: =AS29 -> 0 | AV29: =SUMIF(TKno,TK,_st08) -> 0 | AW29: =SUMIF(TKco,TK,_st08) -> 0 | AX29: =IF(AT29+AV29-AU29-AW29>0,AT29+AV29-AU29-AW29,0) -> 0 | AY29: =IF(AU29+AW29-AT29-AV29>0,AU29+AW29-AT29-AV29,0) -> 0 | AZ29: =AX29 -> 0 | BA29: =AY29 -> 0 | BB29: =SUMIF(TKno,TK,_st09) -> 0 | BC29: =SUMIF(TKco,TK,_st09) -> 0 | BD29: =IF(AZ29+BB29-BA29-BC29>0,AZ29+BB29-BA29-BC29,0) -> 0 | BE29: =IF(BA29+BC29-AZ29-BB29>0,BA29+BC29-AZ29-BB29,0) -> 0 | BF29: =BD29 -> 0 | BG29: =BE29 -> 0 | BH29: =SUMIF(TKno,TK,_st10) -> 0 | BI29: =SUMIF(TKco,TK,_st10) -> 0 | BJ29: =IF(BF29+BH29-BG29-BI29>0,BF29+BH29-BG29-BI29,0) -> 0 | BK29: =IF(BG29+BI29-BF29-BH29>0,BG29+BI29-BF29-BH29,0) -> 0 | BL29: =BJ29 -> 0 | BM29: =BK29 -> 0 | BN29: =SUMIF(TKno,TK,_st11) -> 0 | BO29: =SUMIF(TKco,TK,_st11) -> 0 | BP29: =IF(BL29+BN29-BM29-BO29>0,BL29+BN29-BM29-BO29,0) -> 0 | BQ29: =IF(BM29+BO29-BL29-BN29>0,BM29+BO29-BL29-BN29,0) -> 0 | BR29: =BP29 -> 0 | BS29: =BQ29 -> 0 | BT29: =SUMIF(TKno,TK,_st12) -> 0 | BU29: =SUMIF(TKco,TK,_st12) -> 0 | BV29: =IF(BR29+BT29-BS29-BU29>0,BR29+BT29-BS29-BU29,0) -> 0 | BW29: =IF(BS29+BU29-BR29-BT29>0,BS29+BU29-BR29-BT29,0) -> 0 | BX29: 0 | BY29: 0 | BZ29: =SUMIF(TKno,TK,ST) -> 0 | CA29: =SUMIF(TKco,TK,ST) -> 0 | CB29: =IF(BX29+BZ29-BY29-CA29>0,BX29+BZ29-BY29-CA29,0) -> 0 | CC29: =IF(BY29+CA29-BX29-BZ29>0,BY29+CA29-BX29-BZ29,0) -> 0 | CD29: 4 | CE29: =$B29 -> 1381 | CG29: 1381
B30: 1385 | C30: Phải thu về cổ phần hóa | D30: 0 | F30: 0 | G30: 0 | H30: 0 | I30: 0 | J30: 0 | K30: 0 | L30: 0 | M30: =SUMIF(TKco,TK,_st02) -> 0 | N30: 0 | O30: 0 | P30: 0 | Q30: 0 | R30: 0 | S30: 0 | T30: 0 | U30: 0 | V30: 0 | W30: 0 | X30: 0 | Y30: 0 | Z30: 0 | AA30: 0 | AB30: 0 | AC30: 0 | AD30: 0 | AE30: 0 | AF30: 0 | AG30: 0 | AH30: 0 | AI30: 0 | AJ30: 0 | AK30: 0 | AL30: 0 | AM30: 0 | AN30: 0 | AO30: 0 | AP30: 0 | AQ30: 0 | AR30: 0 | AS30: 0 | AT30: 0 | AU30: 0 | AV30: 0 | AW30: 0 | AX30: 0 | AY30: 0 | AZ30: 0 | BA30: 0 | BB30: 0 | BC30: 0 | BD30: 0 | BE30: 0 | BF30: 0 | BG30: 0 | BH30: 0 | BI30: 0 | BJ30: 0 | BK30: 0 | BL30: 0 | BM30: 0 | BN30: 0 | BO30: 0 | BP30: 0 | BQ30: 0 | BR30: 0 | BS30: 0 | BT30: 0 | BU30: 0 | BV30: 0 | BW30: 0 | BX30: 0 | BY30: 0 | BZ30: 0 | CA30: 0 | CB30: =IF(BX30+BZ30-BY30-CA30>0,BX30+BZ30-BY30-CA30,0) -> 0 | CC30: =IF(BY30+CA30-BX30-BZ30>0,BY30+CA30-BX30-BZ30,0) -> 0 | CD30: 4 | CE30: 1385 | CG30: 1385
B31: 1388 | C31: Phải thu khác | D31: 0 | F31: 0 | G31: 0 | H31: 0 | I31: 0 | J31: 0 | K31: 0 | L31: 0 | M31: 0 | N31: 0 | O31: 0 | P31: 0 | Q31: 0 | R31: 0 | S31: 0 | T31: 0 | U31: 0 | V31: 0 | W31: 0 | X31: 0 | Y31: 0 | Z31: 0 | AA31: 0 | AB31: 0 | AC31: 0 | AD31: 0 | AE31: 0 | AF31: 0 | AG31: 0 | AH31: 0 | AI31: 0 | AJ31: 0 | AK31: 0 | AL31: 0 | AM31: 0 | AN31: 0 | AO31: 0 | AP31: 0 | AQ31: 0 | AR31: 0 | AS31: 0 | AT31: 0 | AU31: 0 | AV31: 0 | AW31: 0 | AX31: 0 | AY31: 0 | AZ31: 0 | BA31: 0 | BB31: 0 | BC31: 0 | BD31: 0 | BE31: 0 | BF31: 0 | BG31: 0 | BH31: 0 | BI31: 0 | BJ31: 0 | BK31: 0 | BL31: 0 | BM31: 0 | BN31: 0 | BO31: 0 | BP31: 0 | BQ31: 0 | BR31: 0 | BS31: 0 | BT31: 0 | BU31: 0 | BV31: 0 | BW31: 0 | BX31: 0 | BY31: 0 | BZ31: 0 | CA31: 0 | CB31: =SUMIF(CongNo_TK,'CDPS-ok'!$B31,CongNo!$FE:$FE) -> 0 | CC31: =SUMIF(CongNo_TK,'CDPS-ok'!$B31,CongNo!$FG:$FG) -> 0 | CD31: 4 | CE31: 1388 | CG31: 1388
B32: 141 | C32: Tạm ứng | D32: 0 | F32: =SUMIF(TKno,TK,_st01) -> 0 | G32: 0 | H32: 0 | I32: 0 | J32: 0 | K32: 0 | L32: 0 | M32: 0 | N32: 0 | O32: 0 | P32: 0 | Q32: 0 | R32: 0 | S32: 0 | T32: 0 | U32: 0 | V32: 0 | W32: 0 | X32: 0 | Y32: 0 | Z32: 0 | AA32: 0 | AB32: 0 | AC32: 0 | AD32: 0 | AE32: 0 | AF32: 0 | AG32: 0 | AH32: 0 | AI32: 0 | AJ32: 0 | AK32: 0 | AL32: 0 | AM32: 0 | AN32: 0 | AO32: 0 | AP32: 0 | AQ32: 0 | AR32: 0 | AS32: 0 | AT32: 0 | AU32: 0 | AV32: 0 | AW32: 0 | AX32: 0 | AY32: 0 | AZ32: 0 | BA32: 0 | BB32: 0 | BC32: 0 | BD32: 0 | BE32: 0 | BF32: 0 | BG32: 0 | BH32: 0 | BI32: 0 | BJ32: 0 | BK32: 0 | BL32: 0 | BM32: 0 | BN32: 0 | BO32: 0 | BP32: 0 | BQ32: 0 | BR32: 0 | BS32: 0 | BT32: 0 | BU32: 0 | BV32: 0 | BW32: 0 | BX32: 0 | BY32: 0 | BZ32: 0 | CA32: 0 | CB32: =IF(BX32+BZ32-BY32-CA32>0,BX32+BZ32-BY32-CA32,0) -> 0 | CC32: =IF(BY32+CA32-BX32-BZ32>0,BY32+CA32-BX32-BZ32,0) -> 0 | CD32: 3 | CE32: 141 | CF32: 141
A33: ok | B33: 142 | C33: Chi phí trả trước ngắn hạn | D33: 0 | F33: =SUMIF(TKno,TK,_st01) -> 52,000,000 | G33: 0 | H33: =IF(D33+F33-E33-G33>0,D33+F33-E33-G33,0) -> 52,000,000 | I33: =IF(E33+G33-D33-F33>0,E33+G33-D33-F33,0) -> 0 | J33: =H33 -> 52,000,000 | K33: 0 | L33: 0 | M33: 15,583,333 | N33: =IF(J33+L33-K33-M33>0,J33+L33-K33-M33,0) -> 36,416,667 | O33: =IF(K33+M33-J33-L33>0,K33+M33-J33-L33,0) -> 0 | P33: =N33 -> 36,416,667 | Q33: 0 | R33: 0 | S33: 0 | T33: =IF(P33+R33-Q33-S33>0,P33+R33-Q33-S33,0) -> 36,416,667 | U33: =IF(Q33+S33-P33-R33>0,Q33+S33-P33-R33,0) -> 0 | V33: =T33 -> 36,416,667 | W33: 0 | X33: 0 | Y33: 0 | Z33: =IF(V33+X33-W33-Y33>0,V33+X33-W33-Y33,0) -> 36,416,667 | AA33: =IF(W33+Y33-V33-X33>0,W33+Y33-V33-X33,0) -> 0 | AB33: =Z33 -> 36,416,667 | AC33: 0 | AD33: 0 | AE33: 0 | AF33: =IF(AB33+AD33-AC33-AE33>0,AB33+AD33-AC33-AE33,0) -> 36,416,667 | AG33: =IF(AC33+AE33-AB33-AD33>0,AC33+AE33-AB33-AD33,0) -> 0 | AH33: =AF33 -> 36,416,667 | AI33: 0 | AJ33: 0 | AK33: 0 | AL33: =IF(AH33+AJ33-AI33-AK33>0,AH33+AJ33-AI33-AK33,0) -> 36,416,667 | AM33: =IF(AI33+AK33-AH33-AJ33>0,AI33+AK33-AH33-AJ33,0) -> 0 | AN33: =AL33 -> 36,416,667 | AO33: 0 | AP33: 0 | AQ33: 0 | AR33: =IF(AN33+AP33-AO33-AQ33>0,AN33+AP33-AO33-AQ33,0) -> 36,416,667 | AS33: =IF(AO33+AQ33-AN33-AP33>0,AO33+AQ33-AN33-AP33,0) -> 0 | AT33: =AR33 -> 36,416,667 | AU33: 0 | AV33: 0 | AW33: 0 | AX33: =IF(AT33+AV33-AU33-AW33>0,AT33+AV33-AU33-AW33,0) -> 36,416,667 | AY33: =IF(AU33+AW33-AT33-AV33>0,AU33+AW33-AT33-AV33,0) -> 0 | AZ33: =AX33 -> 36,416,667 | BA33: 0 | BB33: 0 | BC33: 0 | BD33: =IF(AZ33+BB33-BA33-BC33>0,AZ33+BB33-BA33-BC33,0) -> 36,416,667 | BE33: =IF(BA33+BC33-AZ33-BB33>0,BA33+BC33-AZ33-BB33,0) -> 0 | BF33: =BD33 -> 36,416,667 | BG33: 0 | BH33: 0 | BI33: 0 | BJ33: 36,416,667 | BK33: 0 | BL33: =BJ33 -> 36,416,667 | BM33: 0 | BN33: 0 | BO33: 0 | BP33: =IF(BL33+BN33-BM33-BO33>0,BL33+BN33-BM33-BO33,0) -> 36,416,667 | BQ33: =IF(BM33+BO33-BL33-BN33>0,BM33+BO33-BL33-BN33,0) -> 0 | BR33: =BP33 -> 36,416,667 | BS33: 0 | BT33: 0 | BU33: 0 | BV33: =IF(BR33+BT33-BS33-BU33>0,BR33+BT33-BS33-BU33,0) -> 36,416,667 | BW33: =IF(BS33+BU33-BR33-BT33>0,BS33+BU33-BR33-BT33,0) -> 0 | BX33: =D33 -> 0 | BY33: 0 | BZ33: 52,000,000 | CA33: 15,583,333 | CB33: 36,416,667 | CC33: 0 | CD33: 3 | CE33: 142 | CF33: 142
CD34: 0 | CE34: 0
B35: 151 | C35: Hàng mua chưa về | D35: 0 | F35: 0 | G35: 0 | H35: =IF(D35+F35-E35-G35>0,D35+F35-E35-G35,0) -> 0 | I35: =IF(E35+G35-D35-F35>0,E35+G35-D35-F35,0) -> 0 | J35: 0 | K35: 0 | L35: 0 | M35: 0 | N35: =IF(J35+L35-K35-M35>0,J35+L35-K35-M35,0) -> 0 | O35: =IF(K35+M35-J35-L35>0,K35+M35-J35-L35,0) -> 0 | P35: 0 | Q35: 0 | R35: 0 | S35: 0 | T35: =IF(P35+R35-Q35-S35>0,P35+R35-Q35-S35,0) -> 0 | U35: =IF(Q35+S35-P35-R35>0,Q35+S35-P35-R35,0) -> 0 | V35: 0 | W35: 0 | X35: 0 | Y35: 0 | Z35: =IF(V35+X35-W35-Y35>0,V35+X35-W35-Y35,0) -> 0 | AA35: =IF(W35+Y35-V35-X35>0,W35+Y35-V35-X35,0) -> 0 | AB35: 0 | AC35: 0 | AD35: 0 | AE35: 0 | AF35: =IF(AB35+AD35-AC35-AE35>0,AB35+AD35-AC35-AE35,0) -> 0 | AG35: =IF(AC35+AE35-AB35-AD35>0,AC35+AE35-AB35-AD35,0) -> 0 | AH35: 0 | AI35: 0 | AJ35: 0 | AK35: 0 | AL35: =IF(AH35+AJ35-AI35-AK35>0,AH35+AJ35-AI35-AK35,0) -> 0 | AM35: =IF(AI35+AK35-AH35-AJ35>0,AI35+AK35-AH35-AJ35,0) -> 0 | AN35: 0 | AO35: 0 | AP35: 0 | AQ35: 0 | AR35: =IF(AN35+AP35-AO35-AQ35>0,AN35+AP35-AO35-AQ35,0) -> 0 | AS35: =IF(AO35+AQ35-AN35-AP35>0,AO35+AQ35-AN35-AP35,0) -> 0 | AT35: 0 | AU35: 0 | AV35: 0 | AW35: 0 | AX35: =IF(AT35+AV35-AU35-AW35>0,AT35+AV35-AU35-AW35,0) -> 0 | AY35: =IF(AU35+AW35-AT35-AV35>0,AU35+AW35-AT35-AV35,0) -> 0 | AZ35: 0 | BA35: 0 | BB35: 0 | BC35: 0 | BD35: =IF(AZ35+BB35-BA35-BC35>0,AZ35+BB35-BA35-BC35,0) -> 0 | BE35: =IF(BA35+BC35-AZ35-BB35>0,BA35+BC35-AZ35-BB35,0) -> 0 | BF35: 0 | BG35: 0 | BH35: 0 | BI35: 0 | BJ35: 0 | BK35: 0 | BL35: 0 | BM35: 0 | BN35: 0 | BO35: 0 | BP35: =IF(BL35+BN35-BM35-BO35>0,BL35+BN35-BM35-BO35,0) -> 0 | BQ35: =IF(BM35+BO35-BL35-BN35>0,BM35+BO35-BL35-BN35,0) -> 0 | BR35: 0 | BS35: 0 | BT35: 0 | BU35: 0 | BV35: =IF(BR35+BT35-BS35-BU35>0,BR35+BT35-BS35-BU35,0) -> 0 | BW35: =IF(BS35+BU35-BR35-BT35>0,BS35+BU35-BR35-BT35,0) -> 0 | BX35: 0 | BY35: 0 | BZ35: 0 | CA35: 0 | CB35: 0 | CC35: 0 | CD35: 3 | CE35: 151 | CF35: 151
B36: 152 | C36: Nguyên liệu, vật liệu | D36: 0 | F36: 0 | G36: 0 | H36: 0 | I36: 0 | J36: 0 | K36: 0 | L36: 0 | M36: 0 | N36: 0 | O36: 0 | P36: 0 | Q36: 0 | R36: 0 | S36: 0 | T36: 0 | U36: 0 | V36: 0 | W36: 0 | X36: 0 | Y36: 0 | Z36: 0 | AA36: 0 | AB36: 0 | AC36: 0 | AD36: 0 | AE36: 0 | AF36: 0 | AG36: 0 | AH36: 0 | AI36: 0 | AJ36: 0 | AK36: 0 | AL36: 0 | AM36: 0 | AN36: 0 | AO36: 0 | AP36: 0 | AQ36: 0 | AR36: 0 | AS36: 0 | AT36: 0 | AU36: 0 | AV36: 0 | AW36: 0 | AX36: 0 | AY36: 0 | AZ36: 0 | BA36: 0 | BB36: 0 | BC36: 0 | BD36: 0 | BE36: 0 | BF36: 0 | BG36: 0 | BH36: 0 | BI36: 0 | BJ36: 0 | BK36: 0 | BL36: 0 | BM36: 0 | BN36: 0 | BO36: 0 | BP36: 0 | BQ36: 0 | BR36: 0 | BS36: 0 | BT36: 0 | BU36: 0 | BV36: 0 | BW36: 0 | BX36: 0 | BY36: 0 | BZ36: 0 | CA36: 0 | CB36: 0 | CC36: 0 | CD36: 3 | CE36: 152 | CF36: 152
B37: 153 | C37: Công cụ, dụng cụ | D37: 0 | F37: 0 | G37: 0 | H37: 0 | I37: 0 | J37: 0 | K37: 0 | L37: 0 | M37: 0 | N37: 0 | O37: 0 | P37: 0 | Q37: 0 | R37: 0 | S37: 0 | T37: 0 | U37: 0 | V37: 0 | W37: 0 | X37: 0 | Y37: 0 | Z37: 0 | AA37: 0 | AB37: 0 | AC37: 0 | AD37: 0 | AE37: 0 | AF37: 0 | AG37: 0 | AH37: 0 | AI37: 0 | AJ37: 0 | AK37: 0 | AL37: 0 | AM37: 0 | AN37: 0 | AO37: 0 | AP37: 0 | AQ37: 0 | AR37: 0 | AS37: 0 | AT37: 0 | AU37: 0 | AV37: 0 | AW37: 0 | AX37: 0 | AY37: 0 | AZ37: 0 | BA37: 0 | BB37: 0 | BC37: 0 | BD37: 0 | BE37: 0 | BF37: 0 | BG37: 0 | BH37: 0 | BI37: 0 | BJ37: 0 | BK37: 0 | BL37: 0 | BM37: 0 | BN37: 0 | BO37: 0 | BP37: 0 | BQ37: 0 | BR37: 0 | BS37: 0 | BT37: 0 | BU37: 0 | BV37: 0 | BW37: 0 | BX37: 0 | BY37: 0 | BZ37: 0 | CA37: 0 | CB37: 0 | CC37: 0 | CD37: 3 | CE37: 153 | CF37: 153
B38: 154 | C38: Chi phí SXKD dở dang | D38: =SUM(D39:D43) -> 0 | E38: 0 | F38: =SUM(F39:F43) -> 0 | G38: =SUM(G39:G43) -> 0 | H38: =SUM(H39:H43) -> 0 | I38: 0 | J38: =SUM(J39:J43) -> 0 | K38: =SUM(K39:K43) -> 0 | L38: 0 | M38: =SUM(M39:M43) -> 0 | N38: =SUM(N39:N43) -> 0 | O38: 0 | P38: =SUM(P39:P43) -> 0 | Q38: =SUM(Q39:Q43) -> 0 | R38: 0 | S38: =SUM(S39:S43) -> 0 | T38: =SUM(T39:T43) -> 0 | U38: 0 | V38: =SUM(V39:V43) -> 0 | W38: =SUM(W39:W43) -> 0 | X38: 0 | Y38: =SUM(Y39:Y43) -> 0 | Z38: =SUM(Z39:Z43) -> 0 | AA38: 0 | AB38: =SUM(AB39:AB43) -> 0 | AC38: =SUM(AC39:AC43) -> 0 | AD38: 0 | AE38: =SUM(AE39:AE43) -> 0 | AF38: =SUM(AF39:AF43) -> 0 | AG38: 0 | AH38: =SUM(AH39:AH43) -> 0 | AI38: =SUM(AI39:AI43) -> 0 | AJ38: 0 | AK38: =SUM(AK39:AK43) -> 0 | AL38: =SUM(AL39:AL43) -> 0 | AM38: 0 | AN38: =SUM(AN39:AN43) -> 0 | AO38: =SUM(AO39:AO43) -> 0 | AP38: 0 | AQ38: =SUM(AQ39:AQ43) -> 0 | AR38: =SUM(AR39:AR43) -> 0 | AS38: 0 | AT38: =SUM(AT39:AT43) -> 0 | AU38: =SUM(AU39:AU43) -> 0 | AV38: 0 | AW38: =SUM(AW39:AW43) -> 0 | AX38: =SUM(AX39:AX43) -> 0 | AY38: 0 | AZ38: =SUM(AZ39:AZ43) -> 0 | BA38: =SUM(BA39:BA43) -> 0 | BB38: 0 | BC38: =SUM(BC39:BC43) -> 0 | BD38: =SUM(BD39:BD43) -> 0 | BE38: 0 | BF38: =SUM(BF39:BF43) -> 0 | BG38: =SUM(BG39:BG43) -> 0 | BH38: 0 | BI38: =SUM(BI39:BI43) -> 0 | BJ38: =SUM(BJ39:BJ43) -> 0 | BK38: 0 | BL38: =SUM(BL39:BL43) -> 0 | BM38: =SUM(BM39:BM43) -> 0 | BN38: 0 | BO38: =SUM(BO39:BO43) -> 0 | BP38: =SUM(BP39:BP43) -> 0 | BQ38: 0 | BR38: =SUM(BR39:BR43) -> 0 | BS38: =SUM(BS39:BS43) -> 0 | BT38: 0 | BU38: =SUM(BU39:BU43) -> 0 | BV38: =SUM(BV39:BV43) -> 0 | BW38: 0 | BX38: =SUM(BX39:BX43) -> 0 | BY38: =SUM(BY39:BY43) -> 0 | BZ38: 0 | CA38: =SUM(CA39:CA43) -> 0 | CB38: =SUM(CB39:CB43) -> 0 | CC38: 0 | CD38: 3 | CE38: 154 | CF38: 154
B39: 1541 | C39: Chi phí SXKD dở dang HĐ 01 | D39: 0 | F39: 0 | G39: 0 | H39: =IF(D39+F39-E39-G39>0,D39+F39-E39-G39,0) -> 0 | I39: =IF(E39+G39-D39-F39>0,E39+G39-D39-F39,0) -> 0 | J39: =H39 -> 0 | K39: 0 | L39: 0 | M39: 0 | N39: =IF(J39+L39-K39-M39>0,J39+L39-K39-M39,0) -> 0 | O39: =IF(K39+M39-J39-L39>0,K39+M39-J39-L39,0) -> 0 | P39: =N39 -> 0 | Q39: 0 | R39: 0 | S39: 0 | T39: =IF(P39+R39-Q39-S39>0,P39+R39-Q39-S39,0) -> 0 | U39: =IF(Q39+S39-P39-R39>0,Q39+S39-P39-R39,0) -> 0 | V39: =T39 -> 0 | W39: 0 | X39: 0 | Y39: 0 | Z39: =IF(V39+X39-W39-Y39>0,V39+X39-W39-Y39,0) -> 0 | AA39: =IF(W39+Y39-V39-X39>0,W39+Y39-V39-X39,0) -> 0 | AB39: =Z39 -> 0 | AC39: 0 | AD39: 0 | AE39: 0 | AF39: =IF(AB39+AD39-AC39-AE39>0,AB39+AD39-AC39-AE39,0) -> 0 | AG39: =IF(AC39+AE39-AB39-AD39>0,AC39+AE39-AB39-AD39,0) -> 0 | AH39: =AF39 -> 0 | AI39: 0 | AJ39: 0 | AK39: 0 | AL39: =IF(AH39+AJ39-AI39-AK39>0,AH39+AJ39-AI39-AK39,0) -> 0 | AM39: =IF(AI39+AK39-AH39-AJ39>0,AI39+AK39-AH39-AJ39,0) -> 0 | AN39: =AL39 -> 0 | AO39: 0 | AP39: 0 | AQ39: 0 | AR39: =IF(AN39+AP39-AO39-AQ39>0,AN39+AP39-AO39-AQ39,0) -> 0 | AS39: =IF(AO39+AQ39-AN39-AP39>0,AO39+AQ39-AN39-AP39,0) -> 0 | AT39: =AR39 -> 0 | AU39: 0 | AV39: 0 | AW39: 0 | AX39: =IF(AT39+AV39-AU39-AW39>0,AT39+AV39-AU39-AW39,0) -> 0 | AY39: =IF(AU39+AW39-AT39-AV39>0,AU39+AW39-AT39-AV39,0) -> 0 | AZ39: =AX39 -> 0 | BA39: 0 | BB39: 0 | BC39: 0 | BD39: =IF(AZ39+BB39-BA39-BC39>0,AZ39+BB39-BA39-BC39,0) -> 0 | BE39: =IF(BA39+BC39-AZ39-BB39>0,BA39+BC39-AZ39-BB39,0) -> 0 | BF39: =BD39 -> 0 | BG39: 0 | BH39: 0 | BI39: 0 | BJ39: 0 | BK39: 0 | BL39: =BJ39 -> 0 | BM39: 0 | BN39: 0 | BO39: 0 | BP39: =IF(BL39+BN39-BM39-BO39>0,BL39+BN39-BM39-BO39,0) -> 0 | BQ39: =IF(BM39+BO39-BL39-BN39>0,BM39+BO39-BL39-BN39,0) -> 0 | BR39: =BP39 -> 0 | BS39: 0 | BT39: 0 | BU39: 0 | BV39: =IF(BR39+BT39-BS39-BU39>0,BR39+BT39-BS39-BU39,0) -> 0 | BW39: =IF(BS39+BU39-BR39-BT39>0,BS39+BU39-BR39-BT39,0) -> 0 | BX39: =D39 -> 0 | BY39: 0 | BZ39: 0 | CA39: 0 | CB39: 0 | CC39: 0 | CD39: 4 | CE39: 1541 | CG39: 1541
B40: 1542 | C40: Chi phí SXKD dở dang HĐ 02 | D40: 0 | F40: 0 | G40: 0 | H40: =IF(D40+F40-E40-G40>0,D40+F40-E40-G40,0) -> 0 | I40: =IF(E40+G40-D40-F40>0,E40+G40-D40-F40,0) -> 0 | J40: 0 | K40: 0 | L40: 0 | M40: 0 | N40: =IF(J40+L40-K40-M40>0,J40+L40-K40-M40,0) -> 0 | O40: =IF(K40+M40-J40-L40>0,K40+M40-J40-L40,0) -> 0 | P40: 0 | Q40: 0 | R40: 0 | S40: 0 | T40: =IF(P40+R40-Q40-S40>0,P40+R40-Q40-S40,0) -> 0 | U40: =IF(Q40+S40-P40-R40>0,Q40+S40-P40-R40,0) -> 0 | V40: 0 | W40: 0 | X40: 0 | Y40: 0 | Z40: =IF(V40+X40-W40-Y40>0,V40+X40-W40-Y40,0) -> 0 | AA40: =IF(W40+Y40-V40-X40>0,W40+Y40-V40-X40,0) -> 0 | AB40: 0 | AC40: 0 | AD40: 0 | AE40: 0 | AF40: =IF(AB40+AD40-AC40-AE40>0,AB40+AD40-AC40-AE40,0) -> 0 | AG40: =IF(AC40+AE40-AB40-AD40>0,AC40+AE40-AB40-AD40,0) -> 0 | AH40: 0 | AI40: 0 | AJ40: 0 | AK40: 0 | AL40: =IF(AH40+AJ40-AI40-AK40>0,AH40+AJ40-AI40-AK40,0) -> 0 | AM40: =IF(AI40+AK40-AH40-AJ40>0,AI40+AK40-AH40-AJ40,0) -> 0 | AN40: 0 | AO40: 0 | AP40: 0 | AQ40: 0 | AR40: =IF(AN40+AP40-AO40-AQ40>0,AN40+AP40-AO40-AQ40,0) -> 0 | AS40: =IF(AO40+AQ40-AN40-AP40>0,AO40+AQ40-AN40-AP40,0) -> 0 | AT40: 0 | AU40: 0 | AV40: 0 | AW40: 0 | AX40: =IF(AT40+AV40-AU40-AW40>0,AT40+AV40-AU40-AW40,0) -> 0 | AY40: =IF(AU40+AW40-AT40-AV40>0,AU40+AW40-AT40-AV40,0) -> 0 | AZ40: 0 | BA40: 0 | BB40: 0 | BC40: 0 | BD40: =IF(AZ40+BB40-BA40-BC40>0,AZ40+BB40-BA40-BC40,0) -> 0 | BE40: =IF(BA40+BC40-AZ40-BB40>0,BA40+BC40-AZ40-BB40,0) -> 0 | BF40: 0 | BG40: 0 | BH40: 0 | BI40: 0 | BJ40: 0 | BK40: 0 | BL40: 0 | BM40: 0 | BN40: 0 | BO40: 0 | BP40: =IF(BL40+BN40-BM40-BO40>0,BL40+BN40-BM40-BO40,0) -> 0 | BQ40: =IF(BM40+BO40-BL40-BN40>0,BM40+BO40-BL40-BN40,0) -> 0 | BR40: 0 | BS40: 0 | BT40: 0 | BU40: 0 | BV40: =IF(BR40+BT40-BS40-BU40>0,BR40+BT40-BS40-BU40,0) -> 0 | BW40: =IF(BS40+BU40-BR40-BT40>0,BS40+BU40-BR40-BT40,0) -> 0 | BX40: 0 | BY40: 0 | BZ40: 0 | CA40: 0 | CB40: 0 | CC40: 0 | CD40: 4 | CE40: 1542 | CG40: 1542
B41: 1543 | C41: Chi phí SXKD dở dang HĐ 03 | D41: 0 | F41: 0 | G41: 0 | H41: =IF(D41+F41-E41-G41>0,D41+F41-E41-G41,0) -> 0 | I41: =IF(E41+G41-D41-F41>0,E41+G41-D41-F41,0) -> 0 | J41: 0 | K41: 0 | L41: 0 | M41: 0 | N41: =IF(J41+L41-K41-M41>0,J41+L41-K41-M41,0) -> 0 | O41: =IF(K41+M41-J41-L41>0,K41+M41-J41-L41,0) -> 0 | P41: 0 | Q41: 0 | R41: 0 | S41: 0 | T41: =IF(P41+R41-Q41-S41>0,P41+R41-Q41-S41,0) -> 0 | U41: =IF(Q41+S41-P41-R41>0,Q41+S41-P41-R41,0) -> 0 | V41: 0 | W41: 0 | X41: 0 | Y41: 0 | Z41: =IF(V41+X41-W41-Y41>0,V41+X41-W41-Y41,0) -> 0 | AA41: =IF(W41+Y41-V41-X41>0,W41+Y41-V41-X41,0) -> 0 | AB41: 0 | AC41: 0 | AD41: 0 | AE41: 0 | AF41: =IF(AB41+AD41-AC41-AE41>0,AB41+AD41-AC41-AE41,0) -> 0 | AG41: =IF(AC41+AE41-AB41-AD41>0,AC41+AE41-AB41-AD41,0) -> 0 | AH41: 0 | AI41: 0 | AJ41: 0 | AK41: 0 | AL41: =IF(AH41+AJ41-AI41-AK41>0,AH41+AJ41-AI41-AK41,0) -> 0 | AM41: =IF(AI41+AK41-AH41-AJ41>0,AI41+AK41-AH41-AJ41,0) -> 0 | AN41: 0 | AO41: 0 | AP41: 0 | AQ41: 0 | AR41: =IF(AN41+AP41-AO41-AQ41>0,AN41+AP41-AO41-AQ41,0) -> 0 | AS41: =IF(AO41+AQ41-AN41-AP41>0,AO41+AQ41-AN41-AP41,0) -> 0 | AT41: 0 | AU41: 0 | AV41: 0 | AW41: 0 | AX41: =IF(AT41+AV41-AU41-AW41>0,AT41+AV41-AU41-AW41,0) -> 0 | AY41: =IF(AU41+AW41-AT41-AV41>0,AU41+AW41-AT41-AV41,0) -> 0 | AZ41: 0 | BA41: 0 | BB41: 0 | BC41: 0 | BD41: =IF(AZ41+BB41-BA41-BC41>0,AZ41+BB41-BA41-BC41,0) -> 0 | BE41: =IF(BA41+BC41-AZ41-BB41>0,BA41+BC41-AZ41-BB41,0) -> 0 | BF41: 0 | BG41: 0 | BH41: 0 | BI41: 0 | BJ41: 0 | BK41: 0 | BL41: 0 | BM41: 0 | BN41: 0 | BO41: 0 | BP41: =IF(BL41+BN41-BM41-BO41>0,BL41+BN41-BM41-BO41,0) -> 0 | BQ41: =IF(BM41+BO41-BL41-BN41>0,BM41+BO41-BL41-BN41,0) -> 0 | BR41: 0 | BS41: 0 | BT41: 0 | BU41: 0 | BV41: =IF(BR41+BT41-BS41-BU41>0,BR41+BT41-BS41-BU41,0) -> 0 | BW41: =IF(BS41+BU41-BR41-BT41>0,BS41+BU41-BR41-BT41,0) -> 0 | BX41: 0 | BY41: 0 | BZ41: 0 | CA41: 0 | CB41: 0 | CC41: 0 | CD41: 4 | CE41: 1543 | CG41: 1543
B42: 1544 | C42: Chi phí SXKD dở dang HĐ 04 | D42: 0 | F42: 0 | G42: 0 | H42: =IF(D42+F42-E42-G42>0,D42+F42-E42-G42,0) -> 0 | I42: =IF(E42+G42-D42-F42>0,E42+G42-D42-F42,0) -> 0 | J42: 0 | K42: 0 | L42: 0 | M42: 0 | N42: =IF(J42+L42-K42-M42>0,J42+L42-K42-M42,0) -> 0 | O42: =IF(K42+M42-J42-L42>0,K42+M42-J42-L42,0) -> 0 | P42: 0 | Q42: 0 | R42: 0 | S42: 0 | T42: =IF(P42+R42-Q42-S42>0,P42+R42-Q42-S42,0) -> 0 | U42: =IF(Q42+S42-P42-R42>0,Q42+S42-P42-R42,0) -> 0 | V42: 0 | W42: 0 | X42: 0 | Y42: 0 | Z42: =IF(V42+X42-W42-Y42>0,V42+X42-W42-Y42,0) -> 0 | AA42: =IF(W42+Y42-V42-X42>0,W42+Y42-V42-X42,0) -> 0 | AB42: 0 | AC42: 0 | AD42: 0 | AE42: 0 | AF42: =IF(AB42+AD42-AC42-AE42>0,AB42+AD42-AC42-AE42,0) -> 0 | AG42: =IF(AC42+AE42-AB42-AD42>0,AC42+AE42-AB42-AD42,0) -> 0 | AH42: 0 | AI42: 0 | AJ42: 0 | AK42: 0 | AL42: =IF(AH42+AJ42-AI42-AK42>0,AH42+AJ42-AI42-AK42,0) -> 0 | AM42: =IF(AI42+AK42-AH42-AJ42>0,AI42+AK42-AH42-AJ42,0) -> 0 | AN42: 0 | AO42: 0 | AP42: 0 | AQ42: 0 | AR42: =IF(AN42+AP42-AO42-AQ42>0,AN42+AP42-AO42-AQ42,0) -> 0 | AS42: =IF(AO42+AQ42-AN42-AP42>0,AO42+AQ42-AN42-AP42,0) -> 0 | AT42: 0 | AU42: 0 | AV42: 0 | AW42: 0 | AX42: =IF(AT42+AV42-AU42-AW42>0,AT42+AV42-AU42-AW42,0) -> 0 | AY42: =IF(AU42+AW42-AT42-AV42>0,AU42+AW42-AT42-AV42,0) -> 0 | AZ42: 0 | BA42: 0 | BB42: 0 | BC42: 0 | BD42: =IF(AZ42+BB42-BA42-BC42>0,AZ42+BB42-BA42-BC42,0) -> 0 | BE42: =IF(BA42+BC42-AZ42-BB42>0,BA42+BC42-AZ42-BB42,0) -> 0 | BF42: 0 | BG42: 0 | BH42: 0 | BI42: 0 | BJ42: 0 | BK42: 0 | BL42: 0 | BM42: 0 | BN42: 0 | BO42: 0 | BP42: =IF(BL42+BN42-BM42-BO42>0,BL42+BN42-BM42-BO42,0) -> 0 | BQ42: =IF(BM42+BO42-BL42-BN42>0,BM42+BO42-BL42-BN42,0) -> 0 | BR42: 0 | BS42: 0 | BT42: 0 | BU42: 0 | BV42: =IF(BR42+BT42-BS42-BU42>0,BR42+BT42-BS42-BU42,0) -> 0 | BW42: =IF(BS42+BU42-BR42-BT42>0,BS42+BU42-BR42-BT42,0) -> 0 | BX42: 0 | BY42: 0 | BZ42: 0 | CA42: 0 | CB42: 0 | CC42: 0 | CD42: 4 | CE42: 1544 | CG42: 1544
B43: 1545 | C43: Chi phí SXKD dở dang HĐ 05 | D43: 0 | F43: 0 | G43: 0 | H43: 0 | I43: 0 | J43: 0 | K43: 0 | L43: 0 | M43: 0 | N43: 0 | O43: 0 | P43: 0 | Q43: 0 | R43: 0 | S43: 0 | T43: 0 | U43: 0 | V43: 0 | W43: 0 | X43: 0 | Y43: 0 | Z43: 0 | AA43: 0 | AB43: 0 | AC43: 0 | AD43: 0 | AE43: 0 | AF43: 0 | AG43: 0 | AH43: 0 | AI43: 0 | AJ43: 0 | AK43: 0 | AL43: 0 | AM43: 0 | AN43: 0 | AO43: 0 | AP43: 0 | AQ43: 0 | AR43: 0 | AS43: 0 | AT43: 0 | AU43: 0 | AV43: 0 | AW43: 0 | AX43: 0 | AY43: 0 | AZ43: 0 | BA43: 0 | BB43: 0 | BC43: 0 | BD43: 0 | BE43: 0 | BF43: 0 | BG43: 0 | BH43: 0 | BI43: 0 | BJ43: 0 | BK43: 0 | BL43: 0 | BM43: 0 | BN43: 0 | BO43: 0 | BP43: 0 | BQ43: 0 | BR43: 0 | BS43: 0 | BT43: 0 | BU43: 0 | BV43: 0 | BW43: 0 | BX43: 0 | BY43: 0 | BZ43: 0 | CA43: 0 | CB43: 0 | CC43: 0 | CD43: 4 | CE43: 1545 | CG43: 1545
B44: 155 | C44: Thành phẩm | D44: 0 | F44: 0 | G44: 0 | H44: 0 | I44: 0 | J44: 0 | K44: 0 | L44: 0 | M44: 0 | N44: 0 | O44: 0 | P44: 0 | Q44: 0 | R44: 0 | S44: 0 | T44: 0 | U44: 0 | V44: 0 | W44: 0 | X44: 0 | Y44: 0 | Z44: 0 | AA44: 0 | AB44: 0 | AC44: 0 | AD44: 0 | AE44: 0 | AF44: 0 | AG44: 0 | AH44: 0 | AI44: 0 | AJ44: 0 | AK44: 0 | AL44: 0 | AM44: 0 | AN44: 0 | AO44: 0 | AP44: 0 | AQ44: 0 | AR44: 0 | AS44: 0 | AT44: 0 | AU44: 0 | AV44: 0 | AW44: 0 | AX44: 0 | AY44: 0 | AZ44: 0 | BA44: 0 | BB44: 0 | BC44: 0 | BD44: 0 | BE44: 0 | BF44: 0 | BG44: 0 | BH44: 0 | BI44: 0 | BJ44: 0 | BK44: 0 | BL44: 0 | BM44: 0 | BN44: 0 | BO44: 0 | BP44: 0 | BQ44: 0 | BR44: 0 | BS44: 0 | BT44: 0 | BU44: 0 | BV44: 0 | BW44: 0 | BX44: 0 | BY44: 0 | BZ44: 0 | CA44: 0 | CB44: 0 | CC44: 0 | CD44: 3 | CE44: 155 | CF44: 155
A45: ok | B45: 156 | C45: Hàng hóa | D45: =SUM(D46:D47) -> 379,000,000 | E45: 0 | F45: 754,000,000 | G45: 494,000,000 | H45: 639,000,000 | I45: 0 | J45: 639,000,000 | K45: 0 | L45: 130,282,345 | M45: 326,132,415 | N45: 443,149,930 | O45: 0 | P45: =SUM(P46:P47) -> 443,149,930 | Q45: 0 | R45: 0 | S45: 0 | T45: 443,149,930 | U45: 0 | V45: =SUM(V46:V47) -> 443,149,930 | W45: 0 | X45: 0 | Y45: 0 | Z45: 443,149,930 | AA45: 0 | AB45: 443,149,930 | AC45: 0 | AD45: 0 | AE45: 0 | AF45: 443,149,930 | AG45: 0 | AH45: 443,149,930 | AI45: 0 | AJ45: 0 | AK45: 0 | AL45: 443,149,930 | AM45: 0 | AN45: 443,149,930 | AO45: 0 | AP45: 0 | AQ45: 0 | AR45: 443,149,930 | AS45: 0 | AT45: 443,149,930 | AU45: 0 | AV45: 0 | AW45: 0 | AX45: 443,149,930 | AY45: 0 | AZ45: 443,149,930 | BA45: 0 | BB45: 0 | BC45: 0 | BD45: 443,149,930 | BE45: 0 | BF45: 443,149,930 | BG45: 0 | BH45: 0 | BI45: 0 | BJ45: 443,149,930 | BK45: 0 | BL45: 443,149,930 | BM45: 0 | BN45: 0 | BO45: 0 | BP45: 443,149,930 | BQ45: 0 | BR45: =SUM(BR46:BR47) -> 443,149,930 | BS45: 0 | BT45: 0 | BU45: 0 | BV45: 443,149,930 | BW45: 0 | BX45: 379,000,000 | BY45: 0 | BZ45: 884,282,345 | CA45: 820,132,415 | CB45: 443,149,930 | CC45: 0 | CD45: 3 | CE45: 156 | CF45: 156
A46: ok | B46: 1561 | C46: Giá mua hàng hóa | D46: 379,000,000 | F46: =SUMIF(TKno,TK,_st01) -> 754,000,000 | G46: =SUMIF(TKco,TK,_st01) -> 494,000,000 | H46: =IF(D46+F46-E46-G46>0,D46+F46-E46-G46,0) -> 639,000,000 | I46: =IF(E46+G46-D46-F46>0,E46+G46-D46-F46,0) -> 0 | J46: =H46 -> 639,000,000 | K46: =I46 -> 0 | L46: =SUMIF(TKno,TK,_st02) -> 130,282,345 | M46: =SUMIF(TKco,TK,_st02) -> 326,132,415 | N46: =IF(J46+L46-K46-M46>0,J46+L46-K46-M46,0) -> 443,149,930 | O46: =IF(K46+M46-J46-L46>0,K46+M46-J46-L46,0) -> 0 | P46: =N46 -> 443,149,930 | Q46: =O46 -> 0 | R46: =SUMIF(TKno,TK,_st03) -> 0 | S46: =SUMIF(TKco,TK,_st03) -> 0 | T46: =IF(P46+R46-Q46-S46>0,P46+R46-Q46-S46,0) -> 443,149,930 | U46: =IF(Q46+S46-P46-R46>0,Q46+S46-P46-R46,0) -> 0 | V46: =T46 -> 443,149,930 | W46: =U46 -> 0 | X46: =SUMIF(TKno,TK,_st04) -> 0 | Y46: =SUMIF(TKco,TK,_st04) -> 0 | Z46: =IF(V46+X46-W46-Y46>0,V46+X46-W46-Y46,0) -> 443,149,930 | AA46: =IF(W46+Y46-V46-X46>0,W46+Y46-V46-X46,0) -> 0 | AB46: =Z46 -> 443,149,930 | AC46: =AA46 -> 0 | AD46: =SUMIF(TKno,TK,_st05) -> 0 | AE46: =SUMIF(TKco,TK,_st05) -> 0 | AF46: =IF(AB46+AD46-AC46-AE46>0,AB46+AD46-AC46-AE46,0) -> 443,149,930 | AG46: =IF(AC46+AE46-AB46-AD46>0,AC46+AE46-AB46-AD46,0) -> 0 | AH46: =AF46 -> 443,149,930 | AI46: =AG46 -> 0 | AJ46: =SUMIF(TKno,TK,_st06) -> 0 | AK46: =SUMIF(TKco,TK,_st06) -> 0 | AL46: =IF(AH46+AJ46-AI46-AK46>0,AH46+AJ46-AI46-AK46,0) -> 443,149,930 | AM46: =IF(AI46+AK46-AH46-AJ46>0,AI46+AK46-AH46-AJ46,0) -> 0 | AN46: =AL46 -> 443,149,930 | AO46: =AM46 -> 0 | AP46: =SUMIF(TKno,TK,_st07) -> 0 | AQ46: =SUMIF(TKco,TK,_st07) -> 0 | AR46: =IF(AN46+AP46-AO46-AQ46>0,AN46+AP46-AO46-AQ46,0) -> 443,149,930 | AS46: =IF(AO46+AQ46-AN46-AP46>0,AO46+AQ46-AN46-AP46,0) -> 0 | AT46: =AR46 -> 443,149,930 | AU46: =AS46 -> 0 | AV46: =SUMIF(TKno,TK,_st08) -> 0 | AW46: =SUMIF(TKco,TK,_st08) -> 0 | AX46: =IF(AT46+AV46-AU46-AW46>0,AT46+AV46-AU46-AW46,0) -> 443,149,930 | AY46: =IF(AU46+AW46-AT46-AV46>0,AU46+AW46-AT46-AV46,0) -> 0 | AZ46: =AX46 -> 443,149,930 | BA46: =AY46 -> 0 | BB46: =SUMIF(TKno,TK,_st09) -> 0 | BC46: =SUMIF(TKco,TK,_st09) -> 0 | BD46: =IF(AZ46+BB46-BA46-BC46>0,AZ46+BB46-BA46-BC46,0) -> 443,149,930 | BE46: =IF(BA46+BC46-AZ46-BB46>0,BA46+BC46-AZ46-BB46,0) -> 0 | BF46: =BD46 -> 443,149,930 | BG46: =BE46 -> 0 | BH46: =SUMIF(TKno,TK,_st10) -> 0 | BI46: =SUMIF(TKco,TK,_st10) -> 0 | BJ46: =IF(BF46+BH46-BG46-BI46>0,BF46+BH46-BG46-BI46,0) -> 443,149,930 | BK46: =IF(BG46+BI46-BF46-BH46>0,BG46+BI46-BF46-BH46,0) -> 0 | BL46: =BJ46 -> 443,149,930 | BM46: =BK46 -> 0 | BN46: =SUMIF(TKno,TK,_st11) -> 0 | BO46: =SUMIF(TKco,TK,_st11) -> 0 | BP46: =IF(BL46+BN46-BM46-BO46>0,BL46+BN46-BM46-BO46,0) -> 443,149,930 | BQ46: =IF(BM46+BO46-BL46-BN46>0,BM46+BO46-BL46-BN46,0) -> 0 | BR46: =BP46 -> 443,149,930 | BS46: =BQ46 -> 0 | BT46: =SUMIF(TKno,TK,_st12) -> 0 | BU46: =SUMIF(TKco,TK,_st12) -> 0 | BV46: =IF(BR46+BT46-BS46-BU46>0,BR46+BT46-BS46-BU46,0) -> 443,149,930 | BW46: =IF(BS46+BU46-BR46-BT46>0,BS46+BU46-BR46-BT46,0) -> 0 | BX46: 379,000,000 | BY46: 0 | BZ46: =SUMIF(TKno,TK,ST) -> 884,282,345 | CA46: =SUMIF(TKco,TK,ST) -> 820,132,415 | CB46: =IF(BX46+BZ46-BY46-CA46>0,BX46+BZ46-BY46-CA46,0) -> 443,149,930 | CC46: =IF(BY46+CA46-BX46-BZ46>0,BY46+CA46-BX46-BZ46,0) -> 0 | CD46: 4 | CE46: =$B46 -> 1561 | CG46: 1561
B47: 1562 | C47: Chi phí thu mua hàng hóa | D47: 0 | F47: =SUMIF(TKno,TK,_st01) -> 0 | G47: =SUMIF(TKco,TK,_st01) -> 0 | H47: =IF(D47+F47-E47-G47>0,D47+F47-E47-G47,0) -> 0 | I47: =IF(E47+G47-D47-F47>0,E47+G47-D47-F47,0) -> 0 | J47: =H47 -> 0 | K47: =I47 -> 0 | L47: =SUMIF(TKno,TK,_st02) -> 0 | M47: =SUMIF(TKco,TK,_st02) -> 0 | N47: =IF(J47+L47-K47-M47>0,J47+L47-K47-M47,0) -> 0 | O47: =IF(K47+M47-J47-L47>0,K47+M47-J47-L47,0) -> 0 | P47: =N47 -> 0 | Q47: =O47 -> 0 | R47: =SUMIF(TKno,TK,_st03) -> 0 | S47: =SUMIF(TKco,TK,_st03) -> 0 | T47: =IF(P47+R47-Q47-S47>0,P47+R47-Q47-S47,0) -> 0 | U47: =IF(Q47+S47-P47-R47>0,Q47+S47-P47-R47,0) -> 0 | V47: =T47 -> 0 | W47: =U47 -> 0 | X47: =SUMIF(TKno,TK,_st04) -> 0 | Y47: =SUMIF(TKco,TK,_st04) -> 0 | Z47: =IF(V47+X47-W47-Y47>0,V47+X47-W47-Y47,0) -> 0 | AA47: =IF(W47+Y47-V47-X47>0,W47+Y47-V47-X47,0) -> 0 | AB47: =Z47 -> 0 | AC47: =AA47 -> 0 | AD47: =SUMIF(TKno,TK,_st05) -> 0 | AE47: =SUMIF(TKco,TK,_st05) -> 0 | AF47: =IF(AB47+AD47-AC47-AE47>0,AB47+AD47-AC47-AE47,0) -> 0 | AG47: =IF(AC47+AE47-AB47-AD47>0,AC47+AE47-AB47-AD47,0) -> 0 | AH47: =AF47 -> 0 | AI47: =AG47 -> 0 | AJ47: =SUMIF(TKno,TK,_st06) -> 0 | AK47: =SUMIF(TKco,TK,_st06) -> 0 | AL47: =IF(AH47+AJ47-AI47-AK47>0,AH47+AJ47-AI47-AK47,0) -> 0 | AM47: =IF(AI47+AK47-AH47-AJ47>0,AI47+AK47-AH47-AJ47,0) -> 0 | AN47: =AL47 -> 0 | AO47: =AM47 -> 0 | AP47: =SUMIF(TKno,TK,_st07) -> 0 | AQ47: =SUMIF(TKco,TK,_st07) -> 0 | AR47: =IF(AN47+AP47-AO47-AQ47>0,AN47+AP47-AO47-AQ47,0) -> 0 | AS47: =IF(AO47+AQ47-AN47-AP47>0,AO47+AQ47-AN47-AP47,0) -> 0 | AT47: =AR47 -> 0 | AU47: =AS47 -> 0 | AV47: =SUMIF(TKno,TK,_st08) -> 0 | AW47: =SUMIF(TKco,TK,_st08) -> 0 | AX47: =IF(AT47+AV47-AU47-AW47>0,AT47+AV47-AU47-AW47,0) -> 0 | AY47: =IF(AU47+AW47-AT47-AV47>0,AU47+AW47-AT47-AV47,0) -> 0 | AZ47: =AX47 -> 0 | BA47: =AY47 -> 0 | BB47: =SUMIF(TKno,TK,_st09) -> 0 | BC47: =SUMIF(TKco,TK,_st09) -> 0 | BD47: =IF(AZ47+BB47-BA47-BC47>0,AZ47+BB47-BA47-BC47,0) -> 0 | BE47: =IF(BA47+BC47-AZ47-BB47>0,BA47+BC47-AZ47-BB47,0) -> 0 | BF47: =BD47 -> 0 | BG47: =BE47 -> 0 | BH47: =SUMIF(TKno,TK,_st10) -> 0 | BI47: =SUMIF(TKco,TK,_st10) -> 0 | BJ47: =IF(BF47+BH47-BG47-BI47>0,BF47+BH47-BG47-BI47,0) -> 0 | BK47: =IF(BG47+BI47-BF47-BH47>0,BG47+BI47-BF47-BH47,0) -> 0 | BL47: =BJ47 -> 0 | BM47: =BK47 -> 0 | BN47: =SUMIF(TKno,TK,_st11) -> 0 | BO47: =SUMIF(TKco,TK,_st11) -> 0 | BP47: =IF(BL47+BN47-BM47-BO47>0,BL47+BN47-BM47-BO47,0) -> 0 | BQ47: =IF(BM47+BO47-BL47-BN47>0,BM47+BO47-BL47-BN47,0) -> 0 | BR47: =BP47 -> 0 | BS47: =BQ47 -> 0 | BT47: =SUMIF(TKno,TK,_st12) -> 0 | BU47: =SUMIF(TKco,TK,_st12) -> 0 | BV47: =IF(BR47+BT47-BS47-BU47>0,BR47+BT47-BS47-BU47,0) -> 0 | BW47: =IF(BS47+BU47-BR47-BT47>0,BS47+BU47-BR47-BT47,0) -> 0 | BX47: 0 | BY47: 0 | BZ47: =SUMIF(TKno,TK,ST) -> 0 | CA47: =SUMIF(TKco,TK,ST) -> 0 | CB47: =IF(BX47+BZ47-BY47-CA47>0,BX47+BZ47-BY47-CA47,0) -> 0 | CC47: =IF(BY47+CA47-BX47-BZ47>0,BY47+CA47-BX47-BZ47,0) -> 0 | CD47: 4 | CE47: =$B47 -> 1562 | CG47: 1562
A48: ok | B48: 211 | C48: Tài sản cố định | D48: =SUM(D49:D53) -> 800,000,000 | E48: 0 | F48: 0 | G48: 0 | H48: 800,000,000 | I48: 0 | J48: 800,000,000 | K48: 0 | L48: 0 | M48: 600,000,000 | N48: 200,000,000 | O48: 0 | P48: =SUM(P49:P53) -> 200,000,000.00 | Q48: 0 | R48: 0 | S48: 0 | T48: 200,000,000.00 | U48: 0 | V48: =SUM(V49:V53) -> 200,000,000.00 | W48: 0 | X48: 0 | Y48: 0 | Z48: 200,000,000.00 | AA48: 0 | AB48: 200,000,000.00 | AC48: 0 | AD48: 0 | AE48: 0 | AF48: 200,000,000.00 | AG48: 0 | AH48: 200,000,000.00 | AI48: 0 | AJ48: 0 | AK48: 0 | AL48: 200,000,000.00 | AM48: 0 | AN48: 200,000,000.00 | AO48: 0 | AP48: 0 | AQ48: 0 | AR48: 200,000,000.00 | AS48: 0 | AT48: 200,000,000.00 | AU48: 0 | AV48: 0 | AW48: 0 | AX48: 200,000,000.00 | AY48: 0 | AZ48: 200,000,000.00 | BA48: 0 | BB48: 0 | BC48: 0 | BD48: 200,000,000.00 | BE48: 0 | BF48: 200,000,000.00 | BG48: 0 | BH48: 0 | BI48: 0 | BJ48: 200,000,000.00 | BK48: 0 | BL48: 200,000,000.00 | BM48: 0 | BN48: 0 | BO48: 0 | BP48: 200,000,000.00 | BQ48: 0 | BR48: =SUM(BR49:BR53) -> 200,000,000.00 | BS48: 0 | BT48: 0 | BU48: 0 | BV48: 200,000,000.00 | BW48: 0 | BX48: 800,000,000 | BY48: 0 | BZ48: 0 | CA48: 600,000,000 | CB48: 200,000,000 | CC48: 0 | CD48: 3 | CF48: 211
B49: 2111 | C49: Nhà cửa, vật kiến trúc | F49: =SUMIF(TKno,TK,_st01) -> 0 | G49: =SUMIF(TKco,TK,_st01) -> 0 | H49: =IF(D49+F49-E49-G49>0,D49+F49-E49-G49,0) -> 0 | I49: =IF(E49+G49-D49-F49>0,E49+G49-D49-F49,0) -> 0 | J49: =H49 -> 0 | K49: 0 | L49: =SUMIF(TKno,TK,_st02) -> 0 | M49: =SUMIF(TKco,TK,_st02) -> 0 | N49: =IF(J49+L49-K49-M49>0,J49+L49-K49-M49,0) -> 0 | O49: =IF(K49+M49-J49-L49>0,K49+M49-J49-L49,0) -> 0 | P49: =N49 -> 0 | Q49: 0 | R49: =SUMIF(TKno,TK,_st03) -> 0 | S49: =SUMIF(TKco,TK,_st03) -> 0 | T49: =IF(P49+R49-Q49-S49>0,P49+R49-Q49-S49,0) -> 0 | U49: =IF(Q49+S49-P49-R49>0,Q49+S49-P49-R49,0) -> 0 | V49: =T49 -> 0 | W49: 0 | X49: =SUMIF(TKno,TK,_st04) -> 0 | Y49: =SUMIF(TKco,TK,_st04) -> 0 | Z49: =IF(V49+X49-W49-Y49>0,V49+X49-W49-Y49,0) -> 0 | AA49: =IF(W49+Y49-V49-X49>0,W49+Y49-V49-X49,0) -> 0 | AB49: =Z49 -> 0 | AC49: 0 | AD49: =SUMIF(TKno,TK,_st05) -> 0 | AE49: =SUMIF(TKco,TK,_st05) -> 0 | AF49: =IF(AB49+AD49-AC49-AE49>0,AB49+AD49-AC49-AE49,0) -> 0 | AG49: =IF(AC49+AE49-AB49-AD49>0,AC49+AE49-AB49-AD49,0) -> 0 | AH49: =AF49 -> 0 | AI49: 0 | AJ49: =SUMIF(TKno,TK,_st06) -> 0 | AK49: =SUMIF(TKco,TK,_st06) -> 0 | AL49: =IF(AH49+AJ49-AI49-AK49>0,AH49+AJ49-AI49-AK49,0) -> 0 | AM49: =IF(AI49+AK49-AH49-AJ49>0,AI49+AK49-AH49-AJ49,0) -> 0 | AN49: =AL49 -> 0 | AO49: 0 | AP49: =SUMIF(TKno,TK,_st07) -> 0 | AQ49: =SUMIF(TKco,TK,_st07) -> 0 | AR49: =IF(AN49+AP49-AO49-AQ49>0,AN49+AP49-AO49-AQ49,0) -> 0 | AS49: =IF(AO49+AQ49-AN49-AP49>0,AO49+AQ49-AN49-AP49,0) -> 0 | AT49: =AR49 -> 0 | AU49: 0 | AV49: =SUMIF(TKno,TK,_st08) -> 0 | AW49: =SUMIF(TKco,TK,_st08) -> 0 | AX49: =IF(AT49+AV49-AU49-AW49>0,AT49+AV49-AU49-AW49,0) -> 0 | AY49: =IF(AU49+AW49-AT49-AV49>0,AU49+AW49-AT49-AV49,0) -> 0 | AZ49: =AX49 -> 0 | BA49: 0 | BB49: =SUMIF(TKno,TK,_st09) -> 0 | BC49: =SUMIF(TKco,TK,_st09) -> 0 | BD49: =IF(AZ49+BB49-BA49-BC49>0,AZ49+BB49-BA49-BC49,0) -> 0 | BE49: =IF(BA49+BC49-AZ49-BB49>0,BA49+BC49-AZ49-BB49,0) -> 0 | BF49: =BD49 -> 0 | BG49: 0 | BH49: =SUMIF(TKno,TK,_st10) -> 0 | BI49: =SUMIF(TKco,TK,_st10) -> 0 | BJ49: =IF(BF49+BH49-BG49-BI49>0,BF49+BH49-BG49-BI49,0) -> 0 | BK49: =IF(BG49+BI49-BF49-BH49>0,BG49+BI49-BF49-BH49,0) -> 0 | BL49: =BJ49 -> 0 | BM49: 0 | BN49: =SUMIF(TKno,TK,_st11) -> 0 | BO49: =SUMIF(TKco,TK,_st11) -> 0 | BP49: =IF(BL49+BN49-BM49-BO49>0,BL49+BN49-BM49-BO49,0) -> 0 | BQ49: =IF(BM49+BO49-BL49-BN49>0,BM49+BO49-BL49-BN49,0) -> 0 | BR49: =BP49 -> 0 | BS49: 0 | BT49: =SUMIF(TKno,TK,_st12) -> 0 | BU49: =SUMIF(TKco,TK,_st12) -> 0 | BV49: =IF(BR49+BT49-BS49-BU49>0,BR49+BT49-BS49-BU49,0) -> 0 | BW49: =IF(BS49+BU49-BR49-BT49>0,BS49+BU49-BR49-BT49,0) -> 0 | BX49: 0 | BY49: 0 | BZ49: =SUMIF(TKno,TK,ST) -> 0 | CA49: =SUMIF(TKco,TK,ST) -> 0 | CB49: =IF(BX49+BZ49-BY49-CA49>0,BX49+BZ49-BY49-CA49,0) -> 0 | CC49: =IF(BY49+CA49-BX49-BZ49>0,BY49+CA49-BX49-BZ49,0) -> 0 | CD49: 4 | CE49: =$B49 -> 2111 | CF49: =IF($CD49=3,$B49,"") ->  | CG49: =IF($CD49=4,$B49,"") -> 2111
B50: 2112 | C50: Máy móc, thiết bị | D50: 0 | F50: =SUMIF(TKno,TK,_st01) -> 0 | G50: =SUMIF(TKco,TK,_st01) -> 0 | H50: =IF(D50+F50-E50-G50>0,D50+F50-E50-G50,0) -> 0 | I50: =IF(E50+G50-D50-F50>0,E50+G50-D50-F50,0) -> 0 | J50: 0 | K50: 0 | L50: =SUMIF(TKno,TK,_st02) -> 0 | M50: =SUMIF(TKco,TK,_st02) -> 0 | N50: =IF(J50+L50-K50-M50>0,J50+L50-K50-M50,0) -> 0 | O50: =IF(K50+M50-J50-L50>0,K50+M50-J50-L50,0) -> 0 | P50: 0 | Q50: 0 | R50: =SUMIF(TKno,TK,_st03) -> 0 | S50: =SUMIF(TKco,TK,_st03) -> 0 | T50: =IF(P50+R50-Q50-S50>0,P50+R50-Q50-S50,0) -> 0 | U50: =IF(Q50+S50-P50-R50>0,Q50+S50-P50-R50,0) -> 0 | V50: 0 | W50: 0 | X50: =SUMIF(TKno,TK,_st04) -> 0 | Y50: =SUMIF(TKco,TK,_st04) -> 0 | Z50: =IF(V50+X50-W50-Y50>0,V50+X50-W50-Y50,0) -> 0 | AA50: =IF(W50+Y50-V50-X50>0,W50+Y50-V50-X50,0) -> 0 | AB50: 0 | AC50: 0 | AD50: =SUMIF(TKno,TK,_st05) -> 0 | AE50: =SUMIF(TKco,TK,_st05) -> 0 | AF50: =IF(AB50+AD50-AC50-AE50>0,AB50+AD50-AC50-AE50,0) -> 0 | AG50: =IF(AC50+AE50-AB50-AD50>0,AC50+AE50-AB50-AD50,0) -> 0 | AH50: 0 | AI50: 0 | AJ50: =SUMIF(TKno,TK,_st06) -> 0 | AK50: =SUMIF(TKco,TK,_st06) -> 0 | AL50: =IF(AH50+AJ50-AI50-AK50>0,AH50+AJ50-AI50-AK50,0) -> 0 | AM50: =IF(AI50+AK50-AH50-AJ50>0,AI50+AK50-AH50-AJ50,0) -> 0 | AN50: 0 | AO50: 0 | AP50: =SUMIF(TKno,TK,_st07) -> 0 | AQ50: =SUMIF(TKco,TK,_st07) -> 0 | AR50: =IF(AN50+AP50-AO50-AQ50>0,AN50+AP50-AO50-AQ50,0) -> 0 | AS50: =IF(AO50+AQ50-AN50-AP50>0,AO50+AQ50-AN50-AP50,0) -> 0 | AT50: 0 | AU50: 0 | AV50: =SUMIF(TKno,TK,_st08) -> 0 | AW50: =SUMIF(TKco,TK,_st08) -> 0 | AX50: =IF(AT50+AV50-AU50-AW50>0,AT50+AV50-AU50-AW50,0) -> 0 | AY50: =IF(AU50+AW50-AT50-AV50>0,AU50+AW50-AT50-AV50,0) -> 0 | AZ50: 0 | BA50: 0 | BB50: =SUMIF(TKno,TK,_st09) -> 0 | BC50: =SUMIF(TKco,TK,_st09) -> 0 | BD50: =IF(AZ50+BB50-BA50-BC50>0,AZ50+BB50-BA50-BC50,0) -> 0 | BE50: =IF(BA50+BC50-AZ50-BB50>0,BA50+BC50-AZ50-BB50,0) -> 0 | BF50: 0 | BG50: 0 | BH50: =SUMIF(TKno,TK,_st10) -> 0 | BI50: =SUMIF(TKco,TK,_st10) -> 0 | BJ50: =IF(BF50+BH50-BG50-BI50>0,BF50+BH50-BG50-BI50,0) -> 0 | BK50: =IF(BG50+BI50-BF50-BH50>0,BG50+BI50-BF50-BH50,0) -> 0 | BL50: 0 | BM50: 0 | BN50: =SUMIF(TKno,TK,_st11) -> 0 | BO50: =SUMIF(TKco,TK,_st11) -> 0 | BP50: =IF(BL50+BN50-BM50-BO50>0,BL50+BN50-BM50-BO50,0) -> 0 | BQ50: =IF(BM50+BO50-BL50-BN50>0,BM50+BO50-BL50-BN50,0) -> 0 | BR50: 0 | BS50: 0 | BT50: =SUMIF(TKno,TK,_st12) -> 0 | BU50: =SUMIF(TKco,TK,_st12) -> 0 | BV50: =IF(BR50+BT50-BS50-BU50>0,BR50+BT50-BS50-BU50,0) -> 0 | BW50: =IF(BS50+BU50-BR50-BT50>0,BS50+BU50-BR50-BT50,0) -> 0 | BX50: 0 | BY50: 0 | BZ50: =SUMIF(TKno,TK,ST) -> 0 | CA50: =SUMIF(TKco,TK,ST) -> 0 | CB50: =IF(BX50+BZ50-BY50-CA50>0,BX50+BZ50-BY50-CA50,0) -> 0 | CC50: =IF(BY50+CA50-BX50-BZ50>0,BY50+CA50-BX50-BZ50,0) -> 0 | CD50: 4 | CE50: =$B50 -> 2112 | CG50: 2112 | CI50: =CB48-CC62 -> 178,549,602.00
A51: ok | B51: 2113 | C51: Phương tiện vận tải, truyền dẫn | D51: 800,000,000 | F51: =SUMIF(TKno,TK,_st01) -> 0 | G51: =SUMIF(TKco,TK,_st01) -> 0 | H51: =IF(D51+F51-E51-G51>0,D51+F51-E51-G51,0) -> 800,000,000 | I51: =IF(E51+G51-D51-F51>0,E51+G51-D51-F51,0) -> 0 | J51: 800,000,000 | K51: 0 | L51: =SUMIF(TKno,TK,_st02) -> 0 | M51: =SUMIF(TKco,TK,_st02) -> 600,000,000 | N51: =IF(J51+L51-K51-M51>0,J51+L51-K51-M51,0) -> 200,000,000 | O51: =IF(K51+M51-J51-L51>0,K51+M51-J51-L51,0) -> 0 | P51: 200,000,000.00 | Q51: 0 | R51: =SUMIF(TKno,TK,_st03) -> 0 | S51: =SUMIF(TKco,TK,_st03) -> 0 | T51: =IF(P51+R51-Q51-S51>0,P51+R51-Q51-S51,0) -> 200,000,000.00 | U51: =IF(Q51+S51-P51-R51>0,Q51+S51-P51-R51,0) -> 0 | V51: 200,000,000.00 | W51: 0 | X51: =SUMIF(TKno,TK,_st04) -> 0 | Y51: =SUMIF(TKco,TK,_st04) -> 0 | Z51: =IF(V51+X51-W51-Y51>0,V51+X51-W51-Y51,0) -> 200,000,000.00 | AA51: =IF(W51+Y51-V51-X51>0,W51+Y51-V51-X51,0) -> 0 | AB51: 200,000,000.00 | AC51: 0 | AD51: =SUMIF(TKno,TK,_st05) -> 0 | AE51: =SUMIF(TKco,TK,_st05) -> 0 | AF51: =IF(AB51+AD51-AC51-AE51>0,AB51+AD51-AC51-AE51,0) -> 200,000,000.00 | AG51: =IF(AC51+AE51-AB51-AD51>0,AC51+AE51-AB51-AD51,0) -> 0 | AH51: 200,000,000.00 | AI51: 0 | AJ51: =SUMIF(TKno,TK,_st06) -> 0 | AK51: =SUMIF(TKco,TK,_st06) -> 0 | AL51: =IF(AH51+AJ51-AI51-AK51>0,AH51+AJ51-AI51-AK51,0) -> 200,000,000.00 | AM51: =IF(AI51+AK51-AH51-AJ51>0,AI51+AK51-AH51-AJ51,0) -> 0 | AN51: 200,000,000.00 | AO51: 0 | AP51: =SUMIF(TKno,TK,_st07) -> 0 | AQ51: =SUMIF(TKco,TK,_st07) -> 0 | AR51: =IF(AN51+AP51-AO51-AQ51>0,AN51+AP51-AO51-AQ51,0) -> 200,000,000.00 | AS51: =IF(AO51+AQ51-AN51-AP51>0,AO51+AQ51-AN51-AP51,0) -> 0 | AT51: 200,000,000.00 | AU51: 0 | AV51: =SUMIF(TKno,TK,_st08) -> 0 | AW51: =SUMIF(TKco,TK,_st08) -> 0 | AX51: =IF(AT51+AV51-AU51-AW51>0,AT51+AV51-AU51-AW51,0) -> 200,000,000.00 | AY51: =IF(AU51+AW51-AT51-AV51>0,AU51+AW51-AT51-AV51,0) -> 0 | AZ51: 200,000,000.00 | BA51: 0 | BB51: =SUMIF(TKno,TK,_st09) -> 0 | BC51: =SUMIF(TKco,TK,_st09) -> 0 | BD51: =IF(AZ51+BB51-BA51-BC51>0,AZ51+BB51-BA51-BC51,0) -> 200,000,000.00 | BE51: =IF(BA51+BC51-AZ51-BB51>0,BA51+BC51-AZ51-BB51,0) -> 0 | BF51: 200,000,000.00 | BG51: 0 | BH51: =SUMIF(TKno,TK,_st10) -> 0 | BI51: =SUMIF(TKco,TK,_st10) -> 0 | BJ51: =IF(BF51+BH51-BG51-BI51>0,BF51+BH51-BG51-BI51,0) -> 200,000,000.00 | BK51: =IF(BG51+BI51-BF51-BH51>0,BG51+BI51-BF51-BH51,0) -> 0 | BL51: 200,000,000.00 | BM51: 0 | BN51: =SUMIF(TKno,TK,_st11) -> 0 | BO51: =SUMIF(TKco,TK,_st11) -> 0 | BP51: =IF(BL51+BN51-BM51-BO51>0,BL51+BN51-BM51-BO51,0) -> 200,000,000.00 | BQ51: =IF(BM51+BO51-BL51-BN51>0,BM51+BO51-BL51-BN51,0) -> 0 | BR51: 200,000,000.00 | BS51: 0 | BT51: =SUMIF(TKno,TK,_st12) -> 0 | BU51: =SUMIF(TKco,TK,_st12) -> 0 | BV51: =IF(BR51+BT51-BS51-BU51>0,BR51+BT51-BS51-BU51,0) -> 200,000,000.00 | BW51: =IF(BS51+BU51-BR51-BT51>0,BS51+BU51-BR51-BT51,0) -> 0 | BX51: 800,000,000 | BY51: 0 | BZ51: =SUMIF(TKno,TK,ST) -> 0 | CA51: =SUMIF(TKco,TK,ST) -> 600,000,000 | CB51: =IF(BX51+BZ51-BY51-CA51>0,BX51+BZ51-BY51-CA51,0) -> 200,000,000 | CC51: =IF(BY51+CA51-BX51-BZ51>0,BY51+CA51-BX51-BZ51,0) -> 0 | CD51: 4 | CE51: =$B51 -> 2113 | CG51: 2113
B52: 2114 | C52: Thiết bị, dụng cụ quản lý | D52: 0 | F52: =SUMIF(TKno,TK,_st01) -> 0 | G52: =SUMIF(TKco,TK,_st01) -> 0 | H52: =IF(D52+F52-E52-G52>0,D52+F52-E52-G52,0) -> 0 | I52: =IF(E52+G52-D52-F52>0,E52+G52-D52-F52,0) -> 0 | J52: 0 | K52: 0 | L52: =SUMIF(TKno,TK,_st02) -> 0 | M52: =SUMIF(TKco,TK,_st02) -> 0 | N52: =IF(J52+L52-K52-M52>0,J52+L52-K52-M52,0) -> 0 | O52: =IF(K52+M52-J52-L52>0,K52+M52-J52-L52,0) -> 0 | P52: 0 | Q52: 0 | R52: =SUMIF(TKno,TK,_st03) -> 0 | S52: =SUMIF(TKco,TK,_st03) -> 0 | T52: =IF(P52+R52-Q52-S52>0,P52+R52-Q52-S52,0) -> 0 | U52: =IF(Q52+S52-P52-R52>0,Q52+S52-P52-R52,0) -> 0 | V52: 0 | W52: 0 | X52: =SUMIF(TKno,TK,_st04) -> 0 | Y52: =SUMIF(TKco,TK,_st04) -> 0 | Z52: =IF(V52+X52-W52-Y52>0,V52+X52-W52-Y52,0) -> 0 | AA52: =IF(W52+Y52-V52-X52>0,W52+Y52-V52-X52,0) -> 0 | AB52: 0 | AC52: 0 | AD52: =SUMIF(TKno,TK,_st05) -> 0 | AE52: =SUMIF(TKco,TK,_st05) -> 0 | AF52: =IF(AB52+AD52-AC52-AE52>0,AB52+AD52-AC52-AE52,0) -> 0 | AG52: =IF(AC52+AE52-AB52-AD52>0,AC52+AE52-AB52-AD52,0) -> 0 | AH52: 0 | AI52: 0 | AJ52: =SUMIF(TKno,TK,_st06) -> 0 | AK52: =SUMIF(TKco,TK,_st06) -> 0 | AL52: =IF(AH52+AJ52-AI52-AK52>0,AH52+AJ52-AI52-AK52,0) -> 0 | AM52: =IF(AI52+AK52-AH52-AJ52>0,AI52+AK52-AH52-AJ52,0) -> 0 | AN52: 0 | AO52: 0 | AP52: =SUMIF(TKno,TK,_st07) -> 0 | AQ52: =SUMIF(TKco,TK,_st07) -> 0 | AR52: =IF(AN52+AP52-AO52-AQ52>0,AN52+AP52-AO52-AQ52,0) -> 0 | AS52: =IF(AO52+AQ52-AN52-AP52>0,AO52+AQ52-AN52-AP52,0) -> 0 | AT52: 0 | AU52: 0 | AV52: =SUMIF(TKno,TK,_st08) -> 0 | AW52: =SUMIF(TKco,TK,_st08) -> 0 | AX52: =IF(AT52+AV52-AU52-AW52>0,AT52+AV52-AU52-AW52,0) -> 0 | AY52: =IF(AU52+AW52-AT52-AV52>0,AU52+AW52-AT52-AV52,0) -> 0 | AZ52: 0 | BA52: 0 | BB52: =SUMIF(TKno,TK,_st09) -> 0 | BC52: =SUMIF(TKco,TK,_st09) -> 0 | BD52: =IF(AZ52+BB52-BA52-BC52>0,AZ52+BB52-BA52-BC52,0) -> 0 | BE52: =IF(BA52+BC52-AZ52-BB52>0,BA52+BC52-AZ52-BB52,0) -> 0 | BF52: 0 | BG52: 0 | BH52: =SUMIF(TKno,TK,_st10) -> 0 | BI52: =SUMIF(TKco,TK,_st10) -> 0 | BJ52: =IF(BF52+BH52-BG52-BI52>0,BF52+BH52-BG52-BI52,0) -> 0 | BK52: =IF(BG52+BI52-BF52-BH52>0,BG52+BI52-BF52-BH52,0) -> 0 | BL52: 0 | BM52: 0 | BN52: =SUMIF(TKno,TK,_st11) -> 0 | BO52: =SUMIF(TKco,TK,_st11) -> 0 | BP52: =IF(BL52+BN52-BM52-BO52>0,BL52+BN52-BM52-BO52,0) -> 0 | BQ52: =IF(BM52+BO52-BL52-BN52>0,BM52+BO52-BL52-BN52,0) -> 0 | BR52: 0 | BS52: 0 | BT52: =SUMIF(TKno,TK,_st12) -> 0 | BU52: =SUMIF(TKco,TK,_st12) -> 0 | BV52: =IF(BR52+BT52-BS52-BU52>0,BR52+BT52-BS52-BU52,0) -> 0 | BW52: =IF(BS52+BU52-BR52-BT52>0,BS52+BU52-BR52-BT52,0) -> 0 | BX52: 0 | BY52: 0 | BZ52: =SUMIF(TKno,TK,ST) -> 0 | CA52: =SUMIF(TKco,TK,ST) -> 0 | CB52: =IF(BX52+BZ52-BY52-CA52>0,BX52+BZ52-BY52-CA52,0) -> 0 | CC52: =IF(BY52+CA52-BX52-BZ52>0,BY52+CA52-BX52-BZ52,0) -> 0 | CD52: 4 | CE52: =$B52 -> 2114 | CG52: 2114
B53: 2118 | C53: TSCĐ khác | D53: 0 | F53: =SUMIF(TKno,TK,_st01) -> 0 | G53: =SUMIF(TKco,TK,_st01) -> 0 | H53: =IF(D53+F53-E53-G53>0,D53+F53-E53-G53,0) -> 0 | I53: =IF(E53+G53-D53-F53>0,E53+G53-D53-F53,0) -> 0 | J53: 0 | K53: 0 | L53: =SUMIF(TKno,TK,_st02) -> 0 | M53: =SUMIF(TKco,TK,_st02) -> 0 | N53: =IF(J53+L53-K53-M53>0,J53+L53-K53-M53,0) -> 0 | O53: =IF(K53+M53-J53-L53>0,K53+M53-J53-L53,0) -> 0 | P53: 0 | Q53: 0 | R53: =SUMIF(TKno,TK,_st03) -> 0 | S53: =SUMIF(TKco,TK,_st03) -> 0 | T53: =IF(P53+R53-Q53-S53>0,P53+R53-Q53-S53,0) -> 0 | U53: =IF(Q53+S53-P53-R53>0,Q53+S53-P53-R53,0) -> 0 | V53: 0 | W53: 0 | X53: =SUMIF(TKno,TK,_st04) -> 0 | Y53: =SUMIF(TKco,TK,_st04) -> 0 | Z53: =IF(V53+X53-W53-Y53>0,V53+X53-W53-Y53,0) -> 0 | AA53: =IF(W53+Y53-V53-X53>0,W53+Y53-V53-X53,0) -> 0 | AB53: 0 | AC53: 0 | AD53: =SUMIF(TKno,TK,_st05) -> 0 | AE53: =SUMIF(TKco,TK,_st05) -> 0 | AF53: =IF(AB53+AD53-AC53-AE53>0,AB53+AD53-AC53-AE53,0) -> 0 | AG53: =IF(AC53+AE53-AB53-AD53>0,AC53+AE53-AB53-AD53,0) -> 0 | AH53: 0 | AI53: 0 | AJ53: =SUMIF(TKno,TK,_st06) -> 0 | AK53: =SUMIF(TKco,TK,_st06) -> 0 | AL53: =IF(AH53+AJ53-AI53-AK53>0,AH53+AJ53-AI53-AK53,0) -> 0 | AM53: =IF(AI53+AK53-AH53-AJ53>0,AI53+AK53-AH53-AJ53,0) -> 0 | AN53: 0 | AO53: 0 | AP53: =SUMIF(TKno,TK,_st07) -> 0 | AQ53: =SUMIF(TKco,TK,_st07) -> 0 | AR53: =IF(AN53+AP53-AO53-AQ53>0,AN53+AP53-AO53-AQ53,0) -> 0 | AS53: =IF(AO53+AQ53-AN53-AP53>0,AO53+AQ53-AN53-AP53,0) -> 0 | AT53: 0 | AU53: 0 | AV53: =SUMIF(TKno,TK,_st08) -> 0 | AW53: =SUMIF(TKco,TK,_st08) -> 0 | AX53: =IF(AT53+AV53-AU53-AW53>0,AT53+AV53-AU53-AW53,0) -> 0 | AY53: =IF(AU53+AW53-AT53-AV53>0,AU53+AW53-AT53-AV53,0) -> 0 | AZ53: 0 | BA53: 0 | BB53: =SUMIF(TKno,TK,_st09) -> 0 | BC53: =SUMIF(TKco,TK,_st09) -> 0 | BD53: =IF(AZ53+BB53-BA53-BC53>0,AZ53+BB53-BA53-BC53,0) -> 0 | BE53: =IF(BA53+BC53-AZ53-BB53>0,BA53+BC53-AZ53-BB53,0) -> 0 | BF53: 0 | BG53: 0 | BH53: =SUMIF(TKno,TK,_st10) -> 0 | BI53: =SUMIF(TKco,TK,_st10) -> 0 | BJ53: =IF(BF53+BH53-BG53-BI53>0,BF53+BH53-BG53-BI53,0) -> 0 | BK53: =IF(BG53+BI53-BF53-BH53>0,BG53+BI53-BF53-BH53,0) -> 0 | BL53: 0 | BM53: 0 | BN53: =SUMIF(TKno,TK,_st11) -> 0 | BO53: =SUMIF(TKco,TK,_st11) -> 0 | BP53: =IF(BL53+BN53-BM53-BO53>0,BL53+BN53-BM53-BO53,0) -> 0 | BQ53: =IF(BM53+BO53-BL53-BN53>0,BM53+BO53-BL53-BN53,0) -> 0 | BR53: 0 | BS53: 0 | BT53: =SUMIF(TKno,TK,_st12) -> 0 | BU53: =SUMIF(TKco,TK,_st12) -> 0 | BV53: =IF(BR53+BT53-BS53-BU53>0,BR53+BT53-BS53-BU53,0) -> 0 | BW53: =IF(BS53+BU53-BR53-BT53>0,BS53+BU53-BR53-BT53,0) -> 0 | BX53: 0 | BY53: 0 | BZ53: =SUMIF(TKno,TK,ST) -> 0 | CA53: =SUMIF(TKco,TK,ST) -> 0 | CB53: =IF(BX53+BZ53-BY53-CA53>0,BX53+BZ53-BY53-CA53,0) -> 0 | CC53: =IF(BY53+CA53-BX53-BZ53>0,BY53+CA53-BX53-BZ53,0) -> 0 | CD53: 4 | CE53: =$B53 -> 2118 | CG53: 2118
B54: 213 | C54: Tài sản cố định vô hình | D54: 0 | F54: =SUM(F55:F61) -> 0 | G54: 0 | H54: 0 | I54: 0 | J54: 0 | K54: 0 | L54: 0 | M54: 0 | N54: 0 | O54: 0 | P54: =SUM(P55:P61) -> 0 | Q54: 0 | R54: 0 | S54: 0 | T54: 0 | U54: 0 | V54: =SUM(V55:V61) -> 0 | W54: 0 | X54: 0 | Y54: 0 | Z54: 0 | AA54: 0 | AB54: 0 | AC54: 0 | AD54: 0 | AE54: 0 | AF54: 0 | AG54: 0 | AH54: 0 | AI54: 0 | AJ54: 0 | AK54: 0 | AL54: 0 | AM54: 0 | AN54: 0 | AO54: 0 | AP54: 0 | AQ54: 0 | AR54: 0 | AS54: 0 | AT54: 0 | AU54: 0 | AV54: 0 | AW54: 0 | AX54: 0 | AY54: 0 | AZ54: 0 | BA54: 0 | BB54: 0 | BC54: 0 | BD54: 0 | BE54: 0 | BF54: 0 | BG54: 0 | BH54: 0 | BI54: 0 | BJ54: 0 | BK54: 0 | BL54: 0 | BM54: 0 | BN54: 0 | BO54: 0 | BP54: 0 | BQ54: 0 | BR54: =SUM(BR55:BR61) -> 0 | BS54: 0 | BT54: 0 | BU54: 0 | BV54: 0 | BW54: 0 | BX54: 0 | BY54: 0 | BZ54: 0 | CA54: 0 | CB54: 0 | CC54: 0 | CD54: 3 | CF54: 213
B55: 2131 | C55: Quyền sử dụng đất | D55: 0 | F55: =SUMIF(TKno,TK,_st01) -> 0 | G55: =SUMIF(TKco,TK,_st01) -> 0 | H55: =IF(D55+F55-E55-G55>0,D55+F55-E55-G55,0) -> 0 | I55: =IF(E55+G55-D55-F55>0,E55+G55-D55-F55,0) -> 0 | J55: =H55 -> 0 | K55: =I55 -> 0 | L55: =SUMIF(TKno,TK,_st02) -> 0 | M55: =SUMIF(TKco,TK,_st02) -> 0 | N55: =IF(J55+L55-K55-M55>0,J55+L55-K55-M55,0) -> 0 | O55: =IF(K55+M55-J55-L55>0,K55+M55-J55-L55,0) -> 0 | P55: =N55 -> 0 | Q55: =O55 -> 0 | R55: =SUMIF(TKno,TK,_st03) -> 0 | S55: =SUMIF(TKco,TK,_st03) -> 0 | T55: =IF(P55+R55-Q55-S55>0,P55+R55-Q55-S55,0) -> 0 | U55: =IF(Q55+S55-P55-R55>0,Q55+S55-P55-R55,0) -> 0 | V55: =T55 -> 0 | W55: =U55 -> 0 | X55: =SUMIF(TKno,TK,_st04) -> 0 | Y55: =SUMIF(TKco,TK,_st04) -> 0 | Z55: =IF(V55+X55-W55-Y55>0,V55+X55-W55-Y55,0) -> 0 | AA55: =IF(W55+Y55-V55-X55>0,W55+Y55-V55-X55,0) -> 0 | AB55: =Z55 -> 0 | AC55: =AA55 -> 0 | AD55: =SUMIF(TKno,TK,_st05) -> 0 | AE55: =SUMIF(TKco,TK,_st05) -> 0 | AF55: =IF(AB55+AD55-AC55-AE55>0,AB55+AD55-AC55-AE55,0) -> 0 | AG55: =IF(AC55+AE55-AB55-AD55>0,AC55+AE55-AB55-AD55,0) -> 0 | AH55: =AF55 -> 0 | AI55: =AG55 -> 0 | AJ55: =SUMIF(TKno,TK,_st06) -> 0 | AK55: =SUMIF(TKco,TK,_st06) -> 0 | AL55: =IF(AH55+AJ55-AI55-AK55>0,AH55+AJ55-AI55-AK55,0) -> 0 | AM55: =IF(AI55+AK55-AH55-AJ55>0,AI55+AK55-AH55-AJ55,0) -> 0 | AN55: =AL55 -> 0 | AO55: =AM55 -> 0 | AP55: =SUMIF(TKno,TK,_st07) -> 0 | AQ55: =SUMIF(TKco,TK,_st07) -> 0 | AR55: =IF(AN55+AP55-AO55-AQ55>0,AN55+AP55-AO55-AQ55,0) -> 0 | AS55: =IF(AO55+AQ55-AN55-AP55>0,AO55+AQ55-AN55-AP55,0) -> 0 | AT55: =AR55 -> 0 | AU55: =AS55 -> 0 | AV55: =SUMIF(TKno,TK,_st08) -> 0 | AW55: =SUMIF(TKco,TK,_st08) -> 0 | AX55: =IF(AT55+AV55-AU55-AW55>0,AT55+AV55-AU55-AW55,0) -> 0 | AY55: =IF(AU55+AW55-AT55-AV55>0,AU55+AW55-AT55-AV55,0) -> 0 | AZ55: =AX55 -> 0 | BA55: =AY55 -> 0 | BB55: =SUMIF(TKno,TK,_st09) -> 0 | BC55: =SUMIF(TKco,TK,_st09) -> 0 | BD55: =IF(AZ55+BB55-BA55-BC55>0,AZ55+BB55-BA55-BC55,0) -> 0 | BE55: =IF(BA55+BC55-AZ55-BB55>0,BA55+BC55-AZ55-BB55,0) -> 0 | BF55: =BD55 -> 0 | BG55: =BE55 -> 0 | BH55: =SUMIF(TKno,TK,_st10) -> 0 | BI55: =SUMIF(TKco,TK,_st10) -> 0 | BJ55: =IF(BF55+BH55-BG55-BI55>0,BF55+BH55-BG55-BI55,0) -> 0 | BK55: =IF(BG55+BI55-BF55-BH55>0,BG55+BI55-BF55-BH55,0) -> 0 | BL55: =BJ55 -> 0 | BM55: =BK55 -> 0 | BN55: =SUMIF(TKno,TK,_st11) -> 0 | BO55: =SUMIF(TKco,TK,_st11) -> 0 | BP55: =IF(BL55+BN55-BM55-BO55>0,BL55+BN55-BM55-BO55,0) -> 0 | BQ55: =IF(BM55+BO55-BL55-BN55>0,BM55+BO55-BL55-BN55,0) -> 0 | BR55: =BP55 -> 0 | BS55: =BQ55 -> 0 | BT55: =SUMIF(TKno,TK,_st12) -> 0 | BU55: =SUMIF(TKco,TK,_st12) -> 0 | BV55: =IF(BR55+BT55-BS55-BU55>0,BR55+BT55-BS55-BU55,0) -> 0 | BW55: =IF(BS55+BU55-BR55-BT55>0,BS55+BU55-BR55-BT55,0) -> 0 | BX55: 0 | BY55: 0 | BZ55: =SUMIF(TKno,TK,ST) -> 0 | CA55: =SUMIF(TKco,TK,ST) -> 0 | CB55: =IF(BX55+BZ55-BY55-CA55>0,BX55+BZ55-BY55-CA55,0) -> 0 | CC55: =IF(BY55+CA55-BX55-BZ55>0,BY55+CA55-BX55-BZ55,0) -> 0 | CD55: 4 | CE55: =$B55 -> 2131 | CG55: 2131
B56: 2132 | C56: Quyền phát hành | D56: 0 | F56: 0 | G56: 0 | H56: 0 | I56: 0 | J56: 0 | K56: 0 | L56: 0 | M56: 0 | N56: 0 | O56: 0 | P56: 0 | Q56: 0 | R56: 0 | S56: 0 | T56: 0 | U56: 0 | V56: 0 | W56: 0 | X56: 0 | Y56: 0 | Z56: 0 | AA56: 0 | AB56: 0 | AC56: 0 | AD56: 0 | AE56: 0 | AF56: 0 | AG56: 0 | AH56: 0 | AI56: 0 | AJ56: 0 | AK56: 0 | AL56: 0 | AM56: 0 | AN56: 0 | AO56: 0 | AP56: 0 | AQ56: 0 | AR56: 0 | AS56: 0 | AT56: 0 | AU56: 0 | AV56: 0 | AW56: 0 | AX56: 0 | AY56: 0 | AZ56: 0 | BA56: 0 | BB56: 0 | BC56: 0 | BD56: 0 | BE56: 0 | BF56: 0 | BG56: 0 | BH56: 0 | BI56: 0 | BJ56: 0 | BK56: 0 | BL56: 0 | BM56: 0 | BN56: 0 | BO56: 0 | BP56: 0 | BQ56: 0 | BR56: 0 | BS56: 0 | BT56: 0 | BU56: 0 | BV56: 0 | BW56: 0 | BX56: 0 | BY56: 0 | BZ56: 0 | CA56: 0 | CB56: 0 | CC56: 0 | CD56: 4 | CE56: 2132 | CG56: 2132
B57: 2133 | C57: Bản quyền, bằng sáng chế | D57: 0 | F57: 0 | G57: 0 | H57: 0 | I57: 0 | J57: 0 | K57: 0 | L57: 0 | M57: 0 | N57: 0 | O57: 0 | P57: 0 | Q57: 0 | R57: 0 | S57: 0 | T57: 0 | U57: 0 | V57: 0 | W57: 0 | X57: 0 | Y57: 0 | Z57: 0 | AA57: 0 | AB57: 0 | AC57: 0 | AD57: 0 | AE57: 0 | AF57: 0 | AG57: 0 | AH57: 0 | AI57: 0 | AJ57: 0 | AK57: 0 | AL57: 0 | AM57: 0 | AN57: 0 | AO57: 0 | AP57: 0 | AQ57: 0 | AR57: 0 | AS57: 0 | AT57: 0 | AU57: 0 | AV57: 0 | AW57: 0 | AX57: 0 | AY57: 0 | AZ57: 0 | BA57: 0 | BB57: 0 | BC57: 0 | BD57: 0 | BE57: 0 | BF57: 0 | BG57: 0 | BH57: 0 | BI57: 0 | BJ57: 0 | BK57: 0 | BL57: 0 | BM57: 0 | BN57: 0 | BO57: 0 | BP57: 0 | BQ57: 0 | BR57: 0 | BS57: 0 | BT57: 0 | BU57: 0 | BV57: 0 | BW57: 0 | BX57: 0 | BY57: 0 | BZ57: 0 | CA57: 0 | CB57: 0 | CC57: 0 | CD57: 4 | CE57: 2133 | CG57: 2133
B58: 2134 | C58: Nhãn hiệu hàng hóa | D58: 0 | F58: 0 | G58: 0 | H58: 0 | I58: 0 | J58: 0 | K58: 0 | L58: 0 | M58: 0 | N58: 0 | O58: 0 | P58: 0 | Q58: 0 | R58: 0 | S58: 0 | T58: 0 | U58: 0 | V58: 0 | W58: 0 | X58: 0 | Y58: 0 | Z58: 0 | AA58: 0 | AB58: 0 | AC58: 0 | AD58: 0 | AE58: 0 | AF58: 0 | AG58: 0 | AH58: 0 | AI58: 0 | AJ58: 0 | AK58: 0 | AL58: 0 | AM58: 0 | AN58: 0 | AO58: 0 | AP58: 0 | AQ58: 0 | AR58: 0 | AS58: 0 | AT58: 0 | AU58: 0 | AV58: 0 | AW58: 0 | AX58: 0 | AY58: 0 | AZ58: 0 | BA58: 0 | BB58: 0 | BC58: 0 | BD58: 0 | BE58: 0 | BF58: 0 | BG58: 0 | BH58: 0 | BI58: 0 | BJ58: 0 | BK58: 0 | BL58: 0 | BM58: 0 | BN58: 0 | BO58: 0 | BP58: 0 | BQ58: 0 | BR58: 0 | BS58: 0 | BT58: 0 | BU58: 0 | BV58: 0 | BW58: 0 | BX58: 0 | BY58: 0 | BZ58: 0 | CA58: 0 | CB58: 0 | CC58: 0 | CD58: 4 | CE58: 2134 | CG58: 2134
B59: 2135 | C59: Phần mềm máy vi tính | D59: 0 | F59: 0 | G59: 0 | H59: 0 | I59: 0 | J59: 0 | K59: 0 | L59: 0 | M59: 0 | N59: 0 | O59: 0 | P59: 0 | Q59: 0 | R59: 0 | S59: 0 | T59: 0 | U59: 0 | V59: 0 | W59: 0 | X59: 0 | Y59: 0 | Z59: 0 | AA59: 0 | AB59: 0 | AC59: 0 | AD59: 0 | AE59: 0 | AF59: 0 | AG59: 0 | AH59: 0 | AI59: 0 | AJ59: 0 | AK59: 0 | AL59: 0 | AM59: 0 | AN59: 0 | AO59: 0 | AP59: 0 | AQ59: 0 | AR59: 0 | AS59: 0 | AT59: 0 | AU59: 0 | AV59: 0 | AW59: 0 | AX59: 0 | AY59: 0 | AZ59: 0 | BA59: 0 | BB59: 0 | BC59: 0 | BD59: 0 | BE59: 0 | BF59: 0 | BG59: 0 | BH59: 0 | BI59: 0 | BJ59: 0 | BK59: 0 | BL59: 0 | BM59: 0 | BN59: 0 | BO59: 0 | BP59: 0 | BQ59: 0 | BR59: 0 | BS59: 0 | BT59: 0 | BU59: 0 | BV59: 0 | BW59: 0 | BX59: 0 | BY59: 0 | BZ59: 0 | CA59: 0 | CB59: 0 | CC59: 0 | CD59: 4 | CE59: 2135 | CG59: 2135
B60: 2136 | C60: Giấy phép và giấy phép nhượng quyền | D60: 0 | F60: 0 | G60: 0 | H60: 0 | I60: 0 | J60: 0 | K60: 0 | L60: 0 | M60: 0 | N60: 0 | O60: 0 | P60: 0 | Q60: 0 | R60: 0 | S60: 0 | T60: 0 | U60: 0 | V60: 0 | W60: 0 | X60: 0 | Y60: 0 | Z60: 0 | AA60: 0 | AB60: 0 | AC60: 0 | AD60: 0 | AE60: 0 | AF60: 0 | AG60: 0 | AH60: 0 | AI60: 0 | AJ60: 0 | AK60: 0 | AL60: 0 | AM60: 0 | AN60: 0 | AO60: 0 | AP60: 0 | AQ60: 0 | AR60: 0 | AS60: 0 | AT60: 0 | AU60: 0 | AV60: 0 | AW60: 0 | AX60: 0 | AY60: 0 | AZ60: 0 | BA60: 0 | BB60: 0 | BC60: 0 | BD60: 0 | BE60: 0 | BF60: 0 | BG60: 0 | BH60: 0 | BI60: 0 | BJ60: 0 | BK60: 0 | BL60: 0 | BM60: 0 | BN60: 0 | BO60: 0 | BP60: 0 | BQ60: 0 | BR60: 0 | BS60: 0 | BT60: 0 | BU60: 0 | BV60: 0 | BW60: 0 | BX60: 0 | BY60: 0 | BZ60: 0 | CA60: 0 | CB60: 0 | CC60: 0 | CD60: 4 | CE60: 2136 | CG60: 2136
B61: 2138 | C61: TSCĐ vô hình khác | D61: 0 | F61: 0 | G61: 0 | H61: 0 | I61: 0 | J61: 0 | K61: 0 | L61: 0 | M61: 0 | N61: 0 | O61: 0 | P61: 0 | Q61: 0 | R61: 0 | S61: 0 | T61: 0 | U61: 0 | V61: 0 | W61: 0 | X61: 0 | Y61: 0 | Z61: 0 | AA61: 0 | AB61: 0 | AC61: 0 | AD61: 0 | AE61: 0 | AF61: 0 | AG61: 0 | AH61: 0 | AI61: 0 | AJ61: 0 | AK61: 0 | AL61: 0 | AM61: 0 | AN61: 0 | AO61: 0 | AP61: 0 | AQ61: 0 | AR61: 0 | AS61: 0 | AT61: 0 | AU61: 0 | AV61: 0 | AW61: 0 | AX61: 0 | AY61: 0 | AZ61: 0 | BA61: 0 | BB61: 0 | BC61: 0 | BD61: 0 | BE61: 0 | BF61: 0 | BG61: 0 | BH61: 0 | BI61: 0 | BJ61: 0 | BK61: 0 | BL61: 0 | BM61: 0 | BN61: 0 | BO61: 0 | BP61: 0 | BQ61: 0 | BR61: 0 | BS61: 0 | BT61: 0 | BU61: 0 | BV61: 0 | BW61: 0 | BX61: 0 | BY61: 0 | BZ61: 0 | CA61: 0 | CB61: 0 | CC61: 0 | CD61: 4 | CE61: 2138 | CG61: 2138
A62: ok | B62: 214 | C62: Hao mòn TSCĐ | D62: =SUM(D63:D66) -> 0 | E62: 68,333,333 | F62: 0 | G62: 0 | H62: 0 | I62: 68,333,333 | J62: 0 | K62: 68,333,333 | L62: 58,333,332 | M62: 11,450,397 | N62: 0 | O62: 21,450,398 | P62: =SUM(P63:P66) -> 0 | Q62: 21,450,398.00 | R62: 0 | S62: 0 | T62: 0 | U62: 21,450,398.00 | V62: =SUM(V63:V66) -> 0 | W62: 21,450,398.00 | X62: 0 | Y62: 0 | Z62: 0 | AA62: 21,450,398.00 | AB62: 0 | AC62: 21,450,398.00 | AD62: 0 | AE62: 0 | AF62: 0 | AG62: 21,450,398.00 | AH62: 0 | AI62: 21,450,398.00 | AJ62: 0 | AK62: 0 | AL62: 0 | AM62: 21,450,398.00 | AN62: 0 | AO62: 21,450,398.00 | AP62: 0 | AQ62: 0 | AR62: 0 | AS62: 21,450,398.00 | AT62: 0 | AU62: 21,450,398.00 | AV62: 0 | AW62: 0 | AX62: 0 | AY62: 21,450,398.00 | AZ62: 0 | BA62: 21,450,398.00 | BB62: 0 | BC62: 0 | BD62: 0 | BE62: 21,450,398.00 | BF62: 0 | BG62: 21,450,398.00 | BH62: 0 | BI62: 0 | BJ62: 0 | BK62: 21,450,398.00 | BL62: 0 | BM62: 21,450,398.00 | BN62: 0 | BO62: 0 | BP62: 0 | BQ62: 21,450,398 | BR62: =SUM(BR63:BR66) -> 0 | BS62: 21,450,398.00 | BT62: 0 | BU62: 0 | BV62: 0 | BW62: 21,450,398.00 | BX62: 0 | BY62: 68,333,333 | BZ62: 58,333,332 | CA62: 11,450,397 | CB62: 0 | CC62: 21,450,398 | CD62: 3 | CF62: 214
A63: ok | B63: 2141 | C63: Hao mòn TSCĐ hữu hình | D63: 0 | E63: 68,333,333 | F63: =SUMIF(TKno,TK,_st01) -> 0 | G63: =SUMIF(TKco,TK,_st01) -> 0 | H63: =IF(D63+F63-E63-G63>0,D63+F63-E63-G63,0) -> 0 | I63: =IF(E63+G63-D63-F63>0,E63+G63-D63-F63,0) -> 68,333,333 | J63: =H63 -> 0 | K63: 68,333,333 | L63: =SUMIF(TKno,TK,_st02) -> 58,333,332 | M63: =SUMIF(TKco,TK,_st02) -> 11,450,397 | N63: =IF(J63+L63-K63-M63>0,J63+L63-K63-M63,0) -> 0 | O63: =IF(K63+M63-J63-L63>0,K63+M63-J63-L63,0) -> 21,450,398 | P63: =N63 -> 0 | Q63: 21,450,398.00 | R63: =SUMIF(TKno,TK,_st03) -> 0 | S63: =SUMIF(TKco,TK,_st03) -> 0 | T63: =IF(P63+R63-Q63-S63>0,P63+R63-Q63-S63,0) -> 0 | U63: =IF(Q63+S63-P63-R63>0,Q63+S63-P63-R63,0) -> 21,450,398.00 | V63: =T63 -> 0 | W63: 21,450,398.00 | X63: =SUMIF(TKno,TK,_st04) -> 0 | Y63: =SUMIF(TKco,TK,_st04) -> 0 | Z63: =IF(V63+X63-W63-Y63>0,V63+X63-W63-Y63,0) -> 0 | AA63: =IF(W63+Y63-V63-X63>0,W63+Y63-V63-X63,0) -> 21,450,398.00 | AB63: =Z63 -> 0 | AC63: 21,450,398.00 | AD63: =SUMIF(TKno,TK,_st05) -> 0 | AE63: =SUMIF(TKco,TK,_st05) -> 0 | AF63: =IF(AB63+AD63-AC63-AE63>0,AB63+AD63-AC63-AE63,0) -> 0 | AG63: =IF(AC63+AE63-AB63-AD63>0,AC63+AE63-AB63-AD63,0) -> 21,450,398.00 | AH63: =AF63 -> 0 | AI63: 21,450,398.00 | AJ63: =SUMIF(TKno,TK,_st06) -> 0 | AK63: =SUMIF(TKco,TK,_st06) -> 0 | AL63: =IF(AH63+AJ63-AI63-AK63>0,AH63+AJ63-AI63-AK63,0) -> 0 | AM63: =IF(AI63+AK63-AH63-AJ63>0,AI63+AK63-AH63-AJ63,0) -> 21,450,398.00 | AN63: =AL63 -> 0 | AO63: 21,450,398.00 | AP63: =SUMIF(TKno,TK,_st07) -> 0 | AQ63: =SUMIF(TKco,TK,_st07) -> 0 | AR63: =IF(AN63+AP63-AO63-AQ63>0,AN63+AP63-AO63-AQ63,0) -> 0 | AS63: =IF(AO63+AQ63-AN63-AP63>0,AO63+AQ63-AN63-AP63,0) -> 21,450,398.00 | AT63: =AR63 -> 0 | AU63: 21,450,398.00 | AV63: =SUMIF(TKno,TK,_st08) -> 0 | AW63: =SUMIF(TKco,TK,_st08) -> 0 | AX63: =IF(AT63+AV63-AU63-AW63>0,AT63+AV63-AU63-AW63,0) -> 0 | AY63: =IF(AU63+AW63-AT63-AV63>0,AU63+AW63-AT63-AV63,0) -> 21,450,398.00 | AZ63: =AX63 -> 0 | BA63: 21,450,398.00 | BB63: =SUMIF(TKno,TK,_st09) -> 0 | BC63: =SUMIF(TKco,TK,_st09) -> 0 | BD63: =IF(AZ63+BB63-BA63-BC63>0,AZ63+BB63-BA63-BC63,0) -> 0 | BE63: =IF(BA63+BC63-AZ63-BB63>0,BA63+BC63-AZ63-BB63,0) -> 21,450,398.00 | BF63: =BD63 -> 0 | BG63: 21,450,398.00 | BH63: =SUMIF(TKno,TK,_st10) -> 0 | BI63: =SUMIF(TKco,TK,_st10) -> 0 | BJ63: =IF(BF63+BH63-BG63-BI63>0,BF63+BH63-BG63-BI63,0) -> 0 | BK63: =IF(BG63+BI63-BF63-BH63>0,BG63+BI63-BF63-BH63,0) -> 21,450,398.00 | BL63: =BJ63 -> 0 | BM63: 21,450,398.00 | BN63: =SUMIF(TKno,TK,_st11) -> 0 | BO63: =SUMIF(TKco,TK,_st11) -> 0 | BP63: =IF(BL63+BN63-BM63-BO63>0,BL63+BN63-BM63-BO63,0) -> 0 | BQ63: =IF(BM63+BO63-BL63-BN63>0,BM63+BO63-BL63-BN63,0) -> 21,450,398 | BR63: =BP63 -> 0 | BS63: 21,450,398.00 | BT63: =SUMIF(TKno,TK,_st12) -> 0 | BU63: =SUMIF(TKco,TK,_st12) -> 0 | BV63: =IF(BR63+BT63-BS63-BU63>0,BR63+BT63-BS63-BU63,0) -> 0 | BW63: =IF(BS63+BU63-BR63-BT63>0,BS63+BU63-BR63-BT63,0) -> 21,450,398.00 | BX63: 0 | BY63: 68,333,333 | BZ63: =SUMIF(TKno,TK,ST) -> 58,333,332 | CA63: =SUMIF(TKco,TK,ST) -> 11,450,397 | CB63: =IF(BX63+BZ63-BY63-CA63>0,BX63+BZ63-BY63-CA63,0) -> 0 | CC63: =IF(BY63+CA63-BX63-BZ63>0,BY63+CA63-BX63-BZ63,0) -> 21,450,398 | CD63: 4 | CE63: =$B63 -> 2141 | CG63: 2141
B64: 2142 | C64: Hao mòm TSCĐ thuê tài chính | D64: 0 | F64: =SUMIF(TKno,TK,_st01) -> 0 | G64: =SUMIF(TKco,TK,_st01) -> 0 | H64: =IF(D64+F64-E64-G64>0,D64+F64-E64-G64,0) -> 0 | I64: =IF(E64+G64-D64-F64>0,E64+G64-D64-F64,0) -> 0 | J64: 0 | K64: 0 | L64: =SUMIF(TKno,TK,_st02) -> 0 | M64: =SUMIF(TKco,TK,_st02) -> 0 | N64: =IF(J64+L64-K64-M64>0,J64+L64-K64-M64,0) -> 0 | O64: =IF(K64+M64-J64-L64>0,K64+M64-J64-L64,0) -> 0 | P64: 0 | Q64: 0 | R64: =SUMIF(TKno,TK,_st03) -> 0 | S64: =SUMIF(TKco,TK,_st03) -> 0 | T64: =IF(P64+R64-Q64-S64>0,P64+R64-Q64-S64,0) -> 0 | U64: =IF(Q64+S64-P64-R64>0,Q64+S64-P64-R64,0) -> 0 | V64: 0 | W64: 0 | X64: =SUMIF(TKno,TK,_st04) -> 0 | Y64: =SUMIF(TKco,TK,_st04) -> 0 | Z64: =IF(V64+X64-W64-Y64>0,V64+X64-W64-Y64,0) -> 0 | AA64: =IF(W64+Y64-V64-X64>0,W64+Y64-V64-X64,0) -> 0 | AB64: 0 | AC64: 0 | AD64: =SUMIF(TKno,TK,_st05) -> 0 | AE64: =SUMIF(TKco,TK,_st05) -> 0 | AF64: =IF(AB64+AD64-AC64-AE64>0,AB64+AD64-AC64-AE64,0) -> 0 | AG64: =IF(AC64+AE64-AB64-AD64>0,AC64+AE64-AB64-AD64,0) -> 0 | AH64: 0 | AI64: 0 | AJ64: =SUMIF(TKno,TK,_st06) -> 0 | AK64: =SUMIF(TKco,TK,_st06) -> 0 | AL64: =IF(AH64+AJ64-AI64-AK64>0,AH64+AJ64-AI64-AK64,0) -> 0 | AM64: =IF(AI64+AK64-AH64-AJ64>0,AI64+AK64-AH64-AJ64,0) -> 0 | AN64: 0 | AO64: 0 | AP64: =SUMIF(TKno,TK,_st07) -> 0 | AQ64: =SUMIF(TKco,TK,_st07) -> 0 | AR64: =IF(AN64+AP64-AO64-AQ64>0,AN64+AP64-AO64-AQ64,0) -> 0 | AS64: =IF(AO64+AQ64-AN64-AP64>0,AO64+AQ64-AN64-AP64,0) -> 0 | AT64: 0 | AU64: 0 | AV64: =SUMIF(TKno,TK,_st08) -> 0 | AW64: =SUMIF(TKco,TK,_st08) -> 0 | AX64: =IF(AT64+AV64-AU64-AW64>0,AT64+AV64-AU64-AW64,0) -> 0 | AY64: =IF(AU64+AW64-AT64-AV64>0,AU64+AW64-AT64-AV64,0) -> 0 | AZ64: 0 | BA64: 0 | BB64: =SUMIF(TKno,TK,_st09) -> 0 | BC64: =SUMIF(TKco,TK,_st09) -> 0 | BD64: =IF(AZ64+BB64-BA64-BC64>0,AZ64+BB64-BA64-BC64,0) -> 0 | BE64: =IF(BA64+BC64-AZ64-BB64>0,BA64+BC64-AZ64-BB64,0) -> 0 | BF64: 0 | BG64: 0 | BH64: =SUMIF(TKno,TK,_st10) -> 0 | BI64: =SUMIF(TKco,TK,_st10) -> 0 | BJ64: =IF(BF64+BH64-BG64-BI64>0,BF64+BH64-BG64-BI64,0) -> 0 | BK64: =IF(BG64+BI64-BF64-BH64>0,BG64+BI64-BF64-BH64,0) -> 0 | BL64: 0 | BM64: 0 | BN64: =SUMIF(TKno,TK,_st11) -> 0 | BO64: =SUMIF(TKco,TK,_st11) -> 0 | BP64: =IF(BL64+BN64-BM64-BO64>0,BL64+BN64-BM64-BO64,0) -> 0 | BQ64: =IF(BM64+BO64-BL64-BN64>0,BM64+BO64-BL64-BN64,0) -> 0 | BR64: 0 | BS64: 0 | BT64: =SUMIF(TKno,TK,_st12) -> 0 | BU64: =SUMIF(TKco,TK,_st12) -> 0 | BV64: =IF(BR64+BT64-BS64-BU64>0,BR64+BT64-BS64-BU64,0) -> 0 | BW64: =IF(BS64+BU64-BR64-BT64>0,BS64+BU64-BR64-BT64,0) -> 0 | BX64: 0 | BY64: 0 | BZ64: =SUMIF(TKno,TK,ST) -> 0 | CA64: =SUMIF(TKco,TK,ST) -> 0 | CB64: =IF(BX64+BZ64-BY64-CA64>0,BX64+BZ64-BY64-CA64,0) -> 0 | CC64: =IF(BY64+CA64-BX64-BZ64>0,BY64+CA64-BX64-BZ64,0) -> 0 | CD64: 4 | CE64: =$B64 -> 2142 | CG64: 2142
B65: 2143 | C65: Hao mòm TSCĐ vô hình | D65: 0 | F65: =SUMIF(TKno,TK,_st01) -> 0 | G65: =SUMIF(TKco,TK,_st01) -> 0 | H65: =IF(D65+F65-E65-G65>0,D65+F65-E65-G65,0) -> 0 | I65: =IF(E65+G65-D65-F65>0,E65+G65-D65-F65,0) -> 0 | J65: 0 | K65: 0 | L65: =SUMIF(TKno,TK,_st02) -> 0 | M65: =SUMIF(TKco,TK,_st02) -> 0 | N65: =IF(J65+L65-K65-M65>0,J65+L65-K65-M65,0) -> 0 | O65: =IF(K65+M65-J65-L65>0,K65+M65-J65-L65,0) -> 0 | P65: 0 | Q65: 0 | R65: =SUMIF(TKno,TK,_st03) -> 0 | S65: =SUMIF(TKco,TK,_st03) -> 0 | T65: =IF(P65+R65-Q65-S65>0,P65+R65-Q65-S65,0) -> 0 | U65: =IF(Q65+S65-P65-R65>0,Q65+S65-P65-R65,0) -> 0 | V65: 0 | W65: 0 | X65: =SUMIF(TKno,TK,_st04) -> 0 | Y65: =SUMIF(TKco,TK,_st04) -> 0 | Z65: =IF(V65+X65-W65-Y65>0,V65+X65-W65-Y65,0) -> 0 | AA65: =IF(W65+Y65-V65-X65>0,W65+Y65-V65-X65,0) -> 0 | AB65: 0 | AC65: 0 | AD65: =SUMIF(TKno,TK,_st05) -> 0 | AE65: =SUMIF(TKco,TK,_st05) -> 0 | AF65: =IF(AB65+AD65-AC65-AE65>0,AB65+AD65-AC65-AE65,0) -> 0 | AG65: =IF(AC65+AE65-AB65-AD65>0,AC65+AE65-AB65-AD65,0) -> 0 | AH65: 0 | AI65: 0 | AJ65: =SUMIF(TKno,TK,_st06) -> 0 | AK65: =SUMIF(TKco,TK,_st06) -> 0 | AL65: =IF(AH65+AJ65-AI65-AK65>0,AH65+AJ65-AI65-AK65,0) -> 0 | AM65: =IF(AI65+AK65-AH65-AJ65>0,AI65+AK65-AH65-AJ65,0) -> 0 | AN65: 0 | AO65: 0 | AP65: =SUMIF(TKno,TK,_st07) -> 0 | AQ65: =SUMIF(TKco,TK,_st07) -> 0 | AR65: =IF(AN65+AP65-AO65-AQ65>0,AN65+AP65-AO65-AQ65,0) -> 0 | AS65: =IF(AO65+AQ65-AN65-AP65>0,AO65+AQ65-AN65-AP65,0) -> 0 | AT65: 0 | AU65: 0 | AV65: =SUMIF(TKno,TK,_st08) -> 0 | AW65: =SUMIF(TKco,TK,_st08) -> 0 | AX65: =IF(AT65+AV65-AU65-AW65>0,AT65+AV65-AU65-AW65,0) -> 0 | AY65: =IF(AU65+AW65-AT65-AV65>0,AU65+AW65-AT65-AV65,0) -> 0 | AZ65: 0 | BA65: 0 | BB65: =SUMIF(TKno,TK,_st09) -> 0 | BC65: =SUMIF(TKco,TK,_st09) -> 0 | BD65: =IF(AZ65+BB65-BA65-BC65>0,AZ65+BB65-BA65-BC65,0) -> 0 | BE65: =IF(BA65+BC65-AZ65-BB65>0,BA65+BC65-AZ65-BB65,0) -> 0 | BF65: 0 | BG65: 0 | BH65: =SUMIF(TKno,TK,_st10) -> 0 | BI65: =SUMIF(TKco,TK,_st10) -> 0 | BJ65: =IF(BF65+BH65-BG65-BI65>0,BF65+BH65-BG65-BI65,0) -> 0 | BK65: =IF(BG65+BI65-BF65-BH65>0,BG65+BI65-BF65-BH65,0) -> 0 | BL65: 0 | BM65: 0 | BN65: =SUMIF(TKno,TK,_st11) -> 0 | BO65: =SUMIF(TKco,TK,_st11) -> 0 | BP65: =IF(BL65+BN65-BM65-BO65>0,BL65+BN65-BM65-BO65,0) -> 0 | BQ65: =IF(BM65+BO65-BL65-BN65>0,BM65+BO65-BL65-BN65,0) -> 0 | BR65: 0 | BS65: 0 | BT65: =SUMIF(TKno,TK,_st12) -> 0 | BU65: =SUMIF(TKco,TK,_st12) -> 0 | BV65: =IF(BR65+BT65-BS65-BU65>0,BR65+BT65-BS65-BU65,0) -> 0 | BW65: =IF(BS65+BU65-BR65-BT65>0,BS65+BU65-BR65-BT65,0) -> 0 | BX65: 0 | BY65: 0 | BZ65: =SUMIF(TKno,TK,ST) -> 0 | CA65: =SUMIF(TKco,TK,ST) -> 0 | CB65: =IF(BX65+BZ65-BY65-CA65>0,BX65+BZ65-BY65-CA65,0) -> 0 | CC65: =IF(BY65+CA65-BX65-BZ65>0,BY65+CA65-BX65-BZ65,0) -> 0 | CD65: 4 | CE65: =$B65 -> 2143 | CG65: 2143
B66: 2147 | C66: Hao mòn bất động sản đầu tư | D66: 0 | F66: =SUMIF(TKno,TK,_st01) -> 0 | G66: =SUMIF(TKco,TK,_st01) -> 0 | H66: =IF(D66+F66-E66-G66>0,D66+F66-E66-G66,0) -> 0 | I66: =IF(E66+G66-D66-F66>0,E66+G66-D66-F66,0) -> 0 | J66: 0 | K66: 0 | L66: =SUMIF(TKno,TK,_st02) -> 0 | M66: =SUMIF(TKco,TK,_st02) -> 0 | N66: =IF(J66+L66-K66-M66>0,J66+L66-K66-M66,0) -> 0 | O66: =IF(K66+M66-J66-L66>0,K66+M66-J66-L66,0) -> 0 | P66: 0 | Q66: 0 | R66: =SUMIF(TKno,TK,_st03) -> 0 | S66: =SUMIF(TKco,TK,_st03) -> 0 | T66: =IF(P66+R66-Q66-S66>0,P66+R66-Q66-S66,0) -> 0 | U66: =IF(Q66+S66-P66-R66>0,Q66+S66-P66-R66,0) -> 0 | V66: 0 | W66: 0 | X66: =SUMIF(TKno,TK,_st04) -> 0 | Y66: =SUMIF(TKco,TK,_st04) -> 0 | Z66: =IF(V66+X66-W66-Y66>0,V66+X66-W66-Y66,0) -> 0 | AA66: =IF(W66+Y66-V66-X66>0,W66+Y66-V66-X66,0) -> 0 | AB66: 0 | AC66: 0 | AD66: =SUMIF(TKno,TK,_st05) -> 0 | AE66: =SUMIF(TKco,TK,_st05) -> 0 | AF66: =IF(AB66+AD66-AC66-AE66>0,AB66+AD66-AC66-AE66,0) -> 0 | AG66: =IF(AC66+AE66-AB66-AD66>0,AC66+AE66-AB66-AD66,0) -> 0 | AH66: 0 | AI66: 0 | AJ66: =SUMIF(TKno,TK,_st06) -> 0 | AK66: =SUMIF(TKco,TK,_st06) -> 0 | AL66: =IF(AH66+AJ66-AI66-AK66>0,AH66+AJ66-AI66-AK66,0) -> 0 | AM66: =IF(AI66+AK66-AH66-AJ66>0,AI66+AK66-AH66-AJ66,0) -> 0 | AN66: 0 | AO66: 0 | AP66: =SUMIF(TKno,TK,_st07) -> 0 | AQ66: =SUMIF(TKco,TK,_st07) -> 0 | AR66: =IF(AN66+AP66-AO66-AQ66>0,AN66+AP66-AO66-AQ66,0) -> 0 | AS66: =IF(AO66+AQ66-AN66-AP66>0,AO66+AQ66-AN66-AP66,0) -> 0 | AT66: 0 | AU66: 0 | AV66: =SUMIF(TKno,TK,_st08) -> 0 | AW66: =SUMIF(TKco,TK,_st08) -> 0 | AX66: =IF(AT66+AV66-AU66-AW66>0,AT66+AV66-AU66-AW66,0) -> 0 | AY66: =IF(AU66+AW66-AT66-AV66>0,AU66+AW66-AT66-AV66,0) -> 0 | AZ66: 0 | BA66: 0 | BB66: =SUMIF(TKno,TK,_st09) -> 0 | BC66: =SUMIF(TKco,TK,_st09) -> 0 | BD66: =IF(AZ66+BB66-BA66-BC66>0,AZ66+BB66-BA66-BC66,0) -> 0 | BE66: =IF(BA66+BC66-AZ66-BB66>0,BA66+BC66-AZ66-BB66,0) -> 0 | BF66: 0 | BG66: 0 | BH66: =SUMIF(TKno,TK,_st10) -> 0 | BI66: =SUMIF(TKco,TK,_st10) -> 0 | BJ66: =IF(BF66+BH66-BG66-BI66>0,BF66+BH66-BG66-BI66,0) -> 0 | BK66: =IF(BG66+BI66-BF66-BH66>0,BG66+BI66-BF66-BH66,0) -> 0 | BL66: 0 | BM66: 0 | BN66: =SUMIF(TKno,TK,_st11) -> 0 | BO66: =SUMIF(TKco,TK,_st11) -> 0 | BP66: =IF(BL66+BN66-BM66-BO66>0,BL66+BN66-BM66-BO66,0) -> 0 | BQ66: =IF(BM66+BO66-BL66-BN66>0,BM66+BO66-BL66-BN66,0) -> 0 | BR66: 0 | BS66: 0 | BT66: =SUMIF(TKno,TK,_st12) -> 0 | BU66: =SUMIF(TKco,TK,_st12) -> 0 | BV66: =IF(BR66+BT66-BS66-BU66>0,BR66+BT66-BS66-BU66,0) -> 0 | BW66: =IF(BS66+BU66-BR66-BT66>0,BS66+BU66-BR66-BT66,0) -> 0 | BX66: 0 | BY66: 0 | BZ66: =SUMIF(TKno,TK,ST) -> 0 | CA66: =SUMIF(TKco,TK,ST) -> 0 | CB66: =IF(BX66+BZ66-BY66-CA66>0,BX66+BZ66-BY66-CA66,0) -> 0 | CC66: =IF(BY66+CA66-BX66-BZ66>0,BY66+CA66-BX66-BZ66,0) -> 0 | CD66: 4 | CE66: =$B66 -> 2147 | CG66: 2147
B67: 241 | C67: Xây dựng cơ bản dở dang | D67: 0 | E67: 0 | F67: =SUM(F68:F70) -> 0 | G67: 0 | H67: 0 | I67: 0 | J67: 0 | K67: 0 | L67: 0 | M67: 0 | N67: 0 | O67: 0 | P67: =SUM(P68:P70) -> 0 | Q67: 0 | R67: 0 | S67: 0 | T67: 0 | U67: 0 | V67: =SUM(V68:V70) -> 0 | W67: 0 | X67: 0 | Y67: 0 | Z67: 0 | AA67: 0 | AB67: 0 | AC67: 0 | AD67: 0 | AE67: 0 | AF67: 0 | AG67: 0 | AH67: 0 | AI67: 0 | AJ67: 0 | AK67: 0 | AL67: 0 | AM67: 0 | AN67: 0 | AO67: 0 | AP67: 0 | AQ67: 0 | AR67: 0 | AS67: 0 | AT67: 0 | AU67: 0 | AV67: 0 | AW67: 0 | AX67: 0 | AY67: 0 | AZ67: 0 | BA67: 0 | BB67: 0 | BC67: 0 | BD67: 0 | BE67: 0 | BF67: 0 | BG67: 0 | BH67: 0 | BI67: 0 | BJ67: 0 | BK67: 0 | BL67: 0 | BM67: 0 | BN67: 0 | BO67: 0 | BP67: 0 | BQ67: 0 | BR67: =SUM(BR68:BR70) -> 0 | BS67: 0 | BT67: 0 | BU67: 0 | BV67: 0 | BW67: 0 | BX67: 0 | BY67: 0 | BZ67: 0 | CA67: 0 | CB67: 0 | CC67: 0 | CD67: 3 | CF67: 241
B68: 2411 | C68: Mua sắm TSCĐ | D68: 0 | F68: =SUMIF(TKno,TK,_st01) -> 0 | G68: =SUMIF(TKco,TK,_st01) -> 0 | H68: =IF(D68+F68-E68-G68>0,D68+F68-E68-G68,0) -> 0 | I68: =IF(E68+G68-D68-F68>0,E68+G68-D68-F68,0) -> 0 | J68: =H68 -> 0 | K68: =I68 -> 0 | L68: =SUMIF(TKno,TK,_st02) -> 0 | M68: =SUMIF(TKco,TK,_st02) -> 0 | N68: =IF(J68+L68-K68-M68>0,J68+L68-K68-M68,0) -> 0 | O68: =IF(K68+M68-J68-L68>0,K68+M68-J68-L68,0) -> 0 | P68: =N68 -> 0 | Q68: =O68 -> 0 | R68: =SUMIF(TKno,TK,_st03) -> 0 | S68: =SUMIF(TKco,TK,_st03) -> 0 | T68: =IF(P68+R68-Q68-S68>0,P68+R68-Q68-S68,0) -> 0 | U68: =IF(Q68+S68-P68-R68>0,Q68+S68-P68-R68,0) -> 0 | V68: =T68 -> 0 | W68: =U68 -> 0 | X68: =SUMIF(TKno,TK,_st04) -> 0 | Y68: =SUMIF(TKco,TK,_st04) -> 0 | Z68: =IF(V68+X68-W68-Y68>0,V68+X68-W68-Y68,0) -> 0 | AA68: =IF(W68+Y68-V68-X68>0,W68+Y68-V68-X68,0) -> 0 | AB68: =Z68 -> 0 | AC68: =AA68 -> 0 | AD68: =SUMIF(TKno,TK,_st05) -> 0 | AE68: =SUMIF(TKco,TK,_st05) -> 0 | AF68: =IF(AB68+AD68-AC68-AE68>0,AB68+AD68-AC68-AE68,0) -> 0 | AG68: =IF(AC68+AE68-AB68-AD68>0,AC68+AE68-AB68-AD68,0) -> 0 | AH68: =AF68 -> 0 | AI68: =AG68 -> 0 | AJ68: =SUMIF(TKno,TK,_st06) -> 0 | AK68: =SUMIF(TKco,TK,_st06) -> 0 | AL68: =IF(AH68+AJ68-AI68-AK68>0,AH68+AJ68-AI68-AK68,0) -> 0 | AM68: =IF(AI68+AK68-AH68-AJ68>0,AI68+AK68-AH68-AJ68,0) -> 0 | AN68: =AL68 -> 0 | AO68: =AM68 -> 0 | AP68: =SUMIF(TKno,TK,_st07) -> 0 | AQ68: =SUMIF(TKco,TK,_st07) -> 0 | AR68: =IF(AN68+AP68-AO68-AQ68>0,AN68+AP68-AO68-AQ68,0) -> 0 | AS68: =IF(AO68+AQ68-AN68-AP68>0,AO68+AQ68-AN68-AP68,0) -> 0 | AT68: =AR68 -> 0 | AU68: =AS68 -> 0 | AV68: =SUMIF(TKno,TK,_st08) -> 0 | AW68: =SUMIF(TKco,TK,_st08) -> 0 | AX68: =IF(AT68+AV68-AU68-AW68>0,AT68+AV68-AU68-AW68,0) -> 0 | AY68: =IF(AU68+AW68-AT68-AV68>0,AU68+AW68-AT68-AV68,0) -> 0 | AZ68: =AX68 -> 0 | BA68: =AY68 -> 0 | BB68: =SUMIF(TKno,TK,_st09) -> 0 | BC68: =SUMIF(TKco,TK,_st09) -> 0 | BD68: =IF(AZ68+BB68-BA68-BC68>0,AZ68+BB68-BA68-BC68,0) -> 0 | BE68: =IF(BA68+BC68-AZ68-BB68>0,BA68+BC68-AZ68-BB68,0) -> 0 | BF68: =BD68 -> 0 | BG68: =BE68 -> 0 | BH68: =SUMIF(TKno,TK,_st10) -> 0 | BI68: =SUMIF(TKco,TK,_st10) -> 0 | BJ68: =IF(BF68+BH68-BG68-BI68>0,BF68+BH68-BG68-BI68,0) -> 0 | BK68: =IF(BG68+BI68-BF68-BH68>0,BG68+BI68-BF68-BH68,0) -> 0 | BL68: =BJ68 -> 0 | BM68: =BK68 -> 0 | BN68: =SUMIF(TKno,TK,_st11) -> 0 | BO68: =SUMIF(TKco,TK,_st11) -> 0 | BP68: =IF(BL68+BN68-BM68-BO68>0,BL68+BN68-BM68-BO68,0) -> 0 | BQ68: =IF(BM68+BO68-BL68-BN68>0,BM68+BO68-BL68-BN68,0) -> 0 | BR68: =BP68 -> 0 | BS68: =BQ68 -> 0 | BT68: =SUMIF(TKno,TK,_st12) -> 0 | BU68: =SUMIF(TKco,TK,_st12) -> 0 | BV68: =IF(BR68+BT68-BS68-BU68>0,BR68+BT68-BS68-BU68,0) -> 0 | BW68: =IF(BS68+BU68-BR68-BT68>0,BS68+BU68-BR68-BT68,0) -> 0 | BX68: 0 | BY68: 0 | BZ68: =SUMIF(TKno,TK,ST) -> 0 | CA68: =SUMIF(TKco,TK,ST) -> 0 | CB68: =IF(BX68+BZ68-BY68-CA68>0,BX68+BZ68-BY68-CA68,0) -> 0 | CC68: =IF(BY68+CA68-BX68-BZ68>0,BY68+CA68-BX68-BZ68,0) -> 0 | CD68: 4 | CE68: =$B68 -> 2411 | CG68: 2411
B69: 2412 | C69: Xây dựng cơ bản dở dang | D69: 0 | E69: 0 | F69: 0 | G69: 0 | H69: 0 | I69: 0 | J69: 0 | K69: 0 | L69: 0 | M69: 0 | N69: 0 | O69: 0 | P69: 0 | Q69: 0 | R69: 0 | S69: 0 | T69: 0 | U69: 0 | V69: 0 | W69: 0 | X69: 0 | Y69: 0 | Z69: 0 | AA69: 0 | AB69: 0 | AC69: 0 | AD69: 0 | AE69: 0 | AF69: 0 | AG69: 0 | AH69: 0 | AI69: 0 | AJ69: 0 | AK69: 0 | AL69: 0 | AM69: 0 | AN69: 0 | AO69: 0 | AP69: 0 | AQ69: 0 | AR69: 0 | AS69: 0 | AT69: 0 | AU69: 0 | AV69: 0 | AW69: 0 | AX69: 0 | AY69: 0 | AZ69: 0 | BA69: 0 | BB69: 0 | BC69: 0 | BD69: 0 | BE69: 0 | BF69: 0 | BG69: 0 | BH69: 0 | BI69: 0 | BJ69: 0 | BK69: 0 | BL69: 0 | BM69: 0 | BN69: 0 | BO69: 0 | BP69: 0 | BQ69: 0 | BR69: 0 | BS69: 0 | BT69: 0 | BU69: 0 | BV69: 0 | BW69: 0 | BX69: 0 | BY69: 0 | BZ69: 0 | CA69: 0 | CB69: =IF(BX69+BZ69-BY69-CA69>0,BX69+BZ69-BY69-CA69,0) -> 0 | CC69: =IF(BY69+CA69-BX69-BZ69>0,BY69+CA69-BX69-BZ69,0) -> 0 | CD69: 4 | CE69: 2412 | CG69: 2412
B70: 2413 | C70: Sửa chữa lớn TSCĐ | D70: 0 | F70: 0 | G70: 0 | H70: 0 | I70: 0 | J70: 0 | K70: 0 | L70: 0 | M70: 0 | N70: 0 | O70: 0 | P70: 0 | Q70: 0 | R70: 0 | S70: 0 | T70: 0 | U70: 0 | V70: 0 | W70: 0 | X70: 0 | Y70: 0 | Z70: 0 | AA70: 0 | AB70: 0 | AC70: 0 | AD70: 0 | AE70: 0 | AF70: 0 | AG70: 0 | AH70: 0 | AI70: 0 | AJ70: 0 | AK70: 0 | AL70: 0 | AM70: 0 | AN70: 0 | AO70: 0 | AP70: 0 | AQ70: 0 | AR70: 0 | AS70: 0 | AT70: 0 | AU70: 0 | AV70: 0 | AW70: 0 | AX70: 0 | AY70: 0 | AZ70: 0 | BA70: 0 | BB70: 0 | BC70: 0 | BD70: 0 | BE70: 0 | BF70: 0 | BG70: 0 | BH70: 0 | BI70: 0 | BJ70: 0 | BK70: 0 | BL70: 0 | BM70: 0 | BN70: 0 | BO70: 0 | BP70: 0 | BQ70: 0 | BR70: 0 | BS70: 0 | BT70: 0 | BU70: 0 | BV70: 0 | BW70: 0 | BX70: 0 | BY70: 0 | BZ70: 0 | CA70: 0 | CB70: =IF(BX70+BZ70-BY70-CA70>0,BX70+BZ70-BY70-CA70,0) -> 0 | CC70: =IF(BY70+CA70-BX70-BZ70>0,BY70+CA70-BX70-BZ70,0) -> 0 | CD70: 4 | CE70: 2413 | CG70: 2413
B71: 222 | C71: Góp vốn liên doanh dài hạn | D71: 0 | E71: 0 | F71: 0 | G71: 0 | H71: 0 | I71: 0 | J71: 0 | K71: 0 | L71: 0 | M71: 0 | N71: 0 | O71: 0 | P71: 0 | Q71: 0 | R71: 0 | S71: 0 | T71: 0 | U71: 0 | V71: 0 | W71: 0 | X71: 0 | Y71: 0 | Z71: 0 | AA71: 0 | AB71: 0 | AC71: 0 | AD71: 0 | AE71: 0 | AF71: 0 | AG71: 0 | AH71: 0 | AI71: 0 | AJ71: 0 | AK71: 0 | AL71: 0 | AM71: 0 | AN71: 0 | AO71: 0 | AP71: 0 | AQ71: 0 | AR71: 0 | AS71: 0 | AT71: 0 | AU71: 0 | AV71: 0 | AW71: 0 | AX71: 0 | AY71: 0 | AZ71: 0 | BA71: 0 | BB71: 0 | BC71: 0 | BD71: 0 | BE71: 0 | BF71: 0 | BG71: 0 | BH71: 0 | BI71: 0 | BJ71: 0 | BK71: 0 | BL71: 0 | BM71: 0 | BN71: 0 | BO71: 0 | BP71: 0 | BQ71: 0 | BR71: 0 | BS71: 0 | BT71: 0 | BU71: 0 | BV71: 0 | BW71: 0 | BX71: 0 | BY71: 0 | BZ71: 0 | CA71: 0 | CB71: =IF(BX71+BZ71-BY71-CA71>0,BX71+BZ71-BY71-CA71,0) -> 0 | CC71: =IF(BY71+CA71-BX71-BZ71>0,BY71+CA71-BX71-BZ71,0) -> 0 | CD71: 3 | CE71: 222 | CF71: 222
A72: ok | B72: 242 | C72: Chi phí trả trước dài hạn | D72: 8,200,000 | F72: 15,000,000 | G72: 0 | H72: 23,200,000 | I72: 0 | J72: =H72 -> 23,200,000 | K72: =I72 -> 0 | L72: 0 | M72: 1,175,000 | N72: 22,025,000 | O72: 0 | P72: 22,025,000 | Q72: 0 | R72: 0 | S72: 0 | T72: 22,025,000 | U72: 0 | V72: 22,025,000 | W72: 0 | X72: 0 | Y72: 0 | Z72: 22,025,000 | AA72: 0 | AB72: 22,025,000 | AC72: 0 | AD72: 0 | AE72: =SUMIF(TKco,TK,_st05) -> 0 | AF72: =IF(AB72+AD72-AC72-AE72>0,AB72+AD72-AC72-AE72,0) -> 22,025,000 | AG72: 0 | AH72: 22,025,000 | AI72: 0 | AJ72: 0 | AK72: 0 | AL72: 22,025,000 | AM72: 0 | AN72: 22,025,000 | AO72: 0 | AP72: 0 | AQ72: 0 | AR72: 22,025,000 | AS72: 0 | AT72: 22,025,000 | AU72: 0 | AV72: 0 | AW72: 0 | AX72: 22,025,000 | AY72: 0 | AZ72: 22,025,000 | BA72: 0 | BB72: 0 | BC72: 0 | BD72: 22,025,000 | BE72: 0 | BF72: 22,025,000 | BG72: 0 | BH72: 0 | BI72: 0 | BJ72: 22,025,000 | BK72: 0 | BL72: 22,025,000 | BM72: 0 | BN72: 0 | BO72: 0 | BP72: 22,025,000 | BQ72: 0 | BR72: 22,025,000 | BS72: 0 | BT72: 0 | BU72: 0 | BV72: 22,025,000 | BW72: 0 | BX72: 8,200,000 | BY72: 0 | BZ72: 15,000,000 | CA72: 1,175,000 | CB72: =IF(BX72+BZ72-BY72-CA72>0,BX72+BZ72-BY72-CA72,0) -> 22,025,000 | CC72: =IF(BY72+CA72-BX72-BZ72>0,BY72+CA72-BX72-BZ72,0) -> 0 | CD72: 3 | CE72: 242 | CF72: 242
B73: 311 | C73: Vay ngắn hạn | D73: 0 | E73: 0 | F73: 0 | G73: 0 | H73: 0 | I73: 0 | J73: 0 | K73: 0 | L73: 0 | M73: 0 | N73: 0 | O73: 0 | P73: 0 | Q73: 0 | R73: 0 | S73: 0 | T73: 0 | U73: 0 | V73: 0 | W73: 0 | X73: 0 | Y73: 0 | Z73: 0 | AA73: 0 | AB73: 0 | AC73: 0 | AD73: 0 | AE73: 0 | AF73: 0 | AG73: 0 | AH73: 0 | AI73: 0 | AJ73: 0 | AK73: 0 | AL73: 0 | AM73: 0 | AN73: 0 | AO73: 0 | AP73: 0 | AQ73: 0 | AR73: 0 | AS73: 0 | AT73: 0 | AU73: 0 | AV73: 0 | AW73: 0 | AX73: 0 | AY73: 0 | AZ73: 0 | BA73: 0 | BB73: 0 | BC73: 0 | BD73: 0 | BE73: 0 | BF73: 0 | BG73: 0 | BH73: 0 | BI73: 0 | BJ73: 0 | BK73: 0 | BL73: 0 | BM73: 0 | BN73: 0 | BO73: 0 | BP73: 0 | BQ73: 0 | BR73: 0 | BS73: 0 | BT73: 0 | BU73: 0 | BV73: 0 | BW73: 0 | BX73: 0 | BY73: 0 | BZ73: 0 | CA73: 0 | CB73: =SUMIF(CongNo_TK,'CDPS-ok'!$B73,CongNo!$FE:$FE) -> 0 | CC73: =SUMIF(CongNo_TK,'CDPS-ok'!$B73,CongNo!$FG:$FG) -> 0 | CD73: 3 | CE73: 311 | CF73: 311
A74: ok | B74: 331 | C74: Phải trả cho người bán | D74: 0 | F74: =SUMIF(CongNo_TK,$B74,CongNo!$M:$M) -> 536,674,967 | G74: =SUMIF(CongNo_TK,$B74,CongNo!$O:$O) -> 901,074,967 | H74: =SUMIF(CongNo_TK,$B74,CongNo!$Q:$Q) -> 0 | I74: =SUMIF(CongNo_TK,$B74,CongNo!$S:$S) -> 364,400,000 | J74: 0 | K74: 364,400,000 | L74: =SUMIF(CongNo_TK,$B74,CongNo!$Y:$Y) -> 345,373,407 | M74: =SUMIF(CongNo_TK,$B74,CongNo!$AA:$AA) -> 130,373,407 | N74: =SUMIF(CongNo_TK,$B74,CongNo!$AC:$AC) -> 15,000,000 | O74: =SUMIF(CongNo_TK,$B74,CongNo!$AE:$AE) -> 164,400,000 | P74: 15,000,000 | Q74: 164,400,000 | R74: =SUMIF(CongNo_TK,$B74,CongNo!$AK:$AK) -> 0 | S74: =SUMIF(CongNo_TK,$B74,CongNo!$AM:$AM) -> 0 | T74: =SUMIF(CongNo_TK,$B74,CongNo!$AO:$AO) -> 15,000,000 | U74: =SUMIF(CongNo_TK,$B74,CongNo!$AQ:$AQ) -> 164,400,000 | V74: =T74 -> 15,000,000 | W74: =U74 -> 164,400,000 | X74: =SUMIF(CongNo_TK,$B74,CongNo!$AW:$AW) -> 0 | Y74: =SUMIF(CongNo_TK,$B74,CongNo!$AY:$AY) -> 0 | Z74: =SUMIF(CongNo_TK,$B74,CongNo!$BA:$BA) -> 15,000,000 | AA74: =SUMIF(CongNo_TK,$B74,CongNo!$BC:$BC) -> 164,400,000 | AB74: =SUMIF(CongNo_TK,$B74,CongNo!$BE:$BE) -> 15,000,000 | AC74: =SUMIF(CongNo_TK,$B74,CongNo!$BG:$BG) -> 164,400,000 | AD74: =SUMIF(CongNo_TK,$B74,CongNo!$BI:$BI) -> 0 | AE74: =SUMIF(CongNo_TK,$B74,CongNo!$BK:$BK) -> 0 | AF74: =SUMIF(CongNo_TK,$B74,CongNo!$BM:$BM) -> 15,000,000 | AG74: =SUMIF(CongNo_TK,$B74,CongNo!$BO:$BO) -> 164,400,000 | AH74: =SUMIF(CongNo_TK,$B74,CongNo!$BQ:$BQ) -> 15,000,000 | AI74: =SUMIF(CongNo_TK,$B74,CongNo!$BS:$BS) -> 164,400,000 | AJ74: =SUMIF(CongNo_TK,$B74,CongNo!$BU:$BU) -> 0 | AK74: =SUMIF(CongNo_TK,$B74,CongNo!$BW:$BW) -> 0 | AL74: =SUMIF(CongNo_TK,$B74,CongNo!$BY:$BY) -> 15,000,000 | AM74: =SUMIF(CongNo_TK,$B74,CongNo!$CA:$CA) -> 164,400,000 | AN74: 15,000,000 | AO74: 164,400,000 | AP74: =SUMIF(CongNo_TK,$B74,CongNo!$CG:$CG) -> 0 | AQ74: =SUMIF(CongNo_TK,$B74,CongNo!$CJ:$CJ) -> 0 | AR74: =SUMIF(CongNo_TK,$B74,CongNo!$CK:$CK) -> 15,000,000 | AS74: =SUMIF(CongNo_TK,$B74,CongNo!$CM:$CM) -> 164,400,000 | AT74: =SUMIF(CongNo_TK,$B74,CongNo!$CO:$CO) -> 15,000,000 | AU74: =SUMIF(CongNo_TK,$B74,CongNo!$CQ:$CQ) -> 164,400,000 | AV74: =SUMIF(CongNo_TK,$B74,CongNo!$CS:$CS) -> 0 | AW74: =SUMIF(CongNo_TK,$B74,CongNo!$CU:$CU) -> 0 | AX74: =SUMIF(CongNo_TK,$B74,CongNo!$CW:$CW) -> 15,000,000 | AY74: =SUMIF(CongNo_TK,$B74,CongNo!$CY:$CY) -> 164,400,000 | AZ74: =SUMIF(CongNo_TK,$B74,CongNo!$DA:$DA) -> 15,000,000 | BA74: =SUMIF(CongNo_TK,$B74,CongNo!$DC:$DC) -> 164,400,000 | BB74: =SUMIF(CongNo_TK,$B74,CongNo!$DE:$DE) -> 0 | BC74: =SUMIF(CongNo_TK,$B74,CongNo!$DG:$DG) -> 0 | BD74: =SUMIF(CongNo_TK,$B74,CongNo!$DI:$DI) -> 15,000,000 | BE74: =SUMIF(CongNo_TK,$B74,CongNo!$DK:$DK) -> 164,400,000 | BF74: =SUMIF(CongNo_TK,$B74,CongNo!$DM:$DM) -> 15,000,000 | BG74: =SUMIF(CongNo_TK,$B74,CongNo!$DO:$DO) -> 164,400,000 | BH74: 0 | BI74: 0 | BJ74: =SUMIF(CongNo_TK,$B74,CongNo!$DU:$DU) -> 15,000,000 | BK74: =SUMIF(CongNo_TK,$B74,CongNo!$DW:$DW) -> 164,400,000 | BL74: =SUMIF(CongNo_TK,$B74,CongNo!$DY:$DY) -> 15,000,000 | BM74: =BK74 -> 164,400,000.00 | BN74: 0 | BO74: 0 | BP74: =IF(BL74+BN74-BM74-BO74>0,BL74+BN74-BM74-BO74,0) -> 0 | BQ74: =IF(BM74+BO74-BL74-BN74>0,BM74+BO74-BL74-BN74,0) -> 149,400,000 | BR74: =SUMIF(CongNo_TK,$B74,CongNo!$EK:$EK) -> 15,000,000 | BS74: =SUMIF(CongNo_TK,$B74,CongNo!$EM:$EM) -> 164,400,000 | BT74: =SUMIF(CongNo_TK,$B74,CongNo!$EO:$EO) -> 0 | BU74: =SUMIF(CongNo_TK,$B74,CongNo!$EQ:$EQ) -> 0 | BV74: =SUMIF(CongNo_TK,$B74,CongNo!$ES:$ES) -> 15,000,000 | BW74: =SUMIF(CongNo_TK,$B74,CongNo!$EU:$EU) -> 164,400,000 | BX74: =SUMIF(CongNo_TK,$B74,CongNo!$EW:$EW) -> 0 | BY74: =SUMIF(CongNo_TK,$B74,CongNo!$EY:$EY) -> 0 | BZ74: =SUMIF(CongNo_TK,$B74,CongNo!$FA:$FA) -> 927,048,374 | CA74: =SUMIF(CongNo_TK,$B74,CongNo!$FC:$FC) -> 1,145,023,374 | CB74: =SUMIF(CongNo_TK,$B74,CongNo!$FE:$FE) -> 15,000,000 | CC74: =SUMIF(CongNo_TK,$B74,CongNo!$FG:$FG) -> 232,975,000 | CD74: 3 | CE74: 331 | CF74: 331
A75: ok | B75: 333 | C75: Thuế và các khoản phải nộp cho Nhà nước | D75: 0 | F75: =F76+SUM(F79:F86) -> 2,000,000 | G75: 59,650,000 | H75: 0 | I75: 57,650,000 | J75: 0 | K75: 57,650,000 | L75: 148,646,249 | M75: 117,692,612 | N75: 0 | O75: 26,696,363 | P75: =P76+SUM(P79:P86) -> 0 | Q75: 26,696,363 | R75: 0 | S75: 0 | T75: 0 | U75: 26,696,363 | V75: =V76+SUM(V79:V86) -> 0 | W75: 26,696,363 | X75: 0 | Y75: 0 | Z75: 0 | AA75: 26,696,363 | AB75: 0 | AC75: 26,696,363 | AD75: 0 | AE75: 0 | AF75: 0 | AG75: 26,696,363 | AH75: 0 | AI75: 26,696,363 | AJ75: 0 | AK75: 0 | AL75: 0 | AM75: 26,696,363 | AN75: 0 | AO75: 26,696,363 | AP75: 0 | AQ75: 0 | AR75: 0 | AS75: 26,696,363 | AT75: 0 | AU75: 26,696,363 | AV75: 0 | AW75: 0 | AX75: 0 | AY75: 26,696,363 | AZ75: 0 | BA75: 26,696,363 | BB75: 0 | BC75: 0 | BD75: 0 | BE75: 26,696,363 | BF75: 0 | BG75: 26,696,363 | BH75: 0 | BI75: 0 | BJ75: 0 | BK75: 26,696,363 | BL75: 0 | BM75: 26,696,363 | BN75: 0 | BO75: 0 | BP75: 0 | BQ75: 26,696,363 | BR75: =BR76+SUM(BR79:BR86) -> 0 | BS75: 26,696,363 | BT75: 0 | BU75: 0 | BV75: 0 | BW75: 26,696,363 | BX75: 0 | BY75: 0 | BZ75: 150,646,249 | CA75: =CA76+SUM(CA79:CA86) -> 177,342,612 | CB75: 0 | CC75: =CC76+SUM(CC79:CC86) -> 26,696,363 | CD75: 3 | CF75: 333
A76: ok | B76: 3331 | C76: Thuế giá trị gia tăng phải nộp | D76: 0 | F76: =SUM(F77:F78) -> 0 | G76: 57,650,000 | H76: 0 | I76: 57,650,000 | J76: 0 | K76: 57,650,000 | L76: 146,151,824 | M76: 111,976,568 | N76: 0 | O76: 23,474,744 | P76: =SUM(P77:P78) -> 0 | Q76: =SUM(Q77:Q78) -> 23,474,744 | R76: 0 | S76: 0 | T76: 0 | U76: 23,474,744.00 | V76: =SUM(V77:V78) -> 0 | W76: 23,474,744.00 | X76: 0 | Y76: 0 | Z76: 0 | AA76: 23,474,744.00 | AB76: 0 | AC76: 23,474,744.00 | AD76: 0 | AE76: 0 | AF76: 0 | AG76: 23,474,744.00 | AH76: 0 | AI76: 23,474,744.00 | AJ76: 0 | AK76: 0 | AL76: 0 | AM76: 23,474,744.00 | AN76: 0 | AO76: 23,474,744.00 | AP76: 0 | AQ76: 0 | AR76: 0 | AS76: 23,474,744.00 | AT76: 0 | AU76: 23,474,744.00 | AV76: 0 | AW76: 0 | AX76: 0 | AY76: 23,474,744.00 | AZ76: 0 | BA76: 23,474,744.00 | BB76: 0 | BC76: 0 | BD76: 0 | BE76: 23,474,744.00 | BF76: 0 | BG76: 23,474,744.00 | BH76: 0 | BI76: 0 | BJ76: 0 | BK76: 23,474,744.00 | BL76: 0 | BM76: 23,474,744.00 | BN76: 0 | BO76: 0 | BP76: 0 | BQ76: 23,474,744 | BR76: =SUM(BR77:BR78) -> 0 | BS76: 23,474,744.00 | BT76: 0 | BU76: 0 | BV76: 0 | BW76: 23,474,744.00 | BX76: 0 | BY76: 0 | BZ76: 146,151,824 | CA76: 169,626,568 | CB76: 0 | CC76: 23,474,744 | CD76: 4 | CG76: 3331
A77: ok | B77: 33311 | C77: Thuế GTGT đầu ra | D77: 0 | F77: =SUMIF(TKno,TK,_st01) -> 0 | G77: =SUMIF(TKco,TK,_st01) -> 57,650,000 | H77: =IF(D77+F77-E77-G77>0,D77+F77-E77-G77,0) -> 0 | I77: =IF(E77+G77-D77-F77>0,E77+G77-D77-F77,0) -> 57,650,000 | J77: =H77 -> 0 | K77: =I77 -> 57,650,000 | L77: =SUMIF(TKno,TK,_st02) -> 133,430,256 | M77: =SUMIF(TKco,TK,_st02) -> 99,255,000 | N77: =IF(J77+L77-K77-M77>0,J77+L77-K77-M77,0) -> 0 | O77: =IF(K77+M77-J77-L77>0,K77+M77-J77-L77,0) -> 23,474,744 | P77: =N77 -> 0 | Q77: =O77 -> 23,474,744 | R77: =SUMIF(TKno,TK,_st03) -> 0 | S77: =SUMIF(TKco,TK,_st03) -> 0 | T77: =IF(P77+R77-Q77-S77>0,P77+R77-Q77-S77,0) -> 0 | U77: =IF(Q77+S77-P77-R77>0,Q77+S77-P77-R77,0) -> 23,474,744.00 | V77: =T77 -> 0 | W77: =U77 -> 23,474,744.00 | X77: =SUMIF(TKno,TK,_st04) -> 0 | Y77: =SUMIF(TKco,TK,_st04) -> 0 | Z77: =IF(V77+X77-W77-Y77>0,V77+X77-W77-Y77,0) -> 0 | AA77: =IF(W77+Y77-V77-X77>0,W77+Y77-V77-X77,0) -> 23,474,744.00 | AB77: =Z77 -> 0 | AC77: =AA77 -> 23,474,744.00 | AD77: =SUMIF(TKno,TK,_st05) -> 0 | AE77: =SUMIF(TKco,TK,_st05) -> 0 | AF77: =IF(AB77+AD77-AC77-AE77>0,AB77+AD77-AC77-AE77,0) -> 0 | AG77: =IF(AC77+AE77-AB77-AD77>0,AC77+AE77-AB77-AD77,0) -> 23,474,744.00 | AH77: =AF77 -> 0 | AI77: =AG77 -> 23,474,744.00 | AJ77: =SUMIF(TKno,TK,_st06) -> 0 | AK77: =SUMIF(TKco,TK,_st06) -> 0 | AL77: =IF(AH77+AJ77-AI77-AK77>0,AH77+AJ77-AI77-AK77,0) -> 0 | AM77: =IF(AI77+AK77-AH77-AJ77>0,AI77+AK77-AH77-AJ77,0) -> 23,474,744.00 | AN77: =AL77 -> 0 | AO77: =AM77 -> 23,474,744.00 | AP77: =SUMIF(TKno,TK,_st07) -> 0 | AQ77: =SUMIF(TKco,TK,_st07) -> 0 | AR77: =IF(AN77+AP77-AO77-AQ77>0,AN77+AP77-AO77-AQ77,0) -> 0 | AS77: =IF(AO77+AQ77-AN77-AP77>0,AO77+AQ77-AN77-AP77,0) -> 23,474,744.00 | AT77: =AR77 -> 0 | AU77: =AS77 -> 23,474,744.00 | AV77: =SUMIF(TKno,TK,_st08) -> 0 | AW77: =SUMIF(TKco,TK,_st08) -> 0 | AX77: =IF(AT77+AV77-AU77-AW77>0,AT77+AV77-AU77-AW77,0) -> 0 | AY77: =IF(AU77+AW77-AT77-AV77>0,AU77+AW77-AT77-AV77,0) -> 23,474,744.00 | AZ77: =AX77 -> 0 | BA77: =AY77 -> 23,474,744.00 | BB77: =SUMIF(TKno,TK,_st09) -> 0 | BC77: =SUMIF(TKco,TK,_st09) -> 0 | BD77: =IF(AZ77+BB77-BA77-BC77>0,AZ77+BB77-BA77-BC77,0) -> 0 | BE77: =IF(BA77+BC77-AZ77-BB77>0,BA77+BC77-AZ77-BB77,0) -> 23,474,744.00 | BF77: =BD77 -> 0 | BG77: =BE77 -> 23,474,744.00 | BH77: =SUMIF(TKno,TK,_st10) -> 0 | BI77: =SUMIF(TKco,TK,_st10) -> 0 | BJ77: =IF(BF77+BH77-BG77-BI77>0,BF77+BH77-BG77-BI77,0) -> 0 | BK77: =IF(BG77+BI77-BF77-BH77>0,BG77+BI77-BF77-BH77,0) -> 23,474,744.00 | BL77: =BJ77 -> 0 | BM77: =BK77 -> 23,474,744.00 | BN77: =SUMIF(TKno,TK,_st11) -> 0 | BO77: =SUMIF(TKco,TK,_st11) -> 0 | BP77: =IF(BL77+BN77-BM77-BO77>0,BL77+BN77-BM77-BO77,0) -> 0 | BQ77: =IF(BM77+BO77-BL77-BN77>0,BM77+BO77-BL77-BN77,0) -> 23,474,744 | BR77: =BP77 -> 0 | BS77: =BQ77 -> 23,474,744.00 | BT77: =SUMIF(TKno,TK,_st12) -> 0 | BU77: =SUMIF(TKco,TK,_st12) -> 0 | BV77: =IF(BR77+BT77-BS77-BU77>0,BR77+BT77-BS77-BU77,0) -> 0 | BW77: =IF(BS77+BU77-BR77-BT77>0,BS77+BU77-BR77-BT77,0) -> 23,474,744.00 | BX77: 0 | BY77: 0 | BZ77: =SUMIF(TKno,TK,ST) -> 133,430,256 | CA77: =SUMIF(TKco,TK,ST) -> 156,905,000 | CB77: =IF(BX77+BZ77-BY77-CA77>0,BX77+BZ77-BY77-CA77,0) -> 0 | CC77: =IF(BY77+CA77-BX77-BZ77>0,BY77+CA77-BX77-BZ77,0) -> 23,474,744 | CD77: 5 | CE77: =$B77 -> 33311
B78: 33312 | C78: Thuế GTGT hàng nhập khẩu | D78: 0 | F78: 0 | G78: 0 | H78: 0 | I78: 0 | J78: 0 | K78: 0 | L78: 12,721,568 | M78: 12,721,568 | N78: 0 | O78: 0 | P78: 0 | Q78: 0 | R78: 0 | S78: 0 | T78: 0 | U78: 0 | V78: 0 | W78: 0 | X78: 0 | Y78: 0 | Z78: 0 | AA78: 0 | AB78: 0 | AC78: 0 | AD78: 0 | AE78: 0 | AF78: 0 | AG78: 0 | AH78: 0 | AI78: 0 | AJ78: 0 | AK78: 0 | AL78: 0 | AM78: 0 | AN78: 0 | AO78: 0 | AP78: 0 | AQ78: 0 | AR78: 0 | AS78: 0 | AT78: 0 | AU78: 0 | AV78: 0 | AW78: 0 | AX78: 0 | AY78: 0 | AZ78: 0 | BA78: 0 | BB78: 0 | BC78: 0 | BD78: 0 | BE78: 0 | BF78: 0 | BG78: 0 | BH78: 0 | BI78: 0 | BJ78: 0 | BK78: 0 | BL78: 0 | BM78: 0 | BN78: 0 | BO78: 0 | BP78: 0 | BQ78: 0 | BR78: 0 | BS78: 0 | BT78: 0 | BU78: 0 | BV78: 0 | BW78: 0 | BX78: 0 | BY78: 0 | BZ78: 12,721,568 | CA78: 12,721,568 | CB78: 0 | CC78: 0 | CD78: 5 | CE78: 33312
B79: 3332 | C79: Thuế tiêu thụ đặc biệt | D79: 0 | F79: 0 | G79: 0 | H79: 0 | I79: 0 | J79: 0 | K79: 0 | L79: 0 | M79: 0 | N79: 0 | O79: 0 | P79: 0 | Q79: 0 | R79: 0 | S79: 0 | T79: 0 | U79: 0 | V79: 0 | W79: 0 | X79: 0 | Y79: 0 | Z79: 0 | AA79: 0 | AB79: 0 | AC79: 0 | AD79: 0 | AE79: 0 | AF79: 0 | AG79: 0 | AH79: 0 | AI79: 0 | AJ79: 0 | AK79: 0 | AL79: 0 | AM79: 0 | AN79: 0 | AO79: 0 | AP79: 0 | AQ79: 0 | AR79: 0 | AS79: 0 | AT79: 0 | AU79: 0 | AV79: 0 | AW79: 0 | AX79: 0 | AY79: 0 | AZ79: 0 | BA79: 0 | BB79: 0 | BC79: 0 | BD79: 0 | BE79: 0 | BF79: 0 | BG79: 0 | BH79: 0 | BI79: 0 | BJ79: 0 | BK79: 0 | BL79: 0 | BM79: 0 | BN79: 0 | BO79: 0 | BP79: 0 | BQ79: 0 | BR79: 0 | BS79: 0 | BT79: 0 | BU79: 0 | BV79: 0 | BW79: 0 | BX79: 0 | BY79: 0 | BZ79: 0 | CA79: 0 | CB79: 0 | CC79: 0 | CD79: 4 | CE79: 3332 | CG79: =IF($CD79=4,$B79,"") -> 3332
B80: 3333 | C80: Thuế xuất, nhập khẩu | D80: 0 | F80: 0 | G80: 0 | H80: 0 | I80: 0 | J80: 0 | K80: 0 | L80: 2,494,425 | M80: 2,494,425 | N80: 0 | O80: 0 | P80: 0 | Q80: 0 | R80: 0 | S80: 0 | T80: 0 | U80: 0 | V80: 0 | W80: 0 | X80: 0 | Y80: 0 | Z80: 0 | AA80: 0 | AB80: 0 | AC80: 0 | AD80: 0 | AE80: 0 | AF80: 0 | AG80: 0 | AH80: 0 | AI80: 0 | AJ80: 0 | AK80: 0 | AL80: 0 | AM80: 0 | AN80: 0 | AO80: 0 | AP80: 0 | AQ80: 0 | AR80: 0 | AS80: 0 | AT80: 0 | AU80: 0 | AV80: 0 | AW80: 0 | AX80: 0 | AY80: 0 | AZ80: 0 | BA80: 0 | BB80: 0 | BC80: 0 | BD80: 0 | BE80: 0 | BF80: 0 | BG80: 0 | BH80: 0 | BI80: 0 | BJ80: 0 | BK80: 0 | BL80: 0 | BM80: 0 | BN80: 0 | BO80: 0 | BP80: 0 | BQ80: 0 | BR80: 0 | BS80: 0 | BT80: 0 | BU80: 0 | BV80: 0 | BW80: 0 | BX80: 0 | BY80: 0 | BZ80: 2,494,425 | CA80: 2,494,425 | CB80: 0 | CC80: 0 | CD80: 4 | CE80: 3333 | CG80: 3333
B81: 3334 | C81: Thuế thu nhập doanh nghiệp | D81: 0 | F81: 0 | G81: 0 | H81: 0 | I81: 0 | J81: 0 | K81: 0 | L81: 0 | M81: 3,205,370 | N81: 0 | O81: 3,205,370.00 | P81: 0 | Q81: 3,205,370.00 | R81: 0 | S81: 0 | T81: 0 | U81: 3,205,370.00 | V81: 0 | W81: 3,205,370.00 | X81: 0 | Y81: 0 | Z81: 0 | AA81: 3,205,370.00 | AB81: 0 | AC81: 3,205,370.00 | AD81: 0 | AE81: 0 | AF81: 0 | AG81: 3,205,370.00 | AH81: 0 | AI81: 3,205,370.00 | AJ81: 0 | AK81: 0 | AL81: 0 | AM81: 3,205,370.00 | AN81: 0 | AO81: 3,205,370.00 | AP81: 0 | AQ81: 0 | AR81: 0 | AS81: 3,205,370.00 | AT81: 0 | AU81: 3,205,370.00 | AV81: 0 | AW81: 0 | AX81: 0 | AY81: 3,205,370.00 | AZ81: 0 | BA81: 3,205,370.00 | BB81: 0 | BC81: 0 | BD81: 0 | BE81: 3,205,370.00 | BF81: 0 | BG81: 3,205,370.00 | BH81: 0 | BI81: 0 | BJ81: 0 | BK81: 3,205,370.00 | BL81: 0 | BM81: 3,205,370.00 | BN81: 0 | BO81: 0 | BP81: 0 | BQ81: 3,205,370 | BR81: 0 | BS81: 3,205,370.00 | BT81: 0 | BU81: 0 | BV81: 0 | BW81: 3,205,370.00 | BX81: 0 | BY81: 0 | BZ81: 0 | CA81: 3,205,370 | CB81: 0 | CC81: 3,205,370 | CD81: 4 | CE81: 3334 | CF81: =IF($CD81=3,$B81,"") ->  | CG81: =IF($CD81=4,$B81,"") -> 3334
B82: 3335 | C82: Thuế thu nhập cá nhân | D82: 0 | F82: 0 | G82: 0 | H82: 0 | I82: 0 | J82: 0 | K82: 0 | L82: 0 | M82: 16,249 | N82: 0 | O82: 16,249 | P82: 0 | Q82: 16,249 | R82: 0 | S82: 0 | T82: 0 | U82: 16,249.00 | V82: 0 | W82: 16,249.00 | X82: 0 | Y82: 0 | Z82: 0 | AA82: 16,249.00 | AB82: 0 | AC82: 16,249.00 | AD82: 0 | AE82: 0 | AF82: 0 | AG82: 16,249.00 | AH82: 0 | AI82: 16,249.00 | AJ82: 0 | AK82: 0 | AL82: 0 | AM82: 16,249.00 | AN82: 0 | AO82: 16,249.00 | AP82: 0 | AQ82: 0 | AR82: 0 | AS82: 16,249.00 | AT82: 0 | AU82: 16,249.00 | AV82: 0 | AW82: 0 | AX82: 0 | AY82: 16,249.00 | AZ82: 0 | BA82: 16,249.00 | BB82: 0 | BC82: 0 | BD82: 0 | BE82: 16,249.00 | BF82: 0 | BG82: 16,249.00 | BH82: 0 | BI82: 0 | BJ82: 0 | BK82: 16,249.00 | BL82: 0 | BM82: 16,249.00 | BN82: 0 | BO82: 0 | BP82: 0 | BQ82: 16,249 | BR82: 0 | BS82: 16,249.00 | BT82: 0 | BU82: 0 | BV82: 0 | BW82: 16,249.00 | BX82: =D82 -> 0 | BY82: =E82 -> 0 | BZ82: 0 | CA82: 16,249 | CB82: 0 | CC82: 16,249 | CD82: 4 | CE82: 3335 | CG82: 3335
B83: 3336 | C83: Thuế tài nguyên | D83: 0 | F83: 0 | G83: 0 | H83: 0 | I83: 0 | J83: 0 | K83: 0 | L83: 0 | M83: 0 | N83: 0 | O83: 0 | P83: 0 | Q83: 0 | R83: 0 | S83: 0 | T83: 0 | U83: 0 | V83: 0 | W83: 0 | X83: 0 | Y83: 0 | Z83: 0 | AA83: 0 | AB83: 0 | AC83: 0 | AD83: 0 | AE83: 0 | AF83: 0 | AG83: 0 | AH83: 0 | AI83: 0 | AJ83: 0 | AK83: 0 | AL83: 0 | AM83: 0 | AN83: 0 | AO83: 0 | AP83: 0 | AQ83: 0 | AR83: 0 | AS83: 0 | AT83: 0 | AU83: 0 | AV83: 0 | AW83: 0 | AX83: 0 | AY83: 0 | AZ83: 0 | BA83: 0 | BB83: 0 | BC83: 0 | BD83: 0 | BE83: 0 | BF83: 0 | BG83: 0 | BH83: 0 | BI83: 0 | BJ83: 0 | BK83: 0 | BL83: 0 | BM83: 0 | BN83: 0 | BO83: 0 | BP83: 0 | BQ83: 0 | BR83: 0 | BS83: 0 | BT83: 0 | BU83: 0 | BV83: 0 | BW83: 0 | BX83: 0 | BY83: 0 | BZ83: 0 | CA83: 0 | CB83: 0 | CC83: 0 | CD83: 4 | CE83: 3336 | CG83: 3336
B84: 3337 | C84: Thuế nhà đất, tiền thuê đất | D84: 0 | F84: 0 | G84: 0 | H84: 0 | I84: 0 | J84: 0 | K84: 0 | L84: 0 | M84: 0 | N84: 0 | O84: 0 | P84: 0 | Q84: 0 | R84: 0 | S84: 0 | T84: 0 | U84: 0 | V84: 0 | W84: 0 | X84: 0 | Y84: 0 | Z84: 0 | AA84: 0 | AB84: 0 | AC84: 0 | AD84: 0 | AE84: 0 | AF84: 0 | AG84: 0 | AH84: 0 | AI84: 0 | AJ84: 0 | AK84: 0 | AL84: 0 | AM84: 0 | AN84: 0 | AO84: 0 | AP84: 0 | AQ84: 0 | AR84: 0 | AS84: 0 | AT84: 0 | AU84: 0 | AV84: 0 | AW84: 0 | AX84: 0 | AY84: 0 | AZ84: 0 | BA84: 0 | BB84: 0 | BC84: 0 | BD84: 0 | BE84: 0 | BF84: 0 | BG84: 0 | BH84: 0 | BI84: 0 | BJ84: 0 | BK84: 0 | BL84: 0 | BM84: 0 | BN84: 0 | BO84: 0 | BP84: 0 | BQ84: 0 | BR84: 0 | BS84: 0 | BT84: 0 | BU84: 0 | BV84: 0 | BW84: 0 | BX84: 0 | BY84: 0 | BZ84: 0 | CA84: 0 | CB84: 0 | CC84: 0 | CD84: 4 | CE84: 3337 | CG84: 3337
A85: ok | B85: 3338 | C85: Các loại thuế khác | D85: 0 | F85: 2,000,000 | G85: 2,000,000 | H85: 0 | I85: 0 | J85: 0 | K85: 0 | L85: 0 | M85: 0 | N85: 0 | O85: 0 | P85: 0 | Q85: 0 | R85: 0 | S85: 0 | T85: 0 | U85: 0 | V85: 0 | W85: 0 | X85: 0 | Y85: 0 | Z85: 0 | AA85: 0 | AB85: 0 | AC85: 0 | AD85: 0 | AE85: 0 | AF85: 0 | AG85: 0 | AH85: 0 | AI85: 0 | AJ85: 0 | AK85: 0 | AL85: 0 | AM85: 0 | AN85: 0 | AO85: 0 | AP85: 0 | AQ85: 0 | AR85: 0 | AS85: 0 | AT85: 0 | AU85: 0 | AV85: 0 | AW85: 0 | AX85: 0 | AY85: 0 | AZ85: 0 | BA85: 0 | BB85: 0 | BC85: 0 | BD85: 0 | BE85: 0 | BF85: 0 | BG85: 0 | BH85: 0 | BI85: 0 | BJ85: 0 | BK85: 0 | BL85: 0 | BM85: 0 | BN85: 0 | BO85: 0 | BP85: 0 | BQ85: 0 | BR85: 0 | BS85: 0 | BT85: 0 | BU85: 0 | BV85: 0 | BW85: 0 | BX85: 0 | BY85: 0 | BZ85: 2,000,000 | CA85: 2,000,000 | CB85: 0 | CC85: 0 | CD85: 4 | CE85: 3338 | CG85: 3338
B86: 3339 | C86: Phí, lệ phí và các khoản phải nộp khác | D86: 0 | F86: 0 | G86: 0 | H86: 0 | I86: 0 | J86: 0 | K86: 0 | L86: 0 | M86: 0 | N86: 0 | O86: 0 | P86: 0 | Q86: 0 | R86: 0 | S86: 0 | T86: 0 | U86: 0 | V86: 0 | W86: 0 | X86: 0 | Y86: 0 | Z86: 0 | AA86: 0 | AB86: 0 | AC86: 0 | AD86: 0 | AE86: 0 | AF86: 0 | AG86: 0 | AH86: 0 | AI86: 0 | AJ86: 0 | AK86: 0 | AL86: 0 | AM86: 0 | AN86: 0 | AO86: 0 | AP86: 0 | AQ86: 0 | AR86: 0 | AS86: 0 | AT86: 0 | AU86: 0 | AV86: 0 | AW86: 0 | AX86: 0 | AY86: 0 | AZ86: 0 | BA86: 0 | BB86: 0 | BC86: 0 | BD86: 0 | BE86: 0 | BF86: 0 | BG86: 0 | BH86: 0 | BI86: 0 | BJ86: 0 | BK86: 0 | BL86: 0 | BM86: 0 | BN86: 0 | BO86: 0 | BP86: 0 | BQ86: 0 | BR86: 0 | BS86: 0 | BT86: 0 | BU86: 0 | BV86: 0 | BW86: 0 | BX86: 0 | BY86: 0 | BZ86: 0 | CA86: 0 | CB86: 0 | CC86: 0 | CD86: 4 | CE86: 3339 | CG86: 3339
A87: ok | B87: 334 | C87: Phải trả người lao động | D87: 0 | F87: 0 | G87: 53,000,000 | H87: 0 | I87: 53,000,000.00 | J87: =H87 -> 0 | K87: =I87 -> 53,000,000.00 | L87: 55,800,000 | M87: 55,800,000 | N87: =IF(J87+L87-K87-M87>0,J87+L87-K87-M87,0) -> 0 | O87: =IF(K87+M87-J87-L87>0,K87+M87-J87-L87,0) -> 53,000,000 | P87: 0 | Q87: 53,000,000 | R87: 0 | S87: 0 | T87: 0 | U87: 53,000,000.00 | V87: 0 | W87: 53,000,000.00 | X87: 0 | Y87: 0 | Z87: 0 | AA87: 53,000,000.00 | AB87: 0 | AC87: 53,000,000.00 | AD87: 0 | AE87: 0 | AF87: 0 | AG87: 53,000,000.00 | AH87: 0 | AI87: 53,000,000.00 | AJ87: 0 | AK87: 0 | AL87: 0 | AM87: 53,000,000.00 | AN87: 0 | AO87: 53,000,000.00 | AP87: 0 | AQ87: 0 | AR87: 0 | AS87: 53,000,000.00 | AT87: 0 | AU87: 53,000,000.00 | AV87: 0 | AW87: 0 | AX87: 0 | AY87: 53,000,000.00 | AZ87: 0 | BA87: 53,000,000.00 | BB87: 0 | BC87: 0 | BD87: 0 | BE87: 53,000,000.00 | BF87: 0 | BG87: 53,000,000.00 | BH87: 0 | BI87: 0 | BJ87: 0 | BK87: 53,000,000.00 | BL87: 0 | BM87: 53,000,000.00 | BN87: 0 | BO87: 0 | BP87: 0 | BQ87: 53,000,000 | BR87: 0 | BS87: 53,000,000.00 | BT87: 0 | BU87: 0 | BV87: 0 | BW87: 53,000,000.00 | BX87: 0 | BY87: 0 | BZ87: 55,800,000 | CA87: 108,800,000 | CB87: 0 | CC87: 53,000,000 | CD87: 3 | CE87: 334 | CF87: 334
B88: 335 | C88: Chi phí phải trả | D88: 0 | F88: 0 | G88: 0 | H88: 0 | I88: 0 | J88: =H88 -> 0 | K88: =I88 -> 0 | L88: 0 | M88: 0 | N88: =IF(J88+L88-K88-M88>0,J88+L88-K88-M88,0) -> 0 | O88: =IF(K88+M88-J88-L88>0,K88+M88-J88-L88,0) -> 0 | P88: 0 | Q88: 0 | R88: 0 | S88: 0 | T88: 0 | U88: 0 | V88: 0 | W88: 0 | X88: 0 | Y88: 0 | Z88: 0 | AA88: 0 | AB88: 0 | AC88: 0 | AD88: 0 | AE88: 0 | AF88: 0 | AG88: 0 | AH88: 0 | AI88: 0 | AJ88: 0 | AK88: 0 | AL88: 0 | AM88: 0 | AN88: 0 | AO88: 0 | AP88: 0 | AQ88: 0 | AR88: 0 | AS88: 0 | AT88: 0 | AU88: 0 | AV88: 0 | AW88: 0 | AX88: 0 | AY88: 0 | AZ88: 0 | BA88: 0 | BB88: 0 | BC88: 0 | BD88: 0 | BE88: 0 | BF88: 0 | BG88: 0 | BH88: 0 | BI88: 0 | BJ88: 0 | BK88: 0 | BL88: 0 | BM88: 0 | BN88: 0 | BO88: 0 | BP88: 0 | BQ88: 0 | BR88: 0 | BS88: 0 | BT88: 0 | BU88: 0 | BV88: 0 | BW88: 0 | BX88: 0 | BY88: 0 | BZ88: 0 | CA88: 0 | CB88: 0 | CC88: 0 | CD88: =LEN($B88) -> 3 | CE88: 335 | CF88: 335
A89: =IF(SUM($D89:$I89)>0,"ok","") ->  | B89: 338 | C89: Phải trả, phải nộp khác | D89: 0 | E89: 0 | F89: =SUM(F90:F98) -> 0 | G89: =SUM(G90:G98) -> 0 | H89: 0 | I89: 0 | J89: =SUM(J90:J98) -> 0 | K89: 0 | L89: 0 | M89: 11,924,348 | N89: 0 | O89: 11,924,348 | P89: 0 | Q89: 11,924,348 | R89: 0 | S89: 0 | T89: 0 | U89: 11,924,348.00 | V89: 0 | W89: 11,924,348.00 | X89: 0 | Y89: 0 | Z89: 0 | AA89: 11,924,348.00 | AB89: 0 | AC89: 11,924,348.00 | AD89: 0 | AE89: 0 | AF89: 0 | AG89: 11,924,348.00 | AH89: 0 | AI89: 11,924,348.00 | AJ89: 0 | AK89: 0 | AL89: 0 | AM89: 11,924,348.00 | AN89: 0 | AO89: 11,924,348.00 | AP89: 0 | AQ89: 0 | AR89: 0 | AS89: 11,924,348.00 | AT89: 0 | AU89: 11,924,348.00 | AV89: 0 | AW89: 0 | AX89: 0 | AY89: 11,924,348.00 | AZ89: 0 | BA89: 11,924,348.00 | BB89: 0 | BC89: 0 | BD89: 0 | BE89: 11,924,348.00 | BF89: 0 | BG89: 11,924,348.00 | BH89: 0 | BI89: 0 | BJ89: 0 | BK89: 11,924,348.00 | BL89: 0 | BM89: 11,924,348.00 | BN89: 0 | BO89: 0 | BP89: 0 | BQ89: 11,924,348.00 | BR89: 0 | BS89: =SUM(BS90:BS98) -> 11,924,348.00 | BT89: 0 | BU89: 0 | BV89: 0 | BW89: 11,924,348.00 | BX89: 0 | BY89: 0 | BZ89: 0 | CA89: 11,924,348 | CB89: 0 | CC89: 11,924,348 | CD89: 3 | CF89: 338
B90: 3381 | C90: Tài sản thừa chờ giải quyết | D90: 0 | F90: =SUMIF(TKno,TK,_st01) -> 0 | G90: =SUMIF(TKco,TK,_st01) -> 0 | H90: =IF(D90+F90-E90-G90>0,D90+F90-E90-G90,0) -> 0 | I90: =IF(E90+G90-D90-F90>0,E90+G90-D90-F90,0) -> 0 | J90: =H90 -> 0 | K90: =I90 -> 0 | L90: =SUMIF(TKno,TK,_st02) -> 0 | M90: =SUMIF(TKco,TK,_st02) -> 0 | N90: =IF(J90+L90-K90-M90>0,J90+L90-K90-M90,0) -> 0 | O90: =IF(K90+M90-J90-L90>0,K90+M90-J90-L90,0) -> 0 | P90: =N90 -> 0 | Q90: =O90 -> 0 | R90: =SUMIF(TKno,TK,_st03) -> 0 | S90: =SUMIF(TKco,TK,_st03) -> 0 | T90: =IF(P90+R90-Q90-S90>0,P90+R90-Q90-S90,0) -> 0 | U90: =IF(Q90+S90-P90-R90>0,Q90+S90-P90-R90,0) -> 0 | V90: =T90 -> 0 | W90: =U90 -> 0 | X90: =SUMIF(TKno,TK,_st04) -> 0 | Y90: =SUMIF(TKco,TK,_st04) -> 0 | Z90: =IF(V90+X90-W90-Y90>0,V90+X90-W90-Y90,0) -> 0 | AA90: =IF(W90+Y90-V90-X90>0,W90+Y90-V90-X90,0) -> 0 | AB90: =Z90 -> 0 | AC90: =AA90 -> 0 | AD90: =SUMIF(TKno,TK,_st05) -> 0 | AE90: =SUMIF(TKco,TK,_st05) -> 0 | AF90: =IF(AB90+AD90-AC90-AE90>0,AB90+AD90-AC90-AE90,0) -> 0 | AG90: =IF(AC90+AE90-AB90-AD90>0,AC90+AE90-AB90-AD90,0) -> 0 | AH90: =AF90 -> 0 | AI90: =AG90 -> 0 | AJ90: =SUMIF(TKno,TK,_st06) -> 0 | AK90: =SUMIF(TKco,TK,_st06) -> 0 | AL90: =IF(AH90+AJ90-AI90-AK90>0,AH90+AJ90-AI90-AK90,0) -> 0 | AM90: =IF(AI90+AK90-AH90-AJ90>0,AI90+AK90-AH90-AJ90,0) -> 0 | AN90: =AL90 -> 0 | AO90: =AM90 -> 0 | AP90: =SUMIF(TKno,TK,_st07) -> 0 | AQ90: =SUMIF(TKco,TK,_st07) -> 0 | AR90: =IF(AN90+AP90-AO90-AQ90>0,AN90+AP90-AO90-AQ90,0) -> 0 | AS90: =IF(AO90+AQ90-AN90-AP90>0,AO90+AQ90-AN90-AP90,0) -> 0 | AT90: =AR90 -> 0 | AU90: =AS90 -> 0 | AV90: =SUMIF(TKno,TK,_st08) -> 0 | AW90: =SUMIF(TKco,TK,_st08) -> 0 | AX90: =IF(AT90+AV90-AU90-AW90>0,AT90+AV90-AU90-AW90,0) -> 0 | AY90: =IF(AU90+AW90-AT90-AV90>0,AU90+AW90-AT90-AV90,0) -> 0 | AZ90: =AX90 -> 0 | BA90: =AY90 -> 0 | BB90: =SUMIF(TKno,TK,_st09) -> 0 | BC90: =SUMIF(TKco,TK,_st09) -> 0 | BD90: =IF(AZ90+BB90-BA90-BC90>0,AZ90+BB90-BA90-BC90,0) -> 0 | BE90: =IF(BA90+BC90-AZ90-BB90>0,BA90+BC90-AZ90-BB90,0) -> 0 | BF90: =BD90 -> 0 | BG90: =BE90 -> 0 | BH90: =SUMIF(TKno,TK,_st10) -> 0 | BI90: =SUMIF(TKco,TK,_st10) -> 0 | BJ90: =IF(BF90+BH90-BG90-BI90>0,BF90+BH90-BG90-BI90,0) -> 0 | BK90: =IF(BG90+BI90-BF90-BH90>0,BG90+BI90-BF90-BH90,0) -> 0 | BL90: =BJ90 -> 0 | BM90: =BK90 -> 0 | BN90: =SUMIF(TKno,TK,_st11) -> 0 | BO90: =SUMIF(TKco,TK,_st11) -> 0 | BP90: =IF(BL90+BN90-BM90-BO90>0,BL90+BN90-BM90-BO90,0) -> 0 | BQ90: =IF(BM90+BO90-BL90-BN90>0,BM90+BO90-BL90-BN90,0) -> 0 | BR90: =BP90 -> 0 | BS90: =BQ90 -> 0 | BT90: =SUMIF(TKno,TK,_st12) -> 0 | BU90: =SUMIF(TKco,TK,_st12) -> 0 | BV90: =IF(BR90+BT90-BS90-BU90>0,BR90+BT90-BS90-BU90,0) -> 0 | BW90: =IF(BS90+BU90-BR90-BT90>0,BS90+BU90-BR90-BT90,0) -> 0 | BX90: 0 | BY90: 0 | BZ90: =SUMIF(TKno,TK,ST) -> 0 | CA90: =SUMIF(TKco,TK,ST) -> 0 | CB90: =IF(BX90+BZ90-BY90-CA90>0,BX90+BZ90-BY90-CA90,0) -> 0 | CC90: =IF(BY90+CA90-BX90-BZ90>0,BY90+CA90-BX90-BZ90,0) -> 0 | CD90: 4 | CE90: =$B90 -> 3381 | CG90: 3381
B91: 3382 | C91: Kinh phí công đoàn | D91: 0 | F91: 0 | G91: 0 | H91: 0 | I91: 0 | J91: 0 | K91: 0 | L91: 0 | M91: 0 | N91: 0 | O91: 0 | P91: 0 | Q91: 0 | R91: 0 | S91: 0 | T91: 0 | U91: 0 | V91: 0 | W91: 0 | X91: 0 | Y91: 0 | Z91: 0 | AA91: 0 | AB91: 0 | AC91: 0 | AD91: 0 | AE91: 0 | AF91: 0 | AG91: 0 | AH91: 0 | AI91: 0 | AJ91: 0 | AK91: 0 | AL91: 0 | AM91: 0 | AN91: 0 | AO91: 0 | AP91: 0 | AQ91: 0 | AR91: 0 | AS91: 0 | AT91: 0 | AU91: 0 | AV91: 0 | AW91: 0 | AX91: 0 | AY91: 0 | AZ91: 0 | BA91: 0 | BB91: 0 | BC91: 0 | BD91: 0 | BE91: 0 | BF91: 0 | BG91: 0 | BH91: 0 | BI91: 0 | BJ91: 0 | BK91: 0 | BL91: 0 | BM91: 0 | BN91: 0 | BO91: 0 | BP91: 0 | BQ91: 0 | BR91: 0 | BS91: 0 | BT91: 0 | BU91: 0 | BV91: 0 | BW91: 0 | BX91: 0 | BY91: 0 | BZ91: 0 | CA91: 0 | CB91: 0 | CC91: 0 | CD91: 4 | CE91: 3382 | CG91: 3382
B92: 3383 | C92: Bảo hiểm xã hội | D92: 0 | F92: 0 | G92: 0 | H92: 0 | I92: 0 | J92: 0 | K92: 0 | L92: 0 | M92: 9,539,478 | N92: 0 | O92: 9,539,478 | P92: 0 | Q92: 9,539,478 | R92: 0 | S92: 0 | T92: 0 | U92: 9,539,478.00 | V92: 0 | W92: 9,539,478.00 | X92: 0 | Y92: 0 | Z92: 0 | AA92: 9,539,478.00 | AB92: 0 | AC92: 9,539,478.00 | AD92: 0 | AE92: 0 | AF92: 0 | AG92: 9,539,478.00 | AH92: 0 | AI92: 9,539,478.00 | AJ92: 0 | AK92: 0 | AL92: 0 | AM92: 9,539,478.00 | AN92: 0 | AO92: 9,539,478.00 | AP92: 0 | AQ92: 0 | AR92: 0 | AS92: 9,539,478.00 | AT92: 0 | AU92: 9,539,478.00 | AV92: 0 | AW92: 0 | AX92: 0 | AY92: 9,539,478.00 | AZ92: 0 | BA92: 9,539,478.00 | BB92: 0 | BC92: 0 | BD92: 0 | BE92: 9,539,478.00 | BF92: 0 | BG92: 9,539,478.00 | BH92: 0 | BI92: 0 | BJ92: 0 | BK92: 9,539,478.00 | BL92: 0 | BM92: 9,539,478.00 | BN92: 0 | BO92: 0 | BP92: 0 | BQ92: 9,539,478 | BR92: 0 | BS92: 9,539,478.00 | BT92: 0 | BU92: 0 | BV92: 0 | BW92: 9,539,478.00 | BX92: 0 | BY92: 0 | BZ92: 0 | CA92: 9,539,478 | CB92: =IF(BX92+BZ92-BY92-CA92>0,BX92+BZ92-BY92-CA92,0) -> 0 | CC92: 9,539,478 | CD92: 4 | CE92: 3383 | CG92: 3383
B93: 3384 | C93: Bảo hiểm y tế | D93: 0 | F93: 0 | G93: 0 | H93: 0 | I93: 0 | J93: 0 | K93: 0 | L93: 0 | M93: 1,651,064 | N93: 0 | O93: 1,651,064 | P93: 0 | Q93: 1,651,064 | R93: 0 | S93: 0 | T93: 0 | U93: 1,651,064.00 | V93: 0 | W93: 1,651,064.00 | X93: 0 | Y93: 0 | Z93: 0 | AA93: 1,651,064.00 | AB93: 0 | AC93: 1,651,064.00 | AD93: 0 | AE93: 0 | AF93: 0 | AG93: 1,651,064.00 | AH93: 0 | AI93: 1,651,064.00 | AJ93: 0 | AK93: 0 | AL93: 0 | AM93: 1,651,064.00 | AN93: 0 | AO93: 1,651,064.00 | AP93: 0 | AQ93: 0 | AR93: 0 | AS93: 1,651,064.00 | AT93: 0 | AU93: 1,651,064.00 | AV93: 0 | AW93: 0 | AX93: 0 | AY93: 1,651,064.00 | AZ93: 0 | BA93: 1,651,064.00 | BB93: 0 | BC93: 0 | BD93: 0 | BE93: 1,651,064.00 | BF93: 0 | BG93: 1,651,064.00 | BH93: 0 | BI93: 0 | BJ93: 0 | BK93: 1,651,064.00 | BL93: 0 | BM93: 1,651,064.00 | BN93: 0 | BO93: 0 | BP93: 0 | BQ93: 1,651,064 | BR93: 0 | BS93: 1,651,064.00 | BT93: 0 | BU93: 0 | BV93: =IF(BR93+BT93-BS93-BU93>0,BR93+BT93-BS93-BU93,0) -> 0 | BW93: =IF(BS93+BU93-BR93-BT93>0,BS93+BU93-BR93-BT93,0) -> 1,651,064.00 | BX93: 0 | BY93: 0 | BZ93: 0 | CA93: 1,651,064 | CB93: =IF(BX93+BZ93-BY93-CA93>0,BX93+BZ93-BY93-CA93,0) -> 0 | CC93: =IF(BY93+CA93-BX93-BZ93>0,BY93+CA93-BX93-BZ93,0) -> 1,651,064 | CD93: 4 | CE93: 3384 | CG93: 3384
B94: 3385 | C94: Phải trả về cổ phần hóa | D94: 0 | F94: 0 | G94: 0 | H94: 0 | I94: 0 | J94: 0 | K94: 0 | L94: 0 | M94: 0 | N94: 0 | O94: 0 | P94: 0 | Q94: 0 | R94: 0 | S94: 0 | T94: 0 | U94: 0 | V94: 0 | W94: 0 | X94: 0 | Y94: 0 | Z94: 0 | AA94: 0 | AB94: 0 | AC94: 0 | AD94: 0 | AE94: 0 | AF94: 0 | AG94: 0 | AH94: 0 | AI94: 0 | AJ94: 0 | AK94: 0 | AL94: 0 | AM94: 0 | AN94: 0 | AO94: 0 | AP94: 0 | AQ94: 0 | AR94: 0 | AS94: 0 | AT94: 0 | AU94: 0 | AV94: 0 | AW94: 0 | AX94: 0 | AY94: 0 | AZ94: 0 | BA94: 0 | BB94: 0 | BC94: 0 | BD94: 0 | BE94: 0 | BF94: 0 | BG94: 0 | BH94: 0 | BI94: 0 | BJ94: 0 | BK94: 0 | BL94: 0 | BM94: 0 | BN94: 0 | BO94: 0 | BP94: 0 | BQ94: 0 | BR94: 0 | BS94: 0 | BT94: 0 | BU94: 0 | BV94: 0 | BW94: 0 | BX94: 0 | BY94: 0 | BZ94: 0 | CA94: 0 | CB94: 0 | CC94: =IF(BY94+CA94-BX94-BZ94>0,BY94+CA94-BX94-BZ94,0) -> 0 | CD94: 4 | CE94: 3385 | CG94: 3385
B95: 3386 | C95: Nhận ký quỹ, ký cược ngắn hạn | D95: 0 | F95: 0 | G95: 0 | H95: 0 | I95: 0 | J95: 0 | K95: 0 | L95: 0 | M95: 0 | N95: 0 | O95: 0 | P95: 0 | Q95: 0 | R95: 0 | S95: 0 | T95: 0 | U95: 0 | V95: 0 | W95: 0 | X95: 0 | Y95: 0 | Z95: 0 | AA95: 0 | AB95: 0 | AC95: 0 | AD95: 0 | AE95: 0 | AF95: 0 | AG95: 0 | AH95: 0 | AI95: 0 | AJ95: 0 | AK95: 0 | AL95: 0 | AM95: 0 | AN95: 0 | AO95: 0 | AP95: 0 | AQ95: 0 | AR95: 0 | AS95: 0 | AT95: 0 | AU95: 0 | AV95: 0 | AW95: 0 | AX95: 0 | AY95: 0 | AZ95: 0 | BA95: 0 | BB95: 0 | BC95: 0 | BD95: 0 | BE95: 0 | BF95: 0 | BG95: 0 | BH95: 0 | BI95: 0 | BJ95: 0 | BK95: 0 | BL95: 0 | BM95: 0 | BN95: 0 | BO95: 0 | BP95: 0 | BQ95: 0 | BR95: 0 | BS95: 0 | BT95: 0 | BU95: 0 | BV95: 0 | BW95: 0 | BX95: 0 | BY95: 0 | BZ95: 0 | CA95: 0 | CB95: 0 | CC95: 0 | CD95: 4 | CE95: 3386 | CG95: 3386
B96: 3387 | C96: Doanh thu chưa thực hiện | D96: 0 | F96: 0 | G96: 0 | H96: 0 | I96: 0 | J96: 0 | K96: 0 | L96: 0 | M96: 0 | N96: 0 | O96: 0 | P96: 0 | Q96: 0 | R96: 0 | S96: 0 | T96: 0 | U96: 0 | V96: 0 | W96: 0 | X96: 0 | Y96: 0 | Z96: 0 | AA96: 0 | AB96: 0 | AC96: 0 | AD96: 0 | AE96: 0 | AF96: 0 | AG96: 0 | AH96: 0 | AI96: 0 | AJ96: 0 | AK96: 0 | AL96: 0 | AM96: 0 | AN96: 0 | AO96: 0 | AP96: 0 | AQ96: 0 | AR96: 0 | AS96: 0 | AT96: 0 | AU96: 0 | AV96: 0 | AW96: 0 | AX96: 0 | AY96: 0 | AZ96: 0 | BA96: 0 | BB96: 0 | BC96: 0 | BD96: 0 | BE96: 0 | BF96: 0 | BG96: 0 | BH96: 0 | BI96: 0 | BJ96: 0 | BK96: 0 | BL96: 0 | BM96: 0 | BN96: 0 | BO96: 0 | BP96: 0 | BQ96: 0 | BR96: 0 | BS96: 0 | BT96: 0 | BU96: 0 | BV96: 0 | BW96: 0 | BX96: 0 | BY96: 0 | BZ96: 0 | CA96: 0 | CB96: 0 | CC96: 0 | CD96: 4 | CE96: 3387 | CG96: 3387
B97: 3388 | C97: Phải trả, phải nộp khác | D97: 0 | E97: 0 | F97: 0 | G97: 0 | H97: =IF(D97+F97-E97-G97>0,D97+F97-E97-G97,0) -> 0 | I97: =IF(E97+G97-D97-F97>0,E97+G97-D97-F97,0) -> 0 | J97: =H97 -> 0 | K97: 0 | L97: 0 | M97: 0 | N97: =IF(J97+L97-K97-M97>0,J97+L97-K97-M97,0) -> 0 | O97: =IF(K97+M97-J97-L97>0,K97+M97-J97-L97,0) -> 0 | P97: =N97 -> 0 | Q97: 0 | R97: 0 | S97: 0 | T97: =IF(P97+R97-Q97-S97>0,P97+R97-Q97-S97,0) -> 0 | U97: =IF(Q97+S97-P97-R97>0,Q97+S97-P97-R97,0) -> 0 | V97: =T97 -> 0 | W97: 0 | X97: 0 | Y97: 0 | Z97: =IF(V97+X97-W97-Y97>0,V97+X97-W97-Y97,0) -> 0 | AA97: =IF(W97+Y97-V97-X97>0,W97+Y97-V97-X97,0) -> 0 | AB97: =Z97 -> 0 | AC97: 0 | AD97: 0 | AE97: 0 | AF97: =IF(AB97+AD97-AC97-AE97>0,AB97+AD97-AC97-AE97,0) -> 0 | AG97: =IF(AC97+AE97-AB97-AD97>0,AC97+AE97-AB97-AD97,0) -> 0 | AH97: =AF97 -> 0 | AI97: 0 | AJ97: 0 | AK97: 0 | AL97: =IF(AH97+AJ97-AI97-AK97>0,AH97+AJ97-AI97-AK97,0) -> 0 | AM97: =IF(AI97+AK97-AH97-AJ97>0,AI97+AK97-AH97-AJ97,0) -> 0 | AN97: =AL97 -> 0 | AO97: 0 | AP97: 0 | AQ97: 0 | AR97: =IF(AN97+AP97-AO97-AQ97>0,AN97+AP97-AO97-AQ97,0) -> 0 | AS97: =IF(AO97+AQ97-AN97-AP97>0,AO97+AQ97-AN97-AP97,0) -> 0 | AT97: =AR97 -> 0 | AU97: 0 | AV97: 0 | AW97: 0 | AX97: =IF(AT97+AV97-AU97-AW97>0,AT97+AV97-AU97-AW97,0) -> 0 | AY97: =IF(AU97+AW97-AT97-AV97>0,AU97+AW97-AT97-AV97,0) -> 0 | AZ97: =AX97 -> 0 | BA97: 0 | BB97: 0 | BC97: 0 | BD97: =IF(AZ97+BB97-BA97-BC97>0,AZ97+BB97-BA97-BC97,0) -> 0 | BE97: =IF(BA97+BC97-AZ97-BB97>0,BA97+BC97-AZ97-BB97,0) -> 0 | BF97: =BD97 -> 0 | BG97: 0 | BH97: 0 | BI97: 0 | BJ97: =IF(BF97+BH97-BG97-BI97>0,BF97+BH97-BG97-BI97,0) -> 0 | BK97: =IF(BG97+BI97-BF97-BH97>0,BG97+BI97-BF97-BH97,0) -> 0 | BL97: =BJ97 -> 0 | BM97: 0 | BN97: 0 | BO97: 0 | BP97: =IF(BL97+BN97-BM97-BO97>0,BL97+BN97-BM97-BO97,0) -> 0 | BQ97: =IF(BM97+BO97-BL97-BN97>0,BM97+BO97-BL97-BN97,0) -> 0 | BR97: =BP97 -> 0 | BS97: 0 | BT97: 0 | BU97: 0 | BV97: =IF(BR97+BT97-BS97-BU97>0,BR97+BT97-BS97-BU97,0) -> 0 | BW97: =IF(BS97+BU97-BR97-BT97>0,BS97+BU97-BR97-BT97,0) -> 0 | BX97: =D97 -> 0 | BY97: 0 | BZ97: 0 | CA97: 0 | CB97: =SUMIF(CongNo_TK,'CDPS-ok'!$B97,CongNo!$FE:$FE) -> 0 | CC97: 0 | CD97: 4 | CE97: 3388 | CG97: 3388
B98: 3389 | C98: Bảo hiểm thất nghiệp | D98: 0 | E98: 0 | F98: 0 | G98: 0 | H98: =IF(D98+F98-E98-G98>0,D98+F98-E98-G98,0) -> 0 | I98: =IF(E98+G98-D98-F98>0,E98+G98-D98-F98,0) -> 0 | J98: =H98 -> 0 | K98: =I98 -> 0 | L98: 0 | M98: 733,806 | N98: =IF(J98+L98-K98-M98>0,J98+L98-K98-M98,0) -> 0 | O98: =IF(K98+M98-J98-L98>0,K98+M98-J98-L98,0) -> 733,806 | P98: 0 | Q98: 733,806 | R98: 0 | S98: 0 | T98: =IF(P98+R98-Q98-S98>0,P98+R98-Q98-S98,0) -> 0 | U98: =IF(Q98+S98-P98-R98>0,Q98+S98-P98-R98,0) -> 733,806.00 | V98: 0 | W98: 733,806.00 | X98: 0 | Y98: 0 | Z98: =IF(V98+X98-W98-Y98>0,V98+X98-W98-Y98,0) -> 0 | AA98: =IF(W98+Y98-V98-X98>0,W98+Y98-V98-X98,0) -> 733,806.00 | AB98: 0 | AC98: 733,806.00 | AD98: 0 | AE98: 0 | AF98: =IF(AB98+AD98-AC98-AE98>0,AB98+AD98-AC98-AE98,0) -> 0 | AG98: =IF(AC98+AE98-AB98-AD98>0,AC98+AE98-AB98-AD98,0) -> 733,806.00 | AH98: 0 | AI98: 733,806.00 | AJ98: 0 | AK98: 0 | AL98: =IF(AH98+AJ98-AI98-AK98>0,AH98+AJ98-AI98-AK98,0) -> 0 | AM98: =IF(AI98+AK98-AH98-AJ98>0,AI98+AK98-AH98-AJ98,0) -> 733,806.00 | AN98: 0 | AO98: 733,806.00 | AP98: 0 | AQ98: 0 | AR98: =IF(AN98+AP98-AO98-AQ98>0,AN98+AP98-AO98-AQ98,0) -> 0 | AS98: =IF(AO98+AQ98-AN98-AP98>0,AO98+AQ98-AN98-AP98,0) -> 733,806.00 | AT98: 0 | AU98: 733,806.00 | AV98: 0 | AW98: 0 | AX98: =IF(AT98+AV98-AU98-AW98>0,AT98+AV98-AU98-AW98,0) -> 0 | AY98: =IF(AU98+AW98-AT98-AV98>0,AU98+AW98-AT98-AV98,0) -> 733,806.00 | AZ98: 0 | BA98: 733,806.00 | BB98: 0 | BC98: 0 | BD98: =IF(AZ98+BB98-BA98-BC98>0,AZ98+BB98-BA98-BC98,0) -> 0 | BE98: =IF(BA98+BC98-AZ98-BB98>0,BA98+BC98-AZ98-BB98,0) -> 733,806.00 | BF98: 0 | BG98: 733,806.00 | BH98: 0 | BI98: 0 | BJ98: =IF(BF98+BH98-BG98-BI98>0,BF98+BH98-BG98-BI98,0) -> 0 | BK98: =IF(BG98+BI98-BF98-BH98>0,BG98+BI98-BF98-BH98,0) -> 733,806.00 | BL98: 0 | BM98: 733,806.00 | BN98: 0 | BO98: 0 | BP98: =IF(BL98+BN98-BM98-BO98>0,BL98+BN98-BM98-BO98,0) -> 0 | BQ98: =IF(BM98+BO98-BL98-BN98>0,BM98+BO98-BL98-BN98,0) -> 733,806 | BR98: 0 | BS98: 733,806.00 | BT98: 0 | BU98: 0 | BV98: =IF(BR98+BT98-BS98-BU98>0,BR98+BT98-BS98-BU98,0) -> 0 | BW98: =IF(BS98+BU98-BR98-BT98>0,BS98+BU98-BR98-BT98,0) -> 733,806.00 | BX98: 0 | BY98: 0 | BZ98: 0 | CA98: 733,806 | CB98: =SUMIF(CongNo_TK,'CDPS-ok'!$B98,CongNo!$FE:$FE) -> 0 | CC98: 733,806 | CD98: 4 | CE98: 3389 | CG98: 3389
B99: 341 | C99: Vay ngắn hạn | D99: 0 | E99: 0 | F99: 0 | G99: 0 | H99: 0 | I99: 0 | J99: 0 | K99: 0 | L99: 0 | M99: 0 | N99: =IF(J99+L99-K99-M99>0,J99+L99-K99-M99,0) -> 0 | O99: =IF(K99+M99-J99-L99>0,K99+M99-J99-L99,0) -> 0 | P99: 0 | Q99: 0 | R99: 0 | S99: 0 | T99: =IF(P99+R99-Q99-S99>0,P99+R99-Q99-S99,0) -> 0 | U99: =IF(Q99+S99-P99-R99>0,Q99+S99-P99-R99,0) -> 0 | V99: 0 | W99: 0 | X99: 0 | Y99: 0 | Z99: =IF(V99+X99-W99-Y99>0,V99+X99-W99-Y99,0) -> 0 | AA99: =IF(W99+Y99-V99-X99>0,W99+Y99-V99-X99,0) -> 0 | AB99: 0 | AC99: 0 | AD99: 0 | AE99: 0 | AF99: =IF(AB99+AD99-AC99-AE99>0,AB99+AD99-AC99-AE99,0) -> 0 | AG99: =IF(AC99+AE99-AB99-AD99>0,AC99+AE99-AB99-AD99,0) -> 0 | AH99: 0 | AI99: 0 | AJ99: 0 | AK99: 0 | AL99: =IF(AH99+AJ99-AI99-AK99>0,AH99+AJ99-AI99-AK99,0) -> 0 | AM99: =IF(AI99+AK99-AH99-AJ99>0,AI99+AK99-AH99-AJ99,0) -> 0 | AN99: 0 | AO99: 0 | AP99: 0 | AQ99: 0 | AR99: =IF(AN99+AP99-AO99-AQ99>0,AN99+AP99-AO99-AQ99,0) -> 0 | AS99: =IF(AO99+AQ99-AN99-AP99>0,AO99+AQ99-AN99-AP99,0) -> 0 | AT99: 0 | AU99: 0 | AV99: 0 | AW99: 0 | AX99: =IF(AT99+AV99-AU99-AW99>0,AT99+AV99-AU99-AW99,0) -> 0 | AY99: =IF(AU99+AW99-AT99-AV99>0,AU99+AW99-AT99-AV99,0) -> 0 | AZ99: 0 | BA99: 0 | BB99: 0 | BC99: 0 | BD99: =IF(AZ99+BB99-BA99-BC99>0,AZ99+BB99-BA99-BC99,0) -> 0 | BE99: =IF(BA99+BC99-AZ99-BB99>0,BA99+BC99-AZ99-BB99,0) -> 0 | BF99: 0 | BG99: 0 | BH99: 0 | BI99: 0 | BJ99: =IF(BF99+BH99-BG99-BI99>0,BF99+BH99-BG99-BI99,0) -> 0 | BK99: =IF(BG99+BI99-BF99-BH99>0,BG99+BI99-BF99-BH99,0) -> 0 | BL99: 0 | BM99: 0 | BN99: 0 | BO99: 0 | BP99: =IF(BL99+BN99-BM99-BO99>0,BL99+BN99-BM99-BO99,0) -> 0 | BQ99: =IF(BM99+BO99-BL99-BN99>0,BM99+BO99-BL99-BN99,0) -> 0 | BR99: 0 | BS99: 0 | BT99: 0 | BU99: 0 | BV99: =IF(BR99+BT99-BS99-BU99>0,BR99+BT99-BS99-BU99,0) -> 0 | BW99: =IF(BS99+BU99-BR99-BT99>0,BS99+BU99-BR99-BT99,0) -> 0 | BX99: 0 | BY99: 0 | BZ99: 0 | CA99: 0 | CB99: =IF(BX99+BZ99-BY99-CA99>0,BX99+BZ99-BY99-CA99,0) -> 0 | CC99: =IF(BY99+CA99-BX99-BZ99>0,BY99+CA99-BX99-BZ99,0) -> 0 | CD99: 3 | CE99: 341 | CF99: 341
A100: ok | B100: 411 | C100: Nguồn vốn kinh doanh | D100: =D101+D105+D106 -> 0 | E100: =E101+E105 -> 1,800,000,000 | F100: =F101+F105+F106 -> 0 | G100: =G101+G105 -> 300,000,000 | H100: =H101+H105+H106 -> 0 | I100: =I101+I105+I106 -> 2,100,000,000 | J100: 0 | K100: 2,100,000,000 | L100: 0 | M100: 0 | N100: 0 | O100: 2,100,000,000 | P100: 0 | Q100: 2,100,000,000.00 | R100: 0 | S100: 0 | T100: 0 | U100: 2,100,000,000.00 | V100: 0 | W100: 2,100,000,000.00 | X100: 0 | Y100: 0 | Z100: 0 | AA100: 2,100,000,000.00 | AB100: 0 | AC100: 2,100,000,000.00 | AD100: 0 | AE100: 0 | AF100: 0 | AG100: 2,100,000,000.00 | AH100: 0 | AI100: 2,100,000,000.00 | AJ100: 0 | AK100: 0 | AL100: 0 | AM100: 2,100,000,000.00 | AN100: 0 | AO100: 2,100,000,000.00 | AP100: 0 | AQ100: 0 | AR100: 0 | AS100: 2,100,000,000 | AT100: 0 | AU100: 2,100,000,000 | AV100: 0 | AW100: 0 | AX100: 0 | AY100: 2,100,000,000.00 | AZ100: 0 | BA100: 2,100,000,000.00 | BB100: 0 | BC100: 0 | BD100: 0 | BE100: 2,100,000,000.00 | BF100: 0 | BG100: 2,100,000,000.00 | BH100: 0 | BI100: 0 | BJ100: 0 | BK100: 2,100,000,000.00 | BL100: 0 | BM100: 2,100,000,000.00 | BN100: 0 | BO100: 0 | BP100: 0 | BQ100: =BQ101+BQ105+BQ106 -> 2,100,000,000 | BR100: 0 | BS100: 2,100,000,000.00 | BT100: 0 | BU100: 0 | BV100: 0 | BW100: 2,100,000,000.00 | BX100: 0 | BY100: 1,800,000,000 | BZ100: =BZ101+BZ105+BZ106 -> 0 | CA100: =CA101+CA105+CA106 -> 300,000,000 | CB100: =CB101+CB105+CB106 -> 0 | CC100: =CC101+CC105+CC106 -> 2,100,000,000 | CD100: 3 | CF100: 411
A101: ok | B101: 4111 | C101: Vốn đầu tư của chủ sở hữu | D101: 0 | E101: =SUM(E102:E104) -> 1,800,000,000 | F101: 0 | G101: 300,000,000 | H101: =SUM(H102:H106) -> 0 | I101: 2,100,000,000 | J101: =SUM(J102:J104) -> 0 | K101: =SUM(K102:K104) -> 2,100,000,000 | L101: 0 | M101: 0 | N101: 0 | O101: 2,100,000,000 | P101: 0 | Q101: 2,100,000,000.00 | R101: 0 | S101: 0 | T101: 0 | U101: 2,100,000,000.00 | V101: 0 | W101: 2,100,000,000.00 | X101: 0 | Y101: 0 | Z101: 0 | AA101: 2,100,000,000.00 | AB101: 0 | AC101: 2,100,000,000.00 | AD101: 0 | AE101: 0 | AF101: 0 | AG101: 2,100,000,000.00 | AH101: 0 | AI101: 2,100,000,000.00 | AJ101: 0 | AK101: 0 | AL101: 0 | AM101: 2,100,000,000.00 | AN101: 0 | AO101: 2,100,000,000.00 | AP101: 0 | AQ101: 0 | AR101: 0 | AS101: 2,100,000,000 | AT101: 0 | AU101: 2,100,000,000 | AV101: 0 | AW101: 0 | AX101: 0 | AY101: 2,100,000,000.00 | AZ101: 0 | BA101: 2,100,000,000.00 | BB101: 0 | BC101: 0 | BD101: 0 | BE101: 2,100,000,000.00 | BF101: 0 | BG101: 2,100,000,000.00 | BH101: 0 | BI101: 0 | BJ101: 0 | BK101: 2,100,000,000.00 | BL101: 0 | BM101: 2,100,000,000.00 | BN101: 0 | BO101: 0 | BP101: 0 | BQ101: 2,100,000,000 | BR101: =SUM(BR102:BR104) -> 0 | BS101: 2,100,000,000.00 | BT101: 0 | BU101: 0 | BV101: 0 | BW101: 2,100,000,000.00 | BX101: 0 | BY101: 1,800,000,000 | BZ101: =SUM(BZ102:BZ104) -> 0 | CA101: =SUM(CA102:CA104) -> 300,000,000 | CB101: =SUM(CB102:CB104) -> 0 | CC101: =SUM(CC102:CC104) -> 2,100,000,000 | CD101: 4 | CG101: 4111
A102: ok | B102: 41111 | C102: Vốn góp của bà Lê Mỹ Hạnh | D102: 0 | F102: =SUMIF(TKno,TK,_st01) -> 0 | G102: =SUMIF(TKco,TK,_st01) -> 300,000,000 | H102: 0 | I102: 300,000,000 | J102: =H102 -> 0 | K102: =I102 -> 300,000,000 | L102: =SUMIF(TKno,TK,_st02) -> 0 | M102: =SUMIF(TKco,TK,_st02) -> 0 | N102: =IF(J102+L102-K102-M102>0,J102+L102-K102-M102,0) -> 0 | O102: =IF(K102+M102-J102-L102>0,K102+M102-J102-L102,0) -> 300,000,000 | P102: =N102 -> 0 | Q102: =O102 -> 300,000,000.00 | R102: =SUMIF(TKno,TK,_st03) -> 0 | S102: =SUMIF(TKco,TK,_st03) -> 0 | T102: =IF(P102+R102-Q102-S102>0,P102+R102-Q102-S102,0) -> 0 | U102: =IF(Q102+S102-P102-R102>0,Q102+S102-P102-R102,0) -> 300,000,000.00 | V102: =T102 -> 0 | W102: =U102 -> 300,000,000.00 | X102: =SUMIF(TKno,TK,_st04) -> 0 | Y102: =SUMIF(TKco,TK,_st04) -> 0 | Z102: =IF(V102+X102-W102-Y102>0,V102+X102-W102-Y102,0) -> 0 | AA102: =IF(W102+Y102-V102-X102>0,W102+Y102-V102-X102,0) -> 300,000,000.00 | AB102: =Z102 -> 0 | AC102: =AA102 -> 300,000,000.00 | AD102: =SUMIF(TKno,TK,_st05) -> 0 | AE102: =SUMIF(TKco,TK,_st05) -> 0 | AF102: =IF(AB102+AD102-AC102-AE102>0,AB102+AD102-AC102-AE102,0) -> 0 | AG102: =IF(AC102+AE102-AB102-AD102>0,AC102+AE102-AB102-AD102,0) -> 300,000,000.00 | AH102: =AF102 -> 0 | AI102: =AG102 -> 300,000,000.00 | AJ102: =SUMIF(TKno,TK,_st06) -> 0 | AK102: =SUMIF(TKco,TK,_st06) -> 0 | AL102: =IF(AH102+AJ102-AI102-AK102>0,AH102+AJ102-AI102-AK102,0) -> 0 | AM102: =IF(AI102+AK102-AH102-AJ102>0,AI102+AK102-AH102-AJ102,0) -> 300,000,000.00 | AN102: =AL102 -> 0 | AO102: =AM102 -> 300,000,000.00 | AP102: =SUMIF(TKno,TK,_st07) -> 0 | AQ102: =SUMIF(TKco,TK,_st07) -> 0 | AR102: =IF(AN102+AP102-AO102-AQ102>0,AN102+AP102-AO102-AQ102,0) -> 0 | AS102: =IF(AO102+AQ102-AN102-AP102>0,AO102+AQ102-AN102-AP102,0) -> 300,000,000 | AT102: =AR102 -> 0 | AU102: =AS102 -> 300,000,000 | AV102: =SUMIF(TKno,TK,_st08) -> 0 | AW102: =SUMIF(TKco,TK,_st08) -> 0 | AX102: =IF(AT102+AV102-AU102-AW102>0,AT102+AV102-AU102-AW102,0) -> 0 | AY102: =IF(AU102+AW102-AT102-AV102>0,AU102+AW102-AT102-AV102,0) -> 300,000,000.00 | AZ102: =AX102 -> 0 | BA102: =AY102 -> 300,000,000.00 | BB102: =SUMIF(TKno,TK,_st09) -> 0 | BC102: =SUMIF(TKco,TK,_st09) -> 0 | BD102: =IF(AZ102+BB102-BA102-BC102>0,AZ102+BB102-BA102-BC102,0) -> 0 | BE102: =IF(BA102+BC102-AZ102-BB102>0,BA102+BC102-AZ102-BB102,0) -> 300,000,000.00 | BF102: =BD102 -> 0 | BG102: =BE102 -> 300,000,000.00 | BH102: =SUMIF(TKno,TK,_st10) -> 0 | BI102: =SUMIF(TKco,TK,_st10) -> 0 | BJ102: =IF(BF102+BH102-BG102-BI102>0,BF102+BH102-BG102-BI102,0) -> 0 | BK102: =IF(BG102+BI102-BF102-BH102>0,BG102+BI102-BF102-BH102,0) -> 300,000,000.00 | BL102: =BJ102 -> 0 | BM102: =BK102 -> 300,000,000.00 | BN102: =SUMIF(TKno,TK,_st11) -> 0 | BO102: =SUMIF(TKco,TK,_st11) -> 0 | BP102: =IF(BL102+BN102-BM102-BO102>0,BL102+BN102-BM102-BO102,0) -> 0 | BQ102: =IF(BM102+BO102-BL102-BN102>0,BM102+BO102-BL102-BN102,0) -> 300,000,000 | BR102: =BP102 -> 0 | BS102: =BQ102 -> 300,000,000.00 | BT102: =SUMIF(TKno,TK,_st12) -> 0 | BU102: =SUMIF(TKco,TK,_st12) -> 0 | BV102: =IF(BR102+BT102-BS102-BU102>0,BR102+BT102-BS102-BU102,0) -> 0 | BW102: =IF(BS102+BU102-BR102-BT102>0,BS102+BU102-BR102-BT102,0) -> 300,000,000.00 | BX102: 0 | BY102: 0 | BZ102: =SUMIF(TKno,TK,ST) -> 0 | CA102: =SUMIF(TKco,TK,ST) -> 300,000,000 | CB102: =IF(BX102+BZ102-BY102-CA102>0,BX102+BZ102-BY102-CA102,0) -> 0 | CC102: =IF(BY102+CA102-BX102-BZ102>0,BY102+CA102-BX102-BZ102,0) -> 300,000,000 | CD102: 5 | CE102: =$B102 -> 41111
A103: ok | B103: 41112 | C103: Vốn góp thành lập doanh nghiệp | D103: 0 | E103: 1,800,000,000 | F103: 0 | G103: 0 | H103: 0 | I103: 1,800,000,000 | J103: 0 | K103: 1,800,000,000 | L103: 0 | M103: 0 | N103: 0 | O103: 1,800,000,000 | P103: 0 | Q103: 1,800,000,000.00 | R103: 0 | S103: 0 | T103: 0 | U103: 1,800,000,000.00 | V103: 0 | W103: 1,800,000,000.00 | X103: 0 | Y103: 0 | Z103: 0 | AA103: 1,800,000,000.00 | AB103: 0 | AC103: 1,800,000,000.00 | AD103: 0 | AE103: 0 | AF103: 0 | AG103: 1,800,000,000.00 | AH103: 0 | AI103: 1,800,000,000.00 | AJ103: 0 | AK103: 0 | AL103: 0 | AM103: 1,800,000,000.00 | AN103: 0 | AO103: 1,800,000,000.00 | AP103: 0 | AQ103: 0 | AR103: 0 | AS103: 1,800,000,000.00 | AT103: 0 | AU103: 1,800,000,000.00 | AV103: 0 | AW103: 0 | AX103: 0 | AY103: 1,800,000,000.00 | AZ103: 0 | BA103: 1,800,000,000.00 | BB103: 0 | BC103: =SUMIF(TKco,TK,_st09) -> 0 | BD103: 0 | BE103: 1,800,000,000.00 | BF103: 0 | BG103: 1,800,000,000.00 | BH103: 0 | BI103: 0 | BJ103: 0 | BK103: 1,800,000,000.00 | BL103: 0 | BM103: 1,800,000,000.00 | BN103: 0 | BO103: 0 | BP103: 0 | BQ103: 1,800,000,000 | BR103: 0 | BS103: 1,800,000,000.00 | BT103: 0 | BU103: 0 | BV103: 0 | BW103: 1,800,000,000.00 | BX103: 0 | BY103: 1,800,000,000 | BZ103: 0 | CA103: 0 | CB103: 0 | CC103: 1,800,000,000 | CD103: 5 | CE103: 41112
D104: 0 | F104: 0 | G104: 0 | H104: 0 | I104: 0 | J104: 0 | K104: 0 | L104: 0 | M104: 0 | N104: 0 | O104: 0 | P104: 0 | Q104: 0 | R104: 0 | S104: 0 | T104: 0 | U104: 0 | V104: 0 | W104: 0 | X104: 0 | Y104: 0 | Z104: 0 | AA104: 0 | AB104: 0 | AC104: 0 | AD104: 0 | AE104: 0 | AF104: 0 | AG104: 0 | AH104: 0 | AI104: 0 | AJ104: 0 | AK104: 0 | AL104: 0 | AM104: 0 | AN104: 0 | AO104: 0 | AP104: 0 | AQ104: 0 | AR104: 0 | AS104: 0 | AT104: 0 | AU104: 0 | AV104: 0 | AW104: 0 | AX104: 0 | AY104: 0 | AZ104: 0 | BA104: 0 | BB104: 0 | BC104: 0 | BD104: 0 | BE104: 0 | BF104: 0 | BG104: 0 | BH104: 0 | BI104: 0 | BJ104: 0 | BK104: 0 | BL104: 0 | BM104: 0 | BN104: 0 | BO104: 0 | BP104: 0 | BQ104: 0 | BR104: 0 | BS104: 0 | BT104: 0 | BU104: 0 | BV104: 0 | BW104: 0 | BX104: 0 | BY104: 0 | BZ104: 0 | CA104: 0 | CB104: 0 | CC104: 0 | CD104: 0 | CE104: 0
B105: 4112 | C105: Thặng dư vốn cổ phần | D105: 0 | F105: 0 | G105: 0 | H105: 0 | I105: 0 | J105: 0 | K105: 0 | L105: 0 | M105: 0 | N105: 0 | O105: 0 | P105: 0 | Q105: 0 | R105: 0 | S105: 0 | T105: 0 | U105: 0 | V105: 0 | W105: 0 | X105: 0 | Y105: 0 | Z105: 0 | AA105: 0 | AB105: 0 | AC105: 0 | AD105: 0 | AE105: 0 | AF105: 0 | AG105: 0 | AH105: 0 | AI105: 0 | AJ105: 0 | AK105: 0 | AL105: 0 | AM105: 0 | AN105: 0 | AO105: 0 | AP105: 0 | AQ105: 0 | AR105: 0 | AS105: 0 | AT105: 0 | AU105: 0 | AV105: 0 | AW105: 0 | AX105: 0 | AY105: 0 | AZ105: 0 | BA105: 0 | BB105: 0 | BC105: 0 | BD105: 0 | BE105: 0 | BF105: 0 | BG105: 0 | BH105: 0 | BI105: 0 | BJ105: 0 | BK105: 0 | BL105: 0 | BM105: 0 | BN105: 0 | BO105: 0 | BP105: 0 | BQ105: 0 | BR105: 0 | BS105: 0 | BT105: 0 | BU105: 0 | BV105: 0 | BW105: 0 | BX105: 0 | BY105: 0 | BZ105: 0 | CA105: 0 | CB105: 0 | CC105: 0 | CD105: 4 | CE105: 4112 | CG105: 4112
B106: 418 | C106: Các quỹ thuộc vốn chủ sở hữu | D106: 0 | F106: 0 | G106: 0 | H106: 0 | I106: 0 | J106: 0 | K106: 0 | L106: 0 | M106: 0 | N106: 0 | O106: 0 | P106: 0 | Q106: 0 | R106: 0 | S106: 0 | T106: 0 | U106: 0 | V106: 0 | W106: 0 | X106: 0 | Y106: 0 | Z106: 0 | AA106: 0 | AB106: 0 | AC106: 0 | AD106: 0 | AE106: 0 | AF106: 0 | AG106: 0 | AH106: 0 | AI106: 0 | AJ106: 0 | AK106: 0 | AL106: 0 | AM106: 0 | AN106: 0 | AO106: 0 | AP106: 0 | AQ106: 0 | AR106: 0 | AS106: 0 | AT106: 0 | AU106: 0 | AV106: 0 | AW106: 0 | AX106: 0 | AY106: 0 | AZ106: 0 | BA106: 0 | BB106: 0 | BC106: 0 | BD106: 0 | BE106: 0 | BF106: 0 | BG106: 0 | BH106: 0 | BI106: 0 | BJ106: 0 | BK106: 0 | BL106: 0 | BM106: 0 | BN106: 0 | BO106: 0 | BP106: 0 | BQ106: 0 | BR106: 0 | BS106: 0 | BT106: 0 | BU106: 0 | BV106: 0 | BW106: 0 | BX106: 0 | BY106: 0 | BZ106: 0 | CA106: 0 | CB106: 0 | CC106: 0 | CD106: 3 | CE106: 418 | CF106: 418
B107: 413 | C107: Chênh lệch tỷ giá hối đoái | D107: 0 | F107: 0 | G107: 0 | H107: 0 | I107: 0 | J107: 0 | K107: 0 | L107: 0 | M107: 0 | N107: 0 | O107: 0 | P107: 0 | Q107: 0 | R107: 0 | S107: 0 | T107: 0 | U107: 0 | V107: 0 | W107: 0 | X107: 0 | Y107: 0 | Z107: 0 | AA107: 0 | AB107: 0 | AC107: 0 | AD107: 0 | AE107: 0 | AF107: 0 | AG107: 0 | AH107: 0 | AI107: 0 | AJ107: 0 | AK107: 0 | AL107: 0 | AM107: 0 | AN107: 0 | AO107: 0 | AP107: 0 | AQ107: 0 | AR107: 0 | AS107: 0 | AT107: 0 | AU107: 0 | AV107: 0 | AW107: 0 | AX107: 0 | AY107: 0 | AZ107: 0 | BA107: 0 | BB107: 0 | BC107: 0 | BD107: 0 | BE107: 0 | BF107: 0 | BG107: 0 | BH107: 0 | BI107: 0 | BJ107: 0 | BK107: 0 | BL107: 0 | BM107: 0 | BN107: 0 | BO107: 0 | BP107: 0 | BQ107: 0 | BR107: 0 | BS107: 0 | BT107: 0 | BU107: 0 | BV107: 0 | BW107: 0 | BX107: 0 | BY107: =E107 -> 0 | BZ107: 0 | CA107: 0 | CB107: 0 | CC107: 0 | CD107: 3 | CE107: 413 | CF107: 413
A108: ok | B108: 421 | C108: Lợi nhuận chưa phân phối | D108: =SUM(D109:D110) -> 0 | E108: 27,588,299 | F108: 27,588,299 | G108: 27,588,299 | H108: 0 | I108: 27,588,299 | J108: 0 | K108: 27,588,299 | L108: 0 | M108: 12,821,478 | N108: 0 | O108: 40,409,777 | P108: =SUM(P109:P110) -> 0 | Q108: 40,409,777 | R108: 0 | S108: 0 | T108: 0 | U108: 40,409,777 | V108: =SUM(V109:V110) -> 0 | W108: 40,409,777 | X108: 0 | Y108: 0 | Z108: 0 | AA108: 40,409,777 | AB108: 0 | AC108: 40,409,777 | AD108: 0 | AE108: 0 | AF108: 0 | AG108: 40,409,777 | AH108: 0 | AI108: 40,409,777 | AJ108: 0 | AK108: 0 | AL108: 0 | AM108: 40,409,777 | AN108: 0 | AO108: 40,409,777 | AP108: 0 | AQ108: 0 | AR108: 0 | AS108: 40,409,777 | AT108: 0 | AU108: 40,409,777 | AV108: 0 | AW108: 0 | AX108: 0 | AY108: 40,409,777 | AZ108: 0 | BA108: 40,409,777 | BB108: 0 | BC108: 0 | BD108: 0 | BE108: 40,409,777 | BF108: 0 | BG108: 40,409,777 | BH108: 0 | BI108: 0 | BJ108: 0 | BK108: 40,409,777 | BL108: 0 | BM108: 40,409,777 | BN108: 0 | BO108: 0 | BP108: 0 | BQ108: 40,409,777 | BR108: =SUM(BR109:BR110) -> 0 | BS108: 40,409,777 | BT108: 0 | BU108: 0 | BV108: 0 | BW108: 40,409,777 | BX108: 0 | BY108: 27,588,299 | BZ108: 27,588,299 | CA108: 40,409,777 | CB108: 0 | CC108: =SUM(CC109:CC110) -> 40,409,777 | CD108: 3 | CF108: 421
A109: ok | B109: 4211 | C109: Lợi nhuận chưa phân phối năm trước | D109: 0 | F109: =SUMIF(TKno,TK,_st01) -> 0 | G109: =SUMIF(TKco,TK,_st01) -> 27,588,299 | H109: =IF(D109+F109-E109-G109>0,D109+F109-E109-G109,0) -> 0 | I109: =IF(E109+G109-D109-F109>0,E109+G109-D109-F109,0) -> 27,588,299 | J109: =H109 -> 0 | K109: =I109 -> 27,588,299 | L109: =SUMIF(TKno,TK,_st02) -> 0 | M109: =SUMIF(TKco,TK,_st02) -> 0 | N109: =IF(J109+L109-K109-M109>0,J109+L109-K109-M109,0) -> 0 | O109: =IF(K109+M109-J109-L109>0,K109+M109-J109-L109,0) -> 27,588,299 | P109: =N109 -> 0 | Q109: =O109 -> 27,588,299.00 | R109: =SUMIF(TKno,TK,_st03) -> 0 | S109: =SUMIF(TKco,TK,_st03) -> 0 | T109: =IF(P109+R109-Q109-S109>0,P109+R109-Q109-S109,0) -> 0 | U109: =IF(Q109+S109-P109-R109>0,Q109+S109-P109-R109,0) -> 27,588,299.00 | V109: =T109 -> 0 | W109: =U109 -> 27,588,299.00 | X109: =SUMIF(TKno,TK,_st04) -> 0 | Y109: =SUMIF(TKco,TK,_st04) -> 0 | Z109: =IF(V109+X109-W109-Y109>0,V109+X109-W109-Y109,0) -> 0 | AA109: =IF(W109+Y109-V109-X109>0,W109+Y109-V109-X109,0) -> 27,588,299.00 | AB109: =Z109 -> 0 | AC109: =AA109 -> 27,588,299.00 | AD109: =SUMIF(TKno,TK,_st05) -> 0 | AE109: =SUMIF(TKco,TK,_st05) -> 0 | AF109: =IF(AB109+AD109-AC109-AE109>0,AB109+AD109-AC109-AE109,0) -> 0 | AG109: =IF(AC109+AE109-AB109-AD109>0,AC109+AE109-AB109-AD109,0) -> 27,588,299.00 | AH109: =AF109 -> 0 | AI109: =AG109 -> 27,588,299.00 | AJ109: =SUMIF(TKno,TK,_st06) -> 0 | AK109: =SUMIF(TKco,TK,_st06) -> 0 | AL109: =IF(AH109+AJ109-AI109-AK109>0,AH109+AJ109-AI109-AK109,0) -> 0 | AM109: =IF(AI109+AK109-AH109-AJ109>0,AI109+AK109-AH109-AJ109,0) -> 27,588,299.00 | AN109: =AL109 -> 0 | AO109: =AM109 -> 27,588,299.00 | AP109: =SUMIF(TKno,TK,_st07) -> 0 | AQ109: =SUMIF(TKco,TK,_st07) -> 0 | AR109: =IF(AN109+AP109-AO109-AQ109>0,AN109+AP109-AO109-AQ109,0) -> 0 | AS109: =IF(AO109+AQ109-AN109-AP109>0,AO109+AQ109-AN109-AP109,0) -> 27,588,299.00 | AT109: =AR109 -> 0 | AU109: =AS109 -> 27,588,299.00 | AV109: =SUMIF(TKno,TK,_st08) -> 0 | AW109: =SUMIF(TKco,TK,_st08) -> 0 | AX109: =IF(AT109+AV109-AU109-AW109>0,AT109+AV109-AU109-AW109,0) -> 0 | AY109: =IF(AU109+AW109-AT109-AV109>0,AU109+AW109-AT109-AV109,0) -> 27,588,299.00 | AZ109: =AX109 -> 0 | BA109: =AY109 -> 27,588,299.00 | BB109: =SUMIF(TKno,TK,_st09) -> 0 | BC109: =SUMIF(TKco,TK,_st09) -> 0 | BD109: =IF(AZ109+BB109-BA109-BC109>0,AZ109+BB109-BA109-BC109,0) -> 0 | BE109: =IF(BA109+BC109-AZ109-BB109>0,BA109+BC109-AZ109-BB109,0) -> 27,588,299.00 | BF109: =BD109 -> 0 | BG109: =BE109 -> 27,588,299.00 | BH109: =SUMIF(TKno,TK,_st10) -> 0 | BI109: =SUMIF(TKco,TK,_st10) -> 0 | BJ109: =IF(BF109+BH109-BG109-BI109>0,BF109+BH109-BG109-BI109,0) -> 0 | BK109: =IF(BG109+BI109-BF109-BH109>0,BG109+BI109-BF109-BH109,0) -> 27,588,299.00 | BL109: =BJ109 -> 0 | BM109: =BK109 -> 27,588,299.00 | BN109: =SUMIF(TKno,TK,_st11) -> 0 | BO109: =SUMIF(TKco,TK,_st11) -> 0 | BP109: =IF(BL109+BN109-BM109-BO109>0,BL109+BN109-BM109-BO109,0) -> 0 | BQ109: =IF(BM109+BO109-BL109-BN109>0,BM109+BO109-BL109-BN109,0) -> 27,588,299 | BR109: =BP109 -> 0 | BS109: =BQ109 -> 27,588,299.00 | BT109: =SUMIF(TKno,TK,_st12) -> 0 | BU109: =SUMIF(TKco,TK,_st12) -> 0 | BV109: =IF(BR109+BT109-BS109-BU109>0,BR109+BT109-BS109-BU109,0) -> 0 | BW109: =IF(BS109+BU109-BR109-BT109>0,BS109+BU109-BR109-BT109,0) -> 27,588,299.00 | BX109: 0 | BY109: 0 | BZ109: =SUMIF(TKno,TK,ST) -> 0 | CA109: =SUMIF(TKco,TK,ST) -> 27,588,299 | CB109: =IF(BX109+BZ109-BY109-CA109>0,BX109+BZ109-BY109-CA109,0) -> 0 | CC109: =IF(BY109+CA109-BX109-BZ109>0,BY109+CA109-BX109-BZ109,0) -> 27,588,299 | CD109: 4 | CE109: =$B109 -> 4211 | CG109: 4211
A110: ok | B110: 4212 | C110: Lợi nhuận chưa phân phối năm nay | D110: 0 | E110: 27,588,299 | F110: =SUMIF(TKno,TK,_st01) -> 27,588,299 | G110: =SUMIF(TKco,TK,_st01) -> 0 | H110: =IF(D110+F110-E110-G110>0,D110+F110-E110-G110,0) -> 0 | I110: =IF(E110+G110-D110-F110>0,E110+G110-D110-F110,0) -> 0 | J110: =H110 -> 0 | K110: =I110 -> 0 | L110: =SUMIF(TKno,TK,_st02) -> 0 | M110: =SUMIF(TKco,TK,_st02) -> 12,821,478 | N110: =IF(J110+L110-K110-M110>0,J110+L110-K110-M110,0) -> 0 | O110: =IF(K110+M110-J110-L110>0,K110+M110-J110-L110,0) -> 12,821,478 | P110: =N110 -> 0 | Q110: =O110 -> 12,821,478 | R110: =SUMIF(TKno,TK,_st03) -> 0 | S110: =SUMIF(TKco,TK,_st03) -> 0 | T110: =IF(P110+R110-Q110-S110>0,P110+R110-Q110-S110,0) -> 0 | U110: =IF(Q110+S110-P110-R110>0,Q110+S110-P110-R110,0) -> 12,821,478 | V110: =T110 -> 0 | W110: =U110 -> 12,821,478 | X110: =SUMIF(TKno,TK,_st04) -> 0 | Y110: =SUMIF(TKco,TK,_st04) -> 0 | Z110: =IF(V110+X110-W110-Y110>0,V110+X110-W110-Y110,0) -> 0 | AA110: =IF(W110+Y110-V110-X110>0,W110+Y110-V110-X110,0) -> 12,821,478 | AB110: =Z110 -> 0 | AC110: =AA110 -> 12,821,478 | AD110: =SUMIF(TKno,TK,_st05) -> 0 | AE110: =SUMIF(TKco,TK,_st05) -> 0 | AF110: =IF(AB110+AD110-AC110-AE110>0,AB110+AD110-AC110-AE110,0) -> 0 | AG110: =IF(AC110+AE110-AB110-AD110>0,AC110+AE110-AB110-AD110,0) -> 12,821,478 | AH110: =AF110 -> 0 | AI110: =AG110 -> 12,821,478 | AJ110: =SUMIF(TKno,TK,_st06) -> 0 | AK110: =SUMIF(TKco,TK,_st06) -> 0 | AL110: =IF(AH110+AJ110-AI110-AK110>0,AH110+AJ110-AI110-AK110,0) -> 0 | AM110: =IF(AI110+AK110-AH110-AJ110>0,AI110+AK110-AH110-AJ110,0) -> 12,821,478 | AN110: =AL110 -> 0 | AO110: =AM110 -> 12,821,478 | AP110: =SUMIF(TKno,TK,_st07) -> 0 | AQ110: =SUMIF(TKco,TK,_st07) -> 0 | AR110: =IF(AN110+AP110-AO110-AQ110>0,AN110+AP110-AO110-AQ110,0) -> 0 | AS110: =IF(AO110+AQ110-AN110-AP110>0,AO110+AQ110-AN110-AP110,0) -> 12,821,478 | AT110: =AR110 -> 0 | AU110: =AS110 -> 12,821,478 | AV110: =SUMIF(TKno,TK,_st08) -> 0 | AW110: =SUMIF(TKco,TK,_st08) -> 0 | AX110: =IF(AT110+AV110-AU110-AW110>0,AT110+AV110-AU110-AW110,0) -> 0 | AY110: =IF(AU110+AW110-AT110-AV110>0,AU110+AW110-AT110-AV110,0) -> 12,821,478 | AZ110: =AX110 -> 0 | BA110: =AY110 -> 12,821,478 | BB110: =SUMIF(TKno,TK,_st09) -> 0 | BC110: =SUMIF(TKco,TK,_st09) -> 0 | BD110: =IF(AZ110+BB110-BA110-BC110>0,AZ110+BB110-BA110-BC110,0) -> 0 | BE110: =IF(BA110+BC110-AZ110-BB110>0,BA110+BC110-AZ110-BB110,0) -> 12,821,478 | BF110: =BD110 -> 0 | BG110: =BE110 -> 12,821,478 | BH110: =SUMIF(TKno,TK,_st10) -> 0 | BI110: =SUMIF(TKco,TK,_st10) -> 0 | BJ110: =IF(BF110+BH110-BG110-BI110>0,BF110+BH110-BG110-BI110,0) -> 0 | BK110: =IF(BG110+BI110-BF110-BH110>0,BG110+BI110-BF110-BH110,0) -> 12,821,478 | BL110: =BJ110 -> 0 | BM110: =BK110 -> 12,821,478 | BN110: =SUMIF(TKno,TK,_st11) -> 0 | BO110: =SUMIF(TKco,TK,_st11) -> 0 | BP110: =IF(BL110+BN110-BM110-BO110>0,BL110+BN110-BM110-BO110,0) -> 0 | BQ110: =IF(BM110+BO110-BL110-BN110>0,BM110+BO110-BL110-BN110,0) -> 12,821,478 | BR110: =BP110 -> 0 | BS110: =BQ110 -> 12,821,478 | BT110: =SUMIF(TKno,TK,_st12) -> 0 | BU110: =SUMIF(TKco,TK,_st12) -> 0 | BV110: =IF(BR110+BT110-BS110-BU110>0,BR110+BT110-BS110-BU110,0) -> 0 | BW110: =IF(BS110+BU110-BR110-BT110>0,BS110+BU110-BR110-BT110,0) -> 12,821,478 | BX110: 0 | BY110: 27,588,299 | BZ110: =ROUND(SUMIF(TKno,TK,ST),0) -> 27,588,299 | CA110: =ROUND(SUMIF(TKco,TK,ST),0) -> 12,821,478 | CB110: =IF(BX110+BZ110-BY110-CA110>0,BX110+BZ110-BY110-CA110,0) -> 0 | CC110: =IF(BY110+CA110-BX110-BZ110>0,BY110+CA110-BX110-BZ110,0) -> 12,821,478 | CD110: 4 | CE110: =$B110 -> 4212 | CG110: 4212
A111: ok | B111: 511 | C111: Doanh thu bán hàng và cung cấp dịch vụ | D111: 0 | F111: =SUM(F112:F114) -> 0 | G111: 576,500,000 | H111: 0 | I111: 576,500,000.00 | J111: 0 | K111: 576,500,000.00 | L111: 434,050,000 | M111: 434,050,000 | N111: 0 | O111: 576,500,000.00 | P111: =SUM(P112:P114) -> 0 | Q111: 576,500,000.00 | R111: 0 | S111: 0 | T111: 0 | U111: 576,500,000.00 | V111: =SUM(V112:V114) -> 0 | W111: 576,500,000.00 | X111: 0 | Y111: 0 | Z111: 0 | AA111: 576,500,000.00 | AB111: 0 | AC111: 576,500,000.00 | AD111: 0 | AE111: 0 | AF111: 0 | AG111: 576,500,000.00 | AH111: 0 | AI111: 576,500,000.00 | AJ111: 0 | AK111: 0 | AL111: 0 | AM111: 576,500,000.00 | AN111: 0 | AO111: 576,500,000.00 | AP111: 0 | AQ111: 0 | AR111: 0 | AS111: 576,500,000.00 | AT111: 0 | AU111: 576,500,000.00 | AV111: 0 | AW111: 0 | AX111: 0 | AY111: 576,500,000.00 | AZ111: 0 | BA111: 576,500,000.00 | BB111: 0 | BC111: 0 | BD111: 0 | BE111: 576,500,000.00 | BF111: 0 | BG111: 576,500,000.00 | BH111: 0 | BI111: 0 | BJ111: 0 | BK111: 576,500,000.00 | BL111: 0 | BM111: 576,500,000.00 | BN111: 0 | BO111: 0 | BP111: 0 | BQ111: 576,500,000 | BR111: =SUM(BR112:BR114) -> 0 | BS111: 576,500,000.00 | BT111: 0 | BU111: 0 | BV111: 0 | BW111: 576,500,000.00 | BX111: 0 | BY111: 0 | BZ111: 434,050,000 | CA111: 1,010,550,000 | CB111: 0 | CC111: 576,500,000 | CD111: 3 | CF111: 511
A112: ok | B112: 5111 | C112: Doanh thu bán hàng hoá | D112: 0 | F112: =SUMIF(TKno,TK,_st01) -> 0 | G112: =SUMIF(TKco,TK,_st01) -> 576,500,000 | H112: =IF(D112+F112-E112-G112>0,D112+F112-E112-G112,0) -> 0 | I112: =IF(E112+G112-D112-F112>0,E112+G112-D112-F112,0) -> 576,500,000.00 | J112: =H112 -> 0 | K112: =I112 -> 576,500,000.00 | L112: =SUMIF(TKno,TK,_st02) -> 434,050,000 | M112: =SUMIF(TKco,TK,_st02) -> 434,050,000 | N112: =IF(J112+L112-K112-M112>0,J112+L112-K112-M112,0) -> 0 | O112: =IF(K112+M112-J112-L112>0,K112+M112-J112-L112,0) -> 576,500,000.00 | P112: =N112 -> 0 | Q112: 576,500,000.00 | R112: =SUMIF(TKno,TK,_st03) -> 0 | S112: =SUMIF(TKco,TK,_st03) -> 0 | T112: =IF(P112+R112-Q112-S112>0,P112+R112-Q112-S112,0) -> 0 | U112: =IF(Q112+S112-P112-R112>0,Q112+S112-P112-R112,0) -> 576,500,000.00 | V112: =T112 -> 0 | W112: =U112 -> 576,500,000.00 | X112: =SUMIF(TKno,TK,_st04) -> 0 | Y112: =SUMIF(TKco,TK,_st04) -> 0 | Z112: =IF(V112+X112-W112-Y112>0,V112+X112-W112-Y112,0) -> 0 | AA112: =IF(W112+Y112-V112-X112>0,W112+Y112-V112-X112,0) -> 576,500,000.00 | AB112: =Z112 -> 0 | AC112: =AA112 -> 576,500,000.00 | AD112: =SUMIF(TKno,TK,_st05) -> 0 | AE112: =SUMIF(TKco,TK,_st05) -> 0 | AF112: =IF(AB112+AD112-AC112-AE112>0,AB112+AD112-AC112-AE112,0) -> 0 | AG112: =IF(AC112+AE112-AB112-AD112>0,AC112+AE112-AB112-AD112,0) -> 576,500,000.00 | AH112: =AF112 -> 0 | AI112: =AG112 -> 576,500,000.00 | AJ112: =SUMIF(TKno,TK,_st06) -> 0 | AK112: =SUMIF(TKco,TK,_st06) -> 0 | AL112: =IF(AH112+AJ112-AI112-AK112>0,AH112+AJ112-AI112-AK112,0) -> 0 | AM112: =IF(AI112+AK112-AH112-AJ112>0,AI112+AK112-AH112-AJ112,0) -> 576,500,000.00 | AN112: =AL112 -> 0 | AO112: =AM112 -> 576,500,000.00 | AP112: =SUMIF(TKno,TK,_st07) -> 0 | AQ112: =SUMIF(TKco,TK,_st07) -> 0 | AR112: =IF(AN112+AP112-AO112-AQ112>0,AN112+AP112-AO112-AQ112,0) -> 0 | AS112: =IF(AO112+AQ112-AN112-AP112>0,AO112+AQ112-AN112-AP112,0) -> 576,500,000.00 | AT112: =AR112 -> 0 | AU112: =AS112 -> 576,500,000.00 | AV112: =SUMIF(TKno,TK,_st08) -> 0 | AW112: =SUMIF(TKco,TK,_st08) -> 0 | AX112: =IF(AT112+AV112-AU112-AW112>0,AT112+AV112-AU112-AW112,0) -> 0 | AY112: =IF(AU112+AW112-AT112-AV112>0,AU112+AW112-AT112-AV112,0) -> 576,500,000.00 | AZ112: =AX112 -> 0 | BA112: =AY112 -> 576,500,000.00 | BB112: =SUMIF(TKno,TK,_st09) -> 0 | BC112: =SUMIF(TKco,TK,_st09) -> 0 | BD112: =IF(AZ112+BB112-BA112-BC112>0,AZ112+BB112-BA112-BC112,0) -> 0 | BE112: =IF(BA112+BC112-AZ112-BB112>0,BA112+BC112-AZ112-BB112,0) -> 576,500,000.00 | BF112: =BD112 -> 0 | BG112: =BE112 -> 576,500,000.00 | BH112: =SUMIF(TKno,TK,_st10) -> 0 | BI112: =SUMIF(TKco,TK,_st10) -> 0 | BJ112: =IF(BF112+BH112-BG112-BI112>0,BF112+BH112-BG112-BI112,0) -> 0 | BK112: =IF(BG112+BI112-BF112-BH112>0,BG112+BI112-BF112-BH112,0) -> 576,500,000.00 | BL112: =BJ112 -> 0 | BM112: =BK112 -> 576,500,000.00 | BN112: =SUMIF(TKno,TK,_st11) -> 0 | BO112: =SUMIF(TKco,TK,_st11) -> 0 | BP112: =IF(BL112+BN112-BM112-BO112>0,BL112+BN112-BM112-BO112,0) -> 0 | BQ112: =IF(BM112+BO112-BL112-BN112>0,BM112+BO112-BL112-BN112,0) -> 576,500,000 | BR112: =BP112 -> 0 | BS112: 576,500,000.00 | BT112: =SUMIF(TKno,TK,_st12) -> 0 | BU112: =SUMIF(TKco,TK,_st12) -> 0 | BV112: =IF(BR112+BT112-BS112-BU112>0,BR112+BT112-BS112-BU112,0) -> 0 | BW112: =IF(BS112+BU112-BR112-BT112>0,BS112+BU112-BR112-BT112,0) -> 576,500,000.00 | BX112: 0 | BY112: 0 | BZ112: =ROUND(SUMIF(TKno,TK,ST),0) -> 434,050,000 | CA112: =ROUND(SUMIF(TKco,TK,ST),0) -> 1,010,550,000 | CB112: =IF(BX112+BZ112-BY112-CA112>0,BX112+BZ112-BY112-CA112,0) -> 0 | CC112: =IF(BY112+CA112-BX112-BZ112>0,BY112+CA112-BX112-BZ112,0) -> 576,500,000 | CD112: 4 | CE112: =$B112 -> 5111 | CG112: 5111
B113: 5112 | C113: Doanh thu cung cấp dịch vụ | D113: 0 | F113: 0 | G113: 0 | H113: 0 | I113: 0 | J113: 0 | K113: 0 | L113: 0 | M113: 0 | N113: 0 | O113: 0 | P113: 0 | Q113: 0 | R113: 0 | S113: 0 | T113: =IF(P113+R113-Q113-S113>0,P113+R113-Q113-S113,0) -> 0 | U113: =IF(Q113+S113-P113-R113>0,Q113+S113-P113-R113,0) -> 0 | V113: 0 | W113: 0 | X113: 0 | Y113: 0 | Z113: 0 | AA113: 0 | AB113: 0 | AC113: 0 | AD113: 0 | AE113: 0 | AF113: 0 | AG113: 0 | AH113: 0 | AI113: 0 | AJ113: 0 | AK113: 0 | AL113: 0 | AM113: 0 | AN113: 0 | AO113: 0 | AP113: 0 | AQ113: 0 | AR113: 0 | AS113: 0 | AT113: 0 | AU113: 0 | AV113: 0 | AW113: 0 | AX113: 0 | AY113: 0 | AZ113: 0 | BA113: 0 | BB113: 0 | BC113: 0 | BD113: 0 | BE113: 0 | BF113: 0 | BG113: 0 | BH113: 0 | BI113: 0 | BJ113: 0 | BK113: 0 | BL113: 0 | BM113: 0 | BN113: 0 | BO113: 0 | BP113: 0 | BQ113: 0 | BR113: 0 | BS113: 0 | BT113: 0 | BU113: 0 | BV113: 0 | BW113: 0 | BX113: 0 | BY113: 0 | BZ113: =SUMIF(TKno,TK,ST) -> 0 | CA113: =SUMIF(TKco,TK,ST) -> 0 | CB113: =IF(BX113+BZ113-BY113-CA113>0,BX113+BZ113-BY113-CA113,0) -> 0 | CC113: =IF(BY113+CA113-BX113-BZ113>0,BY113+CA113-BX113-BZ113,0) -> 0 | CD113: 4 | CE113: 5112 | CG113: 5112
B114: 5118 | C114: Doanh thu khác | D114: 0 | F114: 0 | G114: 0 | H114: 0 | I114: 0 | J114: 0 | K114: 0 | L114: 0 | M114: 0 | N114: 0 | O114: 0 | P114: 0 | Q114: 0 | R114: 0 | S114: 0 | T114: =IF(P114+R114-Q114-S114>0,P114+R114-Q114-S114,0) -> 0 | U114: =IF(Q114+S114-P114-R114>0,Q114+S114-P114-R114,0) -> 0 | V114: 0 | W114: 0 | X114: 0 | Y114: 0 | Z114: 0 | AA114: 0 | AB114: 0 | AC114: 0 | AD114: 0 | AE114: 0 | AF114: 0 | AG114: 0 | AH114: 0 | AI114: 0 | AJ114: 0 | AK114: 0 | AL114: 0 | AM114: 0 | AN114: 0 | AO114: 0 | AP114: 0 | AQ114: 0 | AR114: 0 | AS114: 0 | AT114: 0 | AU114: 0 | AV114: 0 | AW114: 0 | AX114: 0 | AY114: 0 | AZ114: 0 | BA114: 0 | BB114: 0 | BC114: 0 | BD114: 0 | BE114: 0 | BF114: 0 | BG114: 0 | BH114: 0 | BI114: 0 | BJ114: 0 | BK114: 0 | BL114: 0 | BM114: 0 | BN114: 0 | BO114: 0 | BP114: 0 | BQ114: 0 | BR114: 0 | BS114: 0 | BT114: 0 | BU114: 0 | BV114: 0 | BW114: 0 | BX114: 0 | BY114: 0 | BZ114: 0 | CA114: 0 | CB114: 0 | CC114: 0 | CD114: 4 | CE114: 5118 | CG114: 5118
A115: ok | B115: 515 | C115: Doanh thu hoạt động tài chính | D115: 0 | F115: 0 | G115: 753,743 | H115: 0 | I115: 753,743.00 | J115: 0 | K115: 753,743.00 | L115: 806,685 | M115: 806,685 | N115: 0 | O115: 753,743.00 | P115: =N115 -> 0 | Q115: =O115 -> 753,743.00 | R115: 0 | S115: 0 | T115: =IF(P115+R115-Q115-S115>0,P115+R115-Q115-S115,0) -> 0 | U115: =IF(Q115+S115-P115-R115>0,Q115+S115-P115-R115,0) -> 753,743.00 | V115: 0 | W115: 753,743.00 | X115: 0 | Y115: 0 | Z115: 0 | AA115: 753,743.00 | AB115: 0 | AC115: 753,743.00 | AD115: 0 | AE115: 0 | AF115: 0 | AG115: 753,743.00 | AH115: 0 | AI115: 753,743.00 | AJ115: 0 | AK115: 0 | AL115: 0 | AM115: 753,743.00 | AN115: 0 | AO115: 753,743.00 | AP115: 0 | AQ115: 0 | AR115: 0 | AS115: 753,743.00 | AT115: 0 | AU115: 753,743.00 | AV115: 0 | AW115: 0 | AX115: 0 | AY115: 753,743.00 | AZ115: 0 | BA115: 753,743.00 | BB115: 0 | BC115: 0 | BD115: 0 | BE115: 753,743.00 | BF115: 0 | BG115: 753,743.00 | BH115: 0 | BI115: 0 | BJ115: 0 | BK115: 753,743.00 | BL115: 0 | BM115: 753,743.00 | BN115: 0 | BO115: 0 | BP115: 0 | BQ115: 753,743 | BR115: =BP115 -> 0 | BS115: =BQ115 -> 753,743.00 | BT115: 0 | BU115: 0 | BV115: 0 | BW115: 753,743.00 | BX115: 0 | BY115: 0 | BZ115: 806,685 | CA115: 1,560,428 | CB115: 0 | CC115: 753,743 | CD115: 3 | CE115: 515 | CF115: =IF($CD115=3,$B115,"") -> 515 | CG115: =IF($CD115=4,$B115,"") -> 
B116: 521 | C116: Chiết khấu thương mại | D116: 0 | F116: 0 | G116: 0 | H116: 0 | I116: 0 | J116: 0 | K116: 0 | L116: 0 | M116: 0 | N116: 0 | O116: 0 | P116: 0 | Q116: 0 | R116: 0 | S116: 0 | T116: 0 | U116: 0 | V116: 0 | W116: 0 | X116: 0 | Y116: 0 | Z116: 0 | AA116: 0 | AB116: 0 | AC116: 0 | AD116: 0 | AE116: 0 | AF116: 0 | AG116: 0 | AH116: 0 | AI116: 0 | AJ116: 0 | AK116: 0 | AL116: 0 | AM116: 0 | AN116: 0 | AO116: 0 | AP116: 0 | AQ116: 0 | AR116: 0 | AS116: 0 | AT116: 0 | AU116: 0 | AV116: 0 | AW116: 0 | AX116: 0 | AY116: 0 | AZ116: 0 | BA116: 0 | BB116: 0 | BC116: 0 | BD116: 0 | BE116: 0 | BF116: 0 | BG116: 0 | BH116: 0 | BI116: 0 | BJ116: 0 | BK116: 0 | BL116: 0 | BM116: 0 | BN116: 0 | BO116: 0 | BP116: 0 | BQ116: 0 | BR116: 0 | BS116: 0 | BT116: 0 | BU116: 0 | BV116: 0 | BW116: 0 | BX116: 0 | BY116: 0 | BZ116: 0 | CA116: 0 | CB116: 0 | CC116: 0 | CD116: 3 | CE116: 521 | CF116: 521
B117: 531 | C117: Hàng bán bị trả lại | D117: 0 | F117: =SUMIF(TKno,TK,_st01) -> 0 | G117: 0 | H117: 0 | I117: 0 | J117: 0 | K117: 0 | L117: 4,200,000 | M117: 4,200,000 | N117: 0 | O117: 0 | P117: 0 | Q117: 0 | R117: 0 | S117: 0 | T117: 0 | U117: 0 | V117: 0 | W117: 0 | X117: 0 | Y117: 0 | Z117: 0 | AA117: 0 | AB117: 0 | AC117: 0 | AD117: 0 | AE117: 0 | AF117: 0 | AG117: 0 | AH117: 0 | AI117: 0 | AJ117: 0 | AK117: 0 | AL117: 0 | AM117: 0 | AN117: 0 | AO117: 0 | AP117: 0 | AQ117: 0 | AR117: 0 | AS117: 0 | AT117: 0 | AU117: 0 | AV117: 0 | AW117: 0 | AX117: 0 | AY117: 0 | AZ117: 0 | BA117: 0 | BB117: 0 | BC117: 0 | BD117: 0 | BE117: 0 | BF117: 0 | BG117: 0 | BH117: 0 | BI117: 0 | BJ117: 0 | BK117: 0 | BL117: 0 | BM117: 0 | BN117: 0 | BO117: 0 | BP117: 0 | BQ117: 0 | BR117: 0 | BS117: 0 | BT117: 0 | BU117: 0 | BV117: 0 | BW117: 0 | BX117: 0 | BY117: 0 | BZ117: 4,200,000 | CA117: 4,200,000 | CB117: 0 | CC117: 0 | CD117: 3 | CE117: 531 | CF117: 531
B118: 532 | C118: Giảm giá hàng bán | D118: 0 | F118: 0 | G118: 0 | H118: 0 | I118: 0 | J118: 0 | K118: 0 | L118: 0 | M118: 0 | N118: 0 | O118: 0 | P118: 0 | Q118: 0 | R118: 0 | S118: 0 | T118: 0 | U118: 0 | V118: 0 | W118: 0 | X118: 0 | Y118: 0 | Z118: 0 | AA118: 0 | AB118: 0 | AC118: 0 | AD118: 0 | AE118: 0 | AF118: 0 | AG118: 0 | AH118: 0 | AI118: 0 | AJ118: 0 | AK118: 0 | AL118: 0 | AM118: 0 | AN118: 0 | AO118: 0 | AP118: 0 | AQ118: 0 | AR118: 0 | AS118: 0 | AT118: 0 | AU118: 0 | AV118: 0 | AW118: 0 | AX118: 0 | AY118: 0 | AZ118: 0 | BA118: 0 | BB118: 0 | BC118: 0 | BD118: 0 | BE118: 0 | BF118: 0 | BG118: 0 | BH118: 0 | BI118: 0 | BJ118: 0 | BK118: 0 | BL118: 0 | BM118: 0 | BN118: 0 | BO118: 0 | BP118: 0 | BQ118: 0 | BR118: 0 | BS118: 0 | BT118: 0 | BU118: 0 | BV118: 0 | BW118: 0 | BX118: 0 | BY118: 0 | BZ118: 0 | CA118: 0 | CB118: 0 | CC118: 0 | CD118: 3 | CE118: 532 | CF118: 532
B119: 621 | C119: Chi phí nguyên vật liệu trực tiếp | D119: 0 | F119: 0 | G119: 0 | H119: 0 | I119: 0 | J119: 0 | K119: 0 | L119: 0 | M119: 0 | N119: 0 | O119: 0 | P119: 0 | Q119: 0 | R119: 0 | S119: 0 | T119: 0 | U119: 0 | V119: 0 | W119: 0 | X119: 0 | Y119: 0 | Z119: 0 | AA119: 0 | AB119: 0 | AC119: 0 | AD119: 0 | AE119: 0 | AF119: 0 | AG119: 0 | AH119: 0 | AI119: 0 | AJ119: 0 | AK119: 0 | AL119: 0 | AM119: 0 | AN119: 0 | AO119: 0 | AP119: 0 | AQ119: 0 | AR119: 0 | AS119: 0 | AT119: 0 | AU119: 0 | AV119: 0 | AW119: 0 | AX119: 0 | AY119: 0 | AZ119: 0 | BA119: 0 | BB119: 0 | BC119: 0 | BD119: 0 | BE119: 0 | BF119: 0 | BG119: 0 | BH119: 0 | BI119: 0 | BJ119: 0 | BK119: 0 | BL119: 0 | BM119: 0 | BN119: 0 | BO119: 0 | BP119: 0 | BQ119: 0 | BR119: 0 | BS119: 0 | BT119: 0 | BU119: 0 | BV119: 0 | BW119: 0 | BX119: 0 | BY119: 0 | BZ119: 0 | CA119: 0 | CB119: 0 | CC119: 0 | CD119: 3 | CE119: 621 | CF119: 621
B120: 622 | C120: Chi phí nhân công trực tiếp | D120: 0 | F120: 0 | G120: 0 | H120: 0 | I120: 0 | J120: 0 | K120: 0 | L120: 0 | M120: 0 | N120: 0 | O120: 0 | P120: 0 | Q120: 0 | R120: 0 | S120: 0 | T120: 0 | U120: 0 | V120: 0 | W120: 0 | X120: 0 | Y120: 0 | Z120: 0 | AA120: 0 | AB120: 0 | AC120: 0 | AD120: 0 | AE120: 0 | AF120: 0 | AG120: 0 | AH120: 0 | AI120: 0 | AJ120: 0 | AK120: 0 | AL120: 0 | AM120: 0 | AN120: 0 | AO120: 0 | AP120: 0 | AQ120: 0 | AR120: 0 | AS120: 0 | AT120: 0 | AU120: 0 | AV120: 0 | AW120: 0 | AX120: 0 | AY120: 0 | AZ120: 0 | BA120: 0 | BB120: 0 | BC120: 0 | BD120: 0 | BE120: 0 | BF120: 0 | BG120: 0 | BH120: 0 | BI120: 0 | BJ120: 0 | BK120: 0 | BL120: 0 | BM120: 0 | BN120: 0 | BO120: 0 | BP120: 0 | BQ120: 0 | BR120: 0 | BS120: 0 | BT120: 0 | BU120: 0 | BV120: 0 | BW120: 0 | BX120: 0 | BY120: 0 | BZ120: 0 | CA120: 0 | CB120: 0 | CC120: 0 | CD120: 3 | CE120: 622 | CF120: 622
B121: 627 | C121: Chi phí sản xuất chung | D121: 0 | F121: =SUM(F122:F127) -> 0 | G121: 0 | H121: 0 | I121: 0 | J121: 0 | K121: 0 | L121: 0 | M121: 0 | N121: 0 | O121: 0 | P121: =SUM(P122:P127) -> 0 | Q121: 0 | R121: =SUM(R122:R127) -> 0 | S121: 0 | T121: 0 | U121: 0 | V121: =SUM(V122:V127) -> 0 | W121: 0 | X121: 0 | Y121: 0 | Z121: 0 | AA121: 0 | AB121: 0 | AC121: 0 | AD121: 0 | AE121: 0 | AF121: 0 | AG121: 0 | AH121: 0 | AI121: 0 | AJ121: 0 | AK121: 0 | AL121: 0 | AM121: 0 | AN121: 0 | AO121: 0 | AP121: 0 | AQ121: 0 | AR121: 0 | AS121: 0 | AT121: 0 | AU121: 0 | AV121: 0 | AW121: 0 | AX121: 0 | AY121: 0 | AZ121: 0 | BA121: 0 | BB121: 0 | BC121: 0 | BD121: 0 | BE121: 0 | BF121: 0 | BG121: 0 | BH121: 0 | BI121: 0 | BJ121: 0 | BK121: 0 | BL121: 0 | BM121: 0 | BN121: 0 | BO121: 0 | BP121: 0 | BQ121: 0 | BR121: =SUM(BR122:BR127) -> 0 | BS121: 0 | BT121: 0 | BU121: 0 | BV121: 0 | BW121: 0 | BX121: 0 | BY121: 0 | BZ121: 0 | CA121: 0 | CB121: 0 | CC121: 0 | CD121: 3 | CF121: 627
B122: 6271 | C122: Chi phí nhân viên phân xưởng | D122: 0 | F122: =SUMIF(TKno,TK,_st01) -> 0 | G122: =SUMIF(TKco,TK,_st01) -> 0 | H122: =IF(D122+F122-E122-G122>0,D122+F122-E122-G122,0) -> 0 | I122: =IF(E122+G122-D122-F122>0,E122+G122-D122-F122,0) -> 0 | J122: =H122 -> 0 | K122: =I122 -> 0 | L122: =SUMIF(TKno,TK,_st02) -> 0 | M122: =SUMIF(TKco,TK,_st02) -> 0 | N122: =IF(J122+L122-K122-M122>0,J122+L122-K122-M122,0) -> 0 | O122: =IF(K122+M122-J122-L122>0,K122+M122-J122-L122,0) -> 0 | P122: =N122 -> 0 | Q122: =O122 -> 0 | R122: =SUMIF(TKno,TK,_st03) -> 0 | S122: =SUMIF(TKco,TK,_st03) -> 0 | T122: =IF(P122+R122-Q122-S122>0,P122+R122-Q122-S122,0) -> 0 | U122: =IF(Q122+S122-P122-R122>0,Q122+S122-P122-R122,0) -> 0 | V122: =T122 -> 0 | W122: =U122 -> 0 | X122: =SUMIF(TKno,TK,_st04) -> 0 | Y122: =SUMIF(TKco,TK,_st04) -> 0 | Z122: =IF(V122+X122-W122-Y122>0,V122+X122-W122-Y122,0) -> 0 | AA122: =IF(W122+Y122-V122-X122>0,W122+Y122-V122-X122,0) -> 0 | AB122: =Z122 -> 0 | AC122: =AA122 -> 0 | AD122: =SUMIF(TKno,TK,_st05) -> 0 | AE122: =SUMIF(TKco,TK,_st05) -> 0 | AF122: =IF(AB122+AD122-AC122-AE122>0,AB122+AD122-AC122-AE122,0) -> 0 | AG122: =IF(AC122+AE122-AB122-AD122>0,AC122+AE122-AB122-AD122,0) -> 0 | AH122: =AF122 -> 0 | AI122: =AG122 -> 0 | AJ122: =SUMIF(TKno,TK,_st06) -> 0 | AK122: =SUMIF(TKco,TK,_st06) -> 0 | AL122: =IF(AH122+AJ122-AI122-AK122>0,AH122+AJ122-AI122-AK122,0) -> 0 | AM122: =IF(AI122+AK122-AH122-AJ122>0,AI122+AK122-AH122-AJ122,0) -> 0 | AN122: =AL122 -> 0 | AO122: =AM122 -> 0 | AP122: =SUMIF(TKno,TK,_st07) -> 0 | AQ122: =SUMIF(TKco,TK,_st07) -> 0 | AR122: =IF(AN122+AP122-AO122-AQ122>0,AN122+AP122-AO122-AQ122,0) -> 0 | AS122: =IF(AO122+AQ122-AN122-AP122>0,AO122+AQ122-AN122-AP122,0) -> 0 | AT122: =AR122 -> 0 | AU122: =AS122 -> 0 | AV122: =SUMIF(TKno,TK,_st08) -> 0 | AW122: =SUMIF(TKco,TK,_st08) -> 0 | AX122: =IF(AT122+AV122-AU122-AW122>0,AT122+AV122-AU122-AW122,0) -> 0 | AY122: =IF(AU122+AW122-AT122-AV122>0,AU122+AW122-AT122-AV122,0) -> 0 | AZ122: =AX122 -> 0 | BA122: =AY122 -> 0 | BB122: =SUMIF(TKno,TK,_st09) -> 0 | BC122: =SUMIF(TKco,TK,_st09) -> 0 | BD122: =IF(AZ122+BB122-BA122-BC122>0,AZ122+BB122-BA122-BC122,0) -> 0 | BE122: =IF(BA122+BC122-AZ122-BB122>0,BA122+BC122-AZ122-BB122,0) -> 0 | BF122: =BD122 -> 0 | BG122: =BE122 -> 0 | BH122: =SUMIF(TKno,TK,_st10) -> 0 | BI122: =SUMIF(TKco,TK,_st10) -> 0 | BJ122: =IF(BF122+BH122-BG122-BI122>0,BF122+BH122-BG122-BI122,0) -> 0 | BK122: =IF(BG122+BI122-BF122-BH122>0,BG122+BI122-BF122-BH122,0) -> 0 | BL122: =BJ122 -> 0 | BM122: =BK122 -> 0 | BN122: =SUMIF(TKno,TK,_st11) -> 0 | BO122: =SUMIF(TKco,TK,_st11) -> 0 | BP122: =IF(BL122+BN122-BM122-BO122>0,BL122+BN122-BM122-BO122,0) -> 0 | BQ122: =IF(BM122+BO122-BL122-BN122>0,BM122+BO122-BL122-BN122,0) -> 0 | BR122: =BP122 -> 0 | BS122: =BQ122 -> 0 | BT122: =SUMIF(TKno,TK,_st12) -> 0 | BU122: =SUMIF(TKco,TK,_st12) -> 0 | BV122: =IF(BR122+BT122-BS122-BU122>0,BR122+BT122-BS122-BU122,0) -> 0 | BW122: =IF(BS122+BU122-BR122-BT122>0,BS122+BU122-BR122-BT122,0) -> 0 | BX122: 0 | BY122: 0 | BZ122: =SUMIF(TKno,TK,ST) -> 0 | CA122: =SUMIF(TKco,TK,ST) -> 0 | CB122: =IF(BX122+BZ122-BY122-CA122>0,BX122+BZ122-BY122-CA122,0) -> 0 | CC122: =IF(BY122+CA122-BX122-BZ122>0,BY122+CA122-BX122-BZ122,0) -> 0 | CD122: 4 | CE122: =$B122 -> 6271 | CG122: 6271
B123: 6272 | C123: Chi phí vật liệu | D123: 0 | F123: 0 | G123: 0 | H123: 0 | I123: 0 | J123: 0 | K123: 0 | L123: =IF(H123+J123-I123-K123>0,H123+J123-I123-K123,0) -> 0 | M123: 0 | N123: 0 | O123: 0 | P123: 0 | Q123: 0 | R123: 0 | S123: 0 | T123: 0 | U123: 0 | V123: 0 | W123: 0 | X123: 0 | Y123: 0 | Z123: 0 | AA123: 0 | AB123: 0 | AC123: 0 | AD123: 0 | AE123: 0 | AF123: 0 | AG123: 0 | AH123: 0 | AI123: 0 | AJ123: 0 | AK123: 0 | AL123: 0 | AM123: 0 | AN123: 0 | AO123: 0 | AP123: 0 | AQ123: 0 | AR123: 0 | AS123: 0 | AT123: 0 | AU123: 0 | AV123: 0 | AW123: 0 | AX123: 0 | AY123: 0 | AZ123: 0 | BA123: 0 | BB123: 0 | BC123: 0 | BD123: 0 | BE123: 0 | BF123: 0 | BG123: 0 | BH123: 0 | BI123: 0 | BJ123: 0 | BK123: 0 | BL123: 0 | BM123: 0 | BN123: 0 | BO123: 0 | BP123: 0 | BQ123: 0 | BR123: 0 | BS123: 0 | BT123: 0 | BU123: 0 | BV123: 0 | BW123: 0 | BX123: 0 | BY123: 0 | BZ123: 0 | CA123: 0 | CB123: 0 | CC123: 0 | CD123: 4 | CE123: 6272 | CG123: 6272
B124: 6273 | C124: Chi phí dụng cụ sản xuất | D124: 0 | F124: 0 | G124: 0 | H124: 0 | I124: 0 | J124: 0 | K124: 0 | L124: 0 | M124: 0 | N124: 0 | O124: 0 | P124: 0 | Q124: 0 | R124: 0 | S124: 0 | T124: 0 | U124: 0 | V124: 0 | W124: 0 | X124: 0 | Y124: 0 | Z124: 0 | AA124: 0 | AB124: 0 | AC124: 0 | AD124: 0 | AE124: 0 | AF124: 0 | AG124: 0 | AH124: 0 | AI124: 0 | AJ124: 0 | AK124: 0 | AL124: 0 | AM124: 0 | AN124: 0 | AO124: 0 | AP124: 0 | AQ124: 0 | AR124: 0 | AS124: 0 | AT124: 0 | AU124: 0 | AV124: 0 | AW124: 0 | AX124: 0 | AY124: 0 | AZ124: 0 | BA124: 0 | BB124: 0 | BC124: 0 | BD124: 0 | BE124: 0 | BF124: 0 | BG124: 0 | BH124: 0 | BI124: 0 | BJ124: 0 | BK124: 0 | BL124: 0 | BM124: 0 | BN124: 0 | BO124: 0 | BP124: 0 | BQ124: 0 | BR124: 0 | BS124: 0 | BT124: 0 | BU124: 0 | BV124: 0 | BW124: 0 | BX124: 0 | BY124: 0 | BZ124: 0 | CA124: 0 | CB124: 0 | CC124: 0 | CD124: 4 | CE124: 6273 | CG124: 6273
B125: 6274 | C125: Chi phí khấu hao TSCĐ | D125: 0 | F125: 0 | G125: 0 | H125: 0 | I125: 0 | J125: 0 | K125: 0 | L125: 0 | M125: 0 | N125: 0 | O125: 0 | P125: 0 | Q125: 0 | R125: 0 | S125: 0 | T125: 0 | U125: 0 | V125: 0 | W125: 0 | X125: 0 | Y125: 0 | Z125: 0 | AA125: 0 | AB125: 0 | AC125: 0 | AD125: 0 | AE125: 0 | AF125: 0 | AG125: 0 | AH125: 0 | AI125: 0 | AJ125: 0 | AK125: 0 | AL125: 0 | AM125: 0 | AN125: 0 | AO125: 0 | AP125: 0 | AQ125: 0 | AR125: 0 | AS125: 0 | AT125: 0 | AU125: 0 | AV125: 0 | AW125: 0 | AX125: 0 | AY125: 0 | AZ125: 0 | BA125: 0 | BB125: 0 | BC125: 0 | BD125: 0 | BE125: 0 | BF125: 0 | BG125: 0 | BH125: 0 | BI125: 0 | BJ125: 0 | BK125: 0 | BL125: 0 | BM125: 0 | BN125: 0 | BO125: 0 | BP125: 0 | BQ125: 0 | BR125: 0 | BS125: 0 | BT125: 0 | BU125: 0 | BV125: 0 | BW125: 0 | BX125: 0 | BY125: 0 | BZ125: 0 | CA125: 0 | CB125: 0 | CC125: 0 | CD125: 4 | CE125: 6274 | CG125: 6274
B126: 6277 | C126: Chi phí dịch vụ mua ngoài | D126: 0 | F126: 0 | G126: 0 | H126: 0 | I126: 0 | J126: 0 | K126: 0 | L126: 0 | M126: 0 | N126: 0 | O126: 0 | P126: 0 | Q126: 0 | R126: 0 | S126: 0 | T126: 0 | U126: 0 | V126: 0 | W126: 0 | X126: 0 | Y126: 0 | Z126: 0 | AA126: 0 | AB126: 0 | AC126: 0 | AD126: 0 | AE126: 0 | AF126: 0 | AG126: 0 | AH126: 0 | AI126: 0 | AJ126: 0 | AK126: 0 | AL126: 0 | AM126: 0 | AN126: 0 | AO126: 0 | AP126: 0 | AQ126: 0 | AR126: 0 | AS126: 0 | AT126: 0 | AU126: 0 | AV126: 0 | AW126: 0 | AX126: 0 | AY126: 0 | AZ126: 0 | BA126: 0 | BB126: 0 | BC126: 0 | BD126: 0 | BE126: 0 | BF126: 0 | BG126: 0 | BH126: 0 | BI126: 0 | BJ126: 0 | BK126: 0 | BL126: 0 | BM126: 0 | BN126: 0 | BO126: 0 | BP126: 0 | BQ126: 0 | BR126: 0 | BS126: 0 | BT126: 0 | BU126: 0 | BV126: 0 | BW126: 0 | BX126: 0 | BY126: 0 | BZ126: 0 | CA126: 0 | CB126: 0 | CC126: 0 | CD126: 4 | CE126: 6277 | CG126: 6277
B127: 6278 | C127: Chi phí bằng tiền khác | D127: 0 | F127: 0 | G127: 0 | H127: 0 | I127: 0 | J127: 0 | K127: 0 | L127: 0 | M127: 0 | N127: 0 | O127: 0 | P127: 0 | Q127: 0 | R127: 0 | S127: 0 | T127: 0 | U127: 0 | V127: 0 | W127: 0 | X127: 0 | Y127: 0 | Z127: 0 | AA127: 0 | AB127: 0 | AC127: 0 | AD127: 0 | AE127: 0 | AF127: 0 | AG127: 0 | AH127: 0 | AI127: 0 | AJ127: 0 | AK127: 0 | AL127: 0 | AM127: 0 | AN127: 0 | AO127: 0 | AP127: 0 | AQ127: 0 | AR127: 0 | AS127: 0 | AT127: 0 | AU127: 0 | AV127: 0 | AW127: 0 | AX127: 0 | AY127: 0 | AZ127: 0 | BA127: 0 | BB127: 0 | BC127: 0 | BD127: 0 | BE127: 0 | BF127: 0 | BG127: 0 | BH127: 0 | BI127: 0 | BJ127: 0 | BK127: 0 | BL127: 0 | BM127: 0 | BN127: 0 | BO127: 0 | BP127: 0 | BQ127: 0 | BR127: 0 | BS127: 0 | BT127: 0 | BU127: 0 | BV127: 0 | BW127: 0 | BX127: 0 | BY127: 0 | BZ127: 0 | CA127: 0 | CB127: 0 | CC127: 0 | CD127: 4 | CE127: 6278 | CG127: 6278
A128: ok | B128: 632 | C128: Giá thành sản xuất | D128: 0 | F128: =SUM(F129:F130) -> 494,000,000 | G128: 0 | H128: 494,000,000.00 | I128: 0 | J128: 494,000,000.00 | K128: 0 | L128: 326,132,415 | M128: 326,132,415 | N128: 494,000,000.00 | O128: 0 | P128: 494,000,000.00 | Q128: 0 | R128: 0 | S128: 0 | T128: 494,000,000.00 | U128: 0 | V128: 494,000,000.00 | W128: 0 | X128: 0 | Y128: 0 | Z128: 494,000,000.00 | AA128: 0 | AB128: 494,000,000.00 | AC128: 0 | AD128: 0 | AE128: 0 | AF128: 494,000,000.00 | AG128: 0 | AH128: 494,000,000.00 | AI128: 0 | AJ128: 0 | AK128: 0 | AL128: 494,000,000.00 | AM128: 0 | AN128: 494,000,000.00 | AO128: 0 | AP128: 0 | AQ128: 0 | AR128: 494,000,000.00 | AS128: 0 | AT128: 494,000,000.00 | AU128: 0 | AV128: 0 | AW128: 0 | AX128: 494,000,000.00 | AY128: 0 | AZ128: 494,000,000.00 | BA128: 0 | BB128: 0 | BC128: 0 | BD128: 494,000,000.00 | BE128: 0 | BF128: 494,000,000.00 | BG128: 0 | BH128: 0 | BI128: 0 | BJ128: 494,000,000.00 | BK128: 0 | BL128: 494,000,000.00 | BM128: 0 | BN128: 0 | BO128: 0 | BP128: 494,000,000.00 | BQ128: =SUM(BQ129:BQ130) -> 0 | BR128: 494,000,000.00 | BS128: 0 | BT128: 0 | BU128: 0 | BV128: 494,000,000.00 | BW128: 0 | BX128: 0 | BY128: 0 | BZ128: 820,132,415 | CA128: 326,132,415 | CB128: 494,000,000 | CC128: 0 | CD128: 3 | CF128: 632
A129: ok | B129: 6321 | C129: Giá vốn hàng bán | D129: 0 | F129: 494,000,000 | G129: 0 | H129: =IF(D129+F129-E129-G129>0,D129+F129-E129-G129,0) -> 494,000,000.00 | I129: =IF(E129+G129-D129-F129>0,E129+G129-D129-F129,0) -> 0 | J129: =H129 -> 494,000,000.00 | K129: =I129 -> 0 | L129: 326,132,415 | M129: 326,132,415 | N129: =IF(J129+L129-K129-M129>0,J129+L129-K129-M129,0) -> 494,000,000.00 | O129: =IF(K129+M129-J129-L129>0,K129+M129-J129-L129,0) -> 0 | P129: =N129 -> 494,000,000.00 | Q129: =O129 -> 0 | R129: 0 | S129: 0 | T129: =IF(P129+R129-Q129-S129>0,P129+R129-Q129-S129,0) -> 494,000,000.00 | U129: =IF(Q129+S129-P129-R129>0,Q129+S129-P129-R129,0) -> 0 | V129: =T129 -> 494,000,000.00 | W129: =U129 -> 0 | X129: 0 | Y129: 0 | Z129: =IF(V129+X129-W129-Y129>0,V129+X129-W129-Y129,0) -> 494,000,000.00 | AA129: =IF(W129+Y129-V129-X129>0,W129+Y129-V129-X129,0) -> 0 | AB129: =Z129 -> 494,000,000.00 | AC129: =AA129 -> 0 | AD129: 0 | AE129: 0 | AF129: =IF(AB129+AD129-AC129-AE129>0,AB129+AD129-AC129-AE129,0) -> 494,000,000.00 | AG129: =IF(AC129+AE129-AB129-AD129>0,AC129+AE129-AB129-AD129,0) -> 0 | AH129: =AF129 -> 494,000,000.00 | AI129: =AG129 -> 0 | AJ129: 0 | AK129: 0 | AL129: =IF(AH129+AJ129-AI129-AK129>0,AH129+AJ129-AI129-AK129,0) -> 494,000,000.00 | AM129: =IF(AI129+AK129-AH129-AJ129>0,AI129+AK129-AH129-AJ129,0) -> 0 | AN129: =AL129 -> 494,000,000.00 | AO129: =AM129 -> 0 | AP129: 0 | AQ129: 0 | AR129: =IF(AN129+AP129-AO129-AQ129>0,AN129+AP129-AO129-AQ129,0) -> 494,000,000.00 | AS129: =IF(AO129+AQ129-AN129-AP129>0,AO129+AQ129-AN129-AP129,0) -> 0 | AT129: =AR129 -> 494,000,000.00 | AU129: =AS129 -> 0 | AV129: 0 | AW129: 0 | AX129: =IF(AT129+AV129-AU129-AW129>0,AT129+AV129-AU129-AW129,0) -> 494,000,000.00 | AY129: =IF(AU129+AW129-AT129-AV129>0,AU129+AW129-AT129-AV129,0) -> 0 | AZ129: =AX129 -> 494,000,000.00 | BA129: =AY129 -> 0 | BB129: 0 | BC129: 0 | BD129: =IF(AZ129+BB129-BA129-BC129>0,AZ129+BB129-BA129-BC129,0) -> 494,000,000.00 | BE129: =IF(BA129+BC129-AZ129-BB129>0,BA129+BC129-AZ129-BB129,0) -> 0 | BF129: =BD129 -> 494,000,000.00 | BG129: =BE129 -> 0 | BH129: 0 | BI129: 0 | BJ129: =IF(BF129+BH129-BG129-BI129>0,BF129+BH129-BG129-BI129,0) -> 494,000,000.00 | BK129: =IF(BG129+BI129-BF129-BH129>0,BG129+BI129-BF129-BH129,0) -> 0 | BL129: =BJ129 -> 494,000,000.00 | BM129: =BK129 -> 0 | BN129: 0 | BO129: 0 | BP129: =IF(BL129+BN129-BM129-BO129>0,BL129+BN129-BM129-BO129,0) -> 494,000,000.00 | BQ129: =IF(BM129+BO129-BL129-BN129>0,BM129+BO129-BL129-BN129,0) -> 0 | BR129: =BP129 -> 494,000,000.00 | BS129: =BQ129 -> 0 | BT129: 0 | BU129: 0 | BV129: =IF(BR129+BT129-BS129-BU129>0,BR129+BT129-BS129-BU129,0) -> 494,000,000.00 | BW129: =IF(BS129+BU129-BR129-BT129>0,BS129+BU129-BR129-BT129,0) -> 0 | BX129: =D129 -> 0 | BY129: =E129 -> 0 | BZ129: 820,132,415 | CA129: =ROUND(SUMIF(TKco,TK,ST),0) -> 326,132,415 | CB129: =IF(BX129+BZ129-BY129-CA129>0,BX129+BZ129-BY129-CA129,0) -> 494,000,000 | CC129: =IF(BY129+CA129-BX129-BZ129>0,BY129+CA129-BX129-BZ129,0) -> 0 | CD129: 4 | CE129: 6321 | CG129: 6321
B130: 6322 | C130: Giá vốn dịch vụ sửa chữa | D130: 0 | F130: 0 | G130: 0 | H130: 0 | I130: 0 | J130: 0 | K130: 0 | L130: 0 | M130: 0 | N130: 0 | O130: 0 | P130: 0 | Q130: 0 | R130: 0 | S130: 0 | T130: 0 | U130: 0 | V130: 0 | W130: 0 | X130: 0 | Y130: 0 | Z130: 0 | AA130: 0 | AB130: 0 | AC130: 0 | AD130: 0 | AE130: 0 | AF130: 0 | AG130: 0 | AH130: 0 | AI130: 0 | AJ130: 0 | AK130: 0 | AL130: 0 | AM130: 0 | AN130: 0 | AO130: 0 | AP130: 0 | AQ130: 0 | AR130: 0 | AS130: 0 | AT130: 0 | AU130: 0 | AV130: 0 | AW130: 0 | AX130: 0 | AY130: 0 | AZ130: 0 | BA130: 0 | BB130: 0 | BC130: 0 | BD130: 0 | BE130: 0 | BF130: 0 | BG130: 0 | BH130: 0 | BI130: 0 | BJ130: 0 | BK130: 0 | BL130: 0 | BM130: 0 | BN130: 0 | BO130: 0 | BP130: 0 | BQ130: 0 | BR130: 0 | BS130: 0 | BT130: 0 | BU130: 0 | BV130: 0 | BW130: 0 | BX130: 0 | BY130: 0 | BZ130: 0 | CA130: 0 | CB130: 0 | CC130: 0 | CD130: 4 | CE130: 6322 | CG130: 6322
B131: 635 | C131: Chi phí tài chính | D131: 0 | F131: 0 | G131: 0 | H131: 0 | I131: 0 | J131: 0 | K131: 0 | L131: 0 | M131: 0 | N131: 0 | O131: 0 | P131: 0 | Q131: 0 | R131: 0 | S131: 0 | T131: 0 | U131: 0 | V131: 0 | W131: 0 | X131: 0 | Y131: 0 | Z131: 0 | AA131: 0 | AB131: 0 | AC131: 0 | AD131: 0 | AE131: 0 | AF131: 0 | AG131: 0 | AH131: 0 | AI131: 0 | AJ131: 0 | AK131: 0 | AL131: 0 | AM131: 0 | AN131: 0 | AO131: 0 | AP131: 0 | AQ131: 0 | AR131: 0 | AS131: 0 | AT131: 0 | AU131: 0 | AV131: 0 | AW131: 0 | AX131: 0 | AY131: 0 | AZ131: 0 | BA131: 0 | BB131: 0 | BC131: 0 | BD131: 0 | BE131: 0 | BF131: 0 | BG131: 0 | BH131: 0 | BI131: 0 | BJ131: 0 | BK131: 0 | BL131: 0 | BM131: 0 | BN131: 0 | BO131: 0 | BP131: 0 | BQ131: 0 | BR131: 0 | BS131: 0 | BT131: 0 | BU131: 0 | BV131: 0 | BW131: 0 | BX131: 0 | BY131: 0 | BZ131: 0 | CA131: 0 | CB131: 0 | CC131: 0 | CD131: 3 | CE131: 635 | CF131: 635
A132: ok | B132: 641 | C132: Chi phí bán hàng | D132: 0 | F132: =SUM(F133:F139) -> 27,800,000 | G132: 0 | H132: 27,800,000.00 | I132: 0 | J132: 27,800,000.00 | K132: 0 | L132: 46,634,596 | M132: 46,634,596 | N132: 27,800,000 | O132: 0 | P132: =SUM(P133:P139) -> 27,800,000 | Q132: 0 | R132: 0 | S132: 0 | T132: 27,800,000.00 | U132: 0 | V132: =SUM(V133:V139) -> 27,800,000.00 | W132: 0 | X132: 0 | Y132: 0 | Z132: 27,800,000.00 | AA132: 0 | AB132: 27,800,000.00 | AC132: 0 | AD132: 0 | AE132: 0 | AF132: 27,800,000.00 | AG132: 0 | AH132: 27,800,000.00 | AI132: 0 | AJ132: 0 | AK132: 0 | AL132: 27,800,000.00 | AM132: 0 | AN132: 27,800,000.00 | AO132: 0 | AP132: 0 | AQ132: 0 | AR132: 27,800,000.00 | AS132: 0 | AT132: 27,800,000.00 | AU132: 0 | AV132: 0 | AW132: 0 | AX132: 27,800,000.00 | AY132: 0 | AZ132: 27,800,000.00 | BA132: 0 | BB132: 0 | BC132: 0 | BD132: 27,800,000.00 | BE132: 0 | BF132: 27,800,000.00 | BG132: 0 | BH132: 0 | BI132: 0 | BJ132: 27,800,000.00 | BK132: 0 | BL132: 27,800,000.00 | BM132: 0 | BN132: 0 | BO132: 0 | BP132: 27,800,000.00 | BQ132: 0 | BR132: =SUM(BR133:BR139) -> 27,800,000.00 | BS132: 0 | BT132: 0 | BU132: 0 | BV132: 27,800,000.00 | BW132: 0 | BX132: 0 | BY132: 0 | BZ132: 74,434,596 | CA132: 46,634,596 | CB132: 27,800,000 | CC132: 0 | CD132: 3 | CF132: 641
A133: ok | B133: 6411 | C133: Chi phí nhân viên bán hàng | D133: 0 | F133: =SUMIF(TKno,TK,_st01) -> 26,000,000 | G133: =SUMIF(TKco,TK,_st01) -> 0 | H133: =IF(D133+F133-E133-G133>0,D133+F133-E133-G133,0) -> 26,000,000 | I133: =IF(E133+G133-D133-F133>0,E133+G133-D133-F133,0) -> 0 | J133: =H133 -> 26,000,000.00 | K133: =I133 -> 0 | L133: =SUMIF(TKno,TK,_st02) -> 29,940,596 | M133: =SUMIF(TKco,TK,_st02) -> 29,940,596 | N133: =IF(J133+L133-K133-M133>0,J133+L133-K133-M133,0) -> 26,000,000 | O133: =IF(K133+M133-J133-L133>0,K133+M133-J133-L133,0) -> 0 | P133: =N133 -> 26,000,000 | Q133: =O133 -> 0 | R133: =SUMIF(TKno,TK,_st03) -> 0 | S133: =SUMIF(TKco,TK,_st03) -> 0 | T133: =IF(P133+R133-Q133-S133>0,P133+R133-Q133-S133,0) -> 26,000,000.00 | U133: =IF(Q133+S133-P133-R133>0,Q133+S133-P133-R133,0) -> 0 | V133: =T133 -> 26,000,000.00 | W133: =U133 -> 0 | X133: =SUMIF(TKno,TK,_st04) -> 0 | Y133: =SUMIF(TKco,TK,_st04) -> 0 | Z133: =IF(V133+X133-W133-Y133>0,V133+X133-W133-Y133,0) -> 26,000,000.00 | AA133: =IF(W133+Y133-V133-X133>0,W133+Y133-V133-X133,0) -> 0 | AB133: =Z133 -> 26,000,000.00 | AC133: =AA133 -> 0 | AD133: =SUMIF(TKno,TK,_st05) -> 0 | AE133: =SUMIF(TKco,TK,_st05) -> 0 | AF133: =IF(AB133+AD133-AC133-AE133>0,AB133+AD133-AC133-AE133,0) -> 26,000,000.00 | AG133: =IF(AC133+AE133-AB133-AD133>0,AC133+AE133-AB133-AD133,0) -> 0 | AH133: =AF133 -> 26,000,000.00 | AI133: =AG133 -> 0 | AJ133: =SUMIF(TKno,TK,_st06) -> 0 | AK133: =SUMIF(TKco,TK,_st06) -> 0 | AL133: =IF(AH133+AJ133-AI133-AK133>0,AH133+AJ133-AI133-AK133,0) -> 26,000,000.00 | AM133: =IF(AI133+AK133-AH133-AJ133>0,AI133+AK133-AH133-AJ133,0) -> 0 | AN133: =AL133 -> 26,000,000.00 | AO133: =AM133 -> 0 | AP133: =SUMIF(TKno,TK,_st07) -> 0 | AQ133: =SUMIF(TKco,TK,_st07) -> 0 | AR133: =IF(AN133+AP133-AO133-AQ133>0,AN133+AP133-AO133-AQ133,0) -> 26,000,000.00 | AS133: =IF(AO133+AQ133-AN133-AP133>0,AO133+AQ133-AN133-AP133,0) -> 0 | AT133: =AR133 -> 26,000,000.00 | AU133: =AS133 -> 0 | AV133: =SUMIF(TKno,TK,_st08) -> 0 | AW133: =SUMIF(TKco,TK,_st08) -> 0 | AX133: =IF(AT133+AV133-AU133-AW133>0,AT133+AV133-AU133-AW133,0) -> 26,000,000.00 | AY133: =IF(AU133+AW133-AT133-AV133>0,AU133+AW133-AT133-AV133,0) -> 0 | AZ133: =AX133 -> 26,000,000.00 | BA133: =AY133 -> 0 | BB133: =SUMIF(TKno,TK,_st09) -> 0 | BC133: =SUMIF(TKco,TK,_st09) -> 0 | BD133: =IF(AZ133+BB133-BA133-BC133>0,AZ133+BB133-BA133-BC133,0) -> 26,000,000.00 | BE133: =IF(BA133+BC133-AZ133-BB133>0,BA133+BC133-AZ133-BB133,0) -> 0 | BF133: =BD133 -> 26,000,000.00 | BG133: =BE133 -> 0 | BH133: =SUMIF(TKno,TK,_st10) -> 0 | BI133: =SUMIF(TKco,TK,_st10) -> 0 | BJ133: =IF(BF133+BH133-BG133-BI133>0,BF133+BH133-BG133-BI133,0) -> 26,000,000.00 | BK133: =IF(BG133+BI133-BF133-BH133>0,BG133+BI133-BF133-BH133,0) -> 0 | BL133: =BJ133 -> 26,000,000.00 | BM133: =BK133 -> 0 | BN133: =SUMIF(TKno,TK,_st11) -> 0 | BO133: =SUMIF(TKco,TK,_st11) -> 0 | BP133: =IF(BL133+BN133-BM133-BO133>0,BL133+BN133-BM133-BO133,0) -> 26,000,000.00 | BQ133: =IF(BM133+BO133-BL133-BN133>0,BM133+BO133-BL133-BN133,0) -> 0 | BR133: =BJ133 -> 26,000,000.00 | BS133: =BK133 -> 0 | BT133: =SUMIF(TKno,TK,_st12) -> 0 | BU133: =SUMIF(TKco,TK,_st12) -> 0 | BV133: =IF(BR133+BT133-BS133-BU133>0,BR133+BT133-BS133-BU133,0) -> 26,000,000.00 | BW133: =IF(BS133+BU133-BR133-BT133>0,BS133+BU133-BR133-BT133,0) -> 0 | BX133: 0 | BY133: 0 | BZ133: =SUMIF(TKno,TK,ST) -> 55,940,596 | CA133: =SUMIF(TKco,TK,ST) -> 29,940,596 | CB133: =IF(BX133+BZ133-BY133-CA133>0,BX133+BZ133-BY133-CA133,0) -> 26,000,000 | CC133: =IF(BY133+CA133-BX133-BZ133>0,BY133+CA133-BX133-BZ133,0) -> 0 | CD133: 4 | CE133: =$B133 -> 6411 | CG133: 6411
B134: 6412 | C134: Chi phí vật liệu, bao bì | D134: 0 | F134: 0 | G134: 0 | H134: 0 | I134: 0 | J134: 0 | K134: 0 | L134: 0 | M134: 0 | N134: 0 | O134: 0 | P134: 0 | Q134: 0 | R134: 0 | S134: 0 | T134: 0 | U134: 0 | V134: 0 | W134: 0 | X134: 0 | Y134: 0 | Z134: 0 | AA134: 0 | AB134: 0 | AC134: 0 | AD134: 0 | AE134: 0 | AF134: 0 | AG134: 0 | AH134: 0 | AI134: 0 | AJ134: 0 | AK134: 0 | AL134: 0 | AM134: 0 | AN134: 0 | AO134: 0 | AP134: 0 | AQ134: 0 | AR134: 0 | AS134: 0 | AT134: 0 | AU134: 0 | AV134: 0 | AW134: 0 | AX134: 0 | AY134: 0 | AZ134: 0 | BA134: 0 | BB134: 0 | BC134: 0 | BD134: 0 | BE134: 0 | BF134: 0 | BG134: 0 | BH134: 0 | BI134: 0 | BJ134: 0 | BK134: 0 | BL134: 0 | BM134: 0 | BN134: 0 | BO134: 0 | BP134: 0 | BQ134: 0 | BR134: 0 | BS134: 0 | BT134: 0 | BU134: 0 | BV134: 0 | BW134: 0 | BX134: 0 | BY134: 0 | BZ134: 0 | CA134: 0 | CB134: 0 | CC134: 0 | CD134: 4 | CE134: 6412 | CG134: 6412
B135: 6413 | C135: Chi phí dụng cụ, đồ dùng | D135: 0 | F135: 0 | G135: 0 | H135: 0 | I135: 0 | J135: 0 | K135: 0 | L135: 0 | M135: 0 | N135: 0 | O135: 0 | P135: 0 | Q135: 0 | R135: 0 | S135: 0 | T135: 0 | U135: 0 | V135: 0 | W135: 0 | X135: 0 | Y135: 0 | Z135: 0 | AA135: 0 | AB135: 0 | AC135: 0 | AD135: 0 | AE135: 0 | AF135: 0 | AG135: 0 | AH135: 0 | AI135: 0 | AJ135: 0 | AK135: 0 | AL135: 0 | AM135: 0 | AN135: 0 | AO135: 0 | AP135: 0 | AQ135: 0 | AR135: 0 | AS135: 0 | AT135: 0 | AU135: 0 | AV135: 0 | AW135: 0 | AX135: 0 | AY135: 0 | AZ135: 0 | BA135: 0 | BB135: 0 | BC135: 0 | BD135: 0 | BE135: 0 | BF135: 0 | BG135: 0 | BH135: 0 | BI135: 0 | BJ135: 0 | BK135: 0 | BL135: 0 | BM135: 0 | BN135: 0 | BO135: 0 | BP135: 0 | BQ135: 0 | BR135: 0 | BS135: 0 | BT135: 0 | BU135: 0 | BV135: 0 | BW135: 0 | BX135: 0 | BY135: 0 | BZ135: 0 | CA135: 0 | CB135: 0 | CC135: 0 | CD135: 4 | CE135: 6413 | CG135: 6413
B136: 6414 | C136: Chi phí khấu hao TSCĐ | D136: 0 | F136: 0 | G136: 0 | H136: 0 | I136: 0 | J136: 0 | K136: 0 | L136: 0 | M136: 0 | N136: 0 | O136: 0 | P136: 0 | Q136: 0 | R136: 0 | S136: 0 | T136: 0 | U136: 0 | V136: 0 | W136: 0 | X136: 0 | Y136: 0 | Z136: 0 | AA136: 0 | AB136: 0 | AC136: 0 | AD136: 0 | AE136: 0 | AF136: 0 | AG136: 0 | AH136: 0 | AI136: 0 | AJ136: 0 | AK136: 0 | AL136: 0 | AM136: 0 | AN136: 0 | AO136: 0 | AP136: 0 | AQ136: 0 | AR136: 0 | AS136: 0 | AT136: 0 | AU136: 0 | AV136: 0 | AW136: 0 | AX136: 0 | AY136: 0 | AZ136: 0 | BA136: 0 | BB136: 0 | BC136: 0 | BD136: 0 | BE136: 0 | BF136: 0 | BG136: 0 | BH136: 0 | BI136: 0 | BJ136: 0 | BK136: 0 | BL136: 0 | BM136: 0 | BN136: 0 | BO136: 0 | BP136: 0 | BQ136: 0 | BR136: 0 | BS136: 0 | BT136: 0 | BU136: 0 | BV136: 0 | BW136: 0 | BX136: 0 | BY136: 0 | BZ136: 0 | CA136: 0 | CB136: 0 | CC136: 0 | CD136: 4 | CE136: 6414 | CG136: 6414
B137: 6415 | C137: Chi phí bảo hành | D137: 0 | F137: 0 | G137: 0 | H137: 0 | I137: 0 | J137: 0 | K137: 0 | L137: 0 | M137: 0 | N137: 0 | O137: 0 | P137: 0 | Q137: 0 | R137: 0 | S137: 0 | T137: 0 | U137: 0 | V137: 0 | W137: 0 | X137: 0 | Y137: 0 | Z137: 0 | AA137: 0 | AB137: 0 | AC137: 0 | AD137: 0 | AE137: 0 | AF137: 0 | AG137: 0 | AH137: 0 | AI137: 0 | AJ137: 0 | AK137: 0 | AL137: 0 | AM137: 0 | AN137: 0 | AO137: 0 | AP137: 0 | AQ137: 0 | AR137: 0 | AS137: 0 | AT137: 0 | AU137: 0 | AV137: 0 | AW137: 0 | AX137: 0 | AY137: 0 | AZ137: 0 | BA137: 0 | BB137: 0 | BC137: 0 | BD137: 0 | BE137: 0 | BF137: 0 | BG137: 0 | BH137: 0 | BI137: 0 | BJ137: 0 | BK137: 0 | BL137: 0 | BM137: 0 | BN137: 0 | BO137: 0 | BP137: 0 | BQ137: 0 | BR137: 0 | BS137: 0 | BT137: 0 | BU137: 0 | BV137: 0 | BW137: 0 | BX137: 0 | BY137: 0 | BZ137: 0 | CA137: 0 | CB137: 0 | CC137: 0 | CD137: 4 | CE137: 6415 | CG137: 6415
B138: 6417 | C138: Chi phí dịch vụ mua ngoài | D138: 0 | F138: 0 | G138: 0 | H138: 0 | I138: 0 | J138: 0 | K138: 0 | L138: 15,000,000 | M138: 15,000,000 | N138: 0 | O138: 0 | P138: 0 | Q138: 0 | R138: 0 | S138: 0 | T138: 0 | U138: 0 | V138: 0 | W138: 0 | X138: 0 | Y138: 0 | Z138: 0 | AA138: 0 | AB138: 0 | AC138: 0 | AD138: 0 | AE138: 0 | AF138: 0 | AG138: 0 | AH138: 0 | AI138: 0 | AJ138: 0 | AK138: 0 | AL138: 0 | AM138: 0 | AN138: 0 | AO138: 0 | AP138: 0 | AQ138: 0 | AR138: 0 | AS138: 0 | AT138: 0 | AU138: 0 | AV138: 0 | AW138: 0 | AX138: 0 | AY138: 0 | AZ138: 0 | BA138: 0 | BB138: 0 | BC138: 0 | BD138: 0 | BE138: 0 | BF138: 0 | BG138: 0 | BH138: 0 | BI138: 0 | BJ138: 0 | BK138: 0 | BL138: 0 | BM138: 0 | BN138: 0 | BO138: 0 | BP138: 0 | BQ138: 0 | BR138: 0 | BS138: 0 | BT138: 0 | BU138: 0 | BV138: 0 | BW138: 0 | BX138: 0 | BY138: 0 | BZ138: 15,000,000 | CA138: 15,000,000 | CB138: 0 | CC138: 0 | CD138: 4 | CE138: 6417 | CG138: 6417
A139: ok | B139: 6418 | C139: Chi phí bằng tiền khác | D139: 0 | F139: 1,800,000.00 | G139: 0 | H139: 1,800,000.00 | I139: 0 | J139: 1,800,000.00 | K139: 0 | L139: 1,694,000 | M139: 1,694,000 | N139: 1,800,000 | O139: 0 | P139: 1,800,000 | Q139: 0 | R139: 0 | S139: 0 | T139: 1,800,000.00 | U139: 0 | V139: 1,800,000.00 | W139: 0 | X139: 0 | Y139: 0 | Z139: 1,800,000.00 | AA139: 0 | AB139: 1,800,000.00 | AC139: 0 | AD139: 0 | AE139: 0 | AF139: 1,800,000.00 | AG139: 0 | AH139: 1,800,000.00 | AI139: 0 | AJ139: 0 | AK139: 0 | AL139: 1,800,000.00 | AM139: 0 | AN139: 1,800,000.00 | AO139: 0 | AP139: 0 | AQ139: 0 | AR139: 1,800,000.00 | AS139: 0 | AT139: 1,800,000.00 | AU139: 0 | AV139: 0 | AW139: 0 | AX139: 1,800,000.00 | AY139: 0 | AZ139: 1,800,000.00 | BA139: 0 | BB139: 0 | BC139: 0 | BD139: 1,800,000.00 | BE139: 0 | BF139: 1,800,000.00 | BG139: 0 | BH139: 0 | BI139: 0 | BJ139: 1,800,000.00 | BK139: 0 | BL139: 1,800,000.00 | BM139: 0 | BN139: 0 | BO139: 0 | BP139: 1,800,000.00 | BQ139: 0 | BR139: 1,800,000.00 | BS139: 0 | BT139: 0 | BU139: 0 | BV139: 1,800,000.00 | BW139: 0 | BX139: 0 | BY139: 0 | BZ139: 3,494,000 | CA139: 1,694,000 | CB139: 1,800,000 | CC139: 0 | CD139: 4 | CE139: 6418 | CG139: 6418
A140: ok | B140: 642 | C140: Chi phí quản lý kinh doanh | D140: 0 | F140: =SUM(F141:F149) -> 29,772,547 | G140: 0 | H140: 29,772,547 | I140: 0 | J140: 29,772,547 | K140: 0 | L140: 52,049,327 | M140: 52,079,327 | N140: 29,742,547 | O140: 0 | P140: =SUM(P141:P149) -> 29,742,547 | Q140: 0 | R140: 0 | S140: 0 | T140: 29,742,547 | U140: 0 | V140: =SUM(V141:V149) -> 29,742,547 | W140: 0 | X140: 0 | Y140: 0 | Z140: 29,742,547 | AA140: 0 | AB140: 29,742,547 | AC140: 0 | AD140: 0 | AE140: 0 | AF140: 29,742,547 | AG140: 0 | AH140: 29,742,547 | AI140: 0 | AJ140: 0 | AK140: 0 | AL140: 29,742,547 | AM140: 0 | AN140: 29,742,547 | AO140: 0 | AP140: 0 | AQ140: 0 | AR140: 29,742,547 | AS140: 0 | AT140: 29,742,547 | AU140: 0 | AV140: 0 | AW140: 0 | AX140: 29,742,547 | AY140: 0 | AZ140: 29,742,547 | BA140: 0 | BB140: 0 | BC140: 0 | BD140: 29,742,547 | BE140: 0 | BF140: 29,742,547 | BG140: 0 | BH140: 0 | BI140: 0 | BJ140: 29,742,547 | BK140: 0 | BL140: 29,742,547 | BM140: 0 | BN140: 0 | BO140: 0 | BP140: 29,742,547 | BQ140: 0 | BR140: =SUM(BR141:BR149) -> 29,742,547 | BS140: 0 | BT140: 0 | BU140: 0 | BV140: 29,742,547 | BW140: 0 | BX140: 0 | BY140: 0 | BZ140: 81,821,874 | CA140: 52,079,327 | CB140: 29,742,547 | CC140: 0 | CD140: 3 | CF140: 642
A141: ok | B141: 6421 | C141: Chi phí nhân viên | D141: 0 | F141: =SUMIF(TKno,TK,_st01) -> 27,000,000 | G141: =SUMIF(TKco,TK,_st01) -> 0 | H141: =IF(D141+F141-E141-G141>0,D141+F141-E141-G141,0) -> 27,000,000.00 | I141: =IF(E141+G141-D141-F141>0,E141+G141-D141-F141,0) -> 0 | J141: =H141 -> 27,000,000.00 | K141: =I141 -> 0 | L141: =SUMIF(TKno,TK,_st02) -> 33,931,270 | M141: =SUMIF(TKco,TK,_st02) -> 33,931,270 | N141: =IF(J141+L141-K141-M141>0,J141+L141-K141-M141,0) -> 27,000,000.00 | O141: =IF(K141+M141-J141-L141>0,K141+M141-J141-L141,0) -> 0 | P141: =N141 -> 27,000,000.00 | Q141: =O141 -> 0 | R141: =SUMIF(TKno,TK,_st03) -> 0 | S141: =SUMIF(TKco,TK,_st03) -> 0 | T141: =IF(P141+R141-Q141-S141>0,P141+R141-Q141-S141,0) -> 27,000,000.00 | U141: =IF(Q141+S141-P141-R141>0,Q141+S141-P141-R141,0) -> 0 | V141: =T141 -> 27,000,000.00 | W141: =U141 -> 0 | X141: =SUMIF(TKno,TK,_st04) -> 0 | Y141: =SUMIF(TKco,TK,_st04) -> 0 | Z141: =IF(V141+X141-W141-Y141>0,V141+X141-W141-Y141,0) -> 27,000,000.00 | AA141: =IF(W141+Y141-V141-X141>0,W141+Y141-V141-X141,0) -> 0 | AB141: =Z141 -> 27,000,000.00 | AC141: =AA141 -> 0 | AD141: =SUMIF(TKno,TK,_st05) -> 0 | AE141: =SUMIF(TKco,TK,_st05) -> 0 | AF141: =IF(AB141+AD141-AC141-AE141>0,AB141+AD141-AC141-AE141,0) -> 27,000,000.00 | AG141: =IF(AC141+AE141-AB141-AD141>0,AC141+AE141-AB141-AD141,0) -> 0 | AH141: =AF141 -> 27,000,000.00 | AI141: =AG141 -> 0 | AJ141: =SUMIF(TKno,TK,_st06) -> 0 | AK141: =SUMIF(TKco,TK,_st06) -> 0 | AL141: =IF(AH141+AJ141-AI141-AK141>0,AH141+AJ141-AI141-AK141,0) -> 27,000,000.00 | AM141: =IF(AI141+AK141-AH141-AJ141>0,AI141+AK141-AH141-AJ141,0) -> 0 | AN141: =AL141 -> 27,000,000.00 | AO141: =AM141 -> 0 | AP141: =SUMIF(TKno,TK,_st07) -> 0 | AQ141: =SUMIF(TKco,TK,_st07) -> 0 | AR141: =IF(AN141+AP141-AO141-AQ141>0,AN141+AP141-AO141-AQ141,0) -> 27,000,000.00 | AS141: =IF(AO141+AQ141-AN141-AP141>0,AO141+AQ141-AN141-AP141,0) -> 0 | AT141: =AR141 -> 27,000,000.00 | AU141: =AS141 -> 0 | AV141: =SUMIF(TKno,TK,_st08) -> 0 | AW141: =SUMIF(TKco,TK,_st08) -> 0 | AX141: =IF(AT141+AV141-AU141-AW141>0,AT141+AV141-AU141-AW141,0) -> 27,000,000.00 | AY141: =IF(AU141+AW141-AT141-AV141>0,AU141+AW141-AT141-AV141,0) -> 0 | AZ141: =AX141 -> 27,000,000.00 | BA141: =AY141 -> 0 | BB141: =SUMIF(TKno,TK,_st09) -> 0 | BC141: =SUMIF(TKco,TK,_st09) -> 0 | BD141: =IF(AZ141+BB141-BA141-BC141>0,AZ141+BB141-BA141-BC141,0) -> 27,000,000.00 | BE141: =IF(BA141+BC141-AZ141-BB141>0,BA141+BC141-AZ141-BB141,0) -> 0 | BF141: =BD141 -> 27,000,000.00 | BG141: =BE141 -> 0 | BH141: =SUMIF(TKno,TK,_st10) -> 0 | BI141: =SUMIF(TKco,TK,_st10) -> 0 | BJ141: =IF(BF141+BH141-BG141-BI141>0,BF141+BH141-BG141-BI141,0) -> 27,000,000.00 | BK141: =IF(BG141+BI141-BF141-BH141>0,BG141+BI141-BF141-BH141,0) -> 0 | BL141: =BJ141 -> 27,000,000.00 | BM141: =BK141 -> 0 | BN141: =SUMIF(TKno,TK,_st11) -> 0 | BO141: =SUMIF(TKco,TK,_st11) -> 0 | BP141: =IF(BL141+BN141-BM141-BO141>0,BL141+BN141-BM141-BO141,0) -> 27,000,000.00 | BQ141: =IF(BM141+BO141-BL141-BN141>0,BM141+BO141-BL141-BN141,0) -> 0 | BR141: =BP141 -> 27,000,000.00 | BS141: =BQ141 -> 0 | BT141: =SUMIF(TKno,TK,_st12) -> 0 | BU141: =SUMIF(TKco,TK,_st12) -> 0 | BV141: =IF(BR141+BT141-BS141-BU141>0,BR141+BT141-BS141-BU141,0) -> 27,000,000.00 | BW141: =IF(BS141+BU141-BR141-BT141>0,BS141+BU141-BR141-BT141,0) -> 0 | BX141: 0 | BY141: 0 | BZ141: =SUMIF(TKno,TK,ST) -> 60,931,270 | CA141: =SUMIF(TKco,TK,ST) -> 33,931,270 | CB141: =IF(BX141+BZ141-BY141-CA141>0,BX141+BZ141-BY141-CA141,0) -> 27,000,000 | CC141: =IF(BY141+CA141-BX141-BZ141>0,BY141+CA141-BX141-BZ141,0) -> 0 | CD141: 4 | CE141: =$B141 -> 6421 | CG141: 6421
A142: =IF(SUM($D142:$I142)>0,"ok","") ->  | B142: 6422 | C142: Chi phí vật liệu | D142: 0 | F142: 0 | G142: 0 | H142: 0 | I142: 0 | J142: 0 | K142: 0 | L142: 0 | M142: 0 | N142: 0 | O142: 0 | P142: 0 | Q142: 0 | R142: 0 | S142: 0 | T142: 0 | U142: 0 | V142: 0 | W142: 0 | X142: 0 | Y142: 0 | Z142: 0 | AA142: 0 | AB142: 0 | AC142: 0 | AD142: 0 | AE142: 0 | AF142: 0 | AG142: 0 | AH142: 0 | AI142: 0 | AJ142: 0 | AK142: 0 | AL142: 0 | AM142: 0 | AN142: 0 | AO142: 0 | AP142: 0 | AQ142: 0 | AR142: 0 | AS142: 0 | AT142: 0 | AU142: 0 | AV142: 0 | AW142: 0 | AX142: 0 | AY142: 0 | AZ142: 0 | BA142: 0 | BB142: 0 | BC142: 0 | BD142: 0 | BE142: 0 | BF142: 0 | BG142: 0 | BH142: 0 | BI142: 0 | BJ142: 0 | BK142: 0 | BL142: 0 | BM142: 0 | BN142: 0 | BO142: 0 | BP142: 0 | BQ142: 0 | BR142: 0 | BS142: 0 | BT142: 0 | BU142: 0 | BV142: 0 | BW142: 0 | BX142: 0 | BY142: 0 | BZ142: 0 | CA142: 0 | CB142: 0 | CC142: 0 | CD142: 4 | CE142: 6422 | CG142: 6422
A143: =IF(SUM($D143:$I143)>0,"ok","") ->  | B143: 6423 | C143: Chi phí đồ dùng văn phòng | D143: 0 | F143: 0 | G143: 0 | H143: 0 | I143: 0 | J143: 0 | K143: 0 | L143: 1,758,333 | M143: 1,758,333 | N143: 0 | O143: 0 | P143: 0 | Q143: 0 | R143: 0 | S143: 0 | T143: 0 | U143: 0 | V143: 0 | W143: 0 | X143: 0 | Y143: 0 | Z143: 0 | AA143: 0 | AB143: 0 | AC143: 0 | AD143: 0 | AE143: 0 | AF143: 0 | AG143: 0 | AH143: 0 | AI143: 0 | AJ143: 0 | AK143: 0 | AL143: 0 | AM143: 0 | AN143: 0 | AO143: 0 | AP143: 0 | AQ143: 0 | AR143: 0 | AS143: 0 | AT143: 0 | AU143: 0 | AV143: 0 | AW143: 0 | AX143: 0 | AY143: 0 | AZ143: 0 | BA143: 0 | BB143: 0 | BC143: 0 | BD143: 0 | BE143: 0 | BF143: 0 | BG143: 0 | BH143: 0 | BI143: 0 | BJ143: 0 | BK143: 0 | BL143: 0 | BM143: 0 | BN143: 0 | BO143: 0 | BP143: 0 | BQ143: 0 | BR143: 0 | BS143: 0 | BT143: 0 | BU143: 0 | BV143: 0 | BW143: 0 | BX143: 0 | BY143: 0 | BZ143: 1,758,333 | CA143: 1,758,333 | CB143: 0 | CC143: 0 | CD143: 4 | CE143: 6423 | CG143: 6423
B144: 6424 | C144: Chi phí khấu hao TSCĐ | D144: 0 | F144: 0 | G144: 0 | H144: 0 | I144: 0 | J144: 0 | K144: 0 | L144: 11,450,397 | M144: 11,450,397 | N144: 0 | O144: 0 | P144: 0 | Q144: 0 | R144: 0 | S144: 0 | T144: 0 | U144: 0 | V144: 0 | W144: 0 | X144: 0 | Y144: 0 | Z144: 0 | AA144: 0 | AB144: 0 | AC144: 0 | AD144: 0 | AE144: 0 | AF144: 0 | AG144: 0 | AH144: 0 | AI144: 0 | AJ144: 0 | AK144: 0 | AL144: 0 | AM144: 0 | AN144: 0 | AO144: 0 | AP144: 0 | AQ144: 0 | AR144: 0 | AS144: 0 | AT144: 0 | AU144: 0 | AV144: 0 | AW144: 0 | AX144: 0 | AY144: 0 | AZ144: 0 | BA144: 0 | BB144: 0 | BC144: 0 | BD144: 0 | BE144: 0 | BF144: 0 | BG144: 0 | BH144: 0 | BI144: 0 | BJ144: 0 | BK144: 0 | BL144: 0 | BM144: 0 | BN144: 0 | BO144: 0 | BP144: 0 | BQ144: 0 | BR144: 0 | BS144: 0 | BT144: 0 | BU144: 0 | BV144: 0 | BW144: 0 | BX144: 0 | BY144: 0 | BZ144: 11,450,397 | CA144: 11,450,397 | CB144: 0 | CC144: 0 | CD144: 4 | CE144: 6424 | CG144: 6424
A145: ok | B145: 6425 | C145: Thuế, phí và lệ phí | D145: 0 | F145: 2,158,941 | G145: 0 | H145: 2,158,941 | I145: 0 | J145: 2,158,941 | K145: 0 | L145: 1,046,957 | M145: 1,076,957 | N145: 2,128,941 | O145: 0 | P145: 2,128,941 | Q145: 0 | R145: 0 | S145: 0 | T145: 2,128,941 | U145: 0 | V145: 2,128,941 | W145: 0 | X145: 0 | Y145: 0 | Z145: 2,128,941 | AA145: 0 | AB145: 2,128,941 | AC145: 0 | AD145: 0 | AE145: 0 | AF145: 2,128,941 | AG145: 0 | AH145: 2,128,941 | AI145: 0 | AJ145: 0 | AK145: 0 | AL145: 2,128,941 | AM145: 0 | AN145: 2,128,941 | AO145: 0 | AP145: 0 | AQ145: 0 | AR145: 2,128,941 | AS145: 0 | AT145: 2,128,941 | AU145: 0 | AV145: 0 | AW145: 0 | AX145: 2,128,941 | AY145: 0 | AZ145: 2,128,941 | BA145: 0 | BB145: 0 | BC145: 0 | BD145: 2,128,941 | BE145: 0 | BF145: 2,128,941 | BG145: 0 | BH145: 0 | BI145: 0 | BJ145: 2,128,941 | BK145: 0 | BL145: 2,128,941 | BM145: 0 | BN145: 0 | BO145: 0 | BP145: 2,128,941 | BQ145: 0 | BR145: 2,128,941 | BS145: 0 | BT145: 0 | BU145: 0 | BV145: 2,128,941 | BW145: 0 | BX145: 0 | BY145: 0 | BZ145: 3,205,898 | CA145: 1,076,957 | CB145: 2,128,941 | CC145: 0 | CD145: 4 | CE145: 6425 | CG145: 6425
B146: 6426 | C146: Chi phí dự phòng | D146: 0 | F146: 0 | G146: 0 | H146: 0 | I146: 0 | J146: 0 | K146: 0 | L146: 0 | M146: 0 | N146: 0 | O146: 0 | P146: 0 | Q146: 0 | R146: 0 | S146: 0 | T146: 0 | U146: 0 | V146: 0 | W146: 0 | X146: 0 | Y146: 0 | Z146: 0 | AA146: 0 | AB146: 0 | AC146: 0 | AD146: 0 | AE146: 0 | AF146: 0 | AG146: 0 | AH146: 0 | AI146: 0 | AJ146: 0 | AK146: 0 | AL146: 0 | AM146: 0 | AN146: 0 | AO146: 0 | AP146: 0 | AQ146: 0 | AR146: 0 | AS146: 0 | AT146: 0 | AU146: 0 | AV146: 0 | AW146: 0 | AX146: 0 | AY146: 0 | AZ146: 0 | BA146: 0 | BB146: 0 | BC146: 0 | BD146: 0 | BE146: 0 | BF146: 0 | BG146: 0 | BH146: 0 | BI146: 0 | BJ146: 0 | BK146: 0 | BL146: 0 | BM146: 0 | BN146: 0 | BO146: 0 | BP146: 0 | BQ146: 0 | BR146: 0 | BS146: 0 | BT146: 0 | BU146: 0 | BV146: 0 | BW146: 0 | BX146: 0 | BY146: 0 | BZ146: 0 | CA146: 0 | CB146: 0 | CC146: 0 | CD146: 4 | CE146: 6426 | CG146: 6426
A147: ok | B147: 6427 | C147: Chi phí dịch vụ mua ngoài | D147: 0 | F147: 613,606 | G147: 0 | H147: 613,606 | I147: 0 | J147: 613,606 | K147: 0 | L147: 3,862,370 | M147: 3,862,370 | N147: 613,606 | O147: 0 | P147: 613,606 | Q147: 0 | R147: 0 | S147: 0 | T147: 613,606 | U147: 0 | V147: 613,606 | W147: 0 | X147: 0 | Y147: 0 | Z147: 613,606 | AA147: 0 | AB147: 613,606 | AC147: 0 | AD147: 0 | AE147: 0 | AF147: 613,606 | AG147: 0 | AH147: 613,606 | AI147: 0 | AJ147: 0 | AK147: 0 | AL147: 613,606 | AM147: 0 | AN147: 613,606 | AO147: 0 | AP147: 0 | AQ147: 0 | AR147: 613,606 | AS147: 0 | AT147: 613,606 | AU147: 0 | AV147: 0 | AW147: 0 | AX147: 613,606 | AY147: 0 | AZ147: 613,606 | BA147: 0 | BB147: 0 | BC147: 0 | BD147: 613,606 | BE147: 0 | BF147: 613,606 | BG147: 0 | BH147: 0 | BI147: 0 | BJ147: 613,606 | BK147: 0 | BL147: 613,606 | BM147: 0 | BN147: 0 | BO147: 0 | BP147: 613,606 | BQ147: 0 | BR147: 613,606 | BS147: 0 | BT147: 0 | BU147: 0 | BV147: 613,606 | BW147: 0 | BX147: 0 | BY147: 0 | BZ147: 4,475,976 | CA147: 3,862,370 | CB147: 613,606 | CC147: 0 | CD147: 4 | CE147: 6427 | CG147: 6427
B148: 6428 | C148: Chi phí bằng tiền khác | D148: 0 | F148: 0 | G148: 0 | H148: 0 | I148: 0 | J148: 0 | K148: 0 | L148: 0 | M148: =SUMIF(TKco,TK,_st02) -> 0 | N148: 0 | O148: 0 | P148: 0 | Q148: 0 | R148: 0 | S148: 0 | T148: 0 | U148: 0 | V148: 0 | W148: 0 | X148: 0 | Y148: 0 | Z148: 0 | AA148: 0 | AB148: 0 | AC148: 0 | AD148: 0 | AE148: 0 | AF148: 0 | AG148: 0 | AH148: 0 | AI148: 0 | AJ148: 0 | AK148: 0 | AL148: 0 | AM148: 0 | AN148: 0 | AO148: 0 | AP148: 0 | AQ148: 0 | AR148: 0 | AS148: 0 | AT148: 0 | AU148: 0 | AV148: 0 | AW148: 0 | AX148: 0 | AY148: 0 | AZ148: 0 | BA148: 0 | BB148: 0 | BC148: 0 | BD148: 0 | BE148: 0 | BF148: 0 | BG148: 0 | BH148: 0 | BI148: 0 | BJ148: 0 | BK148: 0 | BL148: 0 | BM148: 0 | BN148: 0 | BO148: 0 | BP148: 0 | BQ148: 0 | BR148: 0 | BS148: 0 | BT148: 0 | BU148: 0 | BV148: 0 | BW148: 0 | BX148: 0 | BY148: 0 | BZ148: 0 | CA148: 0 | CB148: 0 | CC148: 0 | CD148: 4 | CE148: 6428 | CG148: 6428
B149: 6429 | C149: Chi phí công tác | D149: 0 | F149: 0 | G149: 0 | H149: 0 | I149: 0 | J149: 0 | K149: 0 | L149: 0 | M149: 0 | N149: 0 | O149: 0 | P149: 0 | Q149: 0 | R149: 0 | S149: 0 | T149: 0 | U149: 0 | V149: 0 | W149: 0 | X149: 0 | Y149: 0 | Z149: 0 | AA149: 0 | AB149: 0 | AC149: 0 | AD149: 0 | AE149: 0 | AF149: 0 | AG149: 0 | AH149: 0 | AI149: 0 | AJ149: 0 | AK149: 0 | AL149: 0 | AM149: 0 | AN149: 0 | AO149: 0 | AP149: 0 | AQ149: 0 | AR149: 0 | AS149: 0 | AT149: 0 | AU149: 0 | AV149: 0 | AW149: 0 | AX149: 0 | AY149: 0 | AZ149: 0 | BA149: 0 | BB149: 0 | BC149: 0 | BD149: 0 | BE149: 0 | BF149: 0 | BG149: 0 | BH149: 0 | BI149: 0 | BJ149: 0 | BK149: 0 | BL149: 0 | BM149: 0 | BN149: 0 | BO149: 0 | BP149: 0 | BQ149: 0 | BR149: 0 | BS149: 0 | BT149: 0 | BU149: 0 | BV149: 0 | BW149: 0 | BX149: 0 | BY149: 0 | BZ149: 0 | CA149: 0 | CB149: 0 | CC149: 0 | CD149: 4 | CE149: 6429 | CF149: =IF($CD149=3,$B149,"") ->  | CG149: =IF($CD149=4,$B149,"") -> 6429
B150: 711 | C150: Thu nhập khác | D150: 0 | F150: =SUMIF(TKno,TK,ST1) -> 0 | G150: =SUMIF(TKco,TK,ST1) -> 0 | H150: =IF(D150+F150-E150-G150>0,D150+F150-E150-G150,0) -> 0 | I150: =IF(E150+G150-D150-F150>0,E150+G150-D150-F150,0) -> 0 | J150: =H150 -> 0 | K150: =I150 -> 0 | L150: 558,500,000 | M150: 558,500,000 | N150: =IF(J150+L150-K150-M150>0,J150+L150-K150-M150,0) -> 0 | O150: 0 | P150: 0 | Q150: 0 | R150: 0 | S150: 0 | T150: 0 | U150: 0 | V150: 0 | W150: 0 | X150: 0 | Y150: 0 | Z150: 0 | AA150: 0 | AB150: 0 | AC150: 0 | AD150: 0 | AE150: 0 | AF150: 0 | AG150: 0 | AH150: 0 | AI150: 0 | AJ150: 0 | AK150: 0 | AL150: 0 | AM150: 0 | AN150: 0 | AO150: 0 | AP150: 0 | AQ150: 0 | AR150: 0 | AS150: 0 | AT150: 0 | AU150: 0 | AV150: 0 | AW150: 0 | AX150: 0 | AY150: 0 | AZ150: 0 | BA150: 0 | BB150: 0 | BC150: 0 | BD150: 0 | BE150: 0 | BF150: 0 | BG150: 0 | BH150: 0 | BI150: 0 | BJ150: 0 | BK150: 0 | BL150: 0 | BM150: 0 | BN150: 0 | BO150: 0 | BP150: 0 | BQ150: 0 | BR150: 0 | BS150: 0 | BT150: 0 | BU150: 0 | BV150: 0 | BW150: 0 | BX150: =D150 -> 0 | BY150: =E150 -> 0 | BZ150: 558,500,000 | CA150: 558,500,000 | CB150: =IF(BX150+BZ150-BY150-CA150>0,BX150+BZ150-BY150-CA150,0) -> 0 | CC150: =IF(BY150+CA150-BX150-BZ150>0,BY150+CA150-BX150-BZ150,0) -> 0 | CD150: 3 | CE150: 711 | CF150: 711
B151: 811 | C151: Chi phí khác | D151: 0 | F151: =SUM(F152:F153) -> 0 | G151: 0 | H151: 0 | I151: 0 | J151: 0 | K151: 0 | L151: 541,666,668 | M151: 541,666,668 | N151: 0 | O151: 0 | P151: =SUM(P152:P153) -> 0 | Q151: 0 | R151: 0 | S151: 0 | T151: 0 | U151: 0 | V151: =SUM(V152:V153) -> 0 | W151: 0 | X151: 0 | Y151: 0 | Z151: 0 | AA151: 0 | AB151: 0 | AC151: 0 | AD151: 0 | AE151: 0 | AF151: 0 | AG151: 0 | AH151: 0 | AI151: 0 | AJ151: 0 | AK151: 0 | AL151: 0 | AM151: 0 | AN151: 0 | AO151: 0 | AP151: 0 | AQ151: 0 | AR151: 0 | AS151: 0 | AT151: 0 | AU151: 0 | AV151: 0 | AW151: 0 | AX151: 0 | AY151: 0 | AZ151: 0 | BA151: 0 | BB151: 0 | BC151: 0 | BD151: 0 | BE151: 0 | BF151: 0 | BG151: 0 | BH151: 0 | BI151: 0 | BJ151: 0 | BK151: 0 | BL151: 0 | BM151: 0 | BN151: 0 | BO151: 0 | BP151: 0 | BQ151: 0 | BR151: =SUM(BR152:BR153) -> 0 | BS151: 0 | BT151: 0 | BU151: 0 | BV151: 0 | BW151: 0 | BX151: 0 | BY151: 0 | BZ151: 541,666,668 | CA151: 541,666,668 | CB151: 0 | CC151: 0 | CD151: 3 | CF151: 811
B152: 8111 | C152: Chi phí khác (Tính vào CP chịu thuế) | D152: 0 | F152: =SUMIF(TKno,TK,_st01) -> 0 | G152: =SUMIF(TKco,TK,_st01) -> 0 | H152: =IF(D152+F152-E152-G152>0,D152+F152-E152-G152,0) -> 0 | I152: =IF(E152+G152-D152-F152>0,E152+G152-D152-F152,0) -> 0 | J152: =H152 -> 0 | K152: =I152 -> 0 | L152: =SUMIF(TKno,TK,_st02) -> 541,666,668 | M152: =SUMIF(TKco,TK,_st02) -> 541,666,668 | N152: =IF(J152+L152-K152-M152>0,J152+L152-K152-M152,0) -> 0 | O152: =IF(K152+M152-J152-L152>0,K152+M152-J152-L152,0) -> 0 | P152: =N152 -> 0 | Q152: =O152 -> 0 | R152: =SUMIF(TKno,TK,_st03) -> 0 | S152: =SUMIF(TKco,TK,_st03) -> 0 | T152: =IF(P152+R152-Q152-S152>0,P152+R152-Q152-S152,0) -> 0 | U152: =IF(Q152+S152-P152-R152>0,Q152+S152-P152-R152,0) -> 0 | V152: =T152 -> 0 | W152: =U152 -> 0 | X152: =SUMIF(TKno,TK,_st04) -> 0 | Y152: =SUMIF(TKco,TK,_st04) -> 0 | Z152: =IF(V152+X152-W152-Y152>0,V152+X152-W152-Y152,0) -> 0 | AA152: =IF(W152+Y152-V152-X152>0,W152+Y152-V152-X152,0) -> 0 | AB152: =Z152 -> 0 | AC152: =AA152 -> 0 | AD152: =SUMIF(TKno,TK,_st05) -> 0 | AE152: =SUMIF(TKco,TK,_st05) -> 0 | AF152: =IF(AB152+AD152-AC152-AE152>0,AB152+AD152-AC152-AE152,0) -> 0 | AG152: =IF(AC152+AE152-AB152-AD152>0,AC152+AE152-AB152-AD152,0) -> 0 | AH152: =AF152 -> 0 | AI152: =AG152 -> 0 | AJ152: =SUMIF(TKno,TK,_st06) -> 0 | AK152: =SUMIF(TKco,TK,_st06) -> 0 | AL152: =IF(AH152+AJ152-AI152-AK152>0,AH152+AJ152-AI152-AK152,0) -> 0 | AM152: =IF(AI152+AK152-AH152-AJ152>0,AI152+AK152-AH152-AJ152,0) -> 0 | AN152: =AL152 -> 0 | AO152: =AM152 -> 0 | AP152: =SUMIF(TKno,TK,_st07) -> 0 | AQ152: =SUMIF(TKco,TK,_st07) -> 0 | AR152: =IF(AN152+AP152-AO152-AQ152>0,AN152+AP152-AO152-AQ152,0) -> 0 | AS152: =IF(AO152+AQ152-AN152-AP152>0,AO152+AQ152-AN152-AP152,0) -> 0 | AT152: =AR152 -> 0 | AU152: =AS152 -> 0 | AV152: =SUMIF(TKno,TK,_st08) -> 0 | AW152: =SUMIF(TKco,TK,_st08) -> 0 | AX152: =IF(AT152+AV152-AU152-AW152>0,AT152+AV152-AU152-AW152,0) -> 0 | AY152: =IF(AU152+AW152-AT152-AV152>0,AU152+AW152-AT152-AV152,0) -> 0 | AZ152: =AX152 -> 0 | BA152: =AY152 -> 0 | BB152: =SUMIF(TKno,TK,_st09) -> 0 | BC152: =SUMIF(TKco,TK,_st09) -> 0 | BD152: =IF(AZ152+BB152-BA152-BC152>0,AZ152+BB152-BA152-BC152,0) -> 0 | BE152: =IF(BA152+BC152-AZ152-BB152>0,BA152+BC152-AZ152-BB152,0) -> 0 | BF152: =BD152 -> 0 | BG152: =BE152 -> 0 | BH152: =SUMIF(TKno,TK,_st10) -> 0 | BI152: =SUMIF(TKco,TK,_st10) -> 0 | BJ152: =IF(BF152+BH152-BG152-BI152>0,BF152+BH152-BG152-BI152,0) -> 0 | BK152: =IF(BG152+BI152-BF152-BH152>0,BG152+BI152-BF152-BH152,0) -> 0 | BL152: =BJ152 -> 0 | BM152: =BK152 -> 0 | BN152: =SUMIF(TKno,TK,_st11) -> 0 | BO152: =SUMIF(TKco,TK,_st11) -> 0 | BP152: =IF(BL152+BN152-BM152-BO152>0,BL152+BN152-BM152-BO152,0) -> 0 | BQ152: =IF(BM152+BO152-BL152-BN152>0,BM152+BO152-BL152-BN152,0) -> 0 | BR152: =BP152 -> 0 | BS152: =BQ152 -> 0 | BT152: =SUMIF(TKno,TK,_st12) -> 0 | BU152: =SUMIF(TKco,TK,_st12) -> 0 | BV152: =IF(BR152+BT152-BS152-BU152>0,BR152+BT152-BS152-BU152,0) -> 0 | BW152: =IF(BS152+BU152-BR152-BT152>0,BS152+BU152-BR152-BT152,0) -> 0 | BX152: 0 | BY152: 0 | BZ152: =ROUND(SUMIF(TKno,TK,ST),0) -> 541,666,668 | CA152: =ROUND(SUMIF(TKco,TK,ST),0) -> 541,666,668 | CB152: =IF(BX152+BZ152-BY152-CA152>0,BX152+BZ152-BY152-CA152,0) -> 0 | CC152: =IF(BY152+CA152-BX152-BZ152>0,BY152+CA152-BX152-BZ152,0) -> 0 | CD152: 4 | CE152: =$B152 -> 8111 | CG152: 8111
B153: 8112 | C153: Chi phí khác (Tính vào LN sau thuế) | D153: 0 | F153: =SUMIF(TKno,TK,_st01) -> 0 | G153: =SUMIF(TKco,TK,_st01) -> 0 | H153: 0 | I153: 0 | J153: =H153 -> 0 | K153: =I153 -> 0 | L153: =SUMIF(TKno,TK,_st02) -> 0 | M153: =SUMIF(TKco,TK,_st02) -> 0 | N153: =IF(J153+L153-K153-M153>0,J153+L153-K153-M153,0) -> 0 | O153: =IF(K153+M153-J153-L153>0,K153+M153-J153-L153,0) -> 0 | P153: =N153 -> 0 | Q153: =O153 -> 0 | R153: =SUMIF(TKno,TK,_st03) -> 0 | S153: =SUMIF(TKco,TK,_st03) -> 0 | T153: =IF(P153+R153-Q153-S153>0,P153+R153-Q153-S153,0) -> 0 | U153: =IF(Q153+S153-P153-R153>0,Q153+S153-P153-R153,0) -> 0 | V153: =T153 -> 0 | W153: =U153 -> 0 | X153: =SUMIF(TKno,TK,_st04) -> 0 | Y153: =SUMIF(TKco,TK,_st04) -> 0 | Z153: =IF(V153+X153-W153-Y153>0,V153+X153-W153-Y153,0) -> 0 | AA153: =IF(W153+Y153-V153-X153>0,W153+Y153-V153-X153,0) -> 0 | AB153: =Z153 -> 0 | AC153: =AA153 -> 0 | AD153: =SUMIF(TKno,TK,_st05) -> 0 | AE153: =SUMIF(TKco,TK,_st05) -> 0 | AF153: =IF(AB153+AD153-AC153-AE153>0,AB153+AD153-AC153-AE153,0) -> 0 | AG153: =IF(AC153+AE153-AB153-AD153>0,AC153+AE153-AB153-AD153,0) -> 0 | AH153: =AF153 -> 0 | AI153: =AG153 -> 0 | AJ153: =SUMIF(TKno,TK,_st06) -> 0 | AK153: =SUMIF(TKco,TK,_st06) -> 0 | AL153: =IF(AH153+AJ153-AI153-AK153>0,AH153+AJ153-AI153-AK153,0) -> 0 | AM153: =IF(AI153+AK153-AH153-AJ153>0,AI153+AK153-AH153-AJ153,0) -> 0 | AN153: =AL153 -> 0 | AO153: =AM153 -> 0 | AP153: =SUMIF(TKno,TK,_st07) -> 0 | AQ153: =SUMIF(TKco,TK,_st07) -> 0 | AR153: =IF(AN153+AP153-AO153-AQ153>0,AN153+AP153-AO153-AQ153,0) -> 0 | AS153: =IF(AO153+AQ153-AN153-AP153>0,AO153+AQ153-AN153-AP153,0) -> 0 | AT153: =AR153 -> 0 | AU153: =AS153 -> 0 | AV153: =SUMIF(TKno,TK,_st08) -> 0 | AW153: =SUMIF(TKco,TK,_st08) -> 0 | AX153: =IF(AT153+AV153-AU153-AW153>0,AT153+AV153-AU153-AW153,0) -> 0 | AY153: =IF(AU153+AW153-AT153-AV153>0,AU153+AW153-AT153-AV153,0) -> 0 | AZ153: =AX153 -> 0 | BA153: =AY153 -> 0 | BB153: =SUMIF(TKno,TK,_st09) -> 0 | BC153: =SUMIF(TKco,TK,_st09) -> 0 | BD153: =IF(AZ153+BB153-BA153-BC153>0,AZ153+BB153-BA153-BC153,0) -> 0 | BE153: =IF(BA153+BC153-AZ153-BB153>0,BA153+BC153-AZ153-BB153,0) -> 0 | BF153: =BD153 -> 0 | BG153: =BE153 -> 0 | BH153: =SUMIF(TKno,TK,_st10) -> 0 | BI153: =SUMIF(TKco,TK,_st10) -> 0 | BJ153: =IF(BF153+BH153-BG153-BI153>0,BF153+BH153-BG153-BI153,0) -> 0 | BK153: =IF(BG153+BI153-BF153-BH153>0,BG153+BI153-BF153-BH153,0) -> 0 | BL153: =BJ153 -> 0 | BM153: =BK153 -> 0 | BN153: =SUMIF(TKno,TK,_st11) -> 0 | BO153: =SUMIF(TKco,TK,_st11) -> 0 | BP153: =IF(BL153+BN153-BM153-BO153>0,BL153+BN153-BM153-BO153,0) -> 0 | BQ153: =IF(BM153+BO153-BL153-BN153>0,BM153+BO153-BL153-BN153,0) -> 0 | BR153: =BP153 -> 0 | BS153: =BQ153 -> 0 | BT153: =SUMIF(TKno,TK,_st12) -> 0 | BU153: =SUMIF(TKco,TK,_st12) -> 0 | BV153: =IF(BR153+BT153-BS153-BU153>0,BR153+BT153-BS153-BU153,0) -> 0 | BW153: =IF(BS153+BU153-BR153-BT153>0,BS153+BU153-BR153-BT153,0) -> 0 | BX153: 0 | BY153: 0 | BZ153: =SUMIF(TKno,TK,ST) -> 0 | CA153: =SUMIF(TKco,TK,ST) -> 0 | CB153: 0 | CC153: 0 | CD153: 4 | CE153: =$B153 -> 8112 | CG153: 8112
B154: 821 | C154: Chi phí thuế thu nhập doanh nghiệp | D154: 0 | F154: =SUM(F155:F156) -> 0 | G154: 0 | H154: 0 | I154: 0 | J154: 0 | K154: 0 | L154: 3,205,370 | M154: 3,205,370 | N154: 0 | O154: 0 | P154: =SUM(P155:P156) -> 0 | Q154: 0 | R154: 0 | S154: 0 | T154: 0 | U154: 0 | V154: =SUM(V155:V156) -> 0 | W154: 0 | X154: 0 | Y154: 0 | Z154: 0 | AA154: 0 | AB154: 0 | AC154: 0 | AD154: 0 | AE154: 0 | AF154: 0 | AG154: 0 | AH154: 0 | AI154: 0 | AJ154: 0 | AK154: 0 | AL154: 0 | AM154: 0 | AN154: 0 | AO154: 0 | AP154: 0 | AQ154: 0 | AR154: 0 | AS154: 0 | AT154: 0 | AU154: 0 | AV154: 0 | AW154: 0 | AX154: 0 | AY154: 0 | AZ154: 0 | BA154: 0 | BB154: 0 | BC154: 0 | BD154: 0 | BE154: 0 | BF154: 0 | BG154: 0 | BH154: 0 | BI154: 0 | BJ154: 0 | BK154: 0 | BL154: 0 | BM154: 0 | BN154: 0 | BO154: 0 | BP154: 0 | BQ154: 0 | BR154: =SUM(BR155:BR156) -> 0 | BS154: 0 | BT154: 0 | BU154: 0 | BV154: 0 | BW154: 0 | BX154: 0 | BY154: 0 | BZ154: 3,205,370 | CA154: 3,205,370 | CB154: 0 | CC154: 0 | CD154: 3 | CF154: 821
B155: 8211 | C155: Chi phí thuế TNDN hiện hành | D155: 0 | F155: =SUMIF(TKno,TK,_st01) -> 0 | G155: =SUMIF(TKco,TK,_st01) -> 0 | H155: 0 | I155: 0 | J155: =H155 -> 0 | K155: 0 | L155: =SUMIF(TKno,TK,_st02) -> 3,205,370 | M155: =SUMIF(TKco,TK,_st02) -> 3,205,370 | N155: =IF(J155+L155-K155-M155>0,J155+L155-K155-M155,0) -> 0 | O155: =IF(K155+M155-J155-L155>0,K155+M155-J155-L155,0) -> 0 | P155: =N155 -> 0 | Q155: 0 | R155: =SUMIF(TKno,TK,_st03) -> 0 | S155: =SUMIF(TKco,TK,_st03) -> 0 | T155: =IF(P155+R155-Q155-S155>0,P155+R155-Q155-S155,0) -> 0 | U155: =IF(Q155+S155-P155-R155>0,Q155+S155-P155-R155,0) -> 0 | V155: =T155 -> 0 | W155: 0 | X155: =SUMIF(TKno,TK,_st04) -> 0 | Y155: =SUMIF(TKco,TK,_st04) -> 0 | Z155: =IF(V155+X155-W155-Y155>0,V155+X155-W155-Y155,0) -> 0 | AA155: =IF(W155+Y155-V155-X155>0,W155+Y155-V155-X155,0) -> 0 | AB155: =Z155 -> 0 | AC155: 0 | AD155: =SUMIF(TKno,TK,_st05) -> 0 | AE155: =SUMIF(TKco,TK,_st05) -> 0 | AF155: =IF(AB155+AD155-AC155-AE155>0,AB155+AD155-AC155-AE155,0) -> 0 | AG155: =IF(AC155+AE155-AB155-AD155>0,AC155+AE155-AB155-AD155,0) -> 0 | AH155: =AF155 -> 0 | AI155: 0 | AJ155: =SUMIF(TKno,TK,_st06) -> 0 | AK155: =SUMIF(TKco,TK,_st06) -> 0 | AL155: =IF(AH155+AJ155-AI155-AK155>0,AH155+AJ155-AI155-AK155,0) -> 0 | AM155: =IF(AI155+AK155-AH155-AJ155>0,AI155+AK155-AH155-AJ155,0) -> 0 | AN155: =AL155 -> 0 | AO155: 0 | AP155: =SUMIF(TKno,TK,_st07) -> 0 | AQ155: =SUMIF(TKco,TK,_st07) -> 0 | AR155: =IF(AN155+AP155-AO155-AQ155>0,AN155+AP155-AO155-AQ155,0) -> 0 | AS155: =IF(AO155+AQ155-AN155-AP155>0,AO155+AQ155-AN155-AP155,0) -> 0 | AT155: =AR155 -> 0 | AU155: 0 | AV155: =SUMIF(TKno,TK,_st08) -> 0 | AW155: =SUMIF(TKco,TK,_st08) -> 0 | AX155: =IF(AT155+AV155-AU155-AW155>0,AT155+AV155-AU155-AW155,0) -> 0 | AY155: =IF(AU155+AW155-AT155-AV155>0,AU155+AW155-AT155-AV155,0) -> 0 | AZ155: =AX155 -> 0 | BA155: 0 | BB155: =SUMIF(TKno,TK,_st09) -> 0 | BC155: =SUMIF(TKco,TK,_st09) -> 0 | BD155: =IF(AZ155+BB155-BA155-BC155>0,AZ155+BB155-BA155-BC155,0) -> 0 | BE155: =IF(BA155+BC155-AZ155-BB155>0,BA155+BC155-AZ155-BB155,0) -> 0 | BF155: =BD155 -> 0 | BG155: 0 | BH155: =SUMIF(TKno,TK,_st10) -> 0 | BI155: =SUMIF(TKco,TK,_st10) -> 0 | BJ155: =IF(BF155+BH155-BG155-BI155>0,BF155+BH155-BG155-BI155,0) -> 0 | BK155: =IF(BG155+BI155-BF155-BH155>0,BG155+BI155-BF155-BH155,0) -> 0 | BL155: =BJ155 -> 0 | BM155: 0 | BN155: =SUMIF(TKno,TK,_st11) -> 0 | BO155: =SUMIF(TKco,TK,_st11) -> 0 | BP155: =IF(BL155+BN155-BM155-BO155>0,BL155+BN155-BM155-BO155,0) -> 0 | BQ155: =IF(BM155+BO155-BL155-BN155>0,BM155+BO155-BL155-BN155,0) -> 0 | BR155: =BP155 -> 0 | BS155: 0 | BT155: =SUMIF(TKno,TK,_st12) -> 0 | BU155: =SUMIF(TKco,TK,_st12) -> 0 | BV155: =IF(BR155+BT155-BS155-BU155>0,BR155+BT155-BS155-BU155,0) -> 0 | BW155: =IF(BS155+BU155-BR155-BT155>0,BS155+BU155-BR155-BT155,0) -> 0 | BX155: 0 | BY155: 0 | BZ155: =SUMIF(TKno,TK,ST) -> 3,205,370 | CA155: =SUMIF(TKco,TK,ST) -> 3,205,370 | CB155: 0 | CC155: 0 | CD155: 4 | CE155: =$B155 -> 8211 | CG155: 8211
B156: 8212 | C156: Chi phí thuế TNDN hoãn lại | D156: 0 | F156: =SUMIF(TKno,TK,_st01) -> 0 | G156: =SUMIF(TKco,TK,_st01) -> 0 | H156: 0 | I156: 0 | J156: 0 | K156: 0 | L156: =SUMIF(TKno,TK,_st02) -> 0 | M156: =SUMIF(TKco,TK,_st02) -> 0 | N156: =IF(J156+L156-K156-M156>0,J156+L156-K156-M156,0) -> 0 | O156: =IF(K156+M156-J156-L156>0,K156+M156-J156-L156,0) -> 0 | P156: 0 | Q156: 0 | R156: =SUMIF(TKno,TK,_st03) -> 0 | S156: =SUMIF(TKco,TK,_st03) -> 0 | T156: =IF(P156+R156-Q156-S156>0,P156+R156-Q156-S156,0) -> 0 | U156: =IF(Q156+S156-P156-R156>0,Q156+S156-P156-R156,0) -> 0 | V156: 0 | W156: 0 | X156: =SUMIF(TKno,TK,_st04) -> 0 | Y156: =SUMIF(TKco,TK,_st04) -> 0 | Z156: =IF(V156+X156-W156-Y156>0,V156+X156-W156-Y156,0) -> 0 | AA156: =IF(W156+Y156-V156-X156>0,W156+Y156-V156-X156,0) -> 0 | AB156: 0 | AC156: 0 | AD156: =SUMIF(TKno,TK,_st05) -> 0 | AE156: =SUMIF(TKco,TK,_st05) -> 0 | AF156: =IF(AB156+AD156-AC156-AE156>0,AB156+AD156-AC156-AE156,0) -> 0 | AG156: =IF(AC156+AE156-AB156-AD156>0,AC156+AE156-AB156-AD156,0) -> 0 | AH156: 0 | AI156: 0 | AJ156: =SUMIF(TKno,TK,_st06) -> 0 | AK156: =SUMIF(TKco,TK,_st06) -> 0 | AL156: =IF(AH156+AJ156-AI156-AK156>0,AH156+AJ156-AI156-AK156,0) -> 0 | AM156: =IF(AI156+AK156-AH156-AJ156>0,AI156+AK156-AH156-AJ156,0) -> 0 | AN156: 0 | AO156: 0 | AP156: =SUMIF(TKno,TK,_st07) -> 0 | AQ156: =SUMIF(TKco,TK,_st07) -> 0 | AR156: =IF(AN156+AP156-AO156-AQ156>0,AN156+AP156-AO156-AQ156,0) -> 0 | AS156: =IF(AO156+AQ156-AN156-AP156>0,AO156+AQ156-AN156-AP156,0) -> 0 | AT156: 0 | AU156: 0 | AV156: =SUMIF(TKno,TK,_st08) -> 0 | AW156: =SUMIF(TKco,TK,_st08) -> 0 | AX156: =IF(AT156+AV156-AU156-AW156>0,AT156+AV156-AU156-AW156,0) -> 0 | AY156: =IF(AU156+AW156-AT156-AV156>0,AU156+AW156-AT156-AV156,0) -> 0 | AZ156: 0 | BA156: 0 | BB156: =SUMIF(TKno,TK,_st09) -> 0 | BC156: =SUMIF(TKco,TK,_st09) -> 0 | BD156: =IF(AZ156+BB156-BA156-BC156>0,AZ156+BB156-BA156-BC156,0) -> 0 | BE156: =IF(BA156+BC156-AZ156-BB156>0,BA156+BC156-AZ156-BB156,0) -> 0 | BF156: 0 | BG156: 0 | BH156: =SUMIF(TKno,TK,_st10) -> 0 | BI156: =SUMIF(TKco,TK,_st10) -> 0 | BJ156: =IF(BF156+BH156-BG156-BI156>0,BF156+BH156-BG156-BI156,0) -> 0 | BK156: =IF(BG156+BI156-BF156-BH156>0,BG156+BI156-BF156-BH156,0) -> 0 | BL156: 0 | BM156: 0 | BN156: =SUMIF(TKno,TK,_st11) -> 0 | BO156: =SUMIF(TKco,TK,_st11) -> 0 | BP156: =IF(BL156+BN156-BM156-BO156>0,BL156+BN156-BM156-BO156,0) -> 0 | BQ156: =IF(BM156+BO156-BL156-BN156>0,BM156+BO156-BL156-BN156,0) -> 0 | BR156: 0 | BS156: 0 | BT156: =SUMIF(TKno,TK,_st12) -> 0 | BU156: =SUMIF(TKco,TK,_st12) -> 0 | BV156: =IF(BR156+BT156-BS156-BU156>0,BR156+BT156-BS156-BU156,0) -> 0 | BW156: =IF(BS156+BU156-BR156-BT156>0,BS156+BU156-BR156-BT156,0) -> 0 | BX156: 0 | BY156: 0 | BZ156: =SUMIF(TKno,TK,ST) -> 0 | CA156: =SUMIF(TKco,TK,ST) -> 0 | CB156: 0 | CC156: 0 | CD156: 4 | CE156: =$B156 -> 8212 | CG156: 8212
B157: 911 | C157: Xác định kết quả kinh doanh | D157: 0 | F157: =SUMIF(TKno,TK,_st01) -> 0 | G157: =SUMIF(TKco,TK,_st01) -> 0 | H157: 0 | I157: 0 | J157: 0 | K157: 0 | L157: =SUMIF(TKno,TK,_st02) -> 979,473,184 | M157: =SUMIF(TKco,TK,_st02) -> 989,156,685 | N157: =IF(J157+L157-K157-M157>0,J157+L157-K157-M157,0) -> 0 | O157: =IF(K157+M157-J157-L157>0,K157+M157-J157-L157,0) -> 9,683,501 | P157: 0 | Q157: 9,683,501 | R157: =SUMIF(TKno,TK,_st03) -> 0 | S157: =SUMIF(TKco,TK,_st03) -> 0 | T157: =IF(P157+R157-Q157-S157>0,P157+R157-Q157-S157,0) -> 0 | U157: =IF(Q157+S157-P157-R157>0,Q157+S157-P157-R157,0) -> 9,683,501 | V157: 0 | W157: 9,683,501 | X157: =SUMIF(TKno,TK,_st04) -> 0 | Y157: =SUMIF(TKco,TK,_st04) -> 0 | Z157: =IF(V157+X157-W157-Y157>0,V157+X157-W157-Y157,0) -> 0 | AA157: =IF(W157+Y157-V157-X157>0,W157+Y157-V157-X157,0) -> 9,683,501 | AB157: 0 | AC157: 9,683,501 | AD157: =SUMIF(TKno,TK,_st05) -> 0 | AE157: =SUMIF(TKco,TK,_st05) -> 0 | AF157: =IF(AB157+AD157-AC157-AE157>0,AB157+AD157-AC157-AE157,0) -> 0 | AG157: =IF(AC157+AE157-AB157-AD157>0,AC157+AE157-AB157-AD157,0) -> 9,683,501 | AH157: 0 | AI157: 9,683,501 | AJ157: =SUMIF(TKno,TK,_st06) -> 0 | AK157: =SUMIF(TKco,TK,_st06) -> 0 | AL157: =IF(AH157+AJ157-AI157-AK157>0,AH157+AJ157-AI157-AK157,0) -> 0 | AM157: =IF(AI157+AK157-AH157-AJ157>0,AI157+AK157-AH157-AJ157,0) -> 9,683,501 | AN157: 0 | AO157: 9,683,501 | AP157: =SUMIF(TKno,TK,_st07) -> 0 | AQ157: =SUMIF(TKco,TK,_st07) -> 0 | AR157: =IF(AN157+AP157-AO157-AQ157>0,AN157+AP157-AO157-AQ157,0) -> 0 | AS157: =IF(AO157+AQ157-AN157-AP157>0,AO157+AQ157-AN157-AP157,0) -> 9,683,501 | AT157: 0 | AU157: 9,683,501 | AV157: =SUMIF(TKno,TK,_st08) -> 0 | AW157: =SUMIF(TKco,TK,_st08) -> 0 | AX157: =IF(AT157+AV157-AU157-AW157>0,AT157+AV157-AU157-AW157,0) -> 0 | AY157: =IF(AU157+AW157-AT157-AV157>0,AU157+AW157-AT157-AV157,0) -> 9,683,501 | AZ157: 0 | BA157: 9,683,501 | BB157: =SUMIF(TKno,TK,_st09) -> 0 | BC157: =SUMIF(TKco,TK,_st09) -> 0 | BD157: =IF(AZ157+BB157-BA157-BC157>0,AZ157+BB157-BA157-BC157,0) -> 0 | BE157: =IF(BA157+BC157-AZ157-BB157>0,BA157+BC157-AZ157-BB157,0) -> 9,683,501 | BF157: 0 | BG157: 9,683,501 | BH157: =SUMIF(TKno,TK,_st10) -> 0 | BI157: =SUMIF(TKco,TK,_st10) -> 0 | BJ157: =IF(BF157+BH157-BG157-BI157>0,BF157+BH157-BG157-BI157,0) -> 0 | BK157: =IF(BG157+BI157-BF157-BH157>0,BG157+BI157-BF157-BH157,0) -> 9,683,501 | BL157: 0 | BM157: 9,683,501 | BN157: =SUMIF(TKno,TK,_st11) -> 0 | BO157: =SUMIF(TKco,TK,_st11) -> 0 | BP157: =IF(BL157+BN157-BM157-BO157>0,BL157+BN157-BM157-BO157,0) -> 0 | BQ157: =IF(BM157+BO157-BL157-BN157>0,BM157+BO157-BL157-BN157,0) -> 9,683,501 | BR157: 0 | BS157: 9,683,501 | BT157: =SUMIF(TKno,TK,_st12) -> 0 | BU157: =SUMIF(TKco,TK,_st12) -> 0 | BV157: =IF(BR157+BT157-BS157-BU157>0,BR157+BT157-BS157-BU157,0) -> 0 | BW157: =IF(BS157+BU157-BR157-BT157>0,BS157+BU157-BR157-BT157,0) -> 9,683,501 | BX157: 0 | BY157: 0 | BZ157: =SUMIF(TKno,TK,ST) -> 979,473,184 | CA157: =SUMIF(TKco,TK,ST) -> 989,156,685 | CB157: 0 | CC157: 9,683,501 | CD157: 3 | CE157: =$B157 -> 911 | CF157: 911
A158: ok | C158: Tổng cộng | D158: =SUMIF($CD$12:$CD$157,3,D12:D157) -> 1,895,921,632 | E158: 1,895,921,632 | F158: 3,449,016,811 | G158: 3,449,016,811 | H158: 3,248,225,375 | I158: 3,248,225,375 | J158: 3,248,225,375 | K158: 3,248,225,375 | L158: 5,017,429,214 | M158: 5,017,429,214 | N158: 3,015,146,130 | O158: 3,015,146,130 | P158: 3,015,146,130 | Q158: 3,015,146,130 | R158: 0 | S158: 0 | T158: 3,015,146,130 | U158: 3,015,146,130 | V158: 3,015,146,130 | W158: 3,015,146,130 | X158: 0 | Y158: 0 | Z158: 3,015,146,130 | AA158: 3,015,146,130 | AB158: 3,015,146,130 | AC158: 3,015,146,130 | AD158: 0 | AE158: 0 | AF158: 3,015,146,130 | AG158: 3,015,146,130 | AH158: 3,015,146,130 | AI158: 3,015,146,130 | AJ158: =SUMIF($CD$12:$CD$157,3,AJ12:AJ157) -> 0 | AK158: 0 | AL158: 3,015,146,130 | AM158: 3,015,146,130 | AN158: 3,015,146,130 | AO158: 3,015,146,130 | AP158: 0 | AQ158: 0 | AR158: 3,015,146,130 | AS158: 3,015,146,130 | AT158: 3,015,146,130 | AU158: 3,015,146,130 | AV158: 0 | AW158: 0 | AX158: 3,015,146,130 | AY158: 3,015,146,130 | AZ158: 3,015,146,130 | BA158: 3,015,146,130 | BB158: 0 | BC158: 0 | BD158: 3,015,146,130 | BE158: 3,015,146,130 | BF158: 3,015,146,130 | BG158: 3,015,146,130 | BH158: 0 | BI158: 0 | BJ158: 3,015,146,130 | BK158: 3,015,146,130 | BL158: 3,015,146,130 | BM158: 3,015,146,130 | BN158: 0 | BO158: 0 | BP158: =SUMIF($CD$12:$CD$157,3,BP12:BP157) -> 3,000,146,130 | BQ158: 3,000,146,130 | BR158: 3,015,146,130 | BS158: 3,015,146,130 | BT158: 0 | BU158: 0 | BV158: 3,015,146,130 | BW158: 3,015,146,130 | BX158: 1,895,921,632 | BY158: 1,895,921,632 | BZ158: 8,511,446,025 | CA158: 8,580,021,025 | CB158: 3,025,146,130 | CC158: 3,093,721,130
A159: ok | D159: =D158-E158 -> 0 | H159: =H158-I158 -> 0 | J159: =J158-K158 -> 0 | L159: =L158-M158 -> 0 | N159: =N158-O158 -> 0 | P159: =P158-Q158 -> 0 | R159: =R158-S158 -> 0 | T159: =T158-U158 -> 0 | V159: =V158-W158 -> 0 | X159: =X158-Y158 -> 0 | Z159: =Z158-AA158 -> 0 | AB159: =AB158-AC158 -> 0 | AD159: =AD158-AE158 -> 0 | AF159: =AF158-AG158 -> 0 | AH159: =AH158-AI158 -> 0 | AJ159: =AJ158-AK158 -> 0 | AL159: =AL158-AM158 -> 0 | AN159: =AN158-AO158 -> 0 | AP159: =AP158-AQ158 -> 0 | AR159: =AR158-AS158 -> 0 | AT159: =AT158-AU158 -> 0 | AV159: =AV158-AW158 -> 0 | AX159: =AX158-AY158 -> 0 | AZ159: =AZ158-BA158 -> 0 | BB159: =BB158-BC158 -> 0 | BD159: =BD158-BE158 -> 0 | BF159: =BF158-BG158 -> 0 | BH159: =BH158-BI158 -> 0 | BJ159: =BJ158-BK158 -> 0 | BL159: =BL158-BM158 -> 0 | BN159: =BN158-BO158 -> 0 | BP159: =BP158-BQ158 -> 0 | BR159: =BR158-BS158 -> 0 | BT159: =BT158-BU158 -> 0 | BV159: =BV158-BW158 -> 0 | BX159: =BX158-BY158 -> 0 | CA159: =NKC!AJ1409 -> 9,899,534,057
A160: ok | F160: 4,656,749,528.00 | H160: ="Ngày "&TEXT(Ngay,"00")&" Tháng "&TEXT(Thang-Thang+1,"00")&" Năm "&Nam+1 -> Ngày 01 Tháng 01 Năm 2015 | L160: 5,197,961,562 | O160: =O157/100*20 -> 1,936,700
A161: ok | E161: Kế toán trưởng | F161: =F158-F160 -> (1,207,732,717.00) | H161: Giám đốc | L161: =L160-L158 -> 180,532,348 | O161: =O157-O160 -> 7,746,801 | X161: =Y157-X157 -> 0 | CA161: Ngày … tháng … năm …
A162: ok | C162: Người lập | CA162: Giám đốc
A163: ok | F163: =NKC!AJ27 -> 1,800,000 | O163: 3,205,370
A164: ok | F164: =NKC!AJ32 -> 16,500,000 | O164: 12,821,478
A165: ok | F165: =NKC!AJ41 -> 18,150,000 | O165: =SUM(O163:O164) -> 16,026,848
A166: ok | F166: =NKC!AJ53 -> 674,967
O167: =O165-O157 -> 6,343,347
A168: ok

Sheet NKC
B1: =Ten -> CÔNG TY CỔ PHẦN ĐẦU TƯ KIMI
B2: =DiaChi -> 266/42 Tô Hiến Thành, Phường 15, Quận 10, TP HCM, Việt Nam
T4: =AJ714-AJ715 -> 0 | AI4: =SUM(AJ937:AJ945)-AJ946 -> 0 | DB4: 100000000000
B5: SỔ NHẬT KÝ CHUNG 2014 | CU5: =+AJ433-'CĐTK - tu dat chi)'!D55 -> 0
B6: ="Tháng "&TEXT(Thang,"00")&" năm "&Nam -> Tháng 00 năm 2014 | AK6: =SUBTOTAL(9,AJ763:AJ836) -> 0
AJ7: =+AK3+AK4+AK5+AJ3+AJ4 -> 0
O8: VL, CCDC, SP, HH | R8: NHẬP XUẤT | X8: DOANH THU | AJ8: Đơn vị tính: VNĐ
A9: Tháng | B9: TT | C9: Ngày, tháng ghi sổ | D9: TC | F9: NX | H9: Chứng từ | L9: Đối tượng thu chi | M9: Đối tượng nhập xuất | N9: Diễn giải | O9: Mã | P9: Tên | Q9: ĐVT | R9: Số lượng | S9: Đơn giá | T9: Thành tiền | U9: Mã Nhập Xuất | W9: TTxuất | X9: Số lượng | Y9: Đơn giá | Z9: Thành tiền | AA9: Số hiệu TK | AC9: Công nợ | AE9: Giá thành | AG9: Loại tiền | AH9: Tỷ giá hối đoái | AI9: Số tiền (Ngoại tệ) | AJ9: Số tiền | AK9: SC | AL9: SQ | AM9: TG | AN9: CN | AO9: vay | AP9: CP142 | AQ9: CP242 | AR9: ctdt | AS9: PTC | AT9: PNX | AU9: LCTT | AV9: Giá thành | AW9: TS2111 | AX9: TS2112 | AY9: TS2113 | AZ9: TS2114 | BA9: TS2118 | BB9: TS2131 | BC9: TS2132 | BD9: TS2133 | BE9: TS2134 | BF9: TS2135 | BG9: TS2136 | BH9: TS2138 | BI9: SL01 | BJ9: SL02 | BK9: SL03 | BL9: SL04 | BM9: SL05 | BN9: SL06 | BO9: SL07 | BP9: SL08 | BQ9: SL09 | BR9: SL10 | BS9: SL11 | BT9: SL12 | BV9: ST01 | BW9: ST02 | BX9: ST03 | BY9: ST04 | BZ9: ST05 | CA9: ST06 | CB9: ST07 | CC9: ST08 | CD9: ST09 | CE9: ST10 | CF9: ST11 | CG9: ST12 | CI9: tt01 | CJ9: tt02 | CK9: tt03 | CL9: tt04 | CM9: tt05 | CN9: tt06 | CO9: tt07 | CP9: tt08 | CQ9: tt09 | CR9: tt10 | CS9: tt11 | CT9: tt12 | CU9: Chứng từ kèm theo Phiếu chi ( Chứng từ gốc) | CV9: Ngân hàng | CW9: TKNo | CX9: TKCO
D10: T | E10: C | F10: N | G10: X | H10: Số hiệu | I10: Ký hiệu | J10: Số | K10: Ngày, tháng | U10: Nhập | V10: Xuất | AA10: Nợ | AB10: Có | AC10: Nợ | AD10: Có | AE10: Nợ | AF10: Có
B11: A | C11: B | H11: C | K11: D | N11: E | BI11: 1 | BJ11: 2 | BK11: 3 | BL11: 4 | BM11: 5 | BN11: 6 | BO11: 7 | BP11: 8 | BQ11: 9 | BR11: 10 | BS11: 11 | BT11: 12 | BV11: 1 | BW11: 2 | BX11: 3 | BY11: 4 | BZ11: 5 | CA11: 6 | CB11: 7 | CC11: 8 | CD11: 9 | CE11: 10 | CF11: 11 | CG11: 12 | CI11: 1 | CJ11: 2 | CK11: 3 | CL11: 4 | CM11: 5 | CN11: 6 | CO11: 7 | CP11: 8 | CQ11: 9 | CR11: 10 | CS11: 11 | CT11: 12
A12: =IF($C12="","",MONTH($C12)) -> 1 | B12: =IF($H12="","",IF($H12=$H11,"",IF(ST>0,MAX($B$11:$B11)+1,""))) -> 1 | C12: =IF($K12="","",$K12) -> 2014-01-02 | D12: =IF(TKno<>1111,"",IF(AND($I12=$I11,$J12=$J11,$K12=$K11,$L12=$L11),$D11,MAX($D$11:$D11)+1)) ->  | E12: =IF(TKco<>1111,"",IF(AND($I12=$I11,$J12=$J11,$K12=$K11,$L12=$L11),$E11,MAX($E$11:$E11)+1)) ->  | F12: =IF($O12="","",IF(AND(TKno<>152,TKno<>153,TKno<>155,TKno<>1561),"",IF(AND($H12=$H11,$K12=$K11,$N12=$N11),$F11,MAX($F$10:$F11)+1))) ->  | G12: =IF($O12="","",IF(AND(TKco<>152,TKco<>153,TKco<>155,TKco<>1561),"",IF(AND($K12=$K11,$H12=$H11,$L11=$L12,$N11=$N12),$G11,MAX($G$10:$G11)+1))) ->  | H12: =IF(AND($I12="",$J12=""),IF($D12<>"","PT"&TEXT($D12,"000"),IF($E12<>"","PC"&TEXT($E12,"000"),"")),IF(MID($I12,3,1)="/",$J12,$I12&$J12)) -> PKT | I12: PKT | K12: 2014-01-02 | N12: Kết chuyển lợi nhuận năm 2013 sang 2014 | P12: =IF($O12="","",VLOOKUP($O12,NXT,3,0)) ->  | Q12: =IF($O12="","",VLOOKUP($O12,NXT,5,0)) ->  | W12: =IF(V12="","",$R12*VLOOKUP($O12,NXT,14,0)) ->  | AA12: 4212 | AB12: 4211 | AJ12: 27,588,299 | AK12: =IF(OR($AA12="",$AB12=""),"",IF(OR(LEFT($AA12,LEN(SoCai!$I$1))=TEXT(SoCai!$I$1,"000"),LEFT($AB12,LEN(SoCai!$I$1))=TEXT(SoCai!$I$1,"000")),IF($AJ12>0,SoCai!$I$1,""),"")) ->  | AL12: =IF(OR($AA12="",$AB12=""),"",IF(OR(LEFT($AA12,LEN(SQ!$A$4))=TEXT(SQ!$A$4,"000"),LEFT($AB12,LEN(SQ!$A$4))=TEXT(SQ!$A$4,"000")),IF($AJ12>0,SQ!$A$4,""),"")) ->  | AM12: =IF(OR($AA12="",$AB12=""),"",IF(OR(LEFT($AA12,LEN(TGNH!$A$4))=TEXT(TGNH!$A$4,"000"),LEFT($AB12,LEN(TGNH!$A$4))=TEXT(TGNH!$A$4,"000")),TGNH!$A$4,"")) ->  | AN12: =IF(AND($AC12="",$AD12=""),"",IF(OR($AC12='CT cong no P. Trả'!$A$1,$AD12='CT cong no P. Trả'!$A$1),'CT cong no P. Trả'!$A$1,"")) ->  | AO12: =IF(AND($AC12="",$AD12=""),"",IF(OR($AC12='ct-vAY'!$A$4,$AD12='ct-vAY'!$A$4),'ct-vAY'!$A$4,"")) ->  | AP12: =IF($O12<>"",IF(OR($AA12="",$AB12=""),"",IF(OR($AA12=142,$AB12=142),142,"")),"") ->  | AQ12: =IF($O12<>"",IF(OR($AA12="",$AB12=""),"",IF(OR($AA12=242,$AB12=242),242,"")),"") ->  | AR12: =IF($AB12="","",IF($AB12=5111,5111,"")) ->  | AS12: =IF($D12="",IF($E12="","","PC"&TEXT($E12,"000")),"PT"&TEXT($D12,"000")) ->  | AT12: =IF($F12="",IF($G12="","","PX"&TEXT($G12,"000")),"PN"&TEXT($F12,"000")) ->  | AU12: =AA12&"-"&AB12 -> 4212-4211 | AV12: =IF(AND($AE12="",$AF12=""),"",IF(OR($AE12=#REF!,$AF12=#REF!),#REF!,"")) ->  | AW12: =IF($O12<>"",IF(OR($AA12="",$AB12=""),"",IF(OR($AA12=2111,$AB12=2111),2111,"")),"") ->  | AX12: =IF($O12<>"",IF(OR($AA12="",$AB12=""),"",IF(OR($AA12=2112,$AB12=2112),2112,"")),"") ->  | AY12: =IF($O12<>"",IF(OR($AA12="",$AB12=""),"",IF(OR($AA12=2113,$AB12=2113),2113,"")),"") ->  | AZ12: =IF($O12<>"",IF(OR($AA12="",$AB12=""),"",IF(OR($AA12=2114,$AB12=2114),2114,"")),"") ->  | BA12: =IF($O12<>"",IF(OR($AA12="",$AB12=""),"",IF(OR($AA12=2118,$AB12=2118),2118,"")),"") ->  | BB12: =IF($O12<>"",IF(OR($AA12="",$AB12=""),"",IF(OR($AA12=2131,$AB12=2131),2131,"")),"") ->  | BC12: =IF($O12<>"",IF(OR($AA12="",$AB12=""),"",IF(OR($AA12=2132,$AB12=2132),2132,"")),"") ->  | BD12: =IF($O12<>"",IF(OR($AA12="",$AB12=""),"",IF(OR($AA12=2133,$AB12=2133),2133,"")),"") ->  | BE12: =IF($O12<>"",IF(OR($AA12="",$AB12=""),"",IF(OR($AA12=2134,$AB12=2134),2134,"")),"") ->  | BF12: =IF($O12<>"",IF(OR($AA12="",$AB12=""),"",IF(OR($AA12=2135,$AB12=2135),2135,"")),"") ->  | BG12: =IF($O12<>"",IF(OR($AA12="",$AB12=""),"",IF(OR($AA12=2136,$AB12=2136),2136,"")),"") ->  | BH12: =IF($O12<>"",IF(OR($AA12="",$AB12=""),"",IF(OR($AA12=2138,$AB12=2138),2138,"")),"") ->  | BI12: =IF(BI$11=$A12,SL,0) -> 0 | BJ12: 0 | BK12: 0 | BL12: 0 | BM12: 0 | BN12: 0 | BO12: 0 | BP12: 0 | BQ12: 0 | BR12: 0 | BS12: 0 | BT12: 0 | BV12: =IF(BV$11=$A12,ST,0) -> 27,588,299 | BW12: 0 | BX12: 0 | BY12: 0 | BZ12: 0 | CA12: 0 | CB12: 0 | CC12: 0 | CD12: 0 | CE12: 0 | CF12: 0 | CG12: 0 | CI12: =IF(CI$11=$A12,TT,0) -> 0 | CJ12: 0 | CK12: 0 | CL12: 0 | CM12: 0 | CN12: 0 | CO12: 0 | CP12: 0 | CQ12: 0 | CR12: 0 | CS12: 0 | CT12: 0 | CW12: =LEFT(AA12,3) -> 421 | CX12: =LEFT(AB12,3) -> 421 | CY12: =IF(CW12=CW14,2,1) -> 1
A13: 1 | B13: =IF($H13="","",IF($H13=$H12,"",IF(ST>0,MAX($B$11:$B12)+1,""))) -> 2 | C13: 2014-01-02 | D13: =IF(TKno<>1111,"",IF(AND($I13=$I12,$J13=$J12,$K13=$K12,$L13=$L12),$D12,MAX($D$11:$D12)+1)) ->  | E13: =IF(TKco<>1111,"",IF(AND($I13=$I12,$J13=$J12,$K13=$K12,$L13=$L12),$E12,MAX($E$11:$E12)+1)) ->  | F13: =IF($O13="","",IF(AND(TKno<>152,TKno<>153,TKno<>155,TKno<>1561),"",IF(AND($H13=$H12,$K13=$K12,$N13=$N12),$F12,MAX($F$10:$F12)+1))) ->  | G13: =IF($O13="","",IF(AND(TKco<>152,TKco<>153,TKco<>155,TKco<>1561),"",IF(AND($K13=$K12,$H13=$H12,$L12=$L13,$N12=$N13),$G12,MAX($G$10:$G12)+1))) ->  | H13: PKTGNC | I13: PKT | J13: GNC | K13: 2014-01-02 | L13: HANH | N13: Bà Lê Mỹ Hạnh góp vốn KD | W13: =IF(V13="","",$R13*VLOOKUP($O13,NXT,14,0)) ->  | AA13: 1121 | AB13: 41111 | AJ13: 300,000,000 | AK13: =IF(OR($AA13="",$AB13=""),"",IF(OR(LEFT($AA13,LEN(SoCai!$I$1))=TEXT(SoCai!$I$1,"000"),LEFT($AB13,LEN(SoCai!$I$1))=TEXT(SoCai!$I$1,"000")),IF($AJ13>0,SoCai!$I$1,""),"")) ->  | AL13: =IF(OR($AA13="",$AB13=""),"",IF(OR(LEFT($AA13,LEN(SQ!$A$4))=TEXT(SQ!$A$4,"000"),LEFT($AB13,LEN(SQ!$A$4))=TEXT(SQ!$A$4,"000")),IF($AJ13>0,SQ!$A$4,""),"")) ->  | AM13: =IF(OR($AA13="",$AB13=""),"",IF(OR(LEFT($AA13,LEN(TGNH!$A$4))=TEXT(TGNH!$A$4,"000"),LEFT($AB13,LEN(TGNH!$A$4))=TEXT(TGNH!$A$4,"000")),TGNH!$A$4,"")) ->  | AN13: =IF(AND($AC13="",$AD13=""),"",IF(OR($AC13='CT cong no P. Trả'!$A$1,$AD13='CT cong no P. Trả'!$A$1),'CT cong no P. Trả'!$A$1,"")) ->  | AO13: =IF(AND($AC13="",$AD13=""),"",IF(OR($AC13='ct-vAY'!$A$4,$AD13='ct-vAY'!$A$4),'ct-vAY'!$A$4,"")) ->  | AU13: 1121-41111 | AV13: =IF(AND($AE13="",$AF13=""),"",IF(OR($AE13=#REF!,$AF13=#REF!),#REF!,"")) ->  | BI13: 0 | BJ13: 0 | BK13: 0 | BL13: 0 | BM13: 0 | BN13: 0 | BO13: 0 | BP13: 0 | BQ13: 0 | BR13: 0 | BS13: 0 | BT13: 0 | BV13: 300,000,000 | BW13: 0 | BX13: 0 | BY13: 0 | BZ13: 0 | CA13: 0 | CB13: 0 | CC13: 0 | CD13: 0 | CE13: 0 | CF13: 0 | CG13: 0 | CI13: 0 | CJ13: 0 | CK13: 0 | CL13: 0 | CM13: 0 | CN13: 0 | CO13: 0 | CP13: 0 | CQ13: 0 | CR13: 0 | CS13: 0 | CT13: 0 | CW13: 112 | CX13: 411 | CY13: =IF(CW13=CW14,2,1) -> 1
A14: 1 | B14: =IF($H14="","",IF($H14=$H13,"",IF(ST>0,MAX($B$11:$B13)+1,""))) -> 3 | C14: 2014-01-06 | D14: =IF(TKno<>1111,"",IF(AND($I14=$I13,$J14=$J13,$K14=$K13,$L14=$L13),$D13,MAX($D$11:$D13)+1)) ->  | E14: =IF(TKco<>1111,"",IF(AND($I14=$I13,$J14=$J13,$K14=$K13,$L14=$L13),$E13,MAX($E$11:$E13)+1)) ->  | F14: =IF($O14="","",IF(AND(TKno<>152,TKno<>153,TKno<>155,TKno<>1561),"",IF(AND($H14=$H13,$K14=$K13,$N14=$N13),$F13,MAX($F$10:$F13)+1))) ->  | G14: =IF($O14="","",IF(AND(TKco<>152,TKco<>153,TKco<>155,TKco<>1561),"",IF(AND($K14=$K13,$H14=$H13,$L13=$L14,$N13=$N14),$G13,MAX($G$10:$G13)+1))) ->  | H14: PKT01/001 | I14: PKT | J14: 01/001 | K14: 2014-01-06 | L14: MBAI | N14: Tính thuế môn bài năm 2014 | AA14: 6425 | AB14: 3338 | AJ14: 2,000,000 | AK14: =IF(OR($AA14="",$AB14=""),"",IF(OR(LEFT($AA14,LEN(SoCai!$I$1))=TEXT(SoCai!$I$1,"000"),LEFT($AB14,LEN(SoCai!$I$1))=TEXT(SoCai!$I$1,"000")),IF($AJ14>0,SoCai!$I$1,""),"")) ->  | AL14: =IF(OR($AA14="",$AB14=""),"",IF(OR(LEFT($AA14,LEN(SQ!$A$4))=TEXT(SQ!$A$4,"000"),LEFT($AB14,LEN(SQ!$A$4))=TEXT(SQ!$A$4,"000")),IF($AJ14>0,SQ!$A$4,""),"")) ->  | AM14: =IF(OR($AA14="",$AB14=""),"",IF(OR(LEFT($AA14,LEN(TGNH!$A$4))=TEXT(TGNH!$A$4,"000"),LEFT($AB14,LEN(TGNH!$A$4))=TEXT(TGNH!$A$4,"000")),TGNH!$A$4,"")) ->  | AN14: =IF(AND($AC14="",$AD14=""),"",IF(OR($AC14='CT cong no P. Trả'!$A$1,$AD14='CT cong no P. Trả'!$A$1),'CT cong no P. Trả'!$A$1,"")) ->  | AO14: =IF(AND($AC14="",$AD14=""),"",IF(OR($AC14='ct-vAY'!$A$4,$AD14='ct-vAY'!$A$4),'ct-vAY'!$A$4,"")) ->  | AU14: =AA14&"-"&AB14 -> 6425-3338 | AV14: =IF(AND($AE14="",$AF14=""),"",IF(OR($AE14=#REF!,$AF14=#REF!),#REF!,"")) ->  | BI14: 0 | BJ14: 0 | BK14: 0 | BL14: 0 | BM14: 0 | BN14: 0 | BO14: 0 | BP14: 0 | BQ14: 0 | BR14: 0 | BS14: 0 | BT14: 0 | BV14: 2,000,000 | BW14: 0 | BX14: 0 | BY14: 0 | BZ14: 0 | CA14: 0 | CB14: 0 | CC14: 0 | CD14: 0 | CE14: 0 | CF14: 0 | CG14: 0 | CI14: 0 | CJ14: 0 | CK14: 0 | CL14: 0 | CM14: 0 | CN14: 0 | CO14: 0 | CP14: 0 | CQ14: 0 | CR14: 0 | CS14: 0 | CT14: 0 | CW14: =LEFT(AA14,3) -> 642 | CX14: =LEFT(AB14,3) -> 333 | CY14: =IF(CW14=CW15,2,1) -> 1
A15: 1 | B15: =IF($H15="","",IF($H15=$H14,"",IF(ST>0,MAX($B$11:$B14)+1,""))) -> 4 | C15: 2014-01-06 | D15: =IF(TKno<>1111,"",IF(AND($I15=$I14,$J15=$J14,$K15=$K14,$L15=$L14),$D14,MAX($D$11:$D14)+1)) ->  | E15: =IF(TKco<>1111,"",IF(AND($I15=$I14,$J15=$J14,$K15=$K14,$L15=$L14),$E14,MAX($E$11:$E14)+1)) -> 1 | F15: =IF($O15="","",IF(AND(TKno<>152,TKno<>153,TKno<>155,TKno<>1561),"",IF(AND($H15=$H14,$K15=$K14,$N15=$N14),$F14,MAX($F$10:$F14)+1))) ->  | G15: =IF($O15="","",IF(AND(TKco<>152,TKco<>153,TKco<>155,TKco<>1561),"",IF(AND($K15=$K14,$H15=$H14,$L14=$L15,$N14=$N15),$G14,MAX($G$10:$G14)+1))) ->  | H15: PC001 | K15: 2014-01-06 | L15: TQH | N15: Nộp thuế môn bài năm 2014 | T15: =R15*S15 -> 0 | U15: =IF(LEFT($AA15,2)="15",IF(MaNX="","",MaNX),"") ->  | V15: =IF(LEFT($AB15,2)="15",IF(MaNX="","",MaNX),"") ->  | Z15: =X15*Y15 -> 0 | AA15: 3338 | AB15: 1111 | AJ15: 2,000,000 | AK15: =IF(OR($AA15="",$AB15=""),"",IF(OR(LEFT($AA15,LEN(SoCai!$I$1))=TEXT(SoCai!$I$1,"000"),LEFT($AB15,LEN(SoCai!$I$1))=TEXT(SoCai!$I$1,"000")),IF($AJ15>0,SoCai!$I$1,""),"")) -> 1111 | AL15: =IF(OR($AA15="",$AB15=""),"",IF(OR(LEFT($AA15,LEN(SQ!$A$4))=TEXT(SQ!$A$4,"000"),LEFT($AB15,LEN(SQ!$A$4))=TEXT(SQ!$A$4,"000")),IF($AJ15>0,SQ!$A$4,""),"")) -> 111 | AM15: =IF(OR($AA15="",$AB15=""),"",IF(OR(LEFT($AA15,LEN(TGNH!$A$4))=TEXT(TGNH!$A$4,"000"),LEFT($AB15,LEN(TGNH!$A$4))=TEXT(TGNH!$A$4,"000")),TGNH!$A$4,"")) ->  | AN15: =IF(AND($AC15="",$AD15=""),"",IF(OR($AC15='CT cong no P. Trả'!$A$1,$AD15='CT cong no P. Trả'!$A$1),'CT cong no P. Trả'!$A$1,"")) ->  | AO15: =IF(AND($AC15="",$AD15=""),"",IF(OR($AC15='ct-vAY'!$A$4,$AD15='ct-vAY'!$A$4),'ct-vAY'!$A$4,"")) ->  | AS15: PC001 | AU15: 3338-1111 | AV15: =IF(AND($AE15="",$AF15=""),"",IF(OR($AE15=#REF!,$AF15=#REF!),#REF!,"")) ->  | BI15: 0 | BJ15: 0 | BK15: 0 | BL15: 0 | BM15: 0 | BN15: 0 | BO15: 0 | BP15: 0 | BQ15: 0 | BR15: 0 | BS15: 0 | BT15: 0 | BV15: 2,000,000 | BW15: 0 | BX15: 0 | BY15: 0 | BZ15: 0 | CA15: 0 | CB15: 0 | CC15: 0 | CD15: 0 | CE15: 0 | CF15: 0 | CG15: 0 | CI15: 0 | CJ15: 0 | CK15: 0 | CL15: 0 | CM15: 0 | CN15: 0 | CO15: 0 | CP15: 0 | CQ15: 0 | CR15: 0 | CS15: 0 | CT15: 0 | CU15: Giấy nộp tiền vào NSNN | CW15: 333 | CX15: 111 | CY15: 1
A16: 1 | B16: =IF($H16="","",IF($H16=$H15,"",IF(ST>0,MAX($B$11:$B15)+1,""))) -> 5 | C16: 2014-01-07 | D16: =IF(TKno<>1111,"",IF(AND($I16=$I15,$J16=$J15,$K16=$K15,$L16=$L15),$D15,MAX($D$11:$D15)+1)) ->  | E16: =IF(TKco<>1111,"",IF(AND($I16=$I15,$J16=$J15,$K16=$K15,$L16=$L15),$E15,MAX($E$11:$E15)+1)) ->  | F16: =IF($O16="","",IF(AND(TKno<>152,TKno<>153,TKno<>155,TKno<>1561),"",IF(AND($H16=$H15,$K16=$K15,$N16=$N15),$F15,MAX($F$10:$F15)+1))) ->  | G16: =IF($O16="","",IF(AND(TKco<>152,TKco<>153,TKco<>155,TKco<>1561),"",IF(AND($K16=$K15,$H16=$H15,$L15=$L16,$N15=$N16),$G15,MAX($G$10:$G15)+1))) ->  | H16: HĐ0004518 | I16: HĐ | J16: 0004518 | K16: 2014-01-07 | L16: TDAI | M16: TDAI | N16: Mua bàn ghế theo HĐ Số 0004518 | T16: 0 | Z16: 0 | AA16: 142 | AB16: 331 | AD16: TDAI | AJ16: 7,000,000 | AK16: =IF(OR($AA16="",$AB16=""),"",IF(OR(LEFT($AA16,LEN(SoCai!$I$1))=TEXT(SoCai!$I$1,"000"),LEFT($AB16,LEN(SoCai!$I$1))=TEXT(SoCai!$I$1,"000")),IF($AJ16>0,SoCai!$I$1,""),"")) ->  | AL16: =IF(OR($AA16="",$AB16=""),"",IF(OR(LEFT($AA16,LEN(SQ!$A$4))=TEXT(SQ!$A$4,"000"),LEFT($AB16,LEN(SQ!$A$4))=TEXT(SQ!$A$4,"000")),IF($AJ16>0,SQ!$A$4,""),"")) ->  | AM16: =IF(OR($AA16="",$AB16=""),"",IF(OR(LEFT($AA16,LEN(TGNH!$A$4))=TEXT(TGNH!$A$4,"000"),LEFT($AB16,LEN(TGNH!$A$4))=TEXT(TGNH!$A$4,"000")),TGNH!$A$4,"")) ->  | AN16: =IF(AND($AC16="",$AD16=""),"",IF(OR($AC16='CT cong no P. Trả'!$A$1,$AD16='CT cong no P. Trả'!$A$1),'CT cong no P. Trả'!$A$1,"")) ->  | AO16: =IF(AND($AC16="",$AD16=""),"",IF(OR($AC16='ct-vAY'!$A$4,$AD16='ct-vAY'!$A$4),'ct-vAY'!$A$4,"")) ->  | AU16: 142-331 | AV16: =IF(AND($AE16="",$AF16=""),"",IF(OR($AE16=#REF!,$AF16=#REF!),#REF!,"")) ->  | BI16: 0 | BJ16: 0 | BK16: 0 | BL16: 0 | BM16: 0 | BN16: 0 | BO16: 0 | BP16: 0 | BQ16: 0 | BR16: 0 | BS16: 0 | BT16: 0 | BV16: 7,000,000 | BW16: 0 | BX16: 0 | BY16: 0 | BZ16: 0 | CA16: 0 | CB16: 0 | CC16: 0 | CD16: 0 | CE16: 0 | CF16: 0 | CG16: 0 | CI16: 0 | CJ16: 0 | CK16: 0 | CL16: 0 | CM16: 0 | CN16: 0 | CO16: 0 | CP16: 0 | CQ16: 0 | CR16: 0 | CS16: 0 | CT16: 0 | CW16: 142 | CX16: 331 | CY16: 1
A17: 1 | B17: =IF($H17="","",IF($H17=$H16,"",IF(ST>0,MAX($B$11:$B16)+1,""))) ->  | C17: 2014-01-07 | D17: =IF(TKno<>1111,"",IF(AND($I17=$I16,$J17=$J16,$K17=$K16,$L17=$L16),$D16,MAX($D$11:$D16)+1)) ->  | E17: =IF(TKco<>1111,"",IF(AND($I17=$I16,$J17=$J16,$K17=$K16,$L17=$L16),$E16,MAX($E$11:$E16)+1)) ->  | F17: =IF($O17="","",IF(AND(TKno<>152,TKno<>153,TKno<>155,TKno<>1561),"",IF(AND($H17=$H16,$K17=$K16,$N17=$N16),$F16,MAX($F$10:$F16)+1))) ->  | G17: =IF($O17="","",IF(AND(TKco<>152,TKco<>153,TKco<>155,TKco<>1561),"",IF(AND($K17=$K16,$H17=$H16,$L16=$L17,$N16=$N17),$G16,MAX($G$10:$G16)+1))) ->  | H17: HĐ0004518 | I17: HĐ | J17: 0004518 | K17: 2014-01-07 | L17: TDAI | N17: Thuế GTGT đầu vào được khấu trừ theo HĐ số 0004518 | T17: 0 | Z17: 0 | AA17: 1331 | AB17: 331 | AD17: TDAI | AJ17: 700,000 | AK17: =IF(OR($AA17="",$AB17=""),"",IF(OR(LEFT($AA17,LEN(SoCai!$I$1))=TEXT(SoCai!$I$1,"000"),LEFT($AB17,LEN(SoCai!$I$1))=TEXT(SoCai!$I$1,"000")),IF($AJ17>0,SoCai!$I$1,""),"")) ->  | AL17: =IF(OR($AA17="",$AB17=""),"",IF(OR(LEFT($AA17,LEN(SQ!$A$4))=TEXT(SQ!$A$4,"000"),LEFT($AB17,LEN(SQ!$A$4))=TEXT(SQ!$A$4,"000")),IF($AJ17>0,SQ!$A$4,""),"")) ->  | AM17: =IF(OR($AA17="",$AB17=""),"",IF(OR(LEFT($AA17,LEN(TGNH!$A$4))=TEXT(TGNH!$A$4,"000"),LEFT($AB17,LEN(TGNH!$A$4))=TEXT(TGNH!$A$4,"000")),TGNH!$A$4,"")) ->  | AN17: =IF(AND($AC17="",$AD17=""),"",IF(OR($AC17='CT cong no P. Trả'!$A$1,$AD17='CT cong no P. Trả'!$A$1),'CT cong no P. Trả'!$A$1,"")) ->  | AO17: =IF(AND($AC17="",$AD17=""),"",IF(OR($AC17='ct-vAY'!$A$4,$AD17='ct-vAY'!$A$4),'ct-vAY'!$A$4,"")) ->  | AU17: 1331-331 | AV17: =IF(AND($AE17="",$AF17=""),"",IF(OR($AE17=#REF!,$AF17=#REF!),#REF!,"")) ->  | BI17: 0 | BJ17: 0 | BK17: 0 | BL17: 0 | BM17: 0 | BN17: 0 | BO17: 0 | BP17: 0 | BQ17: 0 | BR17: 0 | BS17: 0 | BT17: 0 | BV17: 700,000 | BW17: 0 | BX17: 0 | BY17: 0 | BZ17: 0 | CA17: 0 | CB17: 0 | CC17: 0 | CD17: 0 | CE17: 0 | CF17: 0 | CG17: 0 | CI17: 0 | CJ17: 0 | CK17: 0 | CL17: 0 | CM17: 0 | CN17: 0 | CO17: 0 | CP17: 0 | CQ17: 0 | CR17: 0 | CS17: 0 | CT17: 0 | CW17: 133 | CX17: 331 | CY17: 1
A18: 1 | B18: =IF($H18="","",IF($H18=$H17,"",IF(ST>0,MAX($B$11:$B17)+1,""))) -> 6 | C18: 2014-01-07 | D18: =IF(TKno<>1111,"",IF(AND($I18=$I17,$J18=$J17,$K18=$K17,$L18=$L17),$D17,MAX($D$11:$D17)+1)) ->  | E18: =IF(TKco<>1111,"",IF(AND($I18=$I17,$J18=$J17,$K18=$K17,$L18=$L17),$E17,MAX($E$11:$E17)+1)) -> 2 | F18: =IF($O18="","",IF(AND(TKno<>152,TKno<>153,TKno<>155,TKno<>1561),"",IF(AND($H18=$H17,$K18=$K17,$N18=$N17),$F17,MAX($F$10:$F17)+1))) ->  | G18: =IF($O18="","",IF(AND(TKco<>152,TKco<>153,TKco<>155,TKco<>1561),"",IF(AND($K18=$K17,$H18=$H17,$L17=$L18,$N17=$N18),$G17,MAX($G$10:$G17)+1))) ->  | H18: PC002 | K18: 2014-01-07 | L18: TDAI | N18: Thanh toán tiền mua bàn ghế theo HĐ Số 0004518 | T18: 0 | Z18: 0 | AA18: 331 | AB18: 1111 | AC18: TDAI | AJ18: 7,700,000 | AK18: =IF(OR($AA18="",$AB18=""),"",IF(OR(LEFT($AA18,LEN(SoCai!$I$1))=TEXT(SoCai!$I$1,"000"),LEFT($AB18,LEN(SoCai!$I$1))=TEXT(SoCai!$I$1,"000")),IF($AJ18>0,SoCai!$I$1,""),"")) -> 1111 | AL18: =IF(OR($AA18="",$AB18=""),"",IF(OR(LEFT($AA18,LEN(SQ!$A$4))=TEXT(SQ!$A$4,"000"),LEFT($AB18,LEN(SQ!$A$4))=TEXT(SQ!$A$4,"000")),IF($AJ18>0,SQ!$A$4,""),"")) -> 111 | AM18: =IF(OR($AA18="",$AB18=""),"",IF(OR(LEFT($AA18,LEN(TGNH!$A$4))=TEXT(TGNH!$A$4,"000"),LEFT($AB18,LEN(TGNH!$A$4))=TEXT(TGNH!$A$4,"000")),TGNH!$A$4,"")) ->  | AN18: =IF(AND($AC18="",$AD18=""),"",IF(OR($AC18='CT cong no P. Trả'!$A$1,$AD18='CT cong no P. Trả'!$A$1),'CT cong no P. Trả'!$A$1,"")) ->  | AO18: =IF(AND($AC18="",$AD18=""),"",IF(OR($AC18='ct-vAY'!$A$4,$AD18='ct-vAY'!$A$4),'ct-vAY'!$A$4,"")) ->  | AS18: PC002 | AU18: 331-1111 | AV18: =IF(AND($AE18="",$AF18=""),"",IF(OR($AE18=#REF!,$AF18=#REF!),#REF!,"")) ->  | BI18: 0 | BJ18: 0 | BK18: 0 | BL18: 0 | BM18: 0 | BN18: 0 | BO18: 0 | BP18: 0 | BQ18: 0 | BR18: 0 | BS18: 0 | BT18: 0 | BV18: 7,700,000 | BW18: 0 | BX18: 0 | BY18: 0 | BZ18: 0 | CA18: 0 | CB18: 0 | CC18: 0 | CD18: 0 | CE18: 0 | CF18: 0 | CG18: 0 | CI18: 0 | CJ18: 0 | CK18: 0 | CL18: 0 | CM18: 0 | CN18: 0 | CO18: 0 | CP18: 0 | CQ18: 0 | CR18: 0 | CS18: 0 | CT18: 0 | CU18: HĐ 0004518 | CW18: 331 | CX18: 111 | CY18: 1
A19: 1 | B19: =IF($H19="","",IF($H19=$H18,"",IF(ST>0,MAX($B$11:$B18)+1,""))) -> 7 | C19: 2014-01-09 | D19: =IF(TKno<>1111,"",IF(AND($I19=$I18,$J19=$J18,$K19=$K18,$L19=$L18),$D18,MAX($D$11:$D18)+1)) ->  | E19: =IF(TKco<>1111,"",IF(AND($I19=$I18,$J19=$J18,$K19=$K18,$L19=$L18),$E18,MAX($E$11:$E18)+1)) ->  | F19: =IF($O19="","",IF(AND(TKno<>152,TKno<>153,TKno<>155,TKno<>1561),"",IF(AND($H19=$H18,$K19=$K18,$N19=$N18),$F18,MAX($F$10:$F18)+1))) -> 1 | G19: =IF($O19="","",IF(AND(TKco<>152,TKco<>153,TKco<>155,TKco<>1561),"",IF(AND($K19=$K18,$H19=$H18,$L18=$L19,$N18=$N19),$G18,MAX($G$10:$G18)+1))) ->  | H19: HĐ0004573 | I19: HĐ | J19: 0004573 | K19: 41648 | L19: SF5 | M19: SF5 | N19: Mua máy tính nhập kho | O19: MTA01 | P19: Máy tính bộ ACER | Q19: Cái | R19: 100 | S19: 5,940,000 | T19: 594,000,000 | U19: MTA01 | Z19: 0 | AA19: 1561 | AB19: 331 | AD19: SF5 | AJ19: 594,000,000 | AK19: =IF(OR($AA19="",$AB19=""),"",IF(OR(LEFT($AA19,LEN(SoCai!$I$1))=TEXT(SoCai!$I$1,"000"),LEFT($AB19,LEN(SoCai!$I$1))=TEXT(SoCai!$I$1,"000")),IF($AJ19>0,SoCai!$I$1,""),"")) ->  | AL19: =IF(OR($AA19="",$AB19=""),"",IF(OR(LEFT($AA19,LEN(SQ!$A$4))=TEXT(SQ!$A$4,"000"),LEFT($AB19,LEN(SQ!$A$4))=TEXT(SQ!$A$4,"000")),IF($AJ19>0,SQ!$A$4,""),"")) ->  | AM19: =IF(OR($AA19="",$AB19=""),"",IF(OR(LEFT($AA19,LEN(TGNH!$A$4))=TEXT(TGNH!$A$4,"000"),LEFT($AB19,LEN(TGNH!$A$4))=TEXT(TGNH!$A$4,"000")),TGNH!$A$4,"")) ->  | AN19: =IF(AND($AC19="",$AD19=""),"",IF(OR($AC19='CT cong no P. Trả'!$A$1,$AD19='CT cong no P. Trả'!$A$1),'CT cong no P. Trả'!$A$1,"")) ->  | AO19: =IF(AND($AC19="",$AD19=""),"",IF(OR($AC19='ct-vAY'!$A$4,$AD19='ct-vAY'!$A$4),'ct-vAY'!$A$4,"")) ->  | AT19: PN001 | AU19: 1561-331 | AV19: =IF(AND($AE19="",$AF19=""),"",IF(OR($AE19=#REF!,$AF19=#REF!),#REF!,"")) ->  | BI19: 100 | BJ19: 0 | BK19: 0 | BL19: =IF(BL$11=$A19,SL,0) -> 0 | BM19: 0 | BN19: 0 | BO19: 0 | BP19: 0 | BQ19: 0 | BR19: 0 | BS19: 0 | BT19: 0 | BV19: 594,000,000 | BW19: 0 | BX19: 0 | BY19: =IF(BY$11=$A19,ST,0) -> 0 | BZ19: 0 | CA19: 0 | CB19: 0 | CC19: 0 | CD19: 0 | CE19: 0 | CF19: 0 | CG19: 0 | CI19: 594000000 | CJ19: 0 | CK19: 0 | CL19: =IF(CL$11=$A19,TT,0) -> 0 | CM19: 0 | CN19: 0 | CO19: 0 | CP19: 0 | CQ19: 0 | CR19: 0 | CS19: 0 | CT19: 0 | CW19: 156 | CX19: 331 | CY19: 1
